Workbook

Sheet SO2
A1: SO2 (tons)
C2: 1990 | D2: 1991 | E2: 1992 | F2: 1993 | G2: 1994 | H2: 1995 | I2: 1996 | J2: 1997 | K2: 1998 | L2: 1999 | M2: 2000 | N2: 2001 | O2: 2002 | P2: 2003 | Q2: 2004 | R2: 2005 | S2: 2006 | T2: 2007 | U2: 2008 | V2: 2009 | W2: 2010 | X2: 2011 | Y2: 2012 | Z2: 2013 | AA2: 2014 | AB2: 2015 | AC2: 2016 | AD2: 2017 | AE2: 2018 | AF2: 2019 | AG2: 2020 | AH2: 2021 | AI2: 2022 | AJ2: 2023 | AK2: 2024 | AL2: 2025 | AM2: 2026 | AN2: 2027 | AO2: 2028 | AP2: 2029 | AQ2: 2030 | AR2: 2031 | AS2: 2032 | AT2: 2033 | AU2: 2034 | AV2: 2035 | AW2: 2036 | AX2: 2037 | AY2: 2038 | AZ2: 2039 | BA2: 2040
A3: 1A1a | B3: Public power and district heating plants | C3: 125682.3344 | D3: 183985.7092 | E3: 135925.7543 | F3: 104383.1286 | G3: 106678.0656 | H3: 108449.258 | I3: 142284.5092 | J3: 73817.43376 | K3: 53794.70429 | L3: 36280.76685 | M3: 11992.841 | N3: 10278.13492 | O3: 9907.99155 | P3: 16885.48016 | Q3: 9648.527873 | R3: 7646.174596 | S3: 9794.158345 | T3: 8577.249582 | U3: 6274.174617 | V3: 4423.177673 | W3: 3589.463654 | X3: 2674.960243 | Y3: 2760.673723 | Z3: 3158.532576 | AA3: 2289.717035 | AB3: 2222.598145 | AC3: 2371.033749 | AD3: 2309.750249 | AE3: 2372.194009 | AF3: 2058.338551 | AG3: 1943.417454 | AH3: 2647.070994 | AI3: 2791.305078 | AJ3: 2435.590197 | AK3: 2080.518035 | AL3: 1963.996338 | AM3: 1934.301289 | AN3: 1904.393645 | AO3: 1812.425385 | AP3: 1739.045468 | AQ3: 1611.381973 | AR3: 1596.760092 | AS3: 1533.059454 | AT3: 1448.495785 | AU3: 1427.470583 | AV3: 1405.153673 | AW3: 1350.497363 | AX3: 1293.495412 | AY3: 1235.761974 | AZ3: 1188.471933 | BA3: 1150.895089
A4: 1A1b | B4: Petroleum refining plants | C4: 1162.148613 | D4: 1805.623066 | E4: 3148.653048 | F4: 3078.971987 | G4: 2667.63698 | H4: 2050.058047 | I4: 1141.540869 | J4: 1372.328128 | K4: 927.05049 | L4: 530.8662954 | M4: 582.507334 | N4: 596.531415 | O4: 917.899987 | P4: 481.5047979 | Q4: 411.5722435 | R4: 267.278919 | S4: 223.3053549 | T4: 414.9294149 | U4: 318.2087555 | V4: 253.9346642 | W4: 228.926174 | X4: 317.7046629 | Y4: 258.0921673 | Z4: 293.2160575 | AA4: 164.98 | AB4: 224.732 | AC4: 177.45 | AD4: 280.9071888 | AE4: 168.2 | AF4: 255.4 | AG4: 165.7 | AH4: 92.98444535 | AI4: 92.98456175 | AJ4: 92.98422518 | AK4: 92.9844274 | AL4: 92.98447602 | AM4: 92.98363474 | AN4: 92.98419042 | AO4: 92.98440942 | AP4: 92.98417548 | AQ4: 92.98290764 | AR4: 92.98268644 | AS4: 92.98205391 | AT4: 92.98199622 | AU4: 92.98127525 | AV4: 92.98149878 | AW4: 92.9827377 | AX4: 92.98247806 | AY4: 92.9826006 | AZ4: 92.98276951 | BA4: 92.98233554
A5: 1A1c | B5: Oil and gas extraction | C5: 10.79018446 | D5: 10.79776158 | E5: 12.22564783 | F5: 12.69706583 | G5: 14.28724191 | H5: 7.898704535 | I5: 9.437674342 | J5: 12.58586671 | K5: 14.24910855 | L5: 16.32479049 | M5: 19.2246505 | N5: 18.62469514 | O5: 19.82726458 | P5: 19.6836591 | Q5: 19.98319214 | R5: 20.58361442 | S5: 20.60359876 | T5: 17.53784073 | U5: 17.2900472 | V5: 17.05305926 | W5: 15.69206542 | X5: 15.60376486 | Y5: 14.71193191 | Z5: 15.77585386 | AA5: 15.25066361 | AB5: 12.89182473 | AC5: 12.42529121 | AD5: 11.91184183 | AE5: 12.380378 | AF5: 12.34927455 | AG5: 8.768013374 | AH5: 11.88238877 | AI5: 11.17166238 | AJ5: 11.72406718 | AK5: 13.9351963 | AL5: 12.21491043 | AM5: 11.5346647 | AN5: 11.71287338 | AO5: 11.17066671 | AP5: 10.8076092 | AQ5: 10.27294747 | AR5: 9.766313268 | AS5: 9.306869191 | AT5: 8.902892449 | AU5: 8.506732234 | AV5: 8.541757534 | AW5: 8.182778909 | AX5: 7.734184573 | AY5: 7.274058022 | AZ5: 6.812205772 | BA5: 6.375465431
A7: 1A2a-f i | B7: Combustion in manufacturing industry | C7: 15463.63802 | D7: 17150.73237 | E7: 14908.8105 | F7: 13876.76167 | G7: 13110.45575 | H7: 11612.42122 | I7: 11923.53483 | J7: 10254.6428 | K7: 9900.966363 | L7: 7826.416314 | M7: 6966.955494 | N7: 7251.636402 | O7: 5949.826313 | P7: 6401.582892 | Q7: 6834.247722 | R7: 6038.126069 | S7: 7152.097745 | T7: 6149.397773 | U7: 4471.719602 | V7: 3322.660253 | W7: 3699.685598 | X7: 3515.470284 | Y7: 2634.182537 | Z7: 2535.192228 | AA7: 2513.825407 | AB7: 2521.97578 | AC7: 2754.86702 | AD7: 2390.172338 | AE7: 2326.499911 | AF7: 2199.828108 | AG7: 2629.777159 | AH7: 2316.299814 | AI7: 2280.020345 | AJ7: 2243.669237 | AK7: 2207.365304 | AL7: 2171.025268 | AM7: 2043.525382 | AN7: 1916.028833 | AO7: 2178.593717 | AP7: 1984.93189 | AQ7: 1791.236792 | AR7: 1734.066923 | AS7: 1677.027179 | AT7: 1620.003587 | AU7: 1560.323875 | AV7: 1503.195178 | AW7: 1475.61491 | AX7: 1448.869854 | AY7: 1422.418419 | AZ7: 1402.107312 | BA7: 1383.338737
A8: 1A2f ii | B8: Industry - Other (mobile) | C8: 609.0868288 | D8: 606.6918922 | E8: 603.2011409 | F8: 600.0246307 | G8: 596.9296274 | H8: 595.4656613 | I8: 148.6692689 | J8: 148.1910931 | K8: 147.5419478 | L8: 148.1404678 | M8: 105.9591779 | N8: 108.7260902 | O8: 110.6860635 | P8: 112.6559937 | Q8: 114.9864068 | R8: 17.18594743 | S8: 18.50204856 | T8: 20.1223528 | U8: 21.11399271 | V8: 15.81722618 | W8: 19.55809761 | X8: 3.733642728 | Y8: 3.576037314 | Z8: 3.465220484 | AA8: 3.377674225 | AB8: 3.300655147 | AC8: 3.23097967 | AD8: 3.175124746 | AE8: 3.170514884 | AF8: 3.231890249 | AG8: 3.307184021 | AH8: 3.120679224 | AI8: 3.148619745 | AJ8: 3.176560265 | AK8: 3.204500785 | AL8: 3.192511484 | AM8: 3.106924357 | AN8: 3.021337231 | AO8: 2.907773155 | AP8: 2.822621002 | AQ8: 2.700504755 | AR8: 2.655263462 | AS8: 2.61002217 | AT8: 2.564780877 | AU8: 2.519539584 | AV8: 2.474298291 | AW8: 2.447758861 | AX8: 2.421219432 | AY8: 2.394680003 | AZ8: 2.368140573 | BA8: 2.341601144
A10: 1A3a | B10: Civil Aviation (Domestic LTO) | C10: 22.42775782 | D10: 21.68246101 | E10: 21.88085361 | F10: 22.07449284 | G10: 22.507787 | H10: 23.94746731 | I10: 25.98230065 | J10: 26.96421589 | K10: 23.08779554 | L10: 20.46619918 | M10: 18.29303501 | N10: 18.29919102 | O10: 15.2276881 | P10: 13.7065865 | Q10: 11.36588225 | R10: 12.60483549 | S10: 13.11961638 | T10: 15.30534804 | U10: 15.75169219 | V10: 15.73024057 | W10: 17.05519027 | X10: 15.90992891 | Y10: 14.5506183 | Z10: 13.99468471 | AA10: 11.93351023 | AB10: 11.43315317 | AC10: 12.12101293 | AD10: 11.6477062 | AE10: 12.13529 | AF10: 11.99669825 | AG10: 6.891507218 | AH10: 12.28095171 | AI10: 12.4077947 | AJ10: 12.52436596 | AK10: 12.63671245 | AL10: 12.7483818 | AM10: 12.89231099 | AN10: 13.03977977 | AO10: 13.18923834 | AP10: 13.3372813 | AQ10: 13.4892073 | AR10: 13.53320991 | AS10: 13.57394161 | AT10: 13.61631917 | AU10: 13.6558971 | AV10: 13.69941633 | AW10: 13.74172226 | AX10: 13.78182407 | AY10: 13.8236699 | AZ10: 13.8630249 | BA10: 13.90559361
A11: 1A3a | B11: Civil Aviation (International LTO) | C11: 58.29033488 | D11: 56.21297117 | E11: 61.24455778 | F11: 63.00531566 | G11: 65.0992338 | H11: 69.64899733 | I11: 75.42805384 | J11: 80.69746151 | K11: 82.44241499 | L11: 87.29797185 | M11: 91.21068968 | N11: 89.38695715 | O11: 83.36908685 | P11: 78.52618176 | Q11: 85.10987481 | R11: 86.03758437 | S11: 83.58003718 | T11: 85.02646205 | U11: 91.20654313 | V11: 77.82380127 | W11: 83.24384497 | X11: 85.45809249 | Y11: 86.22542458 | Z11: 87.9510349 | AA11: 90.02119218 | AB11: 90.82090305 | AC11: 99.72099183 | AD11: 98.78476733 | AE11: 106.0221816 | AF11: 105.9205189 | AG11: 37.32757707 | AH11: 47.27634931 | AI11: 118.1167993 | AJ11: 118.6908213 | AK11: 119.1100088 | AL11: 119.4757373 | AM11: 120.2484443 | AN11: 121.0761446 | AO11: 121.9176732 | AP11: 122.6749466 | AQ11: 123.5116933 | AR11: 123.632198 | AS11: 123.6624557 | AT11: 123.7511892 | AU11: 123.7635472 | AV11: 123.9023811 | AW11: 124.0111422 | AX11: 124.0605681 | AY11: 124.1685117 | AZ11: 124.2076011 | BA11: 124.3500322
A12: 1A3bi | B12: Road transport: Passenger cars | C12: 736.2369394 | D12: 803.5619192 | E12: 579.8576418 | F12: 326.5123212 | G12: 340.0363371 | H12: 340.7257671 | I12: 344.061158 | J12: 350.7696716 | K12: 356.3482727 | L12: 285.5997641 | M12: 199.3878342 | N12: 196.5795275 | O12: 199.7360962 | P12: 205.088557 | Q12: 207.3222055 | R12: 41.03575583 | S12: 41.45320325 | T12: 42.79247375 | U12: 42.38416293 | V12: 41.42693676 | W12: 40.6921973 | X12: 39.73054263 | Y12: 39.19461208 | Z12: 39.23458249 | AA12: 39.59730736 | AB12: 40.59109731 | AC12: 40.92483127 | AD12: 41.50522549 | AE12: 42.57741544 | AF12: 42.32105865 | AG12: 37.60758588 | AH12: 41.44552501 | AI12: 40.75013617 | AJ12: 40.44207474 | AK12: 39.80442178 | AL12: 38.60138989 | AM12: 37.59960178 | AN12: 36.57415382 | AO12: 35.3546969 | AP12: 34.31493741 | AQ12: 33.06415797 | AR12: 31.93121994 | AS12: 30.3868021 | AT12: 28.76220675 | AU12: 27.09260878 | AV12: 25.41132241 | AW12: 23.73660486 | AX12: 22.08784194 | AY12: 20.49013122 | AZ12: 18.9758101 | BA12: 17.51593441
A13: 1A3bii | B13: Road transport: Light duty vehicles | C13: 1449.933234 | D13: 1562.675 | E13: 1007.832062 | F13: 400.7360821 | G13: 418.3343691 | H13: 418.8697599 | I13: 431.7403533 | J13: 443.1811475 | K13: 454.770795 | L13: 264.7258127 | M13: 58.7602116 | N13: 60.61025158 | O13: 60.60378961 | P13: 61.54089845 | Q13: 64.66064447 | R13: 13.44271628 | S13: 14.53279814 | T13: 15.89942932 | U13: 15.57081541 | V13: 14.32339538 | W13: 13.83471941 | X13: 12.55472327 | Y13: 11.64553681 | Z13: 10.99185218 | AA13: 10.44878958 | AB13: 10.52095694 | AC13: 10.43505728 | AD13: 10.50164615 | AE13: 10.61055501 | AF13: 10.1005804 | AG13: 9.32379034 | AH13: 10.50370527 | AI13: 10.45254474 | AJ13: 10.35507827 | AK13: 10.22891534 | AL13: 9.88885728 | AM13: 9.692304058 | AN13: 9.479640675 | AO13: 9.128230992 | AP13: 8.887457225 | AQ13: 8.479413703 | AR13: 8.200078274 | AS13: 7.904233151 | AT13: 7.594815338 | AU13: 7.274533865 | AV13: 6.949274379 | AW13: 6.632915106 | AX13: 6.344621264 | AY13: 6.084519936 | AZ13: 5.852755732 | BA13: 5.645502563
A14: 1A3biii | B14: Road transport: Heavy duty vehicles and buses | C14: 3581.87353 | D14: 3537.966062 | E14: 2233.292529 | F14: 842.1472242 | G14: 911.8159089 | H14: 923.1234631 | I14: 945.7204848 | J14: 950.618572 | K14: 956.744423 | L14: 538.1190441 | M14: 94.44844008 | N14: 96.55323716 | O14: 97.78106421 | P14: 106.3377892 | Q14: 111.1875236 | R14: 22.81250769 | S14: 23.68114246 | T14: 24.71758106 | U14: 23.48821485 | V14: 21.26300777 | W14: 22.09250491 | X14: 22.41677401 | Y14: 20.39313373 | Z14: 19.8040056 | AA14: 21.31100944 | AB14: 21.62914403 | AC14: 22.6105612 | AD14: 23.01110529 | AE14: 23.64913418 | AF14: 23.14680805 | AG14: 22.53199673 | AH14: 22.67182986 | AI14: 22.51413487 | AJ14: 22.27051329 | AK14: 21.96945839 | AL14: 21.23973421 | AM14: 20.87437588 | AN14: 20.49584784 | AO14: 19.82542914 | AP14: 19.43299041 | AQ14: 18.6777767 | AR14: 18.23188289 | AS14: 17.76190093 | AT14: 17.27288551 | AU14: 16.76419016 | AV14: 16.24934233 | AW14: 15.76462406 | AX14: 15.35322527 | AY14: 15.01047875 | AZ14: 14.7293468 | BA14: 14.5018167
A15: 1A3biv | B15: Road transport: Mopeds & motorcycles | C15: 1.455706383 | D15: 1.495458054 | E15: 1.569014766 | F15: 1.631253922 | G15: 1.705468071 | H15: 1.798327365 | I15: 1.89423106 | J15: 2.082471584 | K15: 2.265341082 | L15: 2.272371838 | M15: 2.269732659 | N15: 2.138893145 | O15: 2.210208363 | P15: 2.221132426 | Q15: 2.197414032 | R15: 0.4439325012 | S15: 0.4596937256 | T15: 0.4825449303 | U15: 0.4817495256 | V15: 0.4629296707 | W15: 0.4479524817 | X15: 0.4351524864 | Y15: 0.4347988618 | Z15: 0.4374989005 | AA15: 0.4433579543 | AB15: 0.444355194 | AC15: 0.4410105451 | AD15: 0.4461308023 | AE15: 0.4488254463 | AF15: 0.4423916841 | AG15: 0.4286728621 | AH15: 0.424680801 | AI15: 0.424679528 | AJ15: 0.4248286546 | AK15: 0.4247221493 | AL15: 0.4246097124 | AM15: 0.424740135 | AN15: 0.4251716639 | AO15: 0.4258984171 | AP15: 0.4269494298 | AQ15: 0.4283236984 | AR15: 0.4292534249 | AS15: 0.4301104635 | AT15: 0.4309032676 | AU15: 0.4315110506 | AV15: 0.4316759664 | AW15: 0.4315391314 | AX15: 0.4310283739 | AY15: 0.4302918805 | AZ15: 0.4293092121 | BA15: 0.4267548785
A16: 1A3bv | B16: Road transport: Gasoline evaporation
A17: 1A3bvi | B17: Road transport: Automobile tyre and brake wear
A18: 1A3bvii | B18: Road transport: Automobile road abrasion
A19: 1A3c | B19: Railways | C19: 375.6449878 | D19: 381.9320824 | E19: 262.62117 | F19: 104.84562 | G19: 95.027784 | H19: 95.862888 | I19: 95.13779409 | J19: 92.631696 | K19: 78.16284 | L19: 40.38303752 | M19: 7.21038566 | N19: 6.683686254 | O19: 6.662014501 | P19: 6.908982897 | Q19: 6.842620641 | R19: 1.4692104 | S19: 1.435308 | T19: 1.4405328 | U19: 1.4981568 | V19: 1.457064 | W19: 1.532916 | X19: 1.5784608 | Y19: 1.578108 | Z19: 1.568389337 | AA19: 1.595842094 | AB19: 1.571664389 | AC19: 1.60444324 | AD19: 1.544108985 | AE19: 1.418070288 | AF19: 1.415476589 | AG19: 1.243172281 | AH19: 1.252373179 | AI19: 1.25875217 | AJ19: 1.222682985 | AK19: 1.186615817 | AL19: 1.163354543 | AM19: 1.163314446 | AN19: 0.4609379214 | AO19: 0.4152156698 | AP19: 0.1481102869 | AQ19: 0.116453649 | AR19: 0 | AS19: 0 | AT19: 0 | AU19: 0 | AV19: 0 | AW19: 0 | AX19: 0 | AY19: 0 | AZ19: 0 | BA19: 0
A20: 1A3d | B20: Navigation | C20: 6331.878154 | D20: 6422.732805 | E20: 4431.138825 | F20: 4679.177233 | G20: 4421.263881 | H20: 4975.401064 | I20: 3859.733861 | J20: 3365.067235 | K20: 2631.945573 | L20: 2590.632496 | M20: 2482.913908 | N20: 2410.654761 | O20: 2626.384649 | P20: 2997.980202 | Q20: 3248.288474 | R20: 3210.963422 | S20: 3134.591544 | T20: 1931.191063 | U20: 1841.610251 | V20: 1777.968195 | W20: 1458.527345 | X20: 1386.738743 | Y20: 1324.821361 | Z20: 1387.956799 | AA20: 1180.98288 | AB20: 320.9679798 | AC20: 358.3564725 | AD20: 328.4839869 | AE20: 305.2664164 | AF20: 212.7839361 | AG20: 218.95656 | AH20: 209.0365995 | AI20: 208.3005903 | AJ20: 207.0932389 | AK20: 205.8099897 | AL20: 204.5621591 | AM20: 203.478681 | AN20: 202.1997951 | AO20: 201.0618923 | AP20: 199.8340848 | AQ20: 198.5551732 | AR20: 197.9302101 | AS20: 197.337673 | AT20: 196.7082083 | AU20: 196.0822003 | AV20: 195.4405786 | AW20: 194.8406913 | AX20: 194.2408041 | AY20: 193.6409169 | AZ20: 193.3639298 | BA20: 193.159801
A22: 1A4a i | B22: Commercial and institutional plants | C22: 1871.365636 | D22: 1658.989539 | E22: 1411.560594 | F22: 1361.998352 | G22: 1355.381522 | H22: 769.3563253 | I22: 744.0190519 | J22: 628.0155627 | K22: 409.6147298 | L22: 475.7060255 | M22: 339.2490058 | N22: 239.6479873 | O22: 595.8923686 | P22: 364.0031257 | Q22: 262.1179936 | R22: 258.8802096 | S22: 207.6261417 | T22: 186.1259347 | U22: 148.1409395 | V22: 104.4468796 | W22: 91.84042865 | X22: 80.19677243 | Y22: 122.9124199 | Z22: 84.0320704 | AA22: 115.6574642 | AB22: 60.44406714 | AC22: 67.45474862 | AD22: 68.59112042 | AE22: 63.93913682 | AF22: 46.7613917 | AG22: 48.90023906 | AH22: 46.94710398 | AI22: 47.6759027 | AJ22: 48.40460322 | AK22: 49.13326606 | AL22: 49.86197914 | AM22: 49.77570559 | AN22: 49.68951773 | AO22: 49.6033402 | AP22: 49.51708412 | AQ22: 49.43011975 | AR22: 48.6735077 | AS22: 47.91740859 | AT22: 47.16153832 | AU22: 46.40539765 | AV22: 45.64981818 | AW22: 44.06761614 | AX22: 43.26387938 | AY22: 42.46014304 | AZ22: 41.65640697 | BA22: 40.85266996
A23: 1A4a ii | B23: Commercial and institutional (mobile) | C23: 136.0391477 | D23: 134.7937751 | E23: 132.3934175 | F23: 130.1961791 | G23: 127.6342803 | H23: 129.3022756 | I23: 32.9361544 | J23: 33.6915817 | K23: 34.18041342 | L23: 34.96387917 | M23: 25.21972947 | N23: 25.73516396 | O23: 26.212528 | P23: 26.96448821 | Q23: 27.88768975 | R23: 4.27907804 | S23: 4.338845786 | T23: 5.015921877 | U23: 5.325154969 | V23: 4.790944732 | W23: 5.504642054 | X23: 1.452821987 | Y23: 1.431511228 | Z23: 1.431958514 | AA23: 1.428529382 | AB23: 1.420669478 | AC23: 1.413580959 | AD23: 1.42727692 | AE23: 1.411909137 | AF23: 1.23805545 | AG23: 1.194069054 | AH23: 0.4204815616 | AI23: 0.3982671935 | AJ23: 0.3760528254 | AK23: 0.3538384572 | AL23: 0.3313699706 | AM23: 0.2838964937 | AN23: 0.2364230169 | AO23: 0.1887668159 | AP23: 0.1412945488 | AQ23: 0.09357641205 | AR23: 0.07937513267 | AS23: 0.06517385329 | AT23: 0.05097257391 | AU23: 0.03677129453 | AV23: 0.02257001515 | AW23: 0.0206001718 | AX23: 0.01863032845 | AY23: 0.0166604851 | AZ23: 0.01469064175 | BA23: 0.01272079839
A24: 1A4b i | B24: Residential plants | C24: 6162.466193 | D24: 6858.843671 | E24: 5663.834205 | F24: 6285.48315 | G24: 5472.10932 | H24: 2051.165862 | I24: 2066.822564 | J24: 1870.345461 | K24: 1725.068882 | L24: 1595.900007 | M24: 1270.155584 | N24: 1303.487745 | O24: 1285.505679 | P24: 1236.113622 | Q24: 1202.8869 | R24: 1243.387286 | S24: 1197.748385 | T24: 1150.610912 | U24: 1103.621145 | V24: 1024.406341 | W24: 1015.347787 | X24: 905.6277642 | Y24: 874.6942612 | Z24: 831.5101012 | AA24: 751.464134 | AB24: 812.2192652 | AC24: 839.061218 | AD24: 813.9077575 | AE24: 789.240628 | AF24: 740.8941269 | AG24: 703.5150424 | AH24: 754.2572529 | AI24: 738.0824633 | AJ24: 721.9076737 | AK24: 705.7328841 | AL24: 689.5580945 | AM24: 671.6803422 | AN24: 653.8025899 | AO24: 635.9248375 | AP24: 618.0470852 | AQ24: 600.1693151 | AR24: 577.5294436 | AS24: 554.8895735 | AT24: 532.2497035 | AU24: 509.6098309 | AV24: 486.9699598 | AW24: 471.198152 | AX24: 455.4263338 | AY24: 439.654514 | AZ24: 423.8826955 | BA24: 408.1108764
A25: 1A4b ii | B25: Residential (mobile) | C25: 0.5889752815 | D25: 0.5940139727 | E25: 0.5969230317 | F25: 0.602351322 | G25: 0.6104278951 | H25: 0.6206387912 | I25: 0.6334809512 | J25: 0.6483156533 | K25: 0.6638312204 | L25: 0.6795351335 | M25: 0.6952968136 | N25: 0.7107177222 | O25: 0.7273487689 | P25: 0.7467140071 | Q25: 0.768381999 | R25: 0.1584107089 | S25: 0.165906591 | T25: 0.1754276162 | U25: 0.1825653071 | V25: 0.1781716014 | W25: 0.1664990313 | X25: 0.1594184415 | Y25: 0.1564112644 | Z25: 0.1538410478 | AA25: 0.1507840329 | AB25: 0.1491365803 | AC25: 0.1491759326 | AD25: 0.1488297663 | AE25: 0.1450699367 | AF25: 0.1364335015 | AG25: 0.1246533438 | AH25: 0.2632785003 | AI25: 0.2632785003 | AJ25: 0.2632785003 | AK25: 0.2632785003 | AL25: 0.2632785003 | AM25: 0.2632785003 | AN25: 0.2632785003 | AO25: 0.2632785003 | AP25: 0.2632785003 | AQ25: 0.2632785003 | AR25: 0.2632785003 | AS25: 0.2632785003 | AT25: 0.2632785003 | AU25: 0.2632785003 | AV25: 0.2632785003 | AW25: 0.2632785003 | AX25: 0.2632785003 | AY25: 0.2632785003 | AZ25: 0.2632785003 | BA25: 0.2632785003
A26: 1A4c i | B26: Plants in agriculture, forestry and aquaculture | C26: 3297.463371 | D26: 3521.653107 | E26: 3004.722075 | F26: 2937.742807 | G26: 3054.454918 | H26: 2632.160275 | I26: 2871.548496 | J26: 2139.875103 | K26: 1885.569117 | L26: 1616.320066 | M26: 1478.651272 | N26: 1480.22487 | O26: 1211.642557 | P26: 1278.066649 | Q26: 1273.311519 | R26: 1464.704005 | S26: 1544.645384 | T26: 1547.226171 | U26: 1410.124269 | V26: 696.2395243 | W26: 1049.034885 | X26: 1035.629424 | Y26: 862.4788222 | Z26: 1038.881038 | AA26: 753.4625208 | AB26: 606.3758855 | AC26: 531.1853266 | AD26: 453.3256132 | AE26: 415.852314 | AF26: 337.6057137 | AG26: 289.8619241 | AH26: 348.8121523 | AI26: 346.9997213 | AJ26: 346.0854438 | AK26: 345.6065974 | AL26: 345.1266275 | AM26: 343.4617271 | AN26: 341.7983606 | AO26: 340.1360012 | AP26: 338.4732663 | AQ26: 336.7977243 | AR26: 335.1728747 | AS26: 333.5565787 | AT26: 331.9423414 | AU26: 330.3191243 | AV26: 328.7007432 | AW26: 320.3128845 | AX26: 319.1332195 | AY26: 317.2061484 | AZ26: 316.0265224 | BA26: 314.8468533
A27: 1A4c ii | B27: Agriculture & forestry (mobile) | C27: 1002.222409 | D27: 1017.795702 | E27: 1015.286927 | F27: 1041.538865 | G27: 1028.948249 | H27: 1062.98296 | I27: 267.3546868 | J27: 272.9944103 | K27: 272.7623671 | L27: 275.3211194 | M27: 196.359096 | N27: 201.3910096 | O27: 205.1057001 | P27: 211.9027541 | Q27: 213.3300834 | R27: 30.83335043 | S27: 31.57946827 | T27: 31.75707284 | U27: 32.20048512 | V27: 31.90259674 | W27: 30.88588876 | X27: 6.170159194 | Y27: 6.051548458 | Z27: 5.952555022 | AA27: 5.895256964 | AB27: 5.784699706 | AC27: 5.667090864 | AD27: 5.568864516 | AE27: 5.475510498 | AF27: 5.486807016 | AG27: 5.439275365 | AH27: 5.343158431 | AI27: 5.325999179 | AJ27: 5.246398688 | AK27: 5.135973334 | AL27: 4.967926564 | AM27: 4.797108251 | AN27: 4.626289939 | AO27: 4.415306417 | AP27: 4.245184937 | AQ27: 4.022193169 | AR27: 3.929503767 | AS27: 3.836814366 | AT27: 3.744124965 | AU27: 3.651435563 | AV27: 3.558746162 | AW27: 3.537166434 | AX27: 3.515586706 | AY27: 3.494006978 | AZ27: 3.47242725 | BA27: 3.450847521
A28: 1A4c iii | B28: Fishing (mobile) | C28: 777.2316286 | D28: 806.3741119 | E28: 738.0428408 | F28: 697.2172554 | G28: 704.6262754 | H28: 710.1580278 | I28: 660.8406615 | J28: 525.4201548 | K28: 545.0104284 | L28: 616.3296257 | M28: 802.7934121 | N28: 756.63624 | O28: 749.5533795 | P28: 701.0660156 | Q28: 593.45032 | R28: 593.74936 | S28: 595.778794 | T28: 548.181046 | U28: 246.16724 | V28: 237.60596 | W28: 235.80836 | X28: 221.86772 | Y28: 171.2728512 | Z28: 196.48796 | AA28: 179.957445 | AB28: 196.2893228 | AC28: 195.6612114 | AD28: 181.5789941 | AE28: 170.3685511 | AF28: 174.2792866 | AG28: 166.986106 | AH28: 166.9360491 | AI28: 163.2652229 | AJ28: 159.5943968 | AK28: 155.9235706 | AL28: 152.2527445 | AM28: 149.4739081 | AN28: 146.6950717 | AO28: 143.9162353 | AP28: 141.1373988 | AQ28: 138.3585624 | AR28: 135.6427856 | AS28: 132.9270088 | AT28: 130.211232 | AU28: 127.4954551 | AV28: 124.7796783 | AW28: 124.4911602 | AX28: 124.2026421 | AY28: 123.9141241 | AZ28: 123.625606 | BA28: 123.3370879
A30: 1A5b | B30: Other mobile (military and recreational crafts) | C30: 81.01680564 | D30: 242.5725899 | E30: 121.6369368 | F30: 118.8171158 | G30: 127.4663026 | H30: 131.1906506 | I30: 111.284916 | J30: 113.9271856 | K30: 128.9934787 | L30: 115.7792989 | M30: 101.1207491 | N30: 90.87483776 | O30: 103.0292353 | P30: 106.1861654 | Q30: 140.8863336 | R30: 150.9172675 | S30: 119.6495496 | T30: 134.0088061 | U30: 66.59498172 | V30: 72.52716951 | W30: 67.33042191 | X30: 84.50607882 | Y30: 63.60538375 | Z30: 71.69420558 | AA30: 69.73009234 | AB30: 64.32107893 | AC30: 63.01530412 | AD30: 78.44453808 | AE30: 61.98840656 | AF30: 68.99246879 | AG30: 82.50198865 | AH30: 68.98674571 | AI30: 68.98705192 | AJ30: 68.98705192 | AK30: 68.98705192 | AL30: 68.98376532 | AM30: 68.98392863 | AN30: 68.98409193 | AO30: 68.98162188 | AP30: 68.98176478 | AQ30: 68.97858024 | AR30: 68.97864148 | AS30: 68.97870272 | AT30: 68.97876396 | AU30: 68.97880479 | AV30: 68.97888645 | AW30: 68.97888645 | AX30: 68.97888645 | AY30: 68.97888645 | AZ30: 68.97888645 | BA30: 68.97888645
A32: 1B1 | B32: Fugitive emissions from solid fuels
A33: 1B2a | B33: Fugitive emissions from oil | C33: 3335.000025 | D33: 2713.000004 | E33: 3147.00004 | F33: 2526.000001 | G33: 4266 | H33: 3022.000018 | I33: 2614.000018 | J33: 1982 | K33: 1441.000039 | L33: 1359.00004 | M33: 981.0000139 | N33: 672 | O33: 332.000007 | P33: 246 | Q33: 119 | R33: 347.0000244 | S33: 755 | T33: 746 | U33: 931 | V33: 420.0000046 | W33: 981 | X33: 1149.6 | Y33: 881.2 | Z33: 517.0000161 | AA33: 397.4 | AB33: 406.200004 | AC33: 336.9 | AD33: 809 | AE33: 1172 | AF33: 776.2 | AG33: 548.24 | AH33: 728.468 | AI33: 728.468 | AJ33: 728.468 | AK33: 728.468 | AL33: 728.468 | AM33: 728.468 | AN33: 728.468 | AO33: 728.468 | AP33: 728.468 | AQ33: 728.468 | AR33: 728.468 | AS33: 728.468 | AT33: 728.468 | AU33: 728.468 | AV33: 728.468 | AW33: 728.468 | AX33: 728.468 | AY33: 728.468 | AZ33: 728.468 | BA33: 728.468
A34: 1B2b | B34: Fugitive emissions from gas | C34: 0.037596676 | D34: 1.7069e-05 | E34: 0.00010946 | F34: 6.37e-07 | G34: 2.977e-06 | H34: 1.911e-06 | I34: 1.404e-06 | J34: 3.9e-08 | K34: 2.6806e-05 | L34: 8.957e-06 | M34: 0.00072787 | N34: NA | O34: 0.116547782 | P34: NA | Q34: NA | R34: 0.00926991 | S34: NA | T34: NA | U34: NA | V34: 7.9651e-05 | W34: NA | X34: NA | Y34: NA | Z34: 1.326e-06 | AA34: NA | AB34: 0.00037986 | AC34: NA | AD34: NA | AE34: NA | AF34: NA | AG34: NA | AH34: 0 | AI34: 0 | AJ34: 0 | AK34: 0 | AL34: 0 | AM34: 0 | AN34: 0 | AO34: 0 | AP34: 0 | AQ34: 0 | AR34: 0 | AS34: 0 | AT34: 0 | AU34: 0 | AV34: 0 | AW34: 0 | AX34: 0 | AY34: 0 | AZ34: 0 | BA34: 0
A35: 1B2c | B35: Fugitive emissions from venting and flaring | C35: 944.4111501 | D35: 929.0192439 | E35: 938.1734366 | F35: 1192.664438 | G35: 522.5649669 | H35: 204.4854828 | I35: 220.4900062 | J35: 141.1708814 | K35: 72.60643519 | L35: 54.92164936 | M35: 54.25971458 | N35: 49.52264385 | O35: 71.10080491 | P35: 99.04661985 | Q35: 56.61164074 | R35: 298.4077094 | S35: 259.4603764 | T35: 528.0132828 | U35: 437.6317605 | V35: 515.1217481 | W35: 327.5598486 | X35: 272.4188827 | Y35: 175.4354767 | Z35: 166.8389123 | AA35: 399.1999949 | AB35: 126.7639951 | AC35: 128.0596795 | AD35: 117.0888191 | AE35: 112.8302141 | AF35: 115.2385885 | AG35: 224.382679 | AH35: 139.0731829 | AI35: 139.1419886 | AJ35: 139.1994123 | AK35: 139.1993794 | AL35: 138.9072492 | AM35: 138.8878982 | AN35: 138.9405163 | AO35: 138.9562033 | AP35: 138.9755405 | AQ35: 139.0044789 | AR35: 139.0136589 | AS35: 139.0059694 | AT35: 139.0208882 | AU35: 139.0177153 | AV35: 139.0167566 | AW35: 139.0200241 | AX35: 139.0115693 | AY35: 138.996941 | AZ35: 138.9890707 | BA35: 138.9681536
A37: 2A | B37: Mineral industry | C37: 2958.34497 | D37: 2504.97559 | E37: 2623.80738 | F37: 2612.41323 | G37: 3513.84552 | H37: 3153.28909 | I37: 3380.59734 | J37: 3740.21094 | K37: 3154.15384 | L37: 3152.59024 | M37: 3069.37007 | N37: 2347.40869 | O37: 2381.47968 | P37: 2178.16043 | Q37: 2724.42398 | R37: 3013.48157 | S37: 4021.10319 | T37: 5000.59812 | U37: 2663.32677 | V37: 1363.71001 | W37: 1475.11365 | X37: 1164.24869 | Y37: 1201.66599 | Z37: 1219.2062 | AA37: 667.70704 | AB37: 732.13051 | AC37: 888.19151 | AD37: 1203.1273 | AE37: 1023.9141 | AF37: 1069.99541 | AG37: 888.88183 | AH37: 908.5325483 | AI37: 928.1832666 | AJ37: 947.8339849 | AK37: 967.4847032 | AL37: 987.1354215 | AM37: 994.7007963 | AN37: 1002.266171 | AO37: 1009.831546 | AP37: 1017.396921 | AQ37: 1024.962295 | AR37: 1029.638287 | AS37: 1034.314278 | AT37: 1038.990269 | AU37: 1043.666261 | AV37: 1048.342252 | AW37: 1056.40771 | AX37: 1064.473167 | AY37: 1072.538625 | AZ37: 1080.604082 | BA37: 1088.66954
A38: 2B | B38: Chemical Industry | C38: 1073 | D38: 1029.385 | E38: 1143.042 | F38: 995.847 | G38: 1047 | H38: 1005 | I38: 836 | J38: 845 | K38: 620 | L38: 690 | M38: 621 | N38: 632 | O38: 594 | P38: 477 | Q38: 507 | R38: 615 | S38: 380 | T38: 96.5 | U38: 107.82 | V38: 113 | W38: 115.92 | X38: 193.04 | Y38: 229.9 | Z38: 170.5 | AA38: 140.524 | AB38: 156.28 | AC38: 35.802 | AD38: 20.768 | AE38: 337.126 | AF38: 20.871 | AG38: 84.412 | AH38: 51.01966667 | AI38: 51.01966667 | AJ38: 51.01966667 | AK38: 51.01966667 | AL38: 51.01966667 | AM38: 51.01966667 | AN38: 51.01966667 | AO38: 51.01966667 | AP38: 51.01966667 | AQ38: 51.01966667 | AR38: 51.01966667 | AS38: 51.01966667 | AT38: 51.01966667 | AU38: 51.01966667 | AV38: 51.01966667 | AW38: 51.01966667 | AX38: 51.01966667 | AY38: 51.01966667 | AZ38: 51.01966667 | BA38: 51.01966667
A39: 2C | B39: Metal industry | C39: 40.30008 | D39: 40.30008 | E39: 40.30008 | F39: 44.91231 | G39: 48.17355 | H39: 47.83197 | I39: 46.65318 | J39: 52.42368 | K39: 48.56424 | L39: 51.32592 | M39: 41.33268 | N39: 50.46684 | O39: 2.695427 | P39: 0.411712 | Q39: 3.34516 | R39: 19.445203 | S39: 3.2165 | T39: 4.31011 | U39: 3.744006 | V39: 5.01774 | W39: 4.084955 | X39: 6.034154 | Y39: 2.650396 | Z39: 3.428789 | AA39: 4.020625 | AB39: 4.792585 | AC39: 3.055675 | AD39: 3.891965 | AE39: 2.238684 | AF39: 2.071426 | AG39: 1.248002 | AH39: 0.624001 | AI39: NA | AJ39: NA | AK39: NA | AL39: NA | AM39: NA | AN39: NA | AO39: NA | AP39: NA | AQ39: NA | AR39: NA | AS39: NA | AT39: NA | AU39: NA | AV39: NA | AW39: NA | AX39: NA | AY39: NA | AZ39: NA | BA39: NA
A40: 2D | B40: Non-energy products from fuels and solvent use
A41: 2G | B41: Other product manufacture and use | C41: 30.0022247 | D41: 27.45618885 | E41: 38.1321604 | F41: 29.8006649 | G41: 27.11671495 | H41: 35.0016004 | I41: 41.3608452 | J41: 50.62303465 | K41: 43.1340544 | L41: 51.5312759 | M41: 55.4033234 | N41: 45.6131051 | O41: 64.3980188 | P41: 78.40211525 | Q41: 71.4691737 | R41: 57.617763 | S41: 73.67127155 | T41: 50.38943895 | U41: 44.62663815 | V41: 50.3796411 | W41: 38.61866315 | X41: 33.6287352 | Y41: 54.3240908 | Z41: 55.34670035 | AA41: 45.23159155 | AB41: 64.71156385 | AC41: 33.66687905 | AD41: 34.402983 | AE41: 39.5960855 | AF41: 41.0867695 | AG41: 31.3076065 | AH41: 37.2934461 | AI41: 37.23397298 | AJ41: 37.17449986 | AK41: 37.11502674 | AL41: 37.05555362 | AM41: 36.9960805 | AN41: 36.93660738 | AO41: 36.87713426 | AP41: 36.81766114 | AQ41: 36.75818802 | AR41: 36.6987149 | AS41: 36.63924178 | AT41: 36.57976866 | AU41: 36.52029554 | AV41: 36.46082242 | AW41: 36.4013493 | AX41: 36.34187618 | AY41: 36.28240306 | AZ41: 36.22292994 | BA41: 36.16345682
A42: 2H | B42: Other
A43: 2I | B43: Wood processing
A44: 2L | B44: Other production
A46: 3B1a | B46: Manure Management - Dairy cattle
A47: 3B1b | B47: Manure Management - Non-dairy cattle
A48: 3B2 | B48: Manure Management - Sheep
A49: 3B3 | B49: Manure Management - Swine
A50: 3B4d | B50: Manure Management - Goats
A51: 3B4e | B51: Manure Management - Horses
A52: 3B4g | B52: Manure Management - Poultry
A53: 3B4h | B53: Manure Management - Other (mainly mink)
A54: 3Da1 | B54: Inorganic N-fertilizers (includes also urea application)
A55: 3Da2a | B55: Animal manure applied to soils
A56: 3Da2b-c | B56: Sludge applied to soils
A57: 3Da3 | B57: Urine and dung deposited by grazing animals
A58: 3Dc | B58: Farm-level agricultural operations including storage, handling and transport of agricultural products
A59: 3De | B59: Cultivated crops
A60: 3F | B60: Field burning of agricultural residues | C60: 16.08163875 | D60: 16.72031813 | E60: 15.9865875 | F60: 17.45567438 | G60: 16.83315562 | H60: 19.05060375 | I60: 18.943695 | J60: 20.08182375 | K60: 25.28124187 | L60: 24.01574062 | M60: 23.65666875 | N60: 24.86087438 | O60: 20.68053187 | P60: 24.8613525 | Q60: 26.06527125 | R60: 26.44997062 | S60: 26.832375 | T60: 23.21717625 | U60: 21.50166375 | V60: 25.29529875 | W60: 18.44568 | X60: 18.25749 | Y60: 20.981655 | Z60: 22.6749825 | AA60: 22.3261425 | AB60: 19.9056825 | AC60: 19.4443875 | AD60: 22.0538025 | AE60: 25.3830825 | AF60: 28.475595 | AG60: 28.47483 | AH60: 24.57983796 | AI60: 24.46055886 | AJ60: 24.34156995 | AK60: 24.22496647 | AL60: 24.11447308 | AM60: 23.96430733 | AN60: 23.81472616 | AO60: 23.74459605 | AP60: 23.67446595 | AQ60: 23.63394167 | AR60: 23.60831459 | AS60: 23.58268751 | AT60: 23.55706043 | AU60: 23.53143335 | AV60: 23.50580627 | AW60: 23.48017918 | AX60: 23.4545521 | AY60: 23.42892502 | AZ60: 23.40329794 | BA60: 23.37767086
A61: 3I | B61: Agriculture other
A63: 5A | B63: Solid waste disposal on land
A64: 5B | B64: Biological treatment of waste
A65: 5C | B65: Waste incineration | C65: 4.88198525 | D65: 4.8626915 | E65: 4.96900125 | F65: 5.1824235 | G65: 5.1510655 | H65: 5.29074925 | I65: 5.2421405 | J65: 5.21766025 | K65: 5.10489 | L65: 5.40769225 | M65: 5.46475525 | N65: 5.48668425 | O65: 5.57875725 | P65: 5.53673175 | Q65: 5.67601125 | R65: 5.9175345 | S65: 6.58528075 | T65: 6.9368565 | U65: 7.033027 | V65: 7.104667 | W65: 7.2551525 | X65: 6.765677 | Y65: 6.77776975 | Z65: 6.76315975 | AA65: 6.697068 | AB65: 6.8165495 | AC65: 6.996993 | AD65: 7.00063475 | AE65: 7.25305 | AF65: 7.1629915 | AG65: 7.0154275 | AH65: 7.143823 | AI65: 7.143823 | AJ65: 7.143823 | AK65: 7.143823 | AL65: 7.143823 | AM65: 7.143823 | AN65: 7.143823 | AO65: 7.143823 | AP65: 7.143823 | AQ65: 7.143823 | AR65: 7.143823 | AS65: 7.143823 | AT65: 7.143823 | AU65: 7.143823 | AV65: 7.143823 | AW65: 7.143823 | AX65: 7.143823 | AY65: 7.143823 | AZ65: 7.143823 | BA65: 7.143823
A66: 5D | B66: Wastewater handling
A67: 5E | B67: Other | C67: 805.7068173 | D67: 832.5989421 | E67: 904.1153628 | F67: 796.0794534 | G67: 801.5794168 | H67: 923.8047625 | I67: 933.6918456 | J67: 862.364573 | K67: 773.292647 | L67: 830.6775182 | M67: 813.5495424 | N67: 800.1318884 | O67: 775.2975728 | P67: 872.0890061 | Q67: 755.2702424 | R67: 784.6196085 | S67: 803.889576 | T67: 860.3024419 | U67: 876.5866526 | V67: 932.6787013 | W67: 830.0827701 | X67: 810.9730299 | Y67: 806.5896838 | Z67: 794.9436302 | AA67: 774.5424847 | AB67: 940.180458 | AC67: 1057.163113 | AD67: 998.0713514 | AE67: 1026.116499 | AF67: 966.4309046 | AG67: 947.6065157 | AH67: =AVERAGE($AE$67:$AG$67) -> 980.0513065 | AI67: =AVERAGE($AE$67:$AG$67) -> 980.0513065 | AJ67: 980.0513065 | AK67: 980.0513065 | AL67: 980.0513065 | AM67: 980.0513065 | AN67: 980.0513065 | AO67: 980.0513065 | AP67: 980.0513065 | AQ67: 980.0513065 | AR67: 980.0513065 | AS67: 980.0513065 | AT67: 980.0513065 | AU67: 980.0513065 | AV67: 980.0513065 | AW67: 980.0513065 | AX67: 980.0513065 | AY67: 980.0513065 | AZ67: 980.0513065 | BA67: 980.0513065
B68: Total | C68: =SUM(C3:C67) -> 178021.8993 | D68: 238687.7476 | E68: 184141.6813 | F68: 149185.6648 | G68: 151462.6616 | H68: 145467.1707 | I68: 176139.8091 | J68: 104201.2045 | K68: 80555.28032 | L68: 59582.48105 | M68: 32501.26353 | N68: 29860.75932 | O68: 28423.22192 | P68: 35279.77533 | Q68: 28749.79278 | R68: 26293.01673 | S68: 30552.81148 | T68: 28215.46112 | U68: 21240.1259 | V68: 15587.50392 | W68: 15484.75189 | X68: 14082.87183 | Y68: 12652.20826 | Z68: 12754.9669 | AA68: 10678.87984 | AB68: 9688.263512 | AC68: 10078.10931 | AD68: =SUM(AD3:AD67) -> 10330.23927 | AE68: =SUM(AE3:AE67) -> 10639.45194 | AF68: 9340.202261 | AG68: =SUM(AG3:AG67) -> 9145.372862 | AH68: 9685.002371 | AI68: 9859.55619 | AJ68: 9466.265053 | AK68: 9075.02164 | AL68: 8916.759006 | AM68: 8741.777441 | AN68: 8566.628791 | AO68: 8718.92189 | AP68: 8434.002263 | AQ68: 8094.052375 | AR68: 7996.030513 | AS68: 7848.702208 | AT68: 7680.518308 | AU68: 7573.045094 | AV68: 7467.36251 | AW68: 7363.746591 | AX68: 7266.569479 | AY68: 7168.397704 | AZ68: 7087.986829 | BA68: 7019.153501
B71: Reduction since 2005 | S71: =($R$68-S68)/$R$68 -> -0.1620124002 | T71: -0.0731161588 | U71: 0.192176154 | V71: 0.40716183 | W71: 0.411069789 | X71: 0.4643873703 | Y71: 0.5187996725 | Z71: 0.5148914621 | AA71: 0.5938510993 | AB71: 0.6315271233 | AC71: 0.6167001521 | AD71: =($R$68-AD68)/$R$68 -> 0.6071109156 | AE71: 0.5953506571 | AF71: =($R$68-AF68)/$R$68 -> 0.6447649063 | AG71: 0.6521748358 | AH71: =($R$68-AH68)/$R$68 -> 0.631651154 | AI71: 0.6250123639 | AJ71: 0.6399703712 | AK71: 0.6548504976 | AL71: 0.6608696865 | AM71: 0.667524745 | AN71: 0.6741861583 | AO71: 0.6683940082 | AP71: 0.6792303314 | AQ71: 0.6921596157 | AR71: 0.6958876726 | AS71: 0.7014909971 | AT71: 0.7078875206 | AU71: 0.7119750399 | AV71: 0.7159944564 | AW71: 0.7199352716 | AX71: 0.7236312001 | AY71: 0.7273649586 | AZ71: 0.7304232184 | BA71: 0.7330411503
A73: 1A3a | B73: Civil Aviation (Domestic Cruise) | C73: 49.65817154 | D73: 46.46333327 | E73: 45.07145829 | F73: 43.31050445 | G73: 45.17009552 | H73: 45.78902981 | I73: 49.22209497 | J73: 49.49991795 | K73: 46.10139688 | L73: 42.40254868 | M73: 38.08628021 | N73: 41.67210093 | O73: 35.52033186 | P73: 36.98200591 | Q73: 35.52479997 | R73: 38.84306215 | S73: 40.37801563 | T73: 44.12844157 | U73: 44.0463289 | V73: 41.43751807 | W73: 42.46576277 | X73: 40.66441481 | Y73: 34.87618363 | Z73: 33.94460037 | AA73: 34.47642301 | AB73: 32.17994961 | AC73: 33.37900118 | AD73: 34.52726184 | AE73: 34.23906553 | AF73: 35.13601135 | AG73: 18.00178766 | AH73: 34.70299846 | AI73: 35.05877237 | AJ73: 35.3820321 | AK73: 35.69204562 | AL73: 35.99960899 | AM73: 36.39946455 | AN73: 36.80956463 | AO73: 37.22522853 | AP73: 37.63608426 | AQ73: 38.05839714 | AR73: 38.17932096 | AS73: 38.29032763 | AT73: 38.40647365 | AU73: 38.5141413 | AV73: 38.63396118 | AW73: 38.75014128 | AX73: 38.85965556 | AY73: 38.97457632 | AZ73: 39.08194361 | BA73: 39.19922216
B74: Civil Aviation (International Cruise) | C74: 501.3516257 | D74: 460.2878846 | E74: 474.0726002 | F74: 461.864967 | G74: 510.1812535 | H74: 520.0873556 | I74: 544.0523005 | J74: 552.3572746 | K74: 599.5161326 | L74: 636.5382603 | M74: 651.7934301 | N74: 663.6277034 | O74: 568.0309946 | P74: 598.2860751 | Q74: 690.2602567 | R74: 727.356309 | S74: 732.7715962 | T74: 752.0776191 | U74: 745.929975 | V74: 653.4040789 | W74: 679.8499574 | X74: 700.1589738 | Y74: 707.9139481 | Z74: 698.56863 | AA74: 762.9845346 | AB74: 744.6866334 | AC74: 798.8099095 | AD74: 826.58662 | AE74: 862.4433929 | AF74: 883.8110023 | AG74: 274.4325589 | AH74: 347.575989 | AI74: 868.3953804 | AJ74: 872.6155932 | AK74: 875.6974619 | AL74: 878.3862998 | AM74: 884.0672462 | AN74: 890.1525036 | AO74: 896.3394266 | AP74: 901.9069049 | AQ74: 908.0586715 | AR74: 908.9446231 | AS74: 909.1670773 | AT74: 909.819447 | AU74: 909.9103028 | AV74: 910.9310102 | AW74: 911.7306228 | AX74: 912.0940023 | AY74: 912.8876043 | AZ74: 913.1749898 | BA74: 914.2221437
A75: 1A3d | B75: Navigation, international | C75: 41317.28414 | D75: 33276.56079 | E75: 30083.9967 | F75: 58492.07527 | G75: 58965.32408 | H75: 65049.07396 | I75: 61075.28492 | J75: 55822.39028 | K75: 46755.66618 | L75: 49281.33088 | M75: 55181.31682 | N75: 43829.30801 | O75: 30035.51865 | P75: 30974.53515 | Q75: 26531.20593 | R75: 34274.81608 | S75: 50408.89188 | T75: 25648.98117 | U75: 19383.12378 | V75: 7524.327236 | W75: 8294.626056 | X75: 8938.876349 | Y75: 5215.929778 | Z75: 7171.368024 | AA75: 8776.1075 | AB75: 1445.675619 | AC75: 1241.972922 | AD75: 947.4437833 | AE75: 1084.974454 | AF75: 1395.300459 | AG75: 1033.429954 | AH75: 1400.217818 | AI75: 1400.217818 | AJ75: 1400.217818 | AK75: 1400.217818 | AL75: 1400.217818 | AM75: 1400.217818 | AN75: 1400.217818 | AO75: 1400.217818 | AP75: 1400.217818 | AQ75: 1400.217818 | AR75: 1400.217818 | AS75: 1400.217818 | AT75: 1400.217818 | AU75: 1400.217818 | AV75: 1400.217818 | AW75: 1400.217818 | AX75: 1400.217818 | AY75: 1400.217818 | AZ75: 1400.217818 | BA75: 1400.217818

Sheet NOx
A1: NOx (tons)
C2: 1990 | D2: 1991 | E2: 1992 | F2: 1993 | G2: 1994 | H2: 1995 | I2: 1996 | J2: 1997 | K2: 1998 | L2: 1999 | M2: 2000 | N2: 2001 | O2: 2002 | P2: 2003 | Q2: 2004 | R2: 2005 | S2: 2006 | T2: 2007 | U2: 2008 | V2: 2009 | W2: 2010 | X2: 2011 | Y2: 2012 | Z2: 2013 | AA2: 2014 | AB2: 2015 | AC2: 2016 | AD2: 2017 | AE2: 2018 | AF2: 2019 | AG2: 2020 | AH2: 2021 | AI2: 2022 | AJ2: 2023 | AK2: 2024 | AL2: 2025 | AM2: 2026 | AN2: 2027 | AO2: 2028 | AP2: 2029 | AQ2: 2030 | AR2: 2031 | AS2: 2032 | AT2: 2033 | AU2: 2034 | AV2: 2035 | AW2: 2036 | AX2: 2037 | AY2: 2038 | AZ2: 2039 | BA2: 2040
A3: 1A1a | B3: Public power and district heating plants | C3: 90698.20005 | D3: 131997.4442 | E3: 91023.99588 | F3: 94167.4765 | G3: 98306.01926 | H3: 83517.59552 | I3: 120219.5426 | J3: 78836.68677 | K3: 64004.73832 | L3: 51877.56464 | M3: 42823.8693 | N3: 42691.84622 | O3: 44247.82777 | P3: 54975.84598 | Q3: 43401.31344 | R3: 37759.23321 | S3: 41991.94384 | T3: 33302.70967 | U3: 24437.30021 | V3: 20034.09848 | W3: 19025.79981 | X3: 16507.42276 | Y3: 14015.98909 | Z3: 13522.35591 | AA3: 11031.25969 | AB3: 10076.15737 | AC3: 11000.27545 | AD3: 11602.82196 | AE3: 11307.92661 | AF3: 10561.12366 | AG3: 9653.206334 | AH3: 13127.20334 | AI3: 12998.56598 | AJ3: 12711.11335 | AK3: 11865.39139 | AL3: 11747.69017 | AM3: 11356.16356 | AN3: 10842.38895 | AO3: 10240.73074 | AP3: 9569.00886 | AQ3: 8506.699086 | AR3: 8207.649261 | AS3: 7852.630075 | AT3: 7189.682056 | AU3: 7115.865059 | AV3: 7017.341237 | AW3: 6773.111314 | AX3: 6509.170555 | AY3: 6259.751119 | AZ3: 6047.960762 | BA3: 5850.811321
A4: 1A1b | B4: Petroleum refining plants | C4: 1385.935705 | D4: 1568.770708 | E4: 1868.157375 | F4: 1948.343879 | G4: 1916.974087 | H4: 1998.609921 | I4: 2399.779332 | J4: 1902.827072 | K4: 1573.068039 | L4: 1866.415387 | M4: 1674.108722 | N4: 1761.107445 | O4: 1636.198921 | P4: 1525.310135 | Q4: 1395.035094 | R4: 1287.718856 | S4: 1521.693311 | T4: 1476.570623 | U4: 1365.831443 | V4: 1578.136556 | W4: 1543.527203 | X4: 1295.566431 | Y4: 1353.425127 | Z4: 1082.537347 | AA4: 1082 | AB4: 1153.424 | AC4: 1055 | AD4: 1052.566719 | AE4: 988 | AF4: 1022 | AG4: 958 | AH4: 968.4872614 | AI4: 968.4937798 | AJ4: 968.4749318 | AK4: 968.4862562 | AL4: 968.4889789 | AM4: 968.441867 | AN4: 968.4729853 | AO4: 968.4852495 | AP4: 968.4721485 | AQ4: 968.4011498 | AR4: 968.3887625 | AS4: 968.3533409 | AT4: 968.3501102 | AU4: 968.3097357 | AV4: 968.3222533 | AW4: 968.3916331 | AX4: 968.3770931 | AY4: 968.3839553 | AZ4: 968.3934143 | BA4: 968.3691118
A5: 1A1c | B5: Oil and gas extraction | C5: 2388.424289 | D5: 2443.38781 | E5: 2799.473678 | F5: 2829.789712 | G5: 3108.701216 | H5: 3227.847681 | I5: 3816.269435 | J5: 4985.547483 | K5: 5538.310702 | L5: 6031.579446 | M5: 6404.314753 | N5: 6252.556582 | O5: 6701.052149 | P5: 6706.250637 | Q5: 6915.72248 | R5: 7091.471527 | S5: 7250.080572 | T5: 7162.238247 | U5: 7338.163936 | V5: 6903.923447 | W5: 6789.907409 | X5: 6134.223353 | Y5: 5679.667027 | Z5: 5093.261068 | AA5: 4763.09583 | AB5: 5004.676119 | AC5: 4756.286975 | AD5: 4384.098071 | AE5: 4176.097034 | AF5: 4161.765222 | AG5: 3074.245428 | AH5: 4081.920806 | AI5: 3779.170726 | AJ5: 4058.054667 | AK5: 5100.729476 | AL5: 4333.131002 | AM5: 4072.188887 | AN5: 4206.548196 | AO5: 4009.194485 | AP5: 3894.345825 | AQ5: 3700.492527 | AR5: 3502.547107 | AS5: 3326.339959 | AT5: 3175.682448 | AU5: 3028.63304 | AV5: 3080.138386 | AW5: 2929.440303 | AX5: 2737.480983 | AY5: 2540.215154 | AZ5: 2342.158374 | BA5: 2155.668424
A7: 1A2a-f i | B7: Combustion in manufacturing industry | C7: 14244.53968 | D7: 16158.31016 | E7: 16311.75368 | F7: 16181.37944 | G7: 15892.31808 | H7: 15848.56895 | I7: 16731.64485 | J7: 16353.11887 | K7: 17000.0043 | L7: 16113.62266 | M7: 16484.97099 | N7: 16380.94366 | O7: 14680.10392 | P7: 13942.74203 | Q7: 14162.64657 | R7: 13529.67679 | S7: 13318.647 | T7: 11872.35083 | U7: 10099.8485 | V7: 7699.642994 | W7: 6548.302784 | X7: 6128.929598 | Y7: 5276.447755 | Z7: 4797.026824 | AA7: 4632.43963 | AB7: 4867.727345 | AC7: 5280.975936 | AD7: 5691.692143 | AE7: 5814.005047 | AF7: 5632.12216 | AG7: 5664.575313 | AH7: 5297.014963 | AI7: 5260.144692 | AJ7: 5222.293036 | AK7: 5184.314235 | AL7: 5146.080389 | AM7: 5031.225622 | AN7: 4916.653184 | AO7: 4802.301052 | AP7: 4687.994771 | AQ7: 4573.3472 | AR7: 4528.602827 | AS7: 4484.784653 | AT7: 4441.703404 | AU7: 4396.344735 | AV7: 4354.403825 | AW7: 4307.050886 | AX7: 4260.85078 | AY7: 4215.571384 | AZ7: 4177.66966 | BA7: 4141.849316
A8: 1A2f ii | B8: Industry - Other (mobile) | C8: 6803.356987 | D8: 6778.286586 | E8: 6749.726823 | F8: 6721.844988 | G8: 6685.382995 | H8: 6662.009063 | I8: 6634.769089 | J8: 6608.102574 | K8: 6579.444405 | L8: 6512.450116 | M8: 6431.676499 | N8: 6361.927015 | O8: 6227.402666 | P8: 6046.137855 | Q8: 5837.725171 | R8: 5732.494806 | S8: 5731.324681 | T8: 5712.046724 | U8: 5553.209392 | V8: 3992.168965 | W8: 4784.311647 | X8: 4348.083599 | Y8: 3971.840937 | Z8: 3656.496346 | AA8: 3359.355592 | AB8: 3018.707707 | AC8: 2669.129507 | AD8: 2363.535469 | AE8: 2108.254175 | AF8: 1891.988377 | AG8: 1731.502848 | AH8: 1479.785404 | AI8: 1361.148678 | AJ8: 1260.02115 | AK8: 1179.607306 | AL8: 1143.035151 | AM8: 1083.386758 | AN8: 1031.314074 | AO8: 985.0429223 | AP8: 946.2795742 | AQ8: 911.6814653 | AR8: 890.9675122 | AS8: 871.2221986 | AT8: 854.8882693 | AU8: 838.7768572 | AV8: 822.7404795 | AW8: 813.0978844 | AX8: 803.529802 | AY8: 793.9918463 | AZ8: 784.604434 | BA8: 775.4280671
A10: 1A3a | B10: Civil Aviation (Domestic LTO) | C10: 221.9790534 | D10: 215.6415666 | E10: 215.2489203 | F10: 215.8155758 | G10: 217.0107761 | H10: 229.1951554 | I10: 253.6608034 | J10: 266.7101349 | K10: 226.1943645 | L10: 200.7453547 | M10: 180.9902994 | N10: 178.3140278 | O10: 145.4852115 | P10: 136.9737871 | Q10: 107.5224142 | R10: 119.1976357 | S10: 123.596407 | T10: 147.6204136 | U10: 155.0924142 | V10: 160.6496873 | W10: 178.2282395 | X10: 170.2482845 | Y10: 155.1681696 | Z10: 154.9435225 | AA10: 140.0144935 | AB10: 133.5432991 | AC10: 140.2127113 | AD10: 139.5590867 | AE10: 139.4282958 | AF10: 139.5358464 | AG10: 74.07904311 | AH10: 172.2349732 | AI10: 174.0360533 | AJ10: 175.7222136 | AK10: 177.3600474 | AL10: 178.9928674 | AM10: 181.068649 | AN10: 183.1920469 | AO10: 185.343842 | AP10: 187.4825318 | AQ10: 189.6716323 | AR10: 190.3172864 | AS10: 190.9226991 | AT10: 191.5471146 | AU10: 192.1370037 | AV10: 192.7736908 | AW10: 193.3951263 | AX10: 193.9893039 | AY10: 194.6039461 | AZ10: 195.1879566 | BA10: 195.8101053
A11: 1A3a | B11: Civil Aviation (International LTO) | C11: 661.3560552 | D11: 637.9845508 | E11: 680.8509905 | F11: 689.5882404 | G11: 716.3270182 | H11: 759.3039593 | I11: 821.8362128 | J11: 905.7232078 | K11: 942.3880824 | L11: 1009.338941 | M11: 1071.639287 | N11: 1048.249156 | O11: 988.4064889 | P11: 967.4315942 | Q11: 1046.656933 | R11: 1048.216089 | S11: 1024.458396 | T11: 1058.028391 | U11: 1124.422846 | V11: 979.1366015 | W11: 1042.573029 | X11: 1086.651459 | Y11: 1100.232026 | Z11: 1165.003368 | AA11: 1233.59962 | AB11: 1262.179587 | AC11: 1370.466862 | AD11: 1372.3728 | AE11: 1462.537669 | AF11: 1475.042583 | AG11: 515.7311144 | AH11: 653.1868992 | AI11: 1631.943816 | AJ11: 1639.874708 | AK11: 1645.666352 | AL11: 1650.719387 | AM11: 1661.395383 | AN11: 1672.831185 | AO11: 1684.458044 | AP11: 1694.920804 | AQ11: 1706.481594 | AR11: 1708.146531 | AS11: 1708.564581 | AT11: 1709.790556 | AU11: 1709.961298 | AV11: 1711.879476 | AW11: 1713.382159 | AX11: 1714.065045 | AY11: 1715.556432 | AZ11: 1716.096505 | BA11: 1718.064383
A12: 1A3bi | B12: Road transport: Passenger cars | C12: 64280.20413 | D12: 66882.9885 | E12: 66812.8169 | F12: 65129.41875 | G12: 62848.7772 | H12: 58650.8006 | I12: 54708.62501 | J12: 51619.46434 | K12: 47615.48047 | L12: 43193.66715 | M12: 39509.30218 | N12: 36346.56979 | O12: 34229.70479 | P12: 32282.69477 | Q12: 29952.13481 | R12: 26713.20145 | S12: 24253.20783 | T12: 22703.84894 | U12: 20689.59225 | V12: 19008.79853 | W12: 18379.50328 | X12: 17376.30892 | Y12: 16804.76976 | Z12: 16345.05586 | AA12: 15811.78826 | AB12: 15785.50657 | AC12: 15193.13932 | AD12: 14582.53088 | AE12: 14120.77341 | AF12: 13017.48597 | AG12: 10837.41667 | AH12: 11251.25984 | AI12: 10500.87843 | AJ12: 9773.605279 | AK12: 9030.190293 | AL12: 8286.656059 | AM12: 7559.114121 | AN12: 6849.705345 | AO12: 6161.771057 | AP12: 5505.49167 | AQ12: 4889.393581 | AR12: 4305.640164 | AS12: 3725.555716 | AT12: 3210.447075 | AU12: 2765.084373 | AV12: 2395.301926 | AW12: 2090.46283 | AX12: 1842.699913 | AY12: 1636.906657 | AZ12: 1467.235546 | BA12: 1319.132265
A13: 1A3bii | B13: Road transport: Light duty vehicles | C13: 9335.267504 | D13: 9900.589514 | E13: 10079.98784 | F13: 10359.37324 | G13: 10692.7758 | H13: 10374.64947 | I13: 10020.23381 | J13: 9696.148519 | K13: 9625.879391 | L13: 9664.479078 | M13: 9629.494542 | N13: 9914.252429 | O13: 9669.493868 | P13: 9807.793068 | Q13: 10028.1411 | R13: 10054.66982 | S13: 10562.38039 | T13: 10960.74127 | U13: 10722.15804 | V13: 9773.092543 | W13: 9458.16713 | X13: 8821.306249 | Y13: 8466.269202 | Z13: 8224.589512 | AA13: 8009.597608 | AB13: 8262.591554 | AC13: 8349.9609 | AD13: 8430.498141 | AE13: 8485.136648 | AF13: 8001.383623 | AG13: 7084.220561 | AH13: 7488.384151 | AI13: 6898.549296 | AJ13: 6241.856479 | AK13: 5625.121832 | AL13: 5041.483228 | AM13: 4493.774462 | AN13: 3978.411676 | AO13: 3500.261769 | AP13: 3053.482915 | AQ13: 2647.290439 | AR13: 2276.544849 | AS13: 1948.516714 | AT13: 1661.576501 | AU13: 1416.514671 | AV13: 1212.730411 | AW13: 1043.975777 | AX13: 910.9718615 | AY13: 803.7625927 | AZ13: 721.5718182 | BA13: 655.962802
A14: 1A3biii | B14: Road transport: Heavy duty vehicles and buses | C14: 37234.17416 | D14: 36843.14193 | E14: 35752.22386 | F14: 34896.92288 | G14: 37107.07228 | H14: 36385.27431 | I14: 36027.97582 | J14: 35453.47173 | K14: 35286.07432 | L14: 35707.22803 | M14: 34082.28435 | N14: 34243.85428 | O14: 33580.10983 | P14: 35199.0168 | Q14: 35676.82472 | R14: 35425.21323 | S14: 35534.76257 | T14: 34630.11953 | U14: 30015.58291 | V14: 25097.03131 | W14: 24859.17174 | X14: 23385.16622 | Y14: 19917.83151 | Z14: 17600.33152 | AA14: 16338.75053 | AB14: 13716.32241 | AC14: 11340.1111 | AD14: 9121.511135 | AE14: 7426.64619 | AF14: 5847.238463 | AG14: 4434.64817 | AH14: 3860.966247 | AI14: 3184.937015 | AJ14: 2659.905312 | AK14: 2248.597687 | AL14: 1928.94751 | AM14: 1681.178961 | AN14: 1488.336936 | AO14: 1339.001397 | AP14: 1223.485819 | AQ14: 1131.819671 | AR14: 1056.980749 | AS14: 995.7188 | AT14: 944.5771034 | AU14: 900.8799131 | AV14: 862.8335456 | AW14: 831.0338037 | AX14: 806.1952432 | AY14: 787.1784076 | AZ14: 772.9562264 | BA14: 762.6435298
A15: 1A3biv | B15: Road transport: Mopeds & motorcycles | C15: 74.2322691 | D15: 76.3498109 | E15: 80.88452437 | F15: 84.95106384 | G15: 89.84878849 | H15: 93.6953276 | I15: 96.96049131 | J15: 103.9598316 | K15: 110.3097609 | L15: 111.7715342 | M15: 114.3827639 | N15: 115.8307677 | O15: 123.7881281 | P15: 127.4783541 | Q15: 128.4278051 | R15: 131.653759 | S15: 138.5694531 | T15: 143.9104148 | U15: 139.5852959 | V15: 132.6139279 | W15: 129.4484329 | X15: 127.8883591 | Y15: 129.1626535 | Z15: 130.0546187 | AA15: 131.7752237 | AB15: 133.6261347 | AC15: 135.9073634 | AD15: 136.7388722 | AE15: 134.422917 | AF15: 130.1866839 | AG15: 125.4107715 | AH15: 121.8762789 | AI15: 118.871263 | AJ15: 116.0240355 | AK15: 113.4359271 | AL15: 110.9441943 | AM15: 108.5919279 | AN15: 106.3823484 | AO15: 104.3077353 | AP15: 102.3698838 | AQ15: 100.5535054 | AR15: 98.51776192 | AS15: 96.51395253 | AT15: 94.542715 | AU15: 92.57881171 | AV15: 90.96237717 | AW15: 89.32098923 | AX15: 87.91978287 | AY15: 86.49851191 | AZ15: 85.05411261 | BA15: 83.61476566
A16: 1A3bv | B16: Road transport: Gasoline evaporation
A17: 1A3bvi | B17: Road transport: Automobile tyre and brake wear
A18: 1A3bvii | B18: Road transport: Automobile road abrasion
A19: 1A3c | B19: Railways | C19: 4912.786442 | D19: 4994.978105 | E19: 5283.986405 | F19: 5484.57748 | G19: 4971.079217 | H19: 5014.795537 | I19: 4976.870997 | J19: 4845.820799 | K19: 4088.939683 | L19: 3729.877546 | M19: 3726.632212 | N19: 3396.172222 | O19: 3395.728295 | P19: 3539.840395 | Q19: 3478.383873 | R19: 3724.160897 | S19: 3542.191733 | T19: 3555.085999 | U19: 2919.967189 | V19: 2603.184173 | W19: 2817.859843 | X19: 2500.550246 | Y19: 2530.885372 | Z19: 2360.700421 | AA19: 2231.66548 | AB19: 2008.661166 | AC19: 2048.440818 | AD19: 1823.084654 | AE19: 1562.231313 | AF19: 1634.925263 | AG19: 1463.918537 | AH19: 1580.826427 | AI19: 1586.327763 | AJ19: 1540.871991 | AK19: 1495.418763 | AL19: 1491.808331 | AM19: 1490.458464 | AN19: 590.0479999 | AO19: 538.6033854 | AP19: 191.9755029 | AQ19: 153.5804023 | AR19: 0 | AS19: 0 | AT19: 0 | AU19: 0 | AV19: 0 | AW19: 0 | AX19: 0 | AY19: 0 | AZ19: 0 | BA19: 0
A20: 1A3d | B20: Navigation | C20: 12460.13711 | D20: 13998.30007 | E20: 13611.65535 | F20: 11971.77148 | G20: 10923.61326 | H20: 11500.05474 | I20: 12689.75791 | J20: 11846.55398 | K20: 10618.93456 | L20: 8739.622806 | M20: 9537.129713 | N20: 10418.67707 | O20: 12126.19079 | P20: 12178.14556 | Q20: 10461.56235 | R20: 12387.26649 | S20: 11661.60965 | T20: 10410.76415 | U20: 13326.40896 | V20: 12438.43338 | W20: 10912.68682 | X20: 10690.51979 | Y20: 11307.22719 | Z20: 11342.89819 | AA20: 8944.647774 | AB20: 10315.3612 | AC20: 11428.91833 | AD20: 11915.34014 | AE20: 11304.31042 | AF20: 8848.099389 | AG20: 9031.869335 | AH20: 9514.975262 | AI20: 9144.732252 | AJ20: 8887.303425 | AK20: 8677.171995 | AL20: 8450.151774 | AM20: 8146.299539 | AN20: 7929.123036 | AO20: 7613.141378 | AP20: 7287.134727 | AQ20: 7092.690973 | AR20: 6910.21939 | AS20: 6713.751811 | AT20: 5835.236251 | AU20: 5647.661474 | AV20: 5476.13489 | AW20: 5306.210815 | AX20: 5137.038114 | AY20: 4968.619466 | AZ20: 4806.296296 | BA20: 4642.758548
A22: 1A4a i | B22: Commercial and institutional plants | C22: 1455.398214 | D22: 1389.068878 | E22: 1407.387694 | F22: 1470.644925 | G22: 1432.869328 | H22: 1575.368368 | I22: 1652.924746 | J22: 1676.452759 | K22: 1573.071019 | L22: 1632.238682 | M22: 1354.742336 | N22: 1239.704791 | O22: 1210.515108 | P22: 1377.918099 | Q22: 1119.727539 | R22: 1083.214971 | S22: 1118.73344 | T22: 982.8406159 | U22: 993.8461268 | V22: 951.515454 | W22: 859.6678245 | X22: 770.6052728 | Y22: 798.6501091 | Z22: 727.8687444 | AA22: 640.8967293 | AB22: 679.8336526 | AC22: 716.6231613 | AD22: 730.0279061 | AE22: 694.8582102 | AF22: 648.9736639 | AG22: 659.2769442 | AH22: 578.4918695 | AI22: 578.1548825 | AJ22: 577.7495867 | AK22: 577.3090709 | AL22: 576.881338 | AM22: 560.3607376 | AN22: 544.1547701 | AO22: 528.2222768 | AP22: 512.5147005 | AQ22: 496.9600465 | AR22: 482.7728994 | AS22: 469.0031552 | AT22: 455.4614696 | AU22: 442.1472312 | AV22: 429.0614671 | AW22: 422.7618903 | AX22: 417.2887465 | AY22: 411.7702747 | AZ22: 406.2064644 | BA22: 400.5972461
A23: 1A4a ii | B23: Commercial and institutional (mobile) | C23: 1636.19809 | D23: 1634.711115 | E23: 1627.201348 | F23: 1613.456806 | G23: 1592.774447 | H23: 1610.415518 | I23: 1619.969303 | J23: 1653.993214 | K23: 1687.378109 | L23: 1701.543107 | M23: 1688.560098 | N23: 1659.931236 | O23: 1618.792361 | P23: 1578.701025 | Q23: 1531.805625 | R23: 1488.152379 | S23: 1381.57126 | T23: 1476.072559 | U23: 1448.567802 | V23: 1234.924619 | W23: 1347.535875 | X23: 1275.801573 | Y23: 1203.406861 | Z23: 1149.233976 | AA23: 1082.12269 | AB23: 1009.595822 | AC23: 942.517025 | AD23: 890.2027412 | AE23: 823.0658323 | AF23: 706.2951517 | AG23: 643.4579958 | AH23: 260.6902341 | AI23: 230.665675 | AJ23: 204.0927689 | AK23: 180.0993541 | AL23: 160.9539948 | AM23: 132.2164178 | AN23: 105.8264747 | AO23: 81.76813566 | AP23: 59.84024001 | AQ23: 39.09012747 | AR23: 32.66520076 | AS23: 26.48347156 | AT23: 20.48827323 | AU23: 14.63418229 | AV23: 8.948463934 | AW23: 8.065722965 | AX23: 7.198886556 | AY23: 6.358143718 | AZ23: 5.549665907 | BA23: 4.77484892
A24: 1A4b i | B24: Residential plants | C24: 4826.888977 | D24: 5129.531019 | E24: 4798.695314 | F24: 5341.970323 | G24: 4946.217369 | H24: 4910.031042 | I24: 5154.897202 | J24: 4783.690807 | K24: 4626.33033 | L24: 4482.716832 | M24: 4274.523176 | N24: 4569.485631 | O24: 4437.576937 | P24: 4567.194455 | Q24: 4560.086032 | R24: 4759.361694 | S24: 4817.938852 | T24: 5014.475666 | U24: 4872.544517 | V24: 4823.346966 | W24: 5103.844765 | X24: 4467.604561 | Y24: 4237.752795 | Z24: 4223.783124 | AA24: 3833.79259 | AB24: 4264.941188 | AC24: 4432.421031 | AD24: 4225.014769 | AE24: 4028.255745 | AF24: 3764.884026 | AG24: 3509.810222 | AH24: 3811.676339 | AI24: 3725.18642 | AJ24: 3642.788087 | AK24: 3562.121015 | AL24: 3485.005566 | AM24: 3393.231083 | AN24: 3302.998189 | AO24: 3214.87222 | AP24: 3130.071652 | AQ24: 3047.039518 | AR24: 2946.002231 | AS24: 2844.637126 | AT24: 2742.948304 | AU24: 2640.931715 | AV24: 2538.588215 | AW24: 2482.129766 | AX24: 2425.097646 | AY24: 2367.4909 | AZ24: 2309.423274 | BA24: 2250.933502
A25: 1A4b ii | B25: Residential (mobile) | C25: 18.25442152 | D25: 19.32785044 | E25: 21.07001055 | F25: 22.55772896 | G25: 23.7669738 | H25: 24.79474935 | I25: 25.5736767 | J25: 26.13902734 | K25: 26.61946341 | L25: 27.07623372 | M25: 27.52115704 | N25: 28.02188595 | O25: 28.62660206 | P25: 29.31948749 | Q25: 30.06915022 | R25: 31.39646952 | S25: 34.36203107 | T25: 37.63781518 | U25: 40.21445345 | V25: 39.98392073 | W25: 38.39976933 | X25: 37.83795637 | Y25: 37.95086453 | Z25: 37.83668205 | AA25: 37.34393996 | AB25: 36.86860691 | AC25: 36.43109672 | AD25: 35.69909976 | AE25: 34.18229391 | AF25: 30.81158682 | AG25: 27.17187071 | AH25: 52.2906385 | AI25: 49.58654703 | AJ25: 47.37048337 | AK25: 45.82442894 | AL25: 44.79586098 | AM25: 43.95081064 | AN25: 43.16995846 | AO25: 42.40663226 | AP25: 41.63944005 | AQ25: 40.83990309 | AR25: 40.14657189 | AS25: 39.66995055 | AT25: 39.37437419 | AU25: 39.20967716 | AV25: 39.14222371 | AW25: 39.11924237 | AX25: 39.10808399 | AY25: 39.10204222 | AZ25: 39.09756164 | BA25: 39.09328986
A26: 1A4c i | B26: Plants in agriculture, forestry and aquaculture | C26: 1524.389761 | D26: 1630.132992 | E26: 1547.581964 | F26: 1473.053471 | G26: 1520.904143 | H26: 1680.484474 | I26: 1893.900922 | J26: 1889.600839 | K26: 1914.26083 | L26: 1839.628105 | M26: 1723.270427 | N26: 1583.587003 | O26: 1559.959541 | P26: 1528.128774 | Q26: 1491.113386 | R26: 1401.696382 | S26: 1226.052295 | T26: 1056.440033 | U26: 988.2585579 | V26: 888.5667568 | W26: 991.6205985 | X26: 910.4168249 | Y26: 783.3809164 | Z26: 779.3774261 | AA26: 655.0895771 | AB26: 637.2279677 | AC26: 663.7144711 | AD26: 625.2899296 | AE26: 681.585846 | AF26: 622.3628685 | AG26: 584.2761264 | AH26: 454.3984392 | AI26: 447.5756715 | AJ26: 447.5804086 | AK26: 450.8908782 | AL26: 454.0898097 | AM26: 450.0693799 | AN26: 446.0835287 | AO26: 442.1315731 | AP26: 438.2121519 | AQ26: 434.2966801 | AR26: 427.3623797 | AS26: 420.5453333 | AT26: 413.8373351 | AU26: 407.2212469 | AV26: 400.7209881 | AW26: 387.7194855 | AX26: 382.8873966 | AY26: 377.327043 | AZ26: 372.7128608 | BA26: 368.20403
A27: 1A4c ii | B27: Agriculture & forestry (mobile) | C27: 9013.319106 | D27: 9240.133229 | E27: 9361.41177 | F27: 9731.652672 | G27: 9779.985835 | H27: 10215.27077 | I27: 10438.65548 | J27: 10848.01495 | K27: 11082.77452 | L27: 11299.83115 | M27: 11569.95367 | N27: 11861.04532 | O27: 11884.25533 | P27: 11901.62314 | Q27: 11534.38779 | R27: 11144.11899 | S27: 10794.99041 | T27: 10170.35783 | U27: 9642.200357 | V27: 9059.626286 | W27: 8374.159308 | X27: 7773.377289 | Y27: 7209.181766 | Z27: 6669.818918 | AA27: 6183.077264 | AB27: 5649.143762 | AC27: 5138.198934 | AD27: 4687.52518 | AE27: 4278.918051 | AF27: 3917.94383 | AG27: 3557.008209 | AH27: 3235.005855 | AI27: 2958.284947 | AJ27: 2666.347426 | AK27: 2436.109673 | AL27: 2245.166357 | AM27: 2025.89672 | AN27: 1832.584569 | AO27: 1685.38458 | AP27: 1556.738063 | AQ27: 1434.840998 | AR27: 1346.975947 | AS27: 1261.119824 | AT27: 1173.143992 | AU27: 1101.980222 | AV27: 1029.914961 | AW27: 981.6241444 | AX27: 935.1791424 | AY27: 882.1950908 | AZ27: 844.5202401 | BA27: 813.6911805
A28: 1A4c iii | B28: Fishing (mobile) | C28: 6434.205682 | D28: 6685.669402 | E28: 6181.84375 | F28: 5899.125862 | G28: 6003.753588 | H28: 6089.752159 | I28: 5677.666092 | J28: 4587.013026 | K28: 4816.41353 | L28: 5467.026597 | M28: 7292.522198 | N28: 6944.635315 | O28: 6954.72598 | P28: 6680.486073 | Q28: 5827.729666 | R28: 5903.134619 | S28: 6121.447961 | T28: 5916.383794 | U28: 5436.55979 | V28: 5351.943491 | W28: 5570.764327 | X28: 5273.025655 | Y28: 4056.169399 | Z28: 4745.722687 | AA28: 4315.622107 | AB28: 4838.077658 | AC28: 4794.786988 | AD28: 4487.078455 | AE28: 4171.135985 | AF28: 4253.824252 | AG28: 4180.714328 | AH28: 4166.03608 | AI28: 3940.068712 | AJ28: 3676.009637 | AK28: 3459.521865 | AL28: 3267.672557 | AM28: 3213.985228 | AN28: 3065.493255 | AO28: 3005.102727 | AP28: 2895.145449 | AQ28: 2827.11854 | AR28: 2706.963014 | AS28: 2597.218787 | AT28: 2403.089773 | AU28: 2259.258229 | AV28: 2100.31913 | AW28: 2071.513645 | AX28: 2054.96089 | AY28: 2010.546783 | AZ28: 1968.823549 | BA28: 1901.401887
A30: 1A5b | B30: Other mobile (military and recreational crafts) | C30: 909.7578634 | D30: 2206.826333 | E30: 1434.666223 | F30: 1756.156737 | G30: 1789.085907 | H30: 2239.342603 | I30: 1550.733015 | J30: 1789.855459 | K30: 2014.934448 | L30: 1791.876749 | M30: 1344.286933 | N30: 1523.816248 | O30: 1383.218935 | P30: 1491.537324 | Q30: 2299.945991 | R30: 2350.194342 | S30: 1641.946074 | T30: 1786.946064 | U30: 1508.5471 | V30: 1738.175878 | W30: 1454.455311 | X30: 1785.002151 | Y30: 1461.894059 | Z30: 1520.355248 | AA30: 1454.512678 | AB30: 1295.038641 | AC30: 1299.78451 | AD30: 1569.586773 | AE30: 1215.403894 | AF30: 1128.867224 | AG30: 1237.742841 | AH30: 1054.939601 | AI30: 1026.083962 | AJ30: 997.0177594 | AK30: 968.4755774 | AL30: 940.4601828 | AM30: 912.8131489 | AN30: 889.3029366 | AO30: 865.9782245 | AP30: 842.8216555 | AQ30: 819.8817719 | AR30: 797.1311986 | AS30: 793.8703659 | AT30: 790.9543751 | AU30: 788.4319439 | AV30: 786.3641373 | AW30: 784.6778219 | AX30: 783.3735494 | AY30: 782.3468692 | AZ30: 781.589986 | BA30: 781.0125621
A32: 1B1 | B32: Fugitive emissions from solid fuels
A33: 1B2a | B33: Fugitive emissions from oil | C33: 0.00237445596 | D33: 0.00037340709 | E33: 0.00382108725 | F33: 6.261069e-05 | G33: 1.31241e-05 | H33: 0.00172369248 | I33: 0.00171993975 | J33: 3.433545e-05 | K33: 0.00372562203 | L33: 0.00378898179 | M33: 0.00131241 | N33: NA | O33: 0.00066518892 | P33: NA | Q33: NA | R33: 0.00231036312 | S33: NA | T33: NA | U33: NA | V33: 0.00043117404 | W33: NA | X33: NA | Y33: NA | Z33: 0.00152740908 | AA33: NA | AB33: 0.00037884 | AC33: 0 | AD33: 0 | AE33: 0 | AF33: 0 | AG33: 0 | AH33: 0 | AI33: 0 | AJ33: 0 | AK33: 0 | AL33: 0 | AM33: 0 | AN33: 0 | AO33: 0 | AP33: 0 | AQ33: 0 | AR33: 0 | AS33: 0 | AT33: 0 | AU33: 0 | AV33: 0 | AW33: 0 | AX33: 0 | AY33: 0 | AZ33: 0 | BA33: 0
A34: 1B2b | B34: Fugitive emissions from gas | C34: 3.55722396 | D34: 0.00161499 | E34: 0.0103566 | F34: 6.027e-05 | G34: 0.00028167 | H34: 0.00018081 | I34: 0.00013284 | J34: 3.69e-06 | K34: 0.00253626 | L34: 0.00084747 | M34: 0.0688677 | N34: NA | O34: 11.02721322 | P34: NA | Q34: NA | R34: 0.8770761 | S34: NA | T34: NA | U34: NA | V34: 0.00753621 | W34: NA | X34: NA | Y34: NA | Z34: 0.00012546 | AA34: NA | AB34: 0.0359406 | AC34: NA | AD34: NA | AE34: NA | AF34: NA | AG34: NA | AH34: 0 | AI34: 0 | AJ34: 0 | AK34: 0 | AL34: 0 | AM34: 0 | AN34: 0 | AO34: 0 | AP34: 0 | AQ34: 0 | AR34: 0 | AS34: 0 | AT34: 0 | AU34: 0 | AV34: 0 | AW34: 0 | AX34: 0 | AY34: 0 | AZ34: 0 | BA34: 0
A35: 1B2c | B35: Fugitive emissions from venting and flaring | C35: 146.2283964 | D35: 287.3380231 | E35: 296.3129212 | F35: 257.9212254 | G35: 475.087075 | H35: 215.5608964 | I35: 237.8456793 | J35: 319.1076786 | K35: 243.1622161 | L35: 509.9569554 | M35: 342.2328016 | N35: 349.1342747 | O35: 304.3378301 | P35: 303.0865397 | Q35: 337.6272263 | R35: 253.6825542 | S35: 245.6976173 | T35: 252.2134608 | U35: 190.0008919 | V35: 123.0053663 | W35: 165.9570225 | X35: 113.9875996 | Y35: 111.110501 | Z35: 123.0435035 | AA35: 129.1714617 | AB35: 120.8160446 | AC35: 131.9319746 | AD35: 122.9539336 | AE35: 120.9931638 | AF35: 100.7087662 | AG35: 66.0053602 | AH35: 66.24324112 | AI35: 72.75332716 | AJ35: 78.18649154 | AK35: 78.18337898 | AL35: 50.54336263 | AM35: 48.71245907 | AN35: 53.69094814 | AO35: 55.17517574 | AP35: 57.00476971 | AQ35: 59.74279366 | AR35: 60.61135841 | AS35: 59.88381208 | AT35: 61.29536451 | AU35: 60.99515245 | AV35: 60.90444598 | AW35: 61.21360276 | AX35: 60.41364731 | AY35: 59.02958812 | AZ35: 58.28493814 | BA35: 56.30585356
A37: 2A | B37: Mineral industry
A38: 2B | B38: Chemical Industry | C38: 835 | D38: 760.888 | E38: 671.548 | F38: 630.82 | G38: 635 | H38: 649 | I38: 543.2 | J38: 611 | K38: 471.8 | L38: 503.4 | M38: 451.575 | N38: 434.025 | O38: 428.5 | P38: 483.1 | Q38: 308.45 | R38: 36.45 | S38: 36.75 | T38: 17.5 | U38: 19.25 | V38: 18.5 | W38: 16.75 | X38: 20.75 | Y38: 19.47 | Z38: 20.25 | AA38: 23.2 | AB38: 23.1 | AC38: 23.2 | AD38: 19.2 | AE38: 25.4 | AF38: 25.2 | AG38: 23 | AH38: 24.53333333 | AI38: 24.53333333 | AJ38: 24.53333333 | AK38: 24.53333333 | AL38: 24.53333333 | AM38: 24.53333333 | AN38: 24.53333333 | AO38: 24.53333333 | AP38: 24.53333333 | AQ38: 24.53333333 | AR38: 24.53333333 | AS38: 24.53333333 | AT38: 24.53333333 | AU38: 24.53333333 | AV38: 24.53333333 | AW38: 24.53333333 | AX38: 24.53333333 | AY38: 24.53333333 | AZ38: 24.53333333 | BA38: 24.53333333
A39: 2C | B39: Metal industry | C39: 79.79023 | D39: 79.79023 | E39: 79.79023 | F39: 86.85638 | G39: 93.9224 | H39: 93.18231 | I39: 93.55528 | J39: 106.05803 | K39: 97.69591 | L39: 103.67955 | M39: 82.02753 | N39: 94.2916 | O39: 0 | P39: 0 | Q39: 0 | R39: 32.5
A40: 2D | B40: Non-energy products from fuels and solvent use
A41: 2G | B41: Other product manufacture and use | C41: 45.1438633 | D41: 40.90869625 | E41: 51.01591815 | F41: 42.6193148 | G41: 39.3295041 | H41: 45.19020505 | I41: 51.0594258 | J41: 61.0036947 | K41: 51.6266472 | L41: 54.80013105 | M41: 61.2259769 | N41: 52.8904533 | O41: 69.25988685 | P41: 81.12670575 | Q41: 70.1471016 | R41: 63.8568541 | S41: 78.3940903 | T41: 55.1741511 | U41: 49.57380905 | V41: 53.0869601 | W41: 41.6795724 | X41: 36.8809512 | Y41: 58.4756078 | Z41: 58.2605511 | AA41: 47.7686683 | AB41: 62.8117921 | AC41: 35.0430728 | AD41: 36.5605395 | AE41: 36.3596055 | AF41: 41.486898 | AG41: 30.758627 | AH41: 36.03768466 | AI41: 35.77190033 | AJ41: 35.506116 | AK41: 35.24033167 | AL41: 34.97454734 | AM41: 34.70876301 | AN41: 34.44297868 | AO41: 34.17719435 | AP41: 33.91141002 | AQ41: 33.64562569 | AR41: 33.37984136 | AS41: 33.11405703 | AT41: 32.8482727 | AU41: 32.58248837 | AV41: 32.31670404 | AW41: 32.05091971 | AX41: 31.78513538 | AY41: 31.51935105 | AZ41: 31.25356672 | BA41: 30.98778239
A42: 2H | B42: Other
A43: 2I | B43: Wood processing
A44: 2L | B44: Other production
A46: 3B1a | B46: Manure Management - Dairy cattle | C46: 216.6270995 | D46: 209.4758195 | E46: 197.9118027 | F46: 195.3263089 | G46: 187.9187101 | H46: 185.2481256 | I46: 181.6453797 | J46: 179.738736 | K46: 185.321515 | L46: 177.3271738 | M46: 122.2135636 | N46: 105.9526866 | O46: 89.99719162 | P46: 70.23486382 | Q46: 58.01602871 | R46: 60.02316697 | S46: 59.93242687 | T46: 58.90548736 | U46: 54.02442791 | V46: 49.37421026 | W46: 49.90923356 | X46: 43.30139737 | Y46: 43.48886237 | Z46: 43.66934905 | AA46: 41.61590234 | AB46: 41.89603761 | AC46: 43.83035003 | AD46: 44.11568514 | AE46: 43.44466181 | AF46: 43.28009199 | AG46: 45.07957895 | AH46: 43.19138146 | AI46: 42.49387792 | AJ46: 41.46851778 | AK46: 40.49559778 | AL46: 39.625542 | AM46: 38.68564696 | AN46: 37.96641643 | AO46: 37.13618516 | AP46: 36.37530593 | AQ46: 35.60442919 | AR46: 35.44825928 | AS46: 35.2045599 | AT46: 35.05860569 | AU46: 34.73902067 | AV46: 34.51684902 | AW46: 34.21353739 | AX46: 33.96207087 | AY46: 33.58814615 | AZ46: 33.3521709 | BA46: 33.08059601
A47: 3B1b | B47: Manure Management - Non-dairy cattle | C47: 188.5910371 | D47: 192.5648399 | E47: 197.785722 | F47: 197.9184617 | G47: 191.0723325 | H47: 192.2030226 | I47: 194.3142872 | J47: 186.976257 | K47: 180.2798734 | L47: 173.0783842 | M47: 170.8448089 | N47: 176.0324458 | O47: 166.1787406 | P47: 157.2373108 | Q47: 154.1392776 | R47: 141.5386168 | S47: 136.5098133 | T47: 141.3858971 | U47: 139.5586172 | V47: 135.091863 | W47: 136.9624888 | X47: 135.9879446 | Y47: 133.013295 | Z47: 134.1528475 | AA47: 131.7563563 | AB47: 128.23229 | AC47: 129.9442781 | AD47: 125.2926277 | AE47: 125.1338238 | AF47: 120.01603 | AG47: 121.0156605 | AH47: 119.4259931 | AI47: 119.2924876 | AJ47: 118.8033457 | AK47: 118.2799474 | AL47: 117.7915417 | AM47: 117.2399683 | AN47: 116.6654379 | AO47: 116.093624 | AP47: 115.4979198 | AQ47: 114.9056679 | AR47: 114.1117684 | AS47: 113.3872932 | AT47: 112.6802751 | AU47: 111.9542275 | AV47: 111.2275495 | AW47: 110.4913247 | AX47: 109.7546962 | AY47: 109.0088298 | AZ47: 108.2804878 | BA47: 107.5430277
A48: 3B2 | B48: Manure Management - Sheep | C48: 2.2061088 | D48: 2.556 | E48: 2.4582816 | F48: 2.1184416 | G48: 1.9194336 | H48: 1.936944 | I48: 2.2572288 | J48: 2.302416 | K48: 2.422128 | L48: 2.53704 | M48: 2.679528 | N48: 2.846544 | O48: 2.818824 | P48: 2.904264 | Q48: 2.980776 | R48: 3.030336 | S48: 3.065712 | T48: 2.970888 | U48: 2.819736 | V48: 2.772504 | W48: 2.664048 | X48: 2.244672 | Y48: 2.168016 | Z48: 2.121768 | AA48: 2.110872 | AB48: 2.018376 | AC48: 1.990284 | AD48: 1.962192 | AE48: 1.967328 | AF48: 2.107512 | AG48: 1.92096 | AH48: 1.92096 | AI48: 1.92096 | AJ48: 1.92096 | AK48: 1.92096 | AL48: 1.92096 | AM48: 1.92096 | AN48: 1.92096 | AO48: 1.92096 | AP48: 1.92096 | AQ48: 1.92096 | AR48: 1.92096 | AS48: 1.92096 | AT48: 1.92096 | AU48: 1.92096 | AV48: 1.92096 | AW48: 1.92096 | AX48: 1.92096 | AY48: 1.92096 | AZ48: 1.92096 | BA48: 1.92096
A49: 3B3 | B49: Manure Management - Swine | C49: 202.3433537 | D49: 194.4461891 | E49: 198.3721673 | F49: 200.5694335 | G49: 182.0776886 | H49: 178.3619374 | I49: 168.7768342 | J49: 169.735645 | K49: 166.4921458 | L49: 153.1107296 | M49: 161.4886479 | N49: 164.9644468 | O49: 166.8679256 | P49: 172.6251317 | Q49: 173.4560819 | R49: 143.8517194 | S49: 114.2370601 | T49: 87.4741335 | U49: 71.59358846 | V49: 64.56152938 | W49: 65.08107863 | X49: 54.12599544 | Y49: 52.72768954 | Z49: 52.16522353 | AA49: 50.21468514 | AB49: 48.80684801 | AC49: 47.53820338 | AD49: 47.80627815 | AE49: 52.68781806 | AF49: 47.79702064 | AG49: 45.01000736 | AH49: 44.22141054 | AI49: 44.56854035 | AJ49: 44.81165775 | AK49: 45.27742816 | AL49: 46.142103 | AM49: 46.39802375 | AN49: 46.94462745 | AO49: 47.37480102 | AP49: 47.61929583 | AQ49: 47.7280821 | AR49: 50.34621366 | AS49: 53.72919221 | AT49: 57.06120791 | AU49: 59.72909329 | AV49: 62.42471794 | AW49: 64.89224272 | AX49: 67.0879494 | AY49: 68.83664633 | AZ49: 70.91427588 | BA49: 72.66136798
A50: 3B4d | B50: Manure Management - Goats | C50: 0.08997 | D50: 0.088764 | E50: 0.087558 | F50: 0.086352 | G50: 0.085146 | H50: 0.08394 | I50: 0.082734 | J50: 0.081528 | K50: 0.09306 | L50: 0.097068 | M50: 0.101556 | N50: 0.113364 | O50: 0.11076 | P50: 0.120576 | Q50: 0.129288 | R50: 0.137256 | S50: 0.145812 | T50: 0.152172 | U50: 0.169752 | V50: 0.188136 | W50: 0.191868012 | X50: 0.150684 | Y50: 0.153972 | Z50: 0.155568 | AA50: 0.142908 | AB50: 0.134904 | AC50: 0.134538012 | AD50: 0.134172 | AE50: 0.12378 | AF50: 0.140148 | AG50: 0.12408 | AH50: 0.12408 | AI50: 0.12408 | AJ50: 0.12408 | AK50: 0.12408 | AL50: 0.12408 | AM50: 0.12408 | AN50: 0.12408 | AO50: 0.12408 | AP50: 0.12408 | AQ50: 0.12408 | AR50: 0.12408 | AS50: 0.12408 | AT50: 0.12408 | AU50: 0.12408 | AV50: 0.12408 | AW50: 0.12408 | AX50: 0.12408 | AY50: 0.12408 | AZ50: 0.12408 | BA50: 0.12408
A51: 3B4e | B51: Manure Management - Horses | C51: 33.75 | D51: 34.125 | E51: 34.5 | F51: 34.875 | G51: 35.25 | H51: 35.625 | I51: 36 | J51: 36.375 | K51: 36.75 | L51: 37.125 | M51: 37.5 | N51: 38.75 | O51: 40 | P51: 41.25 | Q51: 42.5 | R51: 43.75 | S51: 45 | T51: 46.25 | U51: 47.5 | V51: 44.375 | W51: 41.25 | X51: 38.75 | Y51: 38.75 | Z51: 37.5 | AA51: 37.5 | AB51: 38.75 | AC51: 40.625 | AD51: 42.5 | AE51: 43.75 | AF51: 43.75 | AG51: 45.6255 | AH51: 45.6255 | AI51: 45.6255 | AJ51: 45.6255 | AK51: 45.6255 | AL51: 45.6255 | AM51: 45.6255 | AN51: 45.6255 | AO51: 45.6255 | AP51: 45.6255 | AQ51: 45.6255 | AR51: 45.6255 | AS51: 45.6255 | AT51: 45.6255 | AU51: 45.6255 | AV51: 45.6255 | AW51: 45.6255 | AX51: 45.6255 | AY51: 45.6255 | AZ51: 45.6255 | BA51: 45.6255
A52: 3B4g | B52: Manure Management - Poultry | C52: 354.364823 | D52: 355.074016 | E52: 433.0382014 | F52: 457.5845148 | G52: 438.8193693 | H52: 445.2001872 | I52: 452.4632454 | J52: 437.5642937 | K52: 441.6867943 | L52: 492.2580787 | M52: 519.7968257 | N52: 506.1184653 | O52: 492.2664497 | P52: 413.3478203 | Q52: 390.6562085 | R52: 413.0048216 | S52: 417.7958631 | T52: 389.8244127 | U52: 347.3949535 | V52: 478.0255655 | W52: 436.1459536 | X52: 431.0896969 | Y52: 430.983665 | Z52: 445.3120276 | AA52: 418.0890971 | AB52: 388.4730897 | AC52: 412.6754975 | AD52: 472.1080441 | AE52: 440.4319608 | AF52: 514.5673526 | AG52: 489.3239755 | AH52: 536.6679817 | AI52: 535.7980951 | AJ52: 534.6056491 | AK52: 532.8382153 | AL52: 530.8527778 | AM52: 528.6249718 | AN52: 526.4855489 | AO52: 524.0292283 | AP52: 521.5661617 | AQ52: 518.970599 | AR52: 516.1269652 | AS52: 513.1718912 | AT52: 510.1309197 | AU52: 507.0234351 | AV52: 503.8656011 | AW52: 500.6709594 | AX52: 497.4507771 | AY52: 494.2144362 | AZ52: 490.9697495 | BA52: 487.7232062
A53: 3B4h | B53: Manure Management - Other (mainly mink) | C53: 2.27423 | D53: 2.121567 | E53: 2.293395 | F53: 1.547329 | G53: 1.838336 | H53: 1.859942 | I53: 1.928458 | J53: 2.222311 | K53: 2.35505 | L53: 2.098904 | M53: 2.208898 | N53: 2.314922 | O53: 2.431423 | P53: 2.370523 | Q53: 2.480648 | R53: 2.561751 | S53: 2.717535 | T53: 2.846324 | U53: 2.819549 | V53: 2.730518 | W53: 2.708769 | X53: 2.764754 | Y53: 2.955123 | Z53: 3.130785 | AA53: 3.315075 | AB53: 3.395977 | AC53: 3.257982 | AD53: 3.423299 | AE53: 3.370765 | AF53: 2.473383 | AG53: 2.223205 | AH53: 0.006719 | AI53: 0.006719 | AJ53: 0.2283676 | AK53: 0.2283676 | AL53: 0.228367601 | AM53: 0.2283676 | AN53: 0.2283676 | AO53: 0.2283676 | AP53: 0.2283676 | AQ53: 0.2283676 | AR53: 0.2283676 | AS53: 0.2283676 | AT53: 0.2283676 | AU53: 0.2283676 | AV53: 0.2283676 | AW53: 0.2283676 | AX53: 0.2283676 | AY53: 0.2283676 | AZ53: 0.2283676 | BA53: 0.2283676
A54: 3Da1 | B54: Inorganic N-fertilizers (includes also urea application) | C54: 16016 | D54: 15796 | E54: 14780 | F54: 13316 | G54: 13048 | H54: 12636 | I54: 11633.8 | J54: 11504 | K54: 11328 | L54: 10508.96 | M54: 10058.56 | N54: 9347.32 | O54: 8432.12 | P54: 8048.56 | Q54: 8269.44 | R54: 8250.08 | S54: 7670.2 | T54: 7783.92 | U54: 8816.04 | V54: 8409.96 | W54: 7955.64 | X54: 8183.96 | Y54: 7929.52 | Z54: 7992.04 | AA54: 8156.6 | AB54: 8436.84 | AC54: 9701.24 | AD54: 9947.52 | AE54: 8967.36 | AF54: 9393.08 | AG54: 10074.672 | AH54: 8869.73767 | AI54: 8854.99955 | AJ54: 8217.551358 | AK54: 8182.890048 | AL54: 8113.213562 | AM54: 8049.901047 | AN54: 8016.36773 | AO54: 7991.373404 | AP54: 7938.995416 | AQ54: 7894.204524 | AR54: 7944.881781 | AS54: 8005.790313 | AT54: 8056.795399 | AU54: 8114.763737 | AV54: 8165.200121 | AW54: 8215.080953 | AX54: 8273.84904 | AY54: 8327.31381 | AZ54: 8384.647221 | BA54: 8437.330619
A55: 3Da2a | B55: Animal manure applied to soils | C55: 8464.838187 | D55: 8419.520675 | E55: 8428.881032 | F55: 8475.366757 | G55: 8144.974843 | H55: 7898.066151 | I55: 7882.212356 | J55: 7825.984781 | K55: 7975.178533 | L55: 7878.95352 | M55: 7795.660839 | N55: 8008.14335 | O55: 8228.140655 | P55: 8232.166094 | Q55: 8402.880342 | R55: 8487.219391 | S55: 8209.545408 | T55: 8682.82686 | U55: 8494.542741 | V55: 8289.517212 | W55: 8323.63889 | X55: 8301.870908 | Y55: 8245.150956 | Z55: 8296.239157 | AA55: 8336.061071 | AB55: 8354.057959 | AC55: 8418.583962 | AD55: 8574.706197 | AE55: 8692.719406 | AF55: 8350.957456 | AG55: 8429.944681 | AH55: 8296.651901 | AI55: 8232.507403 | AJ55: 8249.12084 | AK55: 8213.825671 | AL55: 8190.928774 | AM55: 8166.10922 | AN55: 8158.481075 | AO55: 8142.524361 | AP55: 8132.654345 | AQ55: 8125.359928 | AR55: 8042.553673 | AS55: 7962.498675 | AT55: 7889.772879 | AU55: 7808.38239 | AV55: 7736.540811 | AW55: 7665.213812 | AX55: 7582.502189 | AY55: 7506.484567 | AZ55: 7425.57961 | BA55: 7350.535382
A56: 3Da2b-c | B56: Sludge applied to soils | C56: 185.97168 | D56: 237.81464 | E56: 275.03976 | F56: 378.44652 | G56: 357.41892 | H56: 363.593 | I56: 367.44892 | J56: 339.9988 | K56: 357.80648 | L56: 321.91008 | M56: 351.55212 | N56: 432.40804 | O56: 386.60088 | P56: 333.0768 | Q56: 268.39384 | R56: 203.72144 | S56: 238.25664 | T56: 250.17632 | U56: 290.6296 | V56: 301.74476 | W56: 282.09656 | X56: 287.33856 | Y56: 325.10676 | Z56: 337.11812 | AA56: 340.57532 | AB56: 341.5034801 | AC56: 358.7481601 | AD56: 353.485 | AE56: 330.31276 | AF56: 398.7668399 | AG56: 367.0113202 | AH56: 363.5607294 | AI56: 362.8360278 | AJ56: 362.1506756 | AK56: 361.3152453 | AL56: 359.9182848 | AM56: 358.5511909 | AN56: 356.9518798 | AO56: 356.5122624 | AP56: 356.1581303 | AQ56: 356.2368498 | AR56: 355.8669128 | AS56: 354.9338108 | AT56: 353.311821 | AU56: 352.684373 | AV56: 351.942436 | AW56: 351.3626351 | AX56: 350.8349768 | AY56: 350.3459196 | AZ56: 349.7417447 | BA56: 349.2189223
A57: 3Da3 | B57: Urine and dung deposited by grazing animals
A58: 3Dc | B58: Farm-level agricultural operations including storage, handling and transport of agricultural products
A59: 3De | B59: Cultivated crops | C59: NE | D59: NE | E59: NE | F59: NE | G59: NE | H59: NE | I59: NE | J59: NE | K59: NE | L59: NE | M59: NE | N59: NE | O59: NE | P59: NE | Q59: NE | R59: NE | S59: NE | T59: NE | U59: NE | V59: NE | W59: NE | X59: NE | Y59: NE | Z59: NE | AA59: NE | AB59: NE | AC59: NE | AD59: NE | AE59: NE | AF59: NE | AG59: NE | AH59: NE | AI59: NE | AJ59: NE | AK59: NE | AL59: NE | AM59: NE | AN59: NE | AO59: NE | AP59: NE | AQ59: NE | AR59: NE | AS59: NE | AT59: NE | AU59: NE | AV59: NE | AW59: NE | AX59: NE | AY59: NE | AZ59: NE | BA59: NE
A60: 3F | B60: Field burning of agricultural residues | C60: 73.97553825 | D60: 76.91346338 | E60: 73.5383025 | F60: 80.29610213 | G60: 77.43251587 | H60: 87.63277725 | I60: 87.140997 | J60: 92.37638925 | K60: 116.2937126 | L60: 110.4724069 | M60: 108.8206762 | N60: 114.3600221 | O60: 95.13044663 | P60: 114.3622215 | Q60: 119.9002477 | R60: 121.6698649 | S60: 123.428925 | T60: 106.7990108 | U60: 98.90765325 | V60: 116.3583742 | W60: 84.850128 | X60: 83.984454 | Y60: 96.515613 | Z60: 104.3049195 | AA60: 102.7002555 | AB60: 91.5661395 | AC60: 89.4441825 | AD60: 101.4474915 | AE60: 116.7621795 | AF60: 130.987737 | AG60: 130.984218 | AH60: 113.0672546 | AI60: 112.5185707 | AJ60: 111.9712218 | AK60: 111.4348458 | AL60: 110.9265762 | AM60: 110.2358137 | AN60: 109.5477403 | AO60: 109.2251419 | AP60: 108.9025434 | AQ60: 108.7161317 | AR60: 108.5982471 | AS60: 108.4803625 | AT60: 108.362478 | AU60: 108.2445934 | AV60: 108.1267088 | AW60: 108.0088242 | AX60: 107.8909397 | AY60: 107.7730551 | AZ60: 107.6551705 | BA60: 107.5372859
A61: 3I | B61: Agriculture other
A63: 5A | B63: Solid waste disposal on land
A64: 5B | B64: Biological treatment of waste
A65: 5C | B65: Waste incineration | C65: 35.721375 | D65: 35.58017 | E65: 36.358015 | F65: 37.91961 | G65: 37.69013 | H65: 38.712175 | I65: 38.35647 | J65: 38.177315 | K65: 37.35212 | L65: 39.567331 | M65: 39.984631 | N65: 40.145059 | O65: 40.818767 | P65: 40.511229 | Q65: 41.530007 | R65: 43.296654 | S65: 48.181497 | T65: 50.753478 | U65: 51.456996 | V65: 51.981188 | W65: 53.081958 | X65: 49.501148 | Y65: 49.589541 | Z65: 49.482957 | AA65: 48.999312 | AB65: 49.873698 | AC65: 51.193804 | AD65: 51.220529 | AE65: 53.067448 | AF65: 52.408602 | AG65: 51.32929 | AH65: 52.26844667 | AI65: 52.26844667 | AJ65: 52.26844667 | AK65: 52.26844667 | AL65: 52.26844667 | AM65: 52.26844667 | AN65: 52.26844667 | AO65: 52.26844667 | AP65: 52.26844667 | AQ65: 52.26844667 | AR65: 52.26844667 | AS65: 52.26844667 | AT65: 52.26844667 | AU65: 52.26844667 | AV65: 52.26844667 | AW65: 52.26844667 | AX65: 52.26844667 | AY65: 52.26844667 | AZ65: 52.26844667 | BA65: 52.26844667
A66: 5D | B66: Wastewater handling
A67: 5E | B67: Other | C67: 51.18950737 | D67: 52.76965427 | E67: 56.93703245 | F67: 50.79318546 | G67: 51.02797645 | H67: 58.15923259 | I67: 58.78031266 | J67: 54.61712452 | K67: 49.47375377 | L67: 52.77514662 | M67: 51.80345413 | N67: 51.02086068 | O67: 49.57107139 | P67: 55.17520459 | Q67: 48.33662941 | R67: 50.10094961 | S67: 51.26133406 | T67: 53.46525291 | U67: 57.98697229 | V67: 58.50165511 | W67: 53.44702371 | X67: 52.26313388 | Y67: 50.04097043 | Z67: 50.96436471 | AA67: 48.51319006 | AB67: 50.80587869 | AC67: 57.17828747 | AD67: 54.7259803 | AE67: 56.91133358 | AF67: 52.17148946 | AG67: 52.28801842 | AH67: =AVERAGE($AE$67:$AG$67) -> 53.79028049 | AI67: =AVERAGE($AE$67:$AG$67) -> 53.79028049 | AJ67: 53.79028049 | AK67: 53.79028049 | AL67: 53.79028049 | AM67: 53.79028049 | AN67: 53.79028049 | AO67: 53.79028049 | AP67: 53.79028049 | AQ67: 53.79028049 | AR67: 53.79028049 | AS67: 53.79028049 | AT67: 53.79028049 | AU67: 53.79028049 | AV67: 53.79028049 | AW67: 53.79028049 | AX67: 53.79028049 | AY67: 53.79028049 | AZ67: 53.79028049 | BA67: 53.79028049
B68: Total | C68: =SUM(C3:C67) -> 297456.6705 | D68: 347209.5521 | E68: 303466.5028 | F68: 302436.9368 | G68: 304564.1222 | H68: 285733.4777 | I68: 319443.1162 | J68: 272646.2154 | K68: 252695.3449 | L68: 234122.4123 | M68: 221306.5226 | N68: 218441.3596 | O68: 215835.3423 | P68: 225141.8246 | Q68: 209678.0256 | R68: 201516.7992 | S68: 201272.6279 | T68: 187559.8274 | U68: 171552.1714 | V68: 152688.7768 | W68: 147921.9897 | X68: 138705.4885 | Y68: 128086.5232 | Z68: 123079.1641 | AA68: 113830.7815 | AB68: 112332.3306 | AC68: 112339.8621 | AD68: =SUM(AD3:AD67) -> 109865.9369 | AE68: =SUM(AE3:AE67) -> 104067.9716 | AF68: 96756.75917 | AG68: =SUM(AG3:AG67) -> 89024.59914 | AH68: 91878.72547 | AI68: 89155.21566 | AJ68: 85486.74357 | AK68: 82890.1151 | AL68: 79426.56275 | AM68: 76243.4698 | AN68: 72629.057 | AO68: 69590.62177 | AP68: 66316.60465 | AQ68: 63185.77641 | AR68: 60864.95763 | AS68: 58754.10745 | AT68: 55713.12969 | AU68: 54136.1509 | AV68: 52864.179 | AW68: 51558.17502 | AX68: 50311.40521 | AY68: 49114.78193 | AZ68: 48052.27861 | BA68: 47041.2362
B70: Total excluding categories 3B and 3D (NECD) | C70: =SUM(C3:C44,C60:C67) -> 271789.6141 | D70: 321765.7646 | E70: 278916.1349 | F70: 279177.0977 | G70: 281974.7475 | H70: 263795.2994 | I70: 298522.1868 | J70: 251961.2357 | K70: 232018.9593 | L70: 214374.9563 | M70: 202083.9159 | N70: 199656.3954 | O70: 197827.8095 | P70: 207667.9312 | Q70: 191912.9532 | R70: 183767.8807 | S70: 184375.2216 | T70: 170113.0949 | U70: 153285.0784 | V70: 134910.4355 | W70: 130625.7008 | X70: 121223.9038 | Y70: 110882.5048 | Z70: 105735.5592 | AA70: 96312.80019 | AB70: 94548.22164 | AC70: 93181.29381 | AD70: =SUM(AD3:AD44,AD60:AD67) -> 90252.8834 | AE70: 85366.66931 | AF70: =SUM(AF3:AF44,AF60:AF67) -> 77839.82334 | AG70: 69402.64818 | AH70: =SUM(AH3:AH44,AH60:AH67) -> 73557.59115 | AI70: 70915.04242 | AJ70: 67870.33262 | AK70: 65347.29404 | AL70: 61980.19125 | AM70: 58890.06082 | AN70: 55321.29538 | AO70: 52327.679 | AP70: 49119.83917 | AQ70: 46044.86743 | AR70: 43757.72315 | AS70: 41667.49281 | AT70: 38650.41968 | AU70: 37098.97571 | AV70: 35850.56201 | AW70: 34568.35065 | AX70: 33348.0646 | AY70: 32177.09067 | AZ70: 31140.89444 | BA70: 30155.24417
B71: Total excluding category 3D (UNECE) | C71: =SUM(C3:C53,C63:C67) -> 272715.8851 | D71: =SUM(D3:D53,D63:D67) -> 322679.3033 | E71: 279909.0437 | F71: 280186.8274 | G71: 282936.296 | H71: 264748.1857 | I71: 299472.5139 | J71: 252883.8555 | K71: 232918.0661 | L71: 215302.1163 | M71: 202991.929 | N71: 200539.1282 | O71: 198693.3504 | P71: 208413.6595 | Q71: 192617.4112 | R71: 184454.1085 | S71: 185031.1969 | T71: 170736.1052 | U71: 153852.0514 | V71: 135571.1964 | W71: 131275.7642 | X71: 121848.3345 | Y71: 111490.2298 | Z71: 106349.4619 | AA71: 96894.84483 | AB71: 95108.36302 | AC71: 93771.84576 | AD71: 90888.77821 | AE71: 85960.81727 | AF71: 78482.96714 | AG71: 70021.98692 | AH71: 74235.70792 | AI71: 71592.35411 | AJ71: 68545.94948 | AK71: 66020.64929 | AL71: 62651.57555 | AM71: 59558.67253 | AN71: 55987.70857 | AO71: 52990.9866 | AP71: 49779.89422 | AQ71: 46701.25898 | AR71: 44413.05702 | AS71: 42322.40429 | AT71: 39304.88711 | AU71: 37752.0758 | AV71: 36502.36892 | AW71: 35218.50879 | AX71: 33996.32806 | AY71: 32822.86458 | AZ71: 31784.65486 | BA71: 30796.61399
B72: Reduction since 2005 (NECD) | S72: =($R$70-S70)/$R$70 -> -0.003304935276 | T72: =($R$70-T70)/$R$70 -> 0.07430452853 | U72: 0.16587666 | V72: 0.2658649869 | W72: 0.2891810017 | X72: 0.3403422655 | Y72: 0.3966165119 | Z72: 0.4246243747 | AA72: 0.4758997065 | AB72: 0.4855019207 | AC72: 0.4929402599 | AD72: 0.5088756366 | AE72: 0.5354646905 | AF72: =($R$70-AF70)/$R$70 -> 0.5764231319 | AG72: 0.6223352638 | AH72: =($R$70-AH70)/$R$70 -> 0.5997255294 | AI72: 0.6141053477 | AJ72: 0.6306735847 | AK72: 0.6444030709 | AL72: 0.6627256568 | AM72: 0.6795410568 | AN72: 0.6989610199 | AO72: 0.7152512245 | AP72: 0.7327071576 | AQ72: 0.7494400694 | AR72: 0.761885902 | AS72: 0.7732601984 | AT72: 0.7896780464 | AU72: 0.7981204573 | AV72: 0.8049138844 | AW72: 0.8118912265 | AX72: 0.8185315928 | AY72: 0.82490362 | AZ72: 0.8305422344 | BA72: 0.8359057956
B73: Reduction since 2005 (UNECE) | S73: =($R$71-S71)/$R$71 -> -0.003128628853 | T73: =($R$71-T71)/$R$71 -> 0.07437081963 | U73: 0.1659060746 | V73: 0.2650139509 | W73: 0.2883012189 | X73: 0.3394111113 | Y73: 0.3955665679 | Z73: 0.4234367411 | AA73: 0.4746940275 | AB73: 0.4843792648 | AC73: 0.491625063 | AD73: 0.5072553333 | AE73: 0.5339717939 | AF73: 0.5745122307 | AG73: 0.6203826117 | AH73: 0.5975383333 | AI73: 0.6118690188 | AJ73: 0.6283848051 | AK73: 0.6420754743 | AL73: 0.6603405797 | AM73: 0.6771084525 | AN73: 0.6964680861 | AO73: 0.7127145226 | AP73: 0.7301231475 | AQ73: 0.7468136689 | AR73: 0.7592189332 | AS73: 0.7705532035 | AT73: 0.7869123792 | AU73: 0.7953307946 | AV73: 0.8021059589 | AW73: 0.8090662817 | AX73: 0.8156922156 | AY73: 0.8220540336 | AZ73: 0.8276825866 | BA73: 0.8330391541
A75: 1A3a | B75: Civil Aviation (Domestic Cruise) | C75: 619.3630296 | D75: 580.0770751 | E75: 563.5045754 | F75: 541.6307962 | G75: 563.134185 | H75: 571.0060722 | I75: 613.2428163 | J75: 613.8541843 | K75: 568.0467304 | L75: 522.2586343 | M75: 469.6472901 | N75: 513.6236946 | O75: 435.5610665 | P75: 478.5021956 | Q75: 453.3227263 | R75: 490.4225911 | S75: 490.161467 | T75: 538.9889301 | U75: 541.9968071 | V75: 511.5412586 | W75: 540.5200613 | X75: 524.9909878 | Y75: 455.4653401 | Z75: 456.9605644 | AA75: 481.2119585 | AB75: 450.6121833 | AC75: 466.7052886 | AD75: 488.9968122 | AE75: 482.1827091 | AF75: 491.5272057 | AG75: 246.6670751 | AH75: 475.5131706 | AI75: 480.3881149 | AJ75: 484.8175377 | AK75: 489.0654563 | AL75: 493.2798021 | AM75: 498.7587692 | AN75: 504.3781103 | AO75: 510.0736891 | AP75: 515.7033844 | AQ75: 521.49007 | AR75: 523.1470123 | AS75: 524.6680663 | AT75: 526.2595416 | AU75: 527.734843 | AV75: 529.3766588 | AW75: 530.968601 | AX75: 532.4692057 | AY75: 534.0438919 | AZ75: 535.5150778 | BA75: 537.1220714
B76: Civil Aviation (International Cruise) | C76: 6510.102286 | D76: 5975.883045 | E76: 6156.266215 | F76: 5992.755896 | G76: 6619.291752 | H76: 6743.713742 | I76: 7043.798048 | J76: 7147.419024 | K76: 7759.565628 | L76: 8247.937537 | M76: 8447.407331 | N76: 8617.056659 | O76: 7684.30651 | P76: 8288.133389 | Q76: 9536.458126 | R76: 9989.410913 | S76: 10089.62109 | T76: 10349.11905 | U76: 10262.19279 | V76: 8988.496507 | W76: 9319.324763 | X76: 9668.250323 | Y76: 9874.018131 | Z76: 9996.430164 | AA76: 11067.73547 | AB76: 10797.54102 | AC76: 11592.49037 | AD76: 12213.93161 | AE76: 12875.32483 | AF76: 13352.10745 | AG76: 4198.351725 | AH76: 5317.321892 | AI76: 13284.9734 | AJ76: 13349.53548 | AK76: 13396.68283 | AL76: 13437.81748 | AM76: 13524.72631 | AN76: 13617.8204 | AO76: 13712.46981 | AP76: 13797.64276 | AQ76: 13891.75434 | AR76: 13905.30789 | AS76: 13908.71106 | AT76: 13918.69121 | AU76: 13920.08115 | AV76: 13935.69624 | AW76: 13947.92895 | AX76: 13953.48804 | AY76: 13965.6288 | AZ76: 13970.02531 | BA76: 13986.04499

Sheet NMVOC
A1: NMVOC (tons)
C2: 1990 | D2: 1991 | E2: 1992 | F2: 1993 | G2: 1994 | H2: 1995 | I2: 1996 | J2: 1997 | K2: 1998 | L2: 1999 | M2: 2000 | N2: 2001 | O2: 2002 | P2: 2003 | Q2: 2004 | R2: 2005 | S2: 2006 | T2: 2007 | U2: 2008 | V2: 2009 | W2: 2010 | X2: 2011 | Y2: 2012 | Z2: 2013 | AA2: 2014 | AB2: 2015 | AC2: 2016 | AD2: 2017 | AE2: 2018 | AF2: 2019 | AG2: 2020 | AH2: 2021 | AI2: 2022 | AJ2: 2023 | AK2: 2024 | AL2: 2025 | AM2: 2026 | AN2: 2027 | AO2: 2028 | AP2: 2029 | AQ2: 2030 | AR2: 2031 | AS2: 2032 | AT2: 2033 | AU2: 2034 | AV2: 2035 | AW2: 2036 | AX2: 2037 | AY2: 2038 | AZ2: 2039 | BA2: 2040
A3: 1A1a | B3: Public power and district heating plants | C3: 389.3975484 | D3: 542.8418139 | E3: 583.0463483 | F3: 953.4888176 | G3: 1685.955114 | H3: 2842.895878 | I3: 3646.643529 | J3: 3427.881551 | K3: 3712.149487 | L3: 3711.640662 | M3: 3519.557849 | N3: 3630.029871 | O3: 3462.456227 | P3: 3245.570453 | Q3: 3051.570468 | R3: 2573.452203 | S3: 2474.258472 | T3: 2055.436244 | U3: 2149.730158 | V3: 1902.311126 | W3: 2370.976727 | X3: 1986.332063 | Y3: 1419.764974 | Z3: 1277.864222 | AA3: 923.510661 | AB3: 776.7985275 | AC3: 916.1198485 | AD3: 965.9680462 | AE3: 1073.191955 | AF3: 1079.517947 | AG3: 814.2095381 | AH3: 1261.418255 | AI3: 1079.993595 | AJ3: 1191.559383 | AK3: 1309.465449 | AL3: 1360.480891 | AM3: 1280.805297 | AN3: 1169.076995 | AO3: 1062.148074 | AP3: 947.4509903 | AQ3: 807.9778767 | AR3: 752.260275 | AS3: 731.2116193 | AT3: 703.7850861 | AU3: 702.3135474 | AV3: 696.0906081 | AW3: 657.6255533 | AX3: 632.1393053 | AY3: 614.3511965 | AZ3: 598.971081 | BA3: 575.1444751
A4: 1A1b | B4: Petroleum refining plants | C4: 22.85531672 | D4: 25.45206003 | E4: 29.83071142 | F4: 29.4756065 | G4: 30.62430538 | H4: 34.57940938 | I4: 35.11534062 | J4: 27.35496321 | K4: 23.82205575 | L4: 24.51918979 | M4: 24.8216637 | N4: 25.3763359 | O4: 24.409872 | P4: 25.26507312 | Q4: 24.71914222 | R4: 23.07620641 | S4: 23.99415821 | T4: 24.17998168 | U4: 21.75048784 | V4: 22.63851281 | W4: 21.02431902 | X4: 20.36245266 | Y4: 22.64492541 | Z4: 22.16996553 | AA4: 22.59663374 | AB4: 24.07236266 | AC4: 21.35290186 | AD4: 23.09115385 | AE4: 22.86856195 | AF4: 23.85785352 | AG4: 22.93365933 | AH4: 23.93098516 | AI4: 23.93114812 | AJ4: 23.93067692 | AK4: 23.93096003 | AL4: 23.9310281 | AM4: 23.9298503 | AN4: 23.93062826 | AO4: 23.93093486 | AP4: 23.93060734 | AQ4: 23.92883237 | AR4: 23.92852269 | AS4: 23.92763715 | AT4: 23.92755638 | AU4: 23.92654702 | AV4: 23.92685996 | AW4: 23.92859445 | AX4: 23.92823095 | AY4: 23.92840251 | AZ4: 23.92863898 | BA4: 23.92803142
A5: 1A1c | B5: Oil and gas extraction | C5: 13.33232834 | D5: 13.64068168 | E5: 15.62953382 | F5: 15.7966151 | G5: 17.35139897 | H5: 18.35272526 | I5: 21.62767221 | J5: 28.17386745 | K5: 31.25049822 | L5: 33.98800502 | M5: 35.96133881 | N5: 35.13722133 | O5: 40.30084413 | P5: 40.29320888 | Q5: 44.29718812 | R5: 45.37997231 | S5: 46.44556323 | T5: 45.95799224 | U5: 47.09404504 | V5: 44.30412162 | W5: 43.59127998 | X5: 42.00780069 | Y5: 41.81146531 | Z5: 40.37789973 | AA5: 38.55337763 | AB5: 40.13276674 | AC5: 37.1437979 | AD5: 38.07285325 | AE5: 35.32610708 | AF5: 34.05329602 | AG5: 24.70267851 | AH5: 34.08121166 | AI5: 31.61665531 | AJ5: 33.85212195 | AK5: 42.25958609 | AL5: 36.03852933 | AM5: 33.88960231 | AN5: 34.93492424 | AO5: 33.29963092 | AP5: 32.3309391 | AQ5: 30.72371997 | AR5: 29.09689984 | AS5: 27.64567087 | AT5: 26.40083199 | AU5: 25.18507785 | AV5: 25.57373494 | AW5: 24.34503348 | AX5: 22.78287821 | AY5: 21.17781238 | AZ5: 19.56632534 | BA5: 18.04827796
A7: 1A2a-f i | B7: Combustion in manufacturing industry | C7: 1951.016786 | D7: 1942.88384 | E7: 1954.552111 | F7: 1994.814473 | G7: 1665.345648 | H7: 1594.292542 | I7: 1598.46947 | J7: 1539.312997 | K7: 1516.117205 | L7: 1262.880358 | M7: 1218.162446 | N7: 1162.131064 | O7: 979.6385466 | P7: 1010.003567 | Q7: 1006.701767 | R7: 921.4855295 | S7: 958.8853408 | T7: 1076.657787 | U7: 1347.561662 | V7: 1217.202984 | W7: 1145.029707 | X7: 1287.511062 | Y7: 873.9315461 | Z7: 687.8125591 | AA7: 563.9162591 | AB7: 629.6057977 | AC7: 557.4465035 | AD7: 735.6981195 | AE7: 710.047321 | AF7: 674.0507061 | AG7: 645.2082747 | AH7: 753.7067183 | AI7: 763.9483737 | AJ7: 773.6540671 | AK7: 783.4222225 | AL7: 793.1386403 | AM7: 790.9789155 | AN7: 788.8689032 | AO7: 786.8598744 | AP7: 784.8859297 | AQ7: 782.8074483 | AR7: 825.2465618 | AS7: 867.8778957 | AT7: 910.5790985 | AU7: 953.039411 | AV7: 995.6367484 | AW7: 1012.939055 | AX7: 1030.221773 | AY7: 1047.66136 | AZ7: 1065.630437 | BA7: 1083.615245
A8: 1A2f ii | B8: Industry - Other (mobile) | C8: 1705.579941 | D8: 1642.343837 | E8: 1574.909531 | F8: 1517.400024 | G8: 1463.837537 | H8: 1417.717113 | I8: 1379.143755 | J8: 1347.351625 | K8: 1317.948593 | L8: 1277.41271 | M8: 1227.967105 | N8: 1183.804543 | O8: 1135.860127 | P8: 1088.676034 | Q8: 1045.316463 | R8: 1013.450017 | S8: 999.1442652 | T8: 989.3399406 | U8: 967.2753386 | V8: 703.2221932 | W8: 866.679511 | X8: 810.7102437 | Y8: 759.5329099 | Z8: 712.3351648 | AA8: 670.1749631 | AB8: 630.4442884 | AC8: 592.6983393 | AD8: 558.4787842 | AE8: 530.7637702 | AF8: 500.4187386 | AG8: 477.0828444 | AH8: 257.4543174 | AI8: 243.6695524 | AJ8: 231.9781377 | AK8: 221.3431379 | AL8: 216.0173819 | AM8: 205.6635195 | AN8: 196.0228903 | AO8: 187.069315 | AP8: 180.2659688 | AQ8: 174.286967 | AR8: 170.3116762 | AS8: 166.8509225 | AT8: 163.7456851 | AU8: 160.7990572 | AV8: 157.8731581 | AW8: 156.135451 | AX8: 154.4276519 | AY8: 152.743928 | AZ8: 151.0703051 | BA8: 149.427349
A10: 1A3a | B10: Civil Aviation (Domestic LTO) | C10: 68.31097157 | D10: 64.18123133 | E10: 57.4649372 | F10: 56.99871643 | G10: 67.37611152 | H10: 72.22640849 | I10: 67.67850125 | J10: 65.29269401 | K10: 59.64525611 | L10: 59.05993831 | M10: 55.85752205 | N10: 54.64292334 | O10: 51.50601295 | P10: 49.41590046 | Q10: 55.62786182 | R10: 66.73601747 | S10: 61.30818921 | T10: 60.89047635 | U10: 53.61321982 | V10: 47.37565417 | W10: 40.61739857 | X10: 31.98733798 | Y10: 34.11848099 | Z10: 36.13199449 | AA10: 25.01236235 | AB10: 25.35291875 | AC10: 27.8823913 | AD10: 21.39312023 | AE10: 28.91736378 | AF10: 24.55344357 | AG10: 22.10388063 | AH10: 58.00214627 | AI10: 58.64789404 | AJ10: 59.30649376 | AK10: 59.96814716 | AL10: 60.63604342 | AM10: 61.43635954 | AN10: 62.2491282 | AO10: 63.07232913 | AP10: 63.90305623 | AQ10: 64.74359868 | AR10: 65.01152118 | AS10: 65.27585632 | AT10: 65.53937221 | AU10: 65.79964306 | AV10: 66.06067473 | AW10: 66.31969208 | AX10: 66.57599516 | AY10: 66.83212221 | AZ10: 67.08554363 | BA10: 67.33954233
A11: 1A3a | B11: Civil Aviation (International LTO) | C11: 77.25411537 | D11: 74.36176319 | E11: 74.25880216 | F11: 73.59805245 | G11: 66.76379634 | H11: 70.17216102 | I11: 70.29910617 | J11: 75.20730225 | K11: 80.86699095 | L11: 89.79490319 | M11: 94.11364141 | N11: 95.40579909 | O11: 82.76262462 | P11: 80.33690402 | Q11: 83.52139921 | R11: 99.57214812 | S11: 105.6219176 | T11: 103.1945663 | U11: 109.2309696 | V11: 90.80703817 | W11: 96.6784806 | X11: 88.54642075 | Y11: 82.34771256 | Z11: 90.93233842 | AA11: 92.58558392 | AB11: 91.45834754 | AC11: 100.7235944 | AD11: 99.91577266 | AE11: 108.0519765 | AF11: 105.1043785 | AG11: 31.59445706 | AH11: 40.01520339 | AI11: 99.97531149 | AJ11: 100.4611698 | AK11: 100.8159745 | AL11: 101.125531 | AM11: 101.7795584 | AN11: 102.4801327 | AO11: 103.1924114 | AP11: 103.8333757 | AQ11: 104.5416069 | AR11: 104.6436034 | AS11: 104.6692138 | AT11: 104.7443189 | AU11: 104.7547788 | AV11: 104.8722892 | AW11: 104.9643458 | AX11: 105.0061804 | AY11: 105.097545 | AZ11: 105.1306307 | BA11: 105.2511859
A12: 1A3bi | B12: Road transport: Passenger cars | C12: 41363.04604 | D12: 43683.53695 | E12: 43123.85399 | F12: 42887.39724 | G12: 40717.82751 | H12: 38885.10529 | I12: 37912.4512 | J12: 34552.50336 | K12: 32111.92944 | L12: 28354.73872 | M12: 25677.72425 | N12: 24182.23207 | O12: 21856.67096 | P12: 20571.38543 | Q12: 17690.77363 | R12: 16355.34227 | S12: 14158.70074 | T12: 12555.65114 | U12: 11249.39078 | V12: 9902.35029 | W12: 9446.864855 | X12: 7417.311327 | Y12: 6573.293448 | Z12: 5795.796978 | AA12: 4918.110146 | AB12: 4611.531759 | AC12: 4123.822442 | AD12: 3911.090374 | AE12: 3554.895987 | AF12: 3336.910028 | AG12: 2903.392122 | AH12: 3182.835251 | AI12: 3012.906915 | AJ12: 2897.79859 | AK12: 2784.951626 | AL12: 2678.418742 | AM12: 2585.857324 | AN12: 2503.415756 | AO12: 2429.670779 | AP12: 2361.82002 | AQ12: 2298.165993 | AR12: 2228.951742 | AS12: 2131.634999 | AT12: 2028.835028 | AU12: 1922.352317 | AV12: 1813.846939 | AW12: 1704.758793 | AX12: 1595.784133 | AY12: 1488.126074 | AZ12: 1384.538902 | BA12: 1278.36842
A13: 1A3bii | B13: Road transport: Light duty vehicles | C13: 2499.482947 | D13: 2698.858333 | E13: 2748.803189 | F13: 2918.700223 | G13: 2953.635577 | H13: 2880.842369 | I13: 2814.496884 | J13: 2578.680202 | K13: 2546.866441 | L13: 2458.742232 | M13: 2354.716193 | N13: 2513.687644 | O13: 2305.775283 | P13: 2230.148609 | Q13: 2088.241591 | R13: 2012.372408 | S13: 1913.521987 | T13: 1736.372187 | U13: 1573.23958 | V13: 1314.564183 | W13: 1247.004969 | X13: 969.6903582 | Y13: 825.9593806 | Z13: 690.7257145 | AA13: 553.7407407 | AB13: 485.4994748 | AC13: 407.9757148 | AD13: 343.1192109 | AE13: 279.2398081 | AF13: 217.9771426 | AG13: 166.5662033 | AH13: 163.6719726 | AI13: 136.1334702 | AJ13: 113.7079298 | AK13: 96.23818734 | AL13: 82.19450632 | AM13: 71.4075152 | AN13: 62.82899087 | AO13: 56.26945296 | AP13: 51.00833792 | AQ13: 46.82957761 | AR13: 43.3299666 | AS13: 40.36922842 | AT13: 37.73253285 | AU13: 35.34490894 | AV13: 33.13111462 | AW13: 31.11595792 | AX13: 29.28101957 | AY13: 27.61990411 | AZ13: 26.10268218 | BA13: 24.68222347
A14: 1A3biii | B14: Road transport: Heavy duty vehicles and buses | C14: 2482.947671 | D14: 2529.424975 | E14: 2430.113961 | F14: 2343.282176 | G14: 2411.463455 | H14: 2344.897652 | I14: 2256.697506 | J14: 2111.598699 | K14: 1944.126876 | L14: 1810.392483 | M14: 1617.864515 | N14: 1538.862455 | O14: 1434.958779 | P14: 1435.240375 | Q14: 1412.655057 | R14: 1358.299306 | S14: 1322.581607 | T14: 1202.516917 | U14: 947.8601279 | V14: 726.6472974 | W14: 682.8061733 | X14: 578.5243881 | Y14: 454.6977748 | Z14: 376.5512991 | AA14: 337.9803398 | AB14: 298.7967564 | AC14: 266.0244753 | AD14: 234.1580972 | AE14: 211.4312511 | AF14: 188.0558849 | AG14: 160.2689981 | AH14: 160.861198 | AI14: 152.4175468 | AJ14: 146.3085047 | AK14: 141.8156833 | AL14: 138.4646466 | AM14: 135.8401062 | AN14: 133.6325207 | AO14: 131.7060094 | AP14: 129.9809841 | AQ14: 128.2310996 | AR14: 126.2851139 | AS14: 124.145914 | AT14: 121.8154428 | AU14: 119.3085283 | AV14: 116.6683203 | AW14: 114.2323967 | AX14: 112.2732231 | AY14: 110.767532 | AZ14: 109.6745021 | BA14: 108.9415577
A15: 1A3biv | B15: Road transport: Mopeds & motorcycles | C15: 2012.441898 | D15: 2064.64306 | E15: 2118.186902 | F15: 2149.269373 | G15: 2182.901847 | H15: 2374.567092 | I15: 2619.10119 | J15: 3056.738615 | K15: 3511.871184 | L15: 3454.034328 | M15: 3391.283942 | N15: 2835.098839 | O15: 2847.56906 | P15: 2769.147085 | Q15: 2622.932673 | R15: 2491.083623 | S15: 2403.975969 | T15: 2311.493829 | U15: 2140.39822 | V15: 1962.980983 | W15: 1787.821707 | X15: 1680.592545 | Y15: 1595.948554 | Z15: 1522.72052 | AA15: 1452.708278 | AB15: 1367.51843 | AC15: 1263.676564 | AD15: 1174.73775 | AE15: 1073.981404 | AF15: 948.3716375 | AG15: 871.9205212 | AH15: 820.2992813 | AI15: 766.8625803 | AJ15: 717.850789 | AK15: 676.8182434 | AL15: 638.73229 | AM15: 603.5002264 | AN15: 570.8325463 | AO15: 540.398014 | AP15: 511.9816176 | AQ15: 485.3352106 | AR15: 468.4501274 | AS15: 452.4439855 | AT15: 437.2496738 | AU15: 422.6707722 | AV15: 413.4888637 | AW15: 404.4620163 | AX15: 396.3289299 | AY15: 388.313047 | AZ15: 380.3738704 | BA15: 372.6315413
A16: 1A3bv | B16: Road transport: Gasoline evaporation | C16: 15864.59232 | D16: 15867.99426 | E16: 15574.91306 | F16: 15010.30684 | G16: 14071.86367 | H16: 13018.22862 | I16: 11874.51273 | J16: 10828.00334 | K16: 9657.690938 | L16: 8473.853528 | M16: 7457.771655 | N16: 6682.517779 | O16: 5949.598775 | P16: 5229.541366 | Q16: 4487.862485 | R16: 3750.5127 | S16: 3173.19613 | T16: 2732.730411 | U16: 2330.387019 | V16: 2030.973771 | W16: 1861.036069 | X16: 1593.273017 | Y16: 1461.316341 | Z16: 1390.668778 | AA16: 1354.028641 | AB16: 1334.804591 | AC16: 1326.903379 | AD16: 1331.860522 | AE16: 1334.566815 | AF16: 1338.647979 | AG16: 1331.433695 | AH16: 1344.328233 | AI16: 1328.134345 | AJ16: 1311.643604 | AK16: 1290.751729 | AL16: 1268.645465 | AM16: 1246.948926 | AN16: 1226.076959 | AO16: 1205.511151 | AP16: 1184.784431 | AQ16: 1163.403396 | AR16: 1139.845457 | AS16: 1112.809351 | AT16: 1084.673578 | AU16: 1055.200304 | AV16: 1024.848328 | AW16: 992.7782757 | AX16: 960.4478988 | AY16: 928.0007147 | AZ16: 896.5595256 | BA16: 864.0610665
A17: 1A3bvi | B17: Road transport: Automobile tyre and brake wear
A18: 1A3bvii | B18: Road transport: Automobile road abrasion
A19: 1A3c | B19: Railways | C19: 320.5432081 | D19: 325.905388 | E19: 344.7624888 | F19: 357.8504451 | G19: 324.3464929 | H19: 327.1988762 | I19: 324.7244332 | J19: 316.1739009 | K19: 266.7899233 | L19: 275.6843508 | M19: 252.8436095 | N19: 248.0317686 | O19: 242.989029 | P19: 223.0127313 | Q19: 217.4884778 | R19: 235.2432288 | S19: 229.7205565 | T19: 230.5567839 | U19: 204.5387514 | V19: 173.8677627 | W19: 189.1009776 | X19: 175.247458 | Y19: 190.1168358 | Z19: 164.4554323 | AA19: 160.7719069 | AB19: 138.4970431 | AC19: 131.949733 | AD19: 109.5055898 | AE19: 93.29790727 | AF19: 84.64138034 | AG19: 72.95359139 | AH19: 78.77963308 | AI19: 79.0537892 | AJ19: 76.78852533 | AK19: 74.52338819 | AL19: 74.34346426 | AM19: 74.27619435 | AN19: 29.4047241 | AO19: 26.84100947 | AP19: 9.566995731 | AQ19: 7.653596585 | AR19: 0 | AS19: 0 | AT19: 0 | AU19: 0 | AV19: 0 | AW19: 0 | AX19: 0 | AY19: 0 | AZ19: 0 | BA19: 0
A20: 1A3d | B20: Navigation | C20: 483.0226456 | D20: 549.7139638 | E20: 557.1351772 | F20: 500.4139483 | G20: 467.0182796 | H20: 490.5578445 | I20: 559.5035432 | J20: 542.579725 | K20: 471.2323268 | L20: 414.3407132 | M20: 433.6939343 | N20: 461.8042758 | O20: 513.0772459 | P20: 510.6691127 | Q20: 455.3502609 | R20: 524.1479395 | S20: 490.9968318 | T20: 445.5617556 | U20: 549.5864345 | V20: 517.4618304 | W20: 462.1897726 | X20: 445.1635785 | Y20: 452.6077027 | Z20: 451.5252394 | AA20: 361.9883053 | AB20: 430.9550763 | AC20: 474.7463544 | AD20: 501.0829677 | AE20: 476.8762217 | AF20: 384.2405751 | AG20: 387.9645023 | AH20: 416.9097767 | AI20: 417.1646174 | AJ20: 416.613682 | AK20: 415.8581724 | AL20: 415.0450753 | AM20: 414.3493921 | AN20: 413.2675981 | AO20: 412.2651013 | AP20: 411.0141078 | AQ20: 409.5651485 | AR20: 408.9909506 | AS20: 408.4594086 | AT20: 407.8766119 | AU20: 407.2973426 | AV20: 406.6945502 | AW20: 406.1466669 | AX20: 405.5974899 | AY20: 405.0470147 | AZ20: 393.3986393 | BA20: 392.9056699
A22: 1A4a i | B22: Commercial and institutional plants | C22: 351.3907808 | D22: 315.388039 | E22: 304.4716444 | F22: 326.6595897 | G22: 332.36513 | H22: 337.0624065 | I22: 347.6247172 | J22: 343.8881105 | K22: 325.0789384 | L22: 333.6074288 | M22: 312.8516359 | N22: 293.8500668 | O22: 281.9882927 | P22: 272.5827195 | Q22: 257.2458795 | R22: 234.3841825 | S22: 225.9941904 | T22: 205.9783097 | U22: 204.9863046 | V22: 200.70691 | W22: 199.1965613 | X22: 160.05819 | Y22: 154.5665697 | Z22: 144.6983259 | AA22: 124.4804895 | AB22: 127.6695207 | AC22: 159.7635113 | AD22: 158.0800148 | AE22: 166.6777119 | AF22: 151.830079 | AG22: 138.7185025 | AH22: 90.45672846 | AI22: 89.32802066 | AJ22: 88.18419993 | AK22: 87.03458699 | AL22: 85.89270385 | AM22: 82.0232814 | AN22: 78.16704254 | AO22: 74.31239325 | AP22: 70.44565532 | AQ22: 66.54668323 | AR22: 64.05429978 | AS22: 61.61528652 | AT22: 59.17629312 | AU22: 56.73727574 | AV22: 54.29830815 | AW22: 52.78300253 | AX22: 51.32996688 | AY22: 49.8769332 | AZ22: 48.42390075 | BA22: 46.97086391
A23: 1A4a ii | B23: Commercial and institutional (mobile) | C23: 845.3065322 | D23: 804.1827909 | E23: 766.3643254 | F23: 764.3435737 | G23: 771.0784528 | H23: 793.4821968 | I23: 814.5739605 | J23: 844.8094221 | K23: 873.1170907 | L23: 899.3375133 | M23: 919.9881829 | N23: 1080.080481 | O23: 1208.577286 | P23: 1281.758599 | Q23: 1378.430301 | R23: 1472.319982 | S23: 1691.426111 | T23: 1779.952655 | U23: 1632.775838 | V23: 1273.682465 | W23: 1107.141783 | X23: 1065.144646 | Y23: 995.4731636 | Z23: 966.0842068 | AA23: 971.1539536 | AB23: 935.4973715 | AC23: 918.7964548 | AD23: 920.4558686 | AE23: 895.09463 | AF23: 809.7135298 | AG23: 762.1245118 | AH23: 30.87093801 | AI23: 27.76209358 | AJ23: 24.92889864 | AK23: 22.27194947 | AL23: 19.88453109 | AM23: 16.33559569 | AN23: 13.14971712 | AO23: 10.19528133 | AP23: 7.464911691 | AQ23: 4.878702993 | AR23: 4.07101297 | AS23: 3.292163386 | AT23: 2.546094129 | AU23: 1.819077374 | AV23: 1.11085215 | AW23: 1.000327257 | AX23: 0.8939659912 | AY23: 0.791972558 | AZ23: 0.6941363605 | BA23: 0.5998632821
A24: 1A4b i | B24: Residential plants | C24: 11928.85391 | D24: 13292.08939 | E24: 13151.58018 | F24: 13909.85706 | G24: 13128.81427 | H24: 12770.99418 | I24: 12867.15407 | J24: 12539.20662 | K24: 11154.93311 | L24: 10618.61208 | M24: 11678.89169 | N24: 12123.32689 | O24: 11851.74594 | P24: 13065.29791 | Q24: 13352.33107 | R24: 14453.2455 | S24: 14969.60369 | T24: 18024.68645 | U24: 16924.83289 | V24: 15757.63355 | W24: 16058.29338 | X24: 13996.65 | Y24: 13043.04503 | Z24: 12645.63852 | AA24: 11224.35706 | AB24: 12427.2708 | AC24: 12289.44029 | AD24: 10925.63578 | AE24: 9326.718897 | AF24: 7995.872094 | AG24: 7324.149218 | AH24: 7528.214973 | AI24: 7154.259802 | AJ24: 6803.194969 | AK24: 6473.114635 | AL24: 6163.629308 | AM24: 5862.876813 | AN24: 5589.247559 | AO24: 5322.135273 | AP24: 5061.266884 | AQ24: 4806.300953 | AR24: 4625.145526 | AS24: 4449.644335 | AT24: 4279.582872 | AU24: 4114.963692 | AV24: 3955.683519 | AW24: 3706.093573 | AX24: 3465.258434 | AY24: 3232.990961 | AZ24: 3007.422316 | BA24: 2787.958122
A25: 1A4b ii | B25: Residential (mobile) | C25: 1222.707067 | D25: 1233.111732 | E25: 1219.553849 | F25: 1210.001635 | G25: 1206.375259 | H25: 1207.770224 | I25: 1220.523652 | J25: 1241.942646 | K25: 1265.512127 | L25: 1290.012591 | M25: 1314.811068 | N25: 1332.701082 | O25: 1344.88044 | P25: 1358.936547 | Q25: 1375.972028 | R25: 1390.5485 | S25: 1447.881779 | T25: 1494.711304 | U25: 1467.497918 | V25: 1319.237378 | W25: 1200.937828 | X25: 1110.355812 | Y25: 1053.415881 | Z25: 1013.453591 | AA25: 992.6412454 | AB25: 974.7047624 | AC25: 960.918408 | AD25: 944.8445225 | AE25: 903.4220477 | AF25: 825.7566606 | AG25: 764.1376661 | AH25: 1513.418755 | AI25: 1454.888971 | AJ25: 1399.057631 | AK25: 1342.989024 | AL25: 1285.099376 | AM25: 1227.476769 | AN25: 1171.415839 | AO25: 1114.00507 | AP25: 1059.748188 | AQ25: 1001.947017 | AR25: 953.4047573 | AS25: 913.9452274 | AT25: 883.7353906 | AU25: 861.9719744 | AV25: 847.0628642 | AW25: 837.422906 | AX25: 831.5842937 | AY25: 828.0901701 | AZ25: 825.7474911 | BA25: 823.7480446
A26: 1A4c i | B26: Plants in agriculture, forestry and aquaculture | C26: 2425.32381 | D26: 2469.239497 | E26: 2416.806913 | F26: 2264.739946 | G26: 2163.334854 | H26: 2125.612976 | I26: 2087.254699 | J26: 2232.758325 | K26: 2256.648197 | L26: 2108.524103 | M26: 1917.553045 | N26: 1789.920785 | O26: 1751.560056 | P26: 1723.356022 | Q26: 1724.746257 | R26: 1678.221125 | S26: 1601.259463 | T26: 1540.478079 | U26: 1499.298115 | V26: 1383.205288 | W26: 1467.719093 | X26: 1433.476948 | Y26: 1382.858506 | Z26: 1414.013348 | AA26: 1336.357654 | AB26: 1334.165273 | AC26: 1343.205088 | AD26: 1318.105944 | AE26: 1319.8263 | AF26: 1278.038804 | AG26: 1231.718658 | AH26: 1279.625665 | AI26: 1274.04258 | AJ26: 1271.126132 | AK26: 1269.525466 | AL26: 1267.924711 | AM26: 1264.175523 | AN26: 1260.426458 | AO26: 1256.677466 | AP26: 1252.928452 | AQ26: 1249.17737 | AR26: 1247.122194 | AS26: 1245.067862 | AT26: 1243.013791 | AU26: 1240.958742 | AV26: 1238.904455 | AW26: 1237.731017 | AX26: 1237.133348 | AY26: 1236.475962 | AZ26: 1235.878468 | BA26: 1235.280774
A27: 1A4c ii | B27: Agriculture & forestry (mobile) | C27: 4652.062576 | D27: 4363.452783 | E27: 4038.802275 | F27: 3779.607168 | G27: 3578.710491 | H27: 3488.333788 | I27: 3296.907822 | J27: 3168.57923 | K27: 2970.774938 | L27: 2820.23987 | M27: 2681.184761 | N27: 2567.06959 | O27: 2430.417012 | P27: 2235.282448 | Q27: 2058.219678 | R27: 1993.461554 | S27: 1938.312415 | T27: 1898.180483 | U27: 1852.56729 | V27: 1729.375895 | W27: 1580.89271 | X27: 1423.295238 | Y27: 1348.272852 | Z27: 1271.751318 | AA27: 1201.898167 | AB27: 1131.120732 | AC27: 1077.21959 | AD27: 1032.69438 | AE27: 990.9701321 | AF27: 951.4613491 | AG27: 912.6914691 | AH27: 553.5809932 | AI27: 533.735676 | AJ27: 509.685192 | AK27: 486.0560265 | AL27: 462.8184859 | AM27: 436.3309216 | AN27: 413.4714529 | AO27: 394.1672522 | AP27: 377.2126333 | AQ27: 360.4048685 | AR27: 347.440629 | AS27: 333.5610169 | AT27: 319.9940859 | AU27: 307.8722701 | AV27: 294.5229244 | AW27: 286.9951368 | AX27: 280.1936934 | AY27: 274.1827806 | AZ27: 269.488269 | BA27: 265.7125671
A28: 1A4c iii | B28: Fishing (mobile) | C28: 362.0417851 | D28: 375.6359401 | E28: 344.9065188 | F28: 326.5773582 | G28: 330.3456464 | H28: 333.5457098 | I28: 310.585763 | J28: 248.3731834 | K28: 258.6067099 | L28: 292.8954648 | M28: 384.8619734 | N28: 364.7384691 | O28: 363.0108076 | P28: 342.8906061 | Q28: 293.4453673 | R28: 294.9457544 | S28: 299.9113115 | T28: 281.6784794 | U28: 255.5932389 | V28: 249.1637003 | W28: 252.5780779 | X28: 238.6589164 | Y28: 184.1589459 | Z28: 213.3983546 | AA28: 196.2329246 | AB28: 217.2543628 | AC28: 215.7981117 | AD28: 202.7109017 | AE28: 192.2699718 | AF28: 197.4833592 | AG28: 191.223851 | AH28: 192.0154193 | AI28: 188.612342 | AJ28: 185.0982167 | AK28: 181.3755546 | AL28: 177.6092716 | AM28: 174.8984548 | AN28: 172.2210949 | AO28: 169.5227962 | AP28: 166.7293949 | AQ28: 163.9463999 | AR28: 161.2082669 | AS28: 158.4898307 | AT28: 155.8445143 | AU28: 153.1233869 | AV28: 150.3164084 | AW28: 150.428236 | AX28: 150.4577585 | AY28: 150.4398587 | AZ28: 150.3841112 | BA28: 150.2061064
A30: 1A5b | B30: Other mobile (military and recreational crafts) | C30: 1162.297639 | D30: 1298.204307 | E30: 1255.580508 | F30: 1317.942309 | G30: 1347.652147 | H30: 1404.18621 | I30: 1380.345291 | J30: 1410.806117 | K30: 1432.949635 | L30: 1427.665072 | M30: 1366.698731 | N30: 1342.283718 | O30: 1297.248172 | P30: 1248.88521 | Q30: 1238.428917 | R30: 1141.948023 | S30: 959.5604046 | T30: 857.8295258 | U30: 726.9101427 | V30: 645.8512205 | W30: 548.7174916 | X30: 498.4026091 | Y30: 413.318828 | Z30: 373.0592553 | AA30: 334.628438 | AB30: 301.2694599 | AC30: 295.4124252 | AD30: 303.4632988 | AE30: 272.4734725 | AF30: 267.809655 | AG30: 271.8624725 | AH30: 250.7339263 | AI30: 244.1412384 | AJ30: 237.568225 | AK30: 231.0220363 | AL30: 224.4965326 | AM30: 217.9882129 | AN30: 214.7615724 | AO30: 211.5450283 | AP30: 208.3359431 | AQ30: 205.1329022 | AR30: 201.9349811 | AS30: 201.9396767 | AT30: 201.9474956 | AU30: 201.9578734 | AV30: 201.9706972 | AW30: 201.9856356 | AX30: 202.0027839 | AY30: 202.0216949 | AZ30: 202.0418412 | BA30: 202.0628277
A32: 1B1 | B32: Fugitive emissions from solid fuels
A33: 1B2a | B33: Fugitive emissions from oil | C33: 12654.1605 | D33: 12915.67149 | E33: 13320.41627 | F33: 12887.79489 | G33: 13123.70347 | H33: 13124.7209 | I33: 13625.98775 | J33: 13322.04411 | K33: 13622.71852 | L33: 16498.25524 | M33: 20047.6849 | N33: 18492.03113 | O33: 19553.46935 | P33: 19412.20262 | Q33: 20600.03616 | R33: 19890.35451 | S33: 19618.15924 | T33: 18176.62675 | U33: 17243.96751 | V33: 14955.63262 | W33: 13379.75544 | X33: 12615.22354 | Y33: 11511.8795 | Z33: 10976.54359 | AA33: 10702.09579 | AB33: 10265.51975 | AC33: 9549.723356 | AD33: 8751.075908 | AE33: 7245.181105 | AF33: 7015.194442 | AG33: 6818.239677 | AH33: 6877.899145 | AI33: 6819.926519 | AJ33: 6954.13593 | AK33: 7271.055736 | AL33: 7185.097624 | AM33: 7254.421326 | AN33: 7587.590761 | AO33: 7484.75114 | AP33: 7398.368654 | AQ33: 7338.403036 | AR33: 7239.130567 | AS33: 7126.349584 | AT33: 7037.114348 | AU33: 6946.701496 | AV33: 6890.963655 | AW33: 6830.451022 | AX33: 6736.62456 | AY33: 6635.945116 | AZ33: 6546.371939 | BA33: 6441.736903
A34: 1B2b | B34: Fugitive emissions from gas | C34: 613.5853396 | D34: 733.3954251 | E34: 719.179913 | F34: 749.1286526 | G34: 733.8207829 | H34: 849.1666126 | I34: 859.5561718 | J34: 1049.633936 | K34: 1110.386916 | L34: 1173.724594 | M34: 1194.485588 | N34: 1184.66206 | O34: 1167.549124 | P34: 1076.163695 | Q34: 1178.336846 | R34: 1205.330489 | S34: 1133.742518 | T34: 1054.071166 | U34: 986.5586481 | V34: 866.8137416 | W34: 834.8880026 | X34: 699.8538512 | Y34: 604.6140319 | Z34: 520.296485 | AA34: 538.2402483 | AB34: 509.3141196 | AC34: 503.1520552 | AD34: 518.094768 | AE34: 462.0657071 | AF34: 350.2859336 | AG34: 165.4499275 | AH34: 115.4809956 | AI34: 104.1723706 | AJ34: 176.0969159 | AK34: 311.9010945 | AL34: 294.2664927 | AM34: 296.9104012 | AN34: 330.2046229 | AO34: 302.4407176 | AP34: 279.5444321 | AQ34: 264.2301175 | AR34: 236.5572074 | AS34: 215.7540562 | AT34: 200.8751312 | AU34: 177.8738895 | AV34: 194.3902561 | AW34: 174.2686982 | AX34: 158.2020207 | AY34: 142.6790928 | AZ34: 132.8776551 | BA34: 123.0936385
A35: 1B2c | B35: Fugitive emissions from venting and flaring | C35: 206.5510545 | D35: 376.3470641 | E35: 387.1452638 | F35: 340.9852387 | G35: 350.8660563 | H35: 288.0913473 | I35: 323.8494541 | J35: 419.2383463 | K35: 316.5509478 | L35: 615.4248593 | M35: 422.8877431 | N35: 440.8338437 | O35: 383.7551484 | P35: 386.8209966 | Q35: 437.6342808 | R35: 321.3853114 | S35: 319.8100985 | T35: 330.3476588 | U35: 266.1405225 | V35: 179.9314452 | W35: 225.3355012 | X35: 164.2457851 | Y35: 157.7810956 | Z35: 169.3959437 | AA35: 172.522541 | AB35: 159.5122116 | AC35: 176.4045513 | AD35: 170.5806748 | AE35: 161.0694489 | AF35: 133.0444884 | AG35: 89.77556722 | AH35: 94.61603822 | AI35: 102.4493125 | AJ35: 108.9867786 | AK35: 108.9830334 | AL35: 75.72512752 | AM35: 73.52208909 | AN35: 79.51246619 | AO35: 81.29836606 | AP35: 83.49982872 | AQ35: 86.79436161 | AR35: 87.83946391 | AS35: 86.96404231 | AT35: 88.66249563 | AU35: 88.30126486 | AV35: 88.19212212 | AW35: 88.56411564 | AX35: 87.60156762 | AY35: 85.93619559 | AZ35: 85.04019399 | BA35: 82.65885644
A37: 2A | B37: Mineral industry | C37: 81.86327 | D37: 81.86327 | E37: 81.86327 | F37: 81.86327 | G37: 81.86327 | H37: 75.22807 | I37: 83.41493 | J37: 74.68054 | K37: 84.99192 | L37: 91.0018 | M37: 87.11582 | N37: 80.75015 | O37: 75.33974 | P37: 79.38966 | Q37: 89.40242 | R37: 81.93321 | S37: 90.92985 | T37: 95.64508 | U37: 85.23782 | V37: 72.62682 | W37: 60.46316 | X37: 65.81052 | Y37: 61.73488 | Z37: 48.61 | AA37: 61.06192 | AB37: 67.33721 | AC37: 69.9166218 | AD37: 75.54804 | AE37: 88.43038 | AF37: 80.8727 | AG37: 80.30436 | AH37: 82.07966725 | AI37: 83.8549745 | AJ37: 85.63028175 | AK37: 87.405589 | AL37: 89.18089625 | AM37: 89.86437583 | AN37: 90.54785541 | AO37: 91.23133499 | AP37: 91.91481457 | AQ37: 92.59829415 | AR37: 93.02073781 | AS37: 93.44318147 | AT37: 93.86562512 | AU37: 94.28806878 | AV37: 94.71051244 | AW37: 95.43917106 | AX37: 96.16782968 | AY37: 96.89648829 | AZ37: 97.62514691 | BA37: 98.35380553
A38: 2B | B38: Chemical Industry | C38: 465.8833 | D38: 219.4437 | E38: 143.66765 | F38: 119.8253 | G38: 136.4192 | H38: 145.453 | I38: 201.7498 | J38: 129.903 | K38: 133.9116 | L38: 144.8686 | M38: 91.8557 | N38: 71.578 | O38: 45.982 | P38: 44.7145 | Q38: 48.365 | R38: 43.612 | S38: 41.3775 | T38: 40.848 | U38: 42.3035 | V38: 35.882 | W38: 33.2 | X38: 40.24 | Y38: 44.43 | Z38: 42.807 | AA38: 59.964 | AB38: 45.77 | AC38: 39.168 | AD38: 57.6304 | AE38: 26.1485 | AF38: 29.33075 | AG38: 33.2245 | AH38: 29.56791667 | AI38: 29.56791667 | AJ38: 29.56791667 | AK38: 29.56791667 | AL38: 29.56791667 | AM38: 29.56791667 | AN38: 29.56791667 | AO38: 29.56791667 | AP38: 29.56791667 | AQ38: 29.56791667 | AR38: 29.56791667 | AS38: 29.56791667 | AT38: 29.56791667 | AU38: 29.56791667 | AV38: 29.56791667 | AW38: 29.56791667 | AX38: 29.56791667 | AY38: 29.56791667 | AZ38: 29.56791667 | BA38: 29.56791667
A39: 2C | B39: Metal industry | C39: 28.233466 | D39: 28.233466 | E39: 28.233466 | F39: 30.733796 | G39: 33.23408 | H39: 32.972202 | I39: 33.104176 | J39: 37.528226 | K39: 34.569322 | L39: 36.68661 | M39: 29.025126 | N39: 33.36472 | O39: 0 | P39: 3.280207 | Q39: 3.539718 | R39: 14.533002 | S39: 4.051887 | T39: 4.629625 | U39: 4.367216 | V39: 2.120181 | W39: 3.569146 | X39: 3.909262 | Y39: 2.974678 | Z39: 3.598196 | AA39: 3.683708 | AB39: 3.989391 | AC39: 4.217346 | AD39: 4.365452 | AE39: 4.649008 | AF39: 4.861689 | AG39: 4.366558 | AH39: 4.625751667 | AI39: 4.625751667 | AJ39: 4.625751667 | AK39: 4.625751667 | AL39: 4.625751667 | AM39: 4.625751667 | AN39: 4.625751667 | AO39: 4.625751667 | AP39: 4.625751667 | AQ39: 4.625751667 | AR39: 4.625751667 | AS39: 4.625751667 | AT39: 4.625751667 | AU39: 4.625751667 | AV39: 4.625751667 | AW39: 4.625751667 | AX39: 4.625751667 | AY39: 4.625751667 | AZ39: 4.625751667 | BA39: 4.625751667
A40: 2D | B40: Non-energy products from fuels and solvent use | C40: 38497.47087 | D40: 43382.05797 | E40: 45932.44611 | F40: 39981.02517 | G40: 47522.89891 | H40: 46114.9911 | I40: 50415.5062 | J40: 45692.77566 | K40: 42294.12114 | L40: 41213.13959 | M40: 41636.9664 | N40: 37391.12685 | O40: 35618.40994 | P40: 33655.15516 | Q40: 32947.59496 | R40: 32175.33118 | S40: 30747.83145 | T40: 28764.53666 | U40: 29437.96123 | V40: 27373.23447 | W40: 26704.30255 | X40: 27670.28 | Y40: 27185.8396 | Z40: 30465.65335 | AA40: 25555.60449 | AB40: 27765.96091 | AC40: 24864.38207 | AD40: 24136.43442 | AE40: 26910.55297 | AF40: 24976.08802 | AG40: 30786.01272 | AH40: 30785.60369 | AI40: 30785.60369 | AJ40: 30785.60369 | AK40: 30785.60369 | AL40: 30785.60369 | AM40: 30785.60369 | AN40: 30785.60369 | AO40: 30785.60369 | AP40: 30785.60369 | AQ40: 30785.60369 | AR40: 30785.60369 | AS40: 30785.60369 | AT40: 30785.60369 | AU40: 30785.60369 | AV40: 30785.60369 | AW40: 30785.60369 | AX40: 30785.60369 | AY40: 30785.60369 | AZ40: 30785.60369 | BA40: 30785.60369
A41: 2G | B41: Other product manufacture and use | C41: 84.6830957 | D41: 77.85995205 | E41: 88.28373775 | F41: 78.2180768 | G41: 74.4345103 | H41: 80.01392305 | I41: 84.7179762 | J41: 95.2516981 | K41: 85.3056376 | L41: 88.00940705 | M41: 94.6196585 | N41: 85.1840969 | O41: 101.1628848 | P41: 114.0146007 | Q41: 101.7455148 | R41: 94.7102637 | S41: 109.3081085 | T41: 84.6321813 | U41: 78.45491805 | V41: 80.9168085 | W41: 69.193697 | X41: 62.12766 | Y41: 83.891867 | Z41: 84.1261325 | AA41: 69.5817265 | AB41: 83.5598275 | AC41: 55.536173 | AD41: 57.6532515 | AE41: 53.0414315 | AF41: 59.885656 | AG41: 46.067341 | AH41: 52.55762157 | AI41: 51.84379659 | AJ41: 51.1299716 | AK41: 50.41614662 | AL41: 49.70232164 | AM41: 48.98849665 | AN41: 48.27467166 | AO41: 47.56084668 | AP41: 46.84702169 | AQ41: 46.13319671 | AR41: 45.41937172 | AS41: 44.70554674 | AT41: 43.99172175 | AU41: 43.27789677 | AV41: 42.56407178 | AW41: 41.8502468 | AX41: 41.13642181 | AY41: 40.42259683 | AZ41: 39.70877184 | BA41: 38.99494686
A42: 2H | B42: Other | C42: 3314.829102 | D42: 3379.156287 | E42: 3313.356133 | F42: 3306.017952 | G42: 3239.148835 | H42: 3359.616865 | I42: 3201.227191 | J42: 3409.760075 | K42: 3499.415311 | L42: 3005.495534 | M42: 3080.803111 | N42: 3227.495339 | O42: 3116.2938 | P42: 3086.903162 | Q42: 3084.26575 | R42: 3072.443429 | S42: 3052.325917 | T42: 2933.055377 | U42: 2904.706936 | V42: 2849.781796 | W42: 2777.797573 | X42: 2696.136451 | Y42: 2684.23781 | Z42: 2629.956445 | AA42: 2564.21178 | AB42: 2487.081565 | AC42: 2457.31101 | AD42: 2426.76288 | AE42: 2445.723735 | AF42: 2412.189835 | AG42: 2234.22579 | AH42: 2364.046453 | AI42: 2364.046453 | AJ42: 2364.046453 | AK42: 2364.046453 | AL42: 2364.046453 | AM42: 2364.046453 | AN42: 2364.046453 | AO42: 2364.046453 | AP42: 2364.046453 | AQ42: 2364.046453 | AR42: 2364.046453 | AS42: 2364.046453 | AT42: 2364.046453 | AU42: 2364.046453 | AV42: 2364.046453 | AW42: 2364.046453 | AX42: 2364.046453 | AY42: 2364.046453 | AZ42: 2364.046453 | BA42: 2364.046453
A43: 2I | B43: Wood processing
A44: 2L | B44: Other production
A46: 3B1a | B46: Manure Management - Dairy cattle | C46: 22124.39212 | D46: 22103.99656 | E46: 21522.35035 | F46: 21890.33083 | G46: 21867.24215 | H46: 21967.44287 | I46: 21907.29385 | J46: 20902.52334 | K46: 20939.26132 | L46: 20040.74049 | M46: 19535.61172 | N46: 19474.6365 | O46: 19458.83934 | P46: 19875.0659 | Q46: 19490.06699 | R46: 20052.44432 | S46: 20140.51 | T46: 20332.40665 | U46: 20790.44217 | V46: 21478.2366 | W46: 21657.72912 | X46: 21297.97774 | Y46: 22232.08737 | Z46: 22220.49171 | AA46: 22328.78282 | AB46: 22336.19837 | AC46: 22999.04491 | AD46: 23451.98627 | AE46: 23881.2672 | AF46: 23777.92787 | AG46: 23951.40662 | AH46: 24005.10669 | AI46: 24452.53048 | AJ46: 24747.4839 | AK46: 25053.9299 | AL46: 25296.41457 | AM46: 25589.54458 | AN46: 26010.09723 | AO46: 26367.67525 | AP46: 26767.25131 | AQ46: 27192.21059 | AR46: 27305.69318 | AS46: 27278.37036 | AT46: 27232.4178 | AU46: 27210.58932 | AV46: 27195.93001 | AW46: 27170.18367 | AX46: 27125.46203 | AY46: 27105.4437 | AZ46: 27088.33105 | BA46: 27069.61578
A47: 3B1b | B47: Manure Management - Non-dairy cattle | C47: 14215.43075 | D47: 14368.92406 | E47: 14675.65979 | F47: 13486.61065 | G47: 12456.91798 | H47: 12281.04305 | I47: 11717.92198 | J47: 11313.26901 | K47: 10398.57533 | L47: 10118.7294 | M47: 10145.19007 | N47: 10269.18981 | O47: 10788.18659 | P47: 10583.07144 | Q47: 11192.34525 | R47: 9718.712872 | S47: 9836.176013 | T47: 10560.45563 | U47: 10891.17987 | V47: 10120.29746 | W47: 10270.12793 | X47: 10811.35434 | Y47: 10164.90663 | Z47: 10309.08451 | AA47: 10177.40284 | AB47: 10069.86409 | AC47: 9914.294457 | AD47: 9897.025876 | AE47: 9779.725103 | AF47: 9502.336364 | AG47: 9260.739956 | AH47: 9251.600078 | AI47: 9288.897856 | AJ47: 9314.450071 | AK47: 9338.758079 | AL47: 9360.262661 | AM47: 9383.820258 | AN47: 9406.465136 | AO47: 9429.313678 | AP47: 9448.267605 | AQ47: 9470.627225 | AR47: 9411.796278 | AS47: 9354.908734 | AT47: 9294.433445 | AU47: 9237.382285 | AV47: 9180.248751 | AW47: 9123.031381 | AX47: 9062.295353 | AY47: 9004.933852 | AZ47: 8947.491375 | BA47: 8889.977259
A48: 3B2 | B48: Manure Management - Sheep | C48: 91.25090827 | D48: 105.7233993 | E48: 101.6814895 | F48: 87.62474458 | G48: 79.39321005 | H48: 80.11748979 | I48: 93.36537625 | J48: 95.23444683 | K48: 100.1860742 | L48: 104.93916 | M48: 110.8328672 | N48: 117.741122 | O48: 116.5945443 | P48: 120.1285847 | Q48: 123.2933377 | R48: 125.3432797 | S48: 126.8065312 | T48: 119.939927 | U48: 113.8376573 | V48: 111.9308191 | W48: 107.5522613 | X48: 90.62132121 | Y48: 82.35695716 | Z48: 80.60012301 | AA48: 80.18621398 | AB48: 76.67254567 | AC48: 75.60540796 | AD48: 74.53827024 | AE48: 74.73337274 | AF48: 80.05857683 | AG48: 72.97198011 | AH48: 72.97198011 | AI48: 72.97198011 | AJ48: 72.97198011 | AK48: 72.97198011 | AL48: 72.97198011 | AM48: 72.97198011 | AN48: 72.97198011 | AO48: 72.97198011 | AP48: 72.97198011 | AQ48: 72.97198011 | AR48: 72.97198011 | AS48: 72.97198011 | AT48: 72.97198011 | AU48: 72.97198011 | AV48: 72.97198011 | AW48: 72.97198011 | AX48: 72.97198011 | AY48: 72.97198011 | AZ48: 72.97198011 | BA48: 72.97198011
A49: 3B3 | B49: Manure Management - Swine | C49: 3464.086348 | D49: 3545.383132 | E49: 3817.45986 | F49: 4070.277972 | G49: 3971.92328 | H49: 4026.25521 | I49: 4050.515898 | J49: 4258.513564 | K49: 4480.812414 | L49: 4444.989154 | M49: 4323.012626 | N49: 4554.750662 | O49: 4682.749835 | P49: 4789.801108 | Q49: 4865.572712 | R49: 4305.331475 | S49: 3897.713009 | T49: 3560.97527 | U49: 3254.944904 | V49: 3206.195959 | W49: 3290.973209 | X49: 3222.030251 | Y49: 3038.342482 | Z49: 2980.491677 | AA49: 3089.645061 | AB49: 3044.710593 | AC49: 2989.550162 | AD49: 3005.872731 | AE49: 3150.195041 | AF49: 2982.093199 | AG49: 3128.536414 | AH49: 3228.171946 | AI49: 3114.59557 | AJ49: 3004.251548 | AK49: 2924.477933 | AL49: 2826.265914 | AM49: 2787.929544 | AN49: 2777.243072 | AO49: 2694.921508 | AP49: 2679.292699 | AQ49: 2649.745052 | AR49: 2598.74538 | AS49: 2592.598105 | AT49: 2558.380034 | AU49: 2548.363692 | AV49: 2508.810714 | AW49: 2498.433982 | AX49: 2465.6827 | AY49: 2410.447991 | AZ49: 2363.628453 | BA49: 2348.794915
A50: 3B4d | B50: Manure Management - Goats | C50: 7.156869894 | D50: 7.06093586 | E50: 6.965001825 | F50: 6.869067791 | G50: 6.773133756 | H50: 6.677199721 | I50: 6.581265687 | J50: 6.485331652 | K50: 7.402671028 | L50: 7.721496576 | M50: 8.078504824 | N50: 9.017799252 | O50: 8.810658103 | P50: 9.591494325 | Q50: 10.28451034 | R50: 11.00174588 | S50: 11.72890127 | T50: 11.98708099 | U50: 13.43327289 | V50: 14.91413587 | W50: 15.19178802 | X50: 11.91661644 | Y50: 11.78660649 | Z50: 11.852301 | AA50: 10.91227316 | AB50: 10.29025401 | AC50: 10.27449355 | AD50: 10.22293818 | AE50: 9.427304976 | AF50: 10.64472073 | AG50: 9.428679953 | AH50: 9.428679953 | AI50: 9.428679953 | AJ50: 9.428679953 | AK50: 9.428679953 | AL50: 9.428679953 | AM50: 9.428679953 | AN50: 9.428679953 | AO50: 9.428679953 | AP50: 9.428679953 | AQ50: 9.428679953 | AR50: 9.428679953 | AS50: 9.428679953 | AT50: 9.428679953 | AU50: 9.428679953 | AV50: 9.428679953 | AW50: 9.428679953 | AX50: 9.428679953 | AY50: 9.428679953 | AZ50: 9.428679953 | BA50: 9.428679953
A51: 3B4e | B51: Manure Management - Horses | C51: 811.054499 | D51: 820.1671757 | E51: 829.2942955 | F51: 838.437392 | G51: 847.5990041 | H51: 856.7813324 | I51: 865.8000833 | J51: 874.8188342 | K51: 883.837585 | L51: 896.3269706 | M51: 903.662809 | N51: 933.7849027 | O51: 963.9069963 | P51: 991.1911113 | Q51: 1021.227206 | R51: 1051.2633 | S51: 1081.299394 | T51: 1083.6829 | U51: 1112.971627 | V51: 1039.74981 | W51: 966.5279921 | X51: 907.950538 | Y51: 907.950538 | Z51: 878.661811 | AA51: 878.661811 | AB51: 907.950538 | AC51: 951.8836286 | AD51: 995.8167191 | AE51: 1025.105446 | AF51: 1025.105446 | AG51: 1154.044437 | AH51: 1155.393933 | AI51: 1155.393933 | AJ51: 1155.393933 | AK51: 1155.393933 | AL51: 1155.393933 | AM51: 1155.393933 | AN51: 1155.393933 | AO51: 1155.393933 | AP51: 1155.393933 | AQ51: 1155.393933 | AR51: 1155.393933 | AS51: 1155.393933 | AT51: 1155.393933 | AU51: 1155.393933 | AV51: 1155.393933 | AW51: 1155.393933 | AX51: 1155.393933 | AY51: 1155.393933 | AZ51: 1155.393933 | BA51: 1155.393933
A52: 3B4g | B52: Manure Management - Poultry | C52: 5.714411729 | D52: 5.603999247 | E52: 5.796316786 | F52: 12.15783918 | G52: 18.88174123 | H52: 24.10322364 | I52: 29.60649844 | J52: 35.23343008 | K52: 40.57971286 | L52: 46.54703281 | M52: 52.26207022 | N52: 58.14527703 | O52: 40.39288979 | P52: 31.52718305 | Q52: 28.5084593 | R52: 26.03314331 | S52: 25.18605925 | T52: 8.236310674 | U52: 8.115703542 | V52: 7.348077128 | W52: 7.376995206 | X52: 6.640987736 | Y52: 6.759123152 | Z52: 6.38097973 | AA52: 5.989354394 | AB52: 6.26676499 | AC52: 6.555896897 | AD52: 6.406332831 | AE52: 6.694845215 | AF52: 6.969359517 | AG52: 7.05855434 | AH52: 7.05855434 | AI52: 7.324402678 | AJ52: 7.305008407 | AK52: 7.284493254 | AL52: 7.262676516 | AM52: 7.237202342 | AN52: 7.211207116 | AO52: 7.201597374 | AP52: 7.179281975 | AQ52: 7.163450772 | AR52: 7.148943154 | AS52: 7.084384769 | AT52: 7.020350231 | AU52: 6.957100199 | AV52: 6.894686905 | AW52: 6.833148902 | AX52: 6.772515111 | AY52: 6.712804949 | AZ52: 6.65403006 | BA52: 6.596196953
A53: 3B4h | B53: Manure Management - Other (mainly mink) | C53: 466.4791085 | D53: 434.906428 | E53: 469.2842947 | F53: 314.5674338 | G53: 372.2293472 | H53: 374.3845031 | I53: 386.3896053 | J53: 443.8252533 | K53: 468.9652082 | L53: 416.5904469 | M53: 418.515572 | N53: 425.8287615 | O53: 397.2848614 | P53: 395.7605283 | Q53: 409.1747933 | R53: 436.487829 | S53: 459.0111115 | T53: 473.612732 | U53: 469.9147578 | V53: 474.3007908 | W53: 474.3469154 | X53: 505.558011 | Y53: 540.8564943 | Z53: 716.0650595 | AA53: 773.0103544 | AB53: 790.1305548 | AC53: 733.3641964 | AD53: 770.0009769 | AE53: 708.5486061 | AF53: 555.6953152 | AG53: 499.5795678 | AH53: 0 | AI53: 0 | AJ53: 50.29653103 | AK53: 50.42148733 | AL53: 50.55352434 | AM53: 50.69280723 | AN53: 50.84010472 | AO53: 50.99606937 | AP53: 51.16165829 | AQ53: 51.51662758 | AR53: 51.51662758 | AS53: 51.51662758 | AT53: 51.51662758 | AU53: 51.51662758 | AV53: 51.51662758 | AW53: 51.51662758 | AX53: 51.51662758 | AY53: 51.51662758 | AZ53: 51.51662758 | BA53: 51.51662758
A54: 3Da1 | B54: Inorganic N-fertilizers (includes also urea application)
A55: 3Da2a | B55: Animal manure applied to soils | C55: 19380.75899 | D55: 18550.15299 | E55: 17623.68364 | F55: 16610.84053 | G55: 15463.76706 | H55: 14688.81215 | I55: 13748.48627 | J55: 12488.6636 | K55: 11555.77781 | L55: 10856.88724 | M55: 9242.518798 | N55: 7872.406716 | O55: 7190.712985 | P55: 6853.919453 | Q55: 5738.814783 | R55: 5784.751348 | S55: 5750.753445 | T55: 6034.421778 | U55: 5928.290458 | V55: 5935.52467 | W55: 6231.372974 | X55: 5106.072919 | Y55: 5044.184395 | Z55: 5233.91137 | AA55: 5345.277277 | AB55: 5561.729635 | AC55: 5631.753568 | AD55: 5911.625159 | AE55: 6001.050072 | AF55: 5931.047989 | AG55: 6106.318909 | AH55: 6304.9102 | AI55: 6420.903452 | AJ55: 6519.821427 | AK55: 6620.980065 | AL55: 6667.09519 | AM55: 6783.349505 | AN55: 6919.020915 | AO55: 6965.738761 | AP55: 7107.980995 | AQ55: 7232.540259 | AR55: 7309.696585 | AS55: 7357.590402 | AT55: 7366.281031 | AU55: 7438.236647 | AV55: 7480.649793 | AW55: 7553.082828 | AX55: 7587.605119 | AY55: 7636.60658 | AZ55: 7665.957434 | BA55: 7743.260645
A56: 3Da2b-c | B56: Sludge applied to soils
A57: 3Da3 | B57: Urine and dung deposited by grazing animals | C57: 194.5342867 | D57: 200.5317285 | E57: 203.1738837 | F57: 210.5313808 | G57: 208.7673018 | H57: 213.6439254 | I57: 214.0187738 | J57: 208.4341409 | K57: 206.9765118 | L57: 200.8880883 | M57: 199.6531908 | N57: 204.9242846 | O57: 197.8346418 | P57: 173.8992818 | Q57: 150.7726319 | R57: 134.051533 | S57: 122.0465193 | T57: 113.060123 | U57: 114.1203427 | V57: 109.8049374 | W57: 111.690874 | X57: 110.2716331 | Y57: 113.1834414 | Z57: 115.645936 | AA57: 114.9787158 | AB57: 111.3451703 | AC57: 110.9603849 | AD57: 108.9153884 | AE57: 107.8254311 | AF57: 105.7154628 | AG57: 106.6725991 | AH57: 105.709605 | AI57: 106.8258322 | AJ57: 107.3150469 | AK57: 107.7712954 | AL57: 108.1912749 | AM57: 108.6039041 | AN57: 109.1373603 | AO57: 109.6009093 | AP57: 110.1255107 | AQ57: 110.6539439 | AR57: 110.4462427 | AS57: 110.1395992 | AT57: 109.8329592 | AU57: 109.5264024 | AV57: 109.225225 | AW57: 108.9076734 | AX57: 108.5906358 | AY57: 108.2741791 | AZ57: 107.958369 | BA57: 107.6377752
A58: 3Dc | B58: Farm-level agricultural operations including storage, handling and transport of agricultural products
A59: 3De | B59: Cultivated crops | C59: 1987.14 | D59: 1800.34 | E59: 1403.14 | F59: 1544.75 | G59: 1428.89 | H59: 1568.34 | I59: 1402.3 | J59: 1559.33 | K59: 1637.16 | L59: 1480.98 | M59: 1482.58 | N59: 1454.12 | O59: 1372.2 | P59: 1441.2 | Q59: 1546.73 | R59: 1423.41 | S59: 1485.4 | T59: 1524.69 | U59: 1680.68 | V59: 1698.75 | W59: 1510.16 | X59: 1500 | Y59: 1663.33 | Z59: 1827.72 | AA59: 1944.84 | AB59: 2106.03 | AC59: 1747.69 | AD59: 2067.86 | AE59: 1640.61 | AF59: 2126.5 | AG59: 1894.26 | AH59: 1880.992116 | AI59: 1871.864185 | AJ59: 1862.758462 | AK59: 1853.835286 | AL59: 1845.379689 | AM59: 1833.888133 | AN59: 1822.441311 | AO59: 1817.074548 | AP59: 1811.707785 | AQ59: 1808.606632 | AR59: 1806.645498 | AS59: 1804.684365 | AT59: 1802.723232 | AU59: 1800.762099 | AV59: 1798.800965 | AW59: 1796.839832 | AX59: 1794.878699 | AY59: 1792.917565 | AZ59: 1790.956432 | BA59: 1788.995299
A60: 3F | B60: Field burning of agricultural residues | C60: 16.08163875 | D60: 16.72031813 | E60: 15.9865875 | F60: 17.45567438 | G60: 16.83315562 | H60: 19.05060375 | I60: 18.943695 | J60: 20.08182375 | K60: 25.28124187 | L60: 24.01574062 | M60: 23.65666875 | N60: 24.86087438 | O60: 20.68053187 | P60: 24.8613525 | Q60: 26.06527125 | R60: 26.44997062 | S60: 26.832375 | T60: 23.21717625 | U60: 21.50166375 | V60: 25.29529875 | W60: 18.44568 | X60: 18.25749 | Y60: 20.981655 | Z60: 22.6749825 | AA60: 22.3261425 | AB60: 19.9056825 | AC60: 19.4443875 | AD60: 22.0538025 | AE60: 25.3830825 | AF60: 28.475595 | AG60: 28.47483 | AH60: 24.57983796 | AI60: 24.46055886 | AJ60: 24.34156995 | AK60: 24.22496647 | AL60: 24.11447308 | AM60: 23.96430733 | AN60: 23.81472616 | AO60: 23.74459605 | AP60: 23.67446595 | AQ60: 23.63394167 | AR60: 23.60831459 | AS60: 23.58268751 | AT60: 23.55706043 | AU60: 23.53143335 | AV60: 23.50580627 | AW60: 23.48017918 | AX60: 23.4545521 | AY60: 23.42892502 | AZ60: 23.40329794 | BA60: 23.37767086
A61: 3I | B61: Agriculture other
A63: 5A | B63: Solid waste disposal on land | C63: 1759.357876 | D63: 1644.047533 | E63: 1532.238356 | F63: 1423.930346 | G63: 1264.861531 | H63: 1209.866578 | I63: 1260.878265 | J63: 1090.137513 | K63: 1090.497083 | L63: 1052.196853 | M63: 937.4677511 | N63: 564.5984893 | O63: 413.144613 | P63: 302.7894704 | Q63: 251.2323742 | R63: 229.850388 | S63: 256.3217045 | T63: 289.8402666 | U63: 243.2238074 | V63: 169.7351569 | W63: 284.4284022 | X63: 393.5199199 | Y63: 391.4672038 | Z63: 354.0756147 | AA63: 370.8152721 | AB63: 347.3113445 | AC63: 373.1846696 | AD63: 395.2114962 | AE63: 384.4914795 | AF63: 325.7898895 | AG63: 311.2397957 | AH63: 503.9094688 | AI63: 516.7955173 | AJ63: 526.4002632 | AK63: 535.6529091 | AL63: 544.5879502 | AM63: 549.5345138 | AN63: 555.6041089 | AO63: 561.3023931 | AP63: 566.0638185 | AQ63: 574.0674205 | AR63: 579.3105261 | AS63: 584.4860058 | AT63: 588.6234721 | AU63: 592.3779122 | AV63: 600.5462132 | AW63: 605.7675468 | AX63: 611.4903228 | AY63: 617.333007 | AZ63: 622.8229713 | BA63: 632.1317458
A64: 5B | B64: Biological treatment of waste | C64: NE | D64: NE | E64: NE | F64: NE | G64: NE | H64: NE | I64: NE | J64: NE | K64: NE | L64: NE | M64: NE | N64: NE | O64: NE | P64: NE | Q64: NE | R64: NE | S64: NE | T64: NE | U64: NE | V64: NE | W64: NE | X64: NE | Y64: NE | Z64: NE | AA64: NE | AB64: NE | AC64: NE | AD64: NE | AE64: NE | AF64: NE | AG64: NE | AH64: =AG64 -> NE | AI64: =AH64 -> NE | AJ64: NE | AK64: NE | AL64: NE | AM64: NE | AN64: NE | AO64: NE | AP64: NE | AQ64: NE | AR64: NE | AS64: NE | AT64: NE | AU64: NE | AV64: NE | AW64: NE | AX64: NE | AY64: NE | AZ64: NE | BA64: NE
A65: 5C | B65: Waste incineration | C65: 0.832883 | D65: 0.848658 | E65: 0.878915 | F65: 0.921522 | G65: 0.935906 | H65: 0.970011 | I65: 0.982406 | J65: 0.997583 | K65: 1.01158 | L65: 1.285887 | M65: 1.427463 | N65: 1.446191 | O65: 1.455007 | P65: 1.469961 | Q65: 1.682215 | R65: 2.053854 | S65: 2.768029 | T65: 3.110958 | U65: 3.219244 | V65: 3.229304 | W65: 3.44465 | X65: 2.974224 | Y65: 3.027817 | Z65: 2.842537 | AA65: 2.861916 | AB65: 2.800094 | AC65: 2.943296 | AD65: 2.898717 | AE65: 2.94042 | AF65: 2.861638 | AG65: 2.59983 | AH65: 2.800629333 | AI65: 2.800629333 | AJ65: 2.800629333 | AK65: 2.800629333 | AL65: 2.800629333 | AM65: 2.800629333 | AN65: 2.800629333 | AO65: 2.800629333 | AP65: 2.800629333 | AQ65: 2.800629333 | AR65: 2.800629333 | AS65: 2.800629333 | AT65: 2.800629333 | AU65: 2.800629333 | AV65: 2.800629333 | AW65: 2.800629333 | AX65: 2.800629333 | AY65: 2.800629333 | AZ65: 2.800629333 | BA65: 2.800629333
A66: 5D | B66: Wastewater handling | C66: 12.87678701 | D66: 12.76686291 | E66: 12.38409397 | F66: 13.00849396 | G66: 15.0814631 | H66: 13.76579704 | I66: 10.92322949 | J66: 11.24401413 | K66: 13.87729243 | L66: 14.87836808 | M66: 13.73507995 | N66: 13.92403528 | O66: 16.24126576 | P66: 11.36484249 | Q66: 12.57882789 | R66: 12.53074799 | S66: 12.82008965 | T66: 16.67080623 | U66: 15.26937917 | V66: 16.02846824 | W66: 10.96433151 | X66: 12.38959446 | Y66: 10.27118323 | Z66: 10.430925 | AA66: 10.40694 | AB66: 9.022817615 | AC66: 11.08550443 | AD66: 11.69422323 | AE66: 10.07955695 | AF66: 11.83478156 | AG66: 11.83478156 | AH66: 11.24970669 | AI66: 11.24970669 | AJ66: 11.24970669 | AK66: 11.24970669 | AL66: 11.24970669 | AM66: 11.24970669 | AN66: 11.24970669 | AO66: 11.24970669 | AP66: 11.24970669 | AQ66: 11.24970669 | AR66: 11.24970669 | AS66: 11.24970669 | AT66: 11.24970669 | AU66: 11.24970669 | AV66: 11.24970669 | AW66: 11.24970669 | AX66: 11.24970669 | AY66: 11.24970669 | AZ66: 11.24970669 | BA66: 11.24970669
A67: 5E | B67: Other | C67: 243.7027578 | D67: 251.2994458 | E67: 271.3693134 | F67: 241.6840668 | G67: 242.8728125 | H67: 277.2012792 | I67: 280.1660633 | J67: 260.1276459 | K67: 235.3202456 | L67: 251.2460122 | M67: 246.55548 | N67: 242.7772336 | O67: 235.8090314 | P67: 262.8126276 | Q67: 229.9038563 | R67: 238.3643062 | S67: 243.9269959 | T67: 254.5609855 | U67: 273.0433964 | V67: 277.476043 | W67: 255.5705255 | X67: 250.0378671 | Y67: 241.2003522 | Z67: 244.8272887 | AA67: 234.4010317 | AB67: 246.0988237 | AC67: 275.5173327 | AD67: 264.5750643 | AE67: 274.5488772 | AF67: 251.8268194 | AG67: 252.4328712 | AH67: =AVERAGE($AE$67:$AG$67) -> 259.6028559 | AI67: =AVERAGE($AE$67:$AG$67) -> 259.6028559 | AJ67: 259.6028559 | AK67: 259.6028559 | AL67: 259.6028559 | AM67: 259.6028559 | AN67: 259.6028559 | AO67: 259.6028559 | AP67: 259.6028559 | AQ67: 259.6028559 | AR67: 259.6028559 | AS67: 259.6028559 | AT67: 259.6028559 | AU67: 259.6028559 | AV67: 259.6028559 | AW67: 259.6028559 | AX67: 259.6028559 | AY67: 259.6028559 | AZ67: 259.6028559 | BA67: 259.6028559
B68: Total | C68: =SUM(C3:C67) -> 212931.9181 | D68: 221239.5885 | E68: 221191.465 | F68: 213054.1115 | G68: 214544.3452 | H68: 210511.3309 | I68: 212328.7217 | J68: 200326.9516 | K68: 191057.4213 | L68: 184317.5448 | M68: 182269.3855 | N68: 172771.9125 | O68: 167423.8072 | P68: 163764.7948 | Q68: 159555.0518 | R68: 154606.9417 | S68: 150093.1378 | T68: 147549.2964 | U68: 144240.0051 | V68: 134321.3216 | W68: 131981.3076 | X68: 125318.7029 | Y68: 120173.2775 | Z68: 121258.909 | AA68: 112974.8924 | AB68: 115368.7927 | AC68: 111081.9834 | AD68: =SUM(AD3:AD67) -> 109049.0128 | AE68: =SUM(AE3:AE67) -> 108080.3977 | AF68: 103205.0031 | AG68: =SUM(AG3:AG67) -> 106584.2276 | AH68: 107265.1751 | AI68: 106822.9629 | AJ68: 106849.9924 | AK68: 107157.9414 | AL68: 106693.9591 | AM68: 106490.3314 | AN68: 106743.1806 | AO68: 106344.938 | AP68: 106169.0609 | AQ68: 106030.7447 | AR68: 105592.6006 | AS68: 105052.3464 | AT68: 104457.3323 | AU68: 104002.3743 | AV68: 103584.8232 | AW68: 103038.1334 | AX68: 102406.4215 | AY68: 101809.3233 | AZ68: 101227.747 | BA68: 100718.9174
B69: Total including adjustments | R69: =SUM(R3:R44,R47:R67) -> 134554.4974 | S69: =SUM(S3:S44,S47:S67) -> 129952.6278 | T69: 127216.8897 | U69: 123449.5629 | V69: 112843.085 | W69: 110323.5785 | X69: 104020.7252 | Y69: 97941.19016 | Z69: 99038.41727 | AA69: 90646.10954 | AB69: 93032.59431 | AC69: 88082.93849 | AD69: 85597.02656 | AE69: 84199.13054 | AF69: 79427.07519 | AG69: 82632.82096 | AH69: 83260.06845 | AI69: 82370.43246 | AJ69: 82102.50854 | AK69: 82104.0115 | AL69: 81397.54456 | AM69: 80900.78682 | AN69: 80733.08335 | AO69: 79977.26271 | AP69: 79401.80959 | AQ69: 78838.53412 | AR69: 78286.90742 | AS69: 77773.97602 | AT69: 77224.91448 | AU69: 76791.78493 | AV69: 76388.89321 | AW69: 75867.94971 | AX69: 75280.95947 | AY69: 74703.8796 | AZ69: 74139.41591 | BA69: 73649.30163
B70: Total excluding categories 3B and 3D | C70: =SUM(C3:C44,C60:C67) -> 150183.9198 | D70: 159296.7981 | E70: 160532.976 | F70: 153981.1136 | G70: 157821.961 | H70: 154423.73 | I70: 157906.4421 | J70: 148140.6207 | K70: 140337.8867 | L70: 135702.2053 | M70: 135847.4672 | N70: 127397.3667 | O70: 122206.2938 | P70: 118499.6388 | Q70: 114978.2612 | R70: 111538.1109 | S70: 107156.5069 | T70: 103725.828 | U70: 99862.07432 | V70: 90124.2683 | W70: 87338.25752 | X70: 81748.30858 | Y70: 76367.53349 | Z70: 76878.00351 | AA70: 68225.20564 | AB70: 70347.60417 | AC70: 65911.0063 | AD70: =SUM(AD3:AD44,AD60:AD67) -> 62748.74217 | AE70: 61695.21532 | AF70: =SUM(AF3:AF44,AF60:AF67) -> 57100.90876 | AG70: 60393.20986 | AH70: =SUM(AH3:AH44,AH60:AH67) -> 61243.83136 | AI70: 60322.22657 | AJ70: 59998.51585 | AK70: 59962.68826 | AL70: 59294.73904 | AM70: 58707.47087 | AN70: 58402.92965 | AO70: 57664.62104 | AP70: 56948.29946 | AQ70: 56269.88634 | AR70: 55753.11727 | AS70: 55257.65921 | AT70: 54796.93221 | AU70: 54361.24549 | AV70: 54014.95186 | AW70: 53491.50965 | AX70: 52965.82323 | AY70: 52454.67541 | AZ70: 51967.4586 | BA70: 51474.72832
B71: Reduction since 2005 (NECD) | S71: =($R$70-S70)/$R$70 -> 0.03928346964 | T71: =($R$70-T70)/$R$70 -> 0.07004137696 | U71: 0.104682036 | V71: 0.1919867782 | W71: 0.2169648845 | X71: 0.2670818256 | Y71: 0.3153234091 | Z71: 0.310746767 | AA71: 0.3883238194 | AB71: 0.369295359 | AC71: 0.4090718787 | AD71: 0.4374233014 | AE71: 0.4468687443 | AF71: =($R$70-AF70)/$R$70 -> 0.4880592085 | AG71: 0.4585419333 | AH71: =($R$70-AH70)/$R$70 -> 0.4509156477 | AI71: 0.4591783373 | AJ71: 0.4620805804 | AK71: 0.4624017943 | AL71: 0.4683903234 | AM71: 0.4736555029 | AN71: 0.476385881 | AO71: 0.4830052204 | AP71: 0.4894274341 | AQ71: 0.4955097777 | AR71: 0.5001428942 | AS71: 0.504584946 | AT71: 0.5087156149 | AU71: 0.512621784 | AV71: 0.5157264953 | AW71: 0.5204194402 | AX71: 0.5251325056 | AY71: 0.5297152246 | AZ71: 0.5340833891 | BA71: 0.5385009847
B72: Reduction since 2005 (UNECE) | S72: =($R$69-S69)/$R$69 -> 0.03420078573 | T72: =($R$69-T69)/$R$69 -> 0.05453260785 | U72: 0.08253112816 | V72: 0.1613577609 | W72: 0.1800825643 | X72: 0.226924947 | Y72: 0.2721076436 | Z72: 0.2639531253 | AA72: 0.3263241935 | AB72: 0.3085879987 | AC72: 0.3453735088 | AD72: 0.3638486395 | AE72: 0.374237709 | AF72: 0.4097033043 | AG72: 0.3858784168 | AH72: 0.3812167555 | AI72: 0.3878284705 | AJ72: 0.3898196631 | AK72: 0.3898084933 | AL72: 0.3950589081 | AM72: 0.3987507784 | AN72: 0.3999971393 | AO72: 0.4056143476 | AP72: 0.4098910766 | AQ72: 0.4140773021 | AR72: 0.4181769547 | AS72: 0.4219890265 | AT72: 0.426069615 | AU72: 0.4292886048 | AV72: 0.432282869 | AW72: 0.4361544862 | AX72: 0.4405169583 | AY72: 0.4448057772 | AZ72: 0.4490008335 | BA72: 0.4526433299
A74: 1A3a | B74: Civil Aviation (Domestic Cruise) | C74: 11.70819331 | D74: 11.03373156 | E74: 10.72010433 | F74: 10.2778604 | G74: 10.63747726 | H74: 10.79046197 | I74: 11.70299721 | J74: 11.57401111 | K74: 10.46380611 | L74: 9.609959316 | M74: 8.584774642 | N74: 9.312806156 | O74: 8.284142956 | P74: 9.307087938 | Q74: 12.24438247 | R74: 16.51432239 | S74: 14.0372172 | T74: 12.71864198 | U74: 9.542687304 | V74: 9.628046844 | W74: 8.472477526 | X74: 7.076054833 | Y74: 7.9896306 | Z74: 9.705849726 | AA74: 10.36934097 | AB74: 9.131993011 | AC74: 9.614962675 | AD74: 9.618913034 | AE74: 9.30912629 | AF74: 8.794392247 | AG74: 3.66507321 | AH74: 7.065355527 | AI74: 7.137789302 | AJ74: 7.203603352 | AK74: 7.266720542 | AL74: 7.329338894 | AM74: 7.41074747 | AN74: 7.494241778 | AO74: 7.578868853 | AP74: 7.662517008 | AQ74: 7.748497783 | AR74: 7.773117261 | AS74: 7.79571766 | AT74: 7.819364405 | AU74: 7.841284995 | AV74: 7.865679718 | AW74: 7.889333401 | AX74: 7.911629956 | AY74: 7.935027243 | AZ74: 7.956886683 | BA74: 7.980764004
B75: Civil Aviation (International Cruise) | C75: 109.2609559 | D75: 100.4161036 | E75: 103.2759202 | F75: 101.1349362 | G75: 111.7537046 | H75: 114.3505467 | I75: 120.7284308 | J75: 122.9773962 | K75: 133.2773302 | L75: 140.5512493 | M75: 143.7322933 | N75: 145.8260386 | O75: 115.8480764 | P75: 126.9717365 | Q75: 143.4380551 | R75: 168.0914188 | S75: 181.3423333 | T75: 188.2365657 | U75: 176.8629076 | V75: 158.7609897 | W75: 166.6832991 | X75: 158.3188078 | Y75: 141.0306484 | Z75: 144.7135434 | AA75: 157.8219699 | AB75: 150.6665415 | AC75: 161.612617 | AD75: 163.8547683 | AE75: 167.5304927 | AF75: 164.6573117 | AG75: 41.93551045 | AH75: 53.11241705 | AI75: 132.6978246 | AJ75: 133.3427071 | AK75: 133.8136416 | AL75: 134.2245177 | AM75: 135.0926122 | AN75: 136.0224886 | AO75: 136.9679004 | AP75: 137.818656 | AQ75: 138.7586956 | AR75: 138.8940762 | AS75: 138.928069 | AT75: 139.0277563 | AU75: 139.0416398 | AV75: 139.1976122 | AW75: 139.3197994 | AX75: 139.3753268 | AY75: 139.4965955 | AZ75: 139.5405104 | BA75: 139.7005239
A76: 1A3d | B76: Navigation, international | C76: 2059.888317 | D76: 1838.455097 | E76: 1928.112482 | F76: 2933.277555 | G76: 3318.028853 | H76: 3500.527981 | I76: 3343.399124 | J76: 3082.1604 | K76: 3101.772607 | L76: 2928.586216 | M76: 2939.861963 | N76: 2432.211019 | O76: 1988.875975 | P76: 2129.259449 | Q76: 1730.28927 | R76: 1791.649658 | S76: 2417.707258 | T76: 2562.380664 | U76: 2200.609252 | V76: 1172.600286 | W76: 1640.914848 | X76: 1681.245407 | Y76: 1209.920398 | Z76: 1515.119967 | AA76: 1816.95077 | AB76: 1857.445643 | AC76: 1601.889523 | AD76: 1220.034634 | AE76: 1416.287277 | AF76: 1847.920658 | AG76: 1386.429223 | AH76: 1875.316264 | AI76: 1884.72995 | AJ76: 1893.449083 | AK76: 1901.42022 | AL76: 1908.589237 | AM76: 1914.901654 | AN76: 1920.302998 | AO76: 1924.739204 | AP76: 1928.157045 | AQ76: 1930.504598 | AR76: 1932.857894 | AS76: 1935.216952 | AT76: 1937.581794 | AU76: 1939.952442 | AV76: 1942.328916 | AW76: 1944.711239 | AX76: 1947.099432 | AY76: 1949.493517 | AZ76: 1951.893516 | BA76: 1954.29945

Sheet NH3
A1: NH3 (tons)
C2: 1990 | D2: 1991 | E2: 1992 | F2: 1993 | G2: 1994 | H2: 1995 | I2: 1996 | J2: 1997 | K2: 1998 | L2: 1999 | M2: 2000 | N2: 2001 | O2: 2002 | P2: 2003 | Q2: 2004 | R2: 2005 | S2: 2006 | T2: 2007 | U2: 2008 | V2: 2009 | W2: 2010 | X2: 2011 | Y2: 2012 | Z2: 2013 | AA2: 2014 | AB2: 2015 | AC2: 2016 | AD2: 2017 | AE2: 2018 | AF2: 2019 | AG2: 2020 | AH2: 2021 | AI2: 2022 | AJ2: 2023 | AK2: 2024 | AL2: 2025 | AM2: 2026 | AN2: 2027 | AO2: 2028 | AP2: 2029 | AQ2: 2030 | AR2: 2031 | AS2: 2032 | AT2: 2033 | AU2: 2034 | AV2: 2035 | AW2: 2036 | AX2: 2037 | AY2: 2038 | AZ2: 2039 | BA2: 2040
A3: 1A1a | B3: Public power and district heating plants | C3: 0.2871 | D3: 1.03327 | E3: 1.61762 | F3: 2.44557 | G3: 5.531671764 | H3: 5.312628134 | I3: 5.523537284 | J3: 6.063738716 | K3: 6.155215213 | L3: 8.01071217 | M3: 8.651451672 | N3: 9.06235906 | O3: 9.644456935 | P3: 9.790664391 | Q3: 10.18278363 | R3: 10.27665833 | S3: 10.60541889 | T3: 11.33196267 | U3: 11.77526519 | V3: 10.94372083 | W3: 10.70663548 | X3: 14.10432611 | Y3: 14.70263984 | Z3: 15.86504665 | AA3: 14.50164754 | AB3: 15.41141814 | AC3: 15.17695146 | AD3: 13.99331887 | AE3: 14.89773399 | AF3: 13.82132978 | AG3: 13.01361379 | AH3: 11.87830252 | AI3: 11.78624342 | AJ3: 11.51401276 | AK3: 11.60591352 | AL3: 11.24980468 | AM3: 10.56586802 | AN3: 9.85546982 | AO3: 9.123451523 | AP3: 8.359485552 | AQ3: 7.551948153 | AR3: 7.500419357 | AS3: 7.449624359 | AT3: 7.402013042 | AU3: 7.357064737 | AV3: 7.296926027 | AW3: 7.247860353 | AX3: 7.200840327 | AY3: 7.15350912 | AZ3: 7.110527085 | BA3: 7.123325597
A4: !A1b | B4: Petroleum refining plants | C4: NA | D4: NA | E4: NA | F4: NA | G4: NA | H4: NA | I4: NA | J4: NA | K4: NA | L4: NA | M4: NA | N4: NA | O4: NA | P4: NA | Q4: NA | R4: NA | S4: NA | T4: NA | U4: NA | V4: NA | W4: NA | X4: NA | Y4: NA | Z4: NA | AA4: NA | AB4: NA | AC4: NA | AD4: NA | AE4: NA | AF4: NA | AG4: NA | AH4: NA | AI4: NA | AJ4: NA | AK4: NA | AL4: NA | AM4: NA | AN4: NA | AO4: NA | AP4: NA | AQ4: NA | AR4: NA | AS4: NA | AT4: NA | AU4: NA | AV4: NA | AW4: NA | AX4: NA | AY4: NA | AZ4: NA | BA4: NA
A5: 1A1c | B5: Oil and gas extraction | C5: NA | D5: NA | E5: NA | F5: NA | G5: NA | H5: NA | I5: NA | J5: NA | K5: NA | L5: NA | M5: NA | N5: NA | O5: NA | P5: NA | Q5: NA | R5: NA | S5: NA | T5: NA | U5: NA | V5: NA | W5: NA | X5: NA | Y5: NA | Z5: NA | AA5: NA | AB5: NA | AC5: NA | AD5: NA | AE5: NA | AF5: NA | AG5: NA | AH5: NA | AI5: NA | AJ5: NA | AK5: NA | AL5: NA | AM5: NA | AN5: NA | AO5: NA | AP5: NA | AQ5: NA | AR5: NA | AS5: NA | AT5: NA | AU5: NA | AV5: NA | AW5: NA | AX5: NA | AY5: NA | AZ5: NA | BA5: NA
A7: 1A2a-f i | B7: Combustion in manufacturing industry | C7: 213.9984979 | D7: 210.5435805 | E7: 212.7703669 | F7: 215.4034579 | G7: 177.7334672 | H7: 166.6881656 | I7: 169.4501334 | J7: 167.1897246 | K7: 170.2228044 | L7: 164.1588352 | M7: 166.7086258 | N7: 165.9843303 | O7: 119.0149372 | P7: 122.6985179 | Q7: 122.6536124 | R7: 119.4344939 | S7: 135.3973824 | T7: 144.2413432 | U7: 212.2466773 | V7: 204.94501 | W7: 212.5431696 | X7: 249.6794798 | Y7: 187.1141066 | Z7: 172.2983324 | AA7: 148.5388684 | AB7: 158.4277178 | AC7: 134.9158874 | AD7: 180.1017322 | AE7: 200.8972084 | AF7: 223.115315 | AG7: 223.5029774 | AH7: 219.7106712 | AI7: 227.8027232 | AJ7: 235.659308 | AK7: 243.5419676 | AL7: 251.4024445 | AM7: 253.0011758 | AN7: 254.621354 | AO7: 256.2862401 | AP7: 257.9665214 | AQ7: 259.6031907 | AR7: 281.2598246 | AS7: 302.9972104 | AT7: 324.764827 | AU7: 346.5195988 | AV7: 368.2441287 | AW7: 379.3053688 | AX7: 390.3362378 | AY7: 401.4262849 | AZ7: 412.5332787 | BA7: 423.5926415
A8: 1A2f ii | B8: Industry - Other (mobile) | C8: 1.189456427 | D8: 1.18874474 | E8: 1.187223758 | F8: 1.185398418 | G8: 1.183713946 | H8: 1.18661204 | I8: 1.188751478 | J8: 1.190910395 | K8: 1.193614951 | L8: 1.205670945 | M8: 1.233561166 | N8: 1.2646894 | O8: 1.288064755 | P8: 1.312201598 | Q8: 1.33783896 | R8: 1.391547286 | S8: 1.49257156 | T8: 1.630516662 | U8: 1.722745298 | V8: 1.310943671 | W8: 1.619174489 | X8: 1.528940297 | Y8: 1.475153524 | Z8: 1.444394388 | AA8: 1.423254012 | AB8: 1.408445091 | AC8: 1.396370157 | AD8: 1.385958495 | AE8: 1.392893811 | AF8: 1.424288666 | AG8: 1.460387022 | AH8: 1.399157649 | AI8: 1.415933819 | AJ8: 1.43149493 | AK8: 1.446380375 | AL8: 1.459830318 | AM8: 1.423188963 | AN8: 1.385795487 | AO8: 1.348094705 | AP8: 1.310331105 | AQ8: 1.272980197 | AR8: 1.252842682 | AS8: 1.232687978 | AT8: 1.212412539 | AU8: 1.191838717 | AV8: 1.171258428 | AW8: 1.15923092 | AX8: 1.147211102 | AY8: 1.135186846 | AZ8: 1.123153332 | BA8: 1.111125531
A10: 1A3a | B10: Civil Aviation (Domestic LTO) | C10: 0.1817430231 | D10: 0.1685263314 | E10: 0.1632492452 | F10: 0.1573562167 | G10: 0.1941449412 | H10: 0.2118733284 | I10: 0.1942746362 | J10: 0.1847140367 | K10: 0.1656868875 | L10: 0.1642887788 | M10: 0.1622406042 | N10: 0.1591424 | O10: 0.1573136 | P10: 0.1483696 | Q10: 0.1545168 | R10: 0.153638003 | S10: 0.147528912 | T10: 0.1574305152 | U10: 0.1400156352 | V10: 0.1174258616 | W10: 0.1100620416 | X10: 0.0919008096 | Y10: 0.1004092224 | Z10: 0.1037926848 | AA10: 0.062196 | AB10: 0.068166816 | AC10: 0.0751825248 | AD10: 0.0495577728 | AE10: 0.0787650144 | AF10: 0.0648828672 | AG10: 0.0708536832 | AH10: 0.06621606537 | AI10: 0.06696072286 | AJ10: 0.0677298635 | AK10: 0.06850616867 | AL10: 0.06929111023 | AM10: 0.07022403589 | AN10: 0.07117049569 | AO10: 0.07212903054 | AP10: 0.07309842962 | AQ10: 0.0740776712 | AR10: 0.07439314443 | AS10: 0.07470641862 | AT10: 0.07501738373 | AU10: 0.07532623951 | AV10: 0.07563310933 | AW10: 0.07593827371 | AX10: 0.07624156985 | AY10: 0.07654331993 | AZ10: 0.07684342951 | BA10: 0.0771418637
A11: 1A3a | B11: Civil Aviation (International LTO) | C11: 0.058034993 | D11: 0.05513048464 | E11: 0.05354112279 | F11: 0.05401066329 | G11: 0.01816731483 | H11: 0.02073971163 | I11: 0.01495270776 | J11: 0.01714930094 | K11: 0.01711959571 | L11: 0.01473618768 | M11: 0.013928951 | N11: 0.013504 | O11: 0.013352 | P11: 0.0125936 | Q11: 0.0131152 | R11: 0.01389493456 | S11: 0.0025873536 | T11: 0.0011941632 | U11: 0.0133845792 | V11: 0.006169944548 | W11: 0.0011941632 | X11: 0.0061698432 | Y11: 0.0014429472 | Z11: 0.0029356512 | AA11: 0.0047766528 | AB11: 0.0110957664 | AC11: 0.0010448928 | AD11: NA | AE11: NA | AF11: NA | AG11: NA | AH11: 0 | AI11: 0 | AJ11: 0 | AK11: 0 | AL11: 0 | AM11: 0 | AN11: 0 | AO11: 0 | AP11: 0 | AQ11: 0 | AR11: 0 | AS11: 0 | AT11: 0 | AU11: 0 | AV11: 0 | AW11: 0 | AX11: 0 | AY11: 0 | AZ11: 0 | BA11: 0
A12: 1A3bi | B12: Road transport: Passenger cars | C12: 53.0938631 | D12: 141.1520908 | E12: 327.4413638 | F12: 510.361174 | G12: 779.6632501 | H12: 1039.191178 | I12: 1284.715965 | J12: 1620.86858 | K12: 1972.217211 | L12: 2257.139676 | M12: 2447.568006 | N12: 2461.58098 | O12: 2492.954543 | P12: 2493.450759 | Q12: 2481.967466 | R12: 2360.886927 | S12: 2270.283177 | T12: 2183.774722 | U12: 2026.302185 | V12: 1899.484992 | W12: 1751.264496 | X12: 1601.51029 | Y12: 1422.227444 | Z12: 1271.399695 | AA12: 1161.85337 | AB12: 1053.85285 | AC12: 955.7961577 | AD12: 878.8508585 | AE12: 810.2421276 | AF12: 751.6842539 | AG12: 645.6714764 | AH12: 679.2952521 | AI12: 637.4286317 | AJ12: 611.1372721 | AK12: 585.5331871 | AL12: 562.1429791 | AM12: 541.5128201 | AN12: 524.7826017 | AO12: 510.3125849 | AP12: 497.9673242 | AQ12: 486.4010523 | AR12: 473.8705557 | AS12: 454.8357592 | AT12: 434.1655976 | AU12: 412.0768993 | AV12: 389.1259022 | AW12: 365.6415973 | AX12: 341.9390847 | AY12: 318.3743821 | AZ12: 295.559709 | BA12: 273.4887684
A13: 1A3bii | B13: Road transport: Light duty vehicles | C13: 7.358876571 | D13: 7.796332344 | E13: 7.909260805 | F13: 8.074615065 | G13: 8.389197854 | H13: 15.81187955 | I13: 29.7609809 | J13: 43.98584384 | K13: 57.6320448 | L13: 69.70096211 | M13: 81.22375489 | N13: 99.5020793 | O13: 104.4666918 | P13: 104.7188602 | Q13: 103.5251331 | R13: 100.4052074 | S13: 97.55224038 | T13: 97.3003094 | U13: 87.36151505 | V13: 78.36954102 | W13: 69.65716963 | X13: 61.09731999 | Y13: 54.10871673 | Z13: 47.76523988 | AA13: 43.87764883 | AB13: 40.98954656 | AC13: 39.64794559 | AD13: 40.68974603 | AE13: 42.41159911 | AF13: 43.02584511 | AG13: 42.46831054 | AH13: 50.48661917 | AI13: 51.80675042 | AJ13: 53.19940459 | AK13: 54.41542475 | AL13: 55.42412758 | AM13: 56.15525897 | AN13: 56.67574071 | AO13: 56.94775303 | AP13: 56.95979858 | AQ13: 56.64487362 | AR13: 56.00801681 | AS13: 55.03568097 | AT13: 53.79188725 | AU13: 52.28917981 | AV13: 50.59434242 | AW13: 48.84727686 | AX13: 47.18967626 | AY13: 45.63883986 | AZ13: 44.21418333 | BA13: 42.88946989
A14: 1A3biii | B14: Road transport: Heavy duty vehicles and buses | C14: 9.869570143 | D14: 9.839913237 | E14: 9.501352026 | F14: 9.206536031 | G14: 10.0022339 | H14: 10.369693 | I14: 10.73513035 | J14: 10.94091393 | K14: 11.18805849 | L14: 11.59399504 | M14: 11.15628831 | N14: 11.45540507 | O14: 11.48139609 | P14: 12.44013856 | Q14: 13.01408871 | R14: 13.24326559 | S14: 13.96715651 | T14: 15.95238534 | U14: 17.37658158 | V14: 17.65276138 | W14: 20.49454227 | X14: 26.53539741 | Y14: 28.59796924 | Z14: 31.22727966 | AA14: 36.12772546 | AB14: 38.03575665 | AC14: 40.84566573 | AD14: 42.34499926 | AE14: 44.15793941 | AF14: 44.00987012 | AG14: 43.45025083 | AH14: 44.4361965 | AI14: 44.89321862 | AJ14: 45.34404392 | AK14: 45.7329545 | AL14: 46.05209246 | AM14: 46.25758635 | AN14: 46.31756369 | AO14: 46.25186186 | AP14: 46.0716216 | AQ14: 45.75127469 | AR14: 45.27166441 | AS14: 44.65526787 | AT14: 43.92596139 | AU14: 43.09618926 | AV14: 42.19375446 | AW14: 41.35614959 | AX14: 40.68395578 | AY14: 40.17016648 | AZ14: 39.80068389 | BA14: 39.55782359
A15: 1A3biv | B15: Road transport: Mopeds & motorcycles | C15: 0.7230549407 | D15: 0.7428450418 | E15: 0.7817357075 | F15: 0.8153419574 | G15: 0.8555956044 | H15: 0.898344831 | I15: 0.9401169794 | J15: 1.024372746 | K15: 1.104682301 | L15: 1.111469966 | M15: 1.114819262 | N15: 1.069611261 | O15: 1.109811308 | P15: 1.11997621 | Q15: 1.114205539 | R15: 1.134701765 | S15: 1.188455671 | T15: 1.256008105 | U15: 1.254056949 | V15: 1.204602689 | W15: 1.184625111 | X15: 1.168266723 | Y15: 1.173000296 | Z15: 1.178459465 | AA15: 1.194393126 | AB15: 1.198381686 | AC15: 1.192849271 | AD15: 1.211846423 | AE15: 1.226334206 | AF15: 1.215562832 | AG15: 1.222573225 | AH15: 1.220225938 | AI15: 1.223127175 | AJ15: 1.226361629 | AK15: 1.228354822 | AL15: 1.230282461 | AM15: 1.232824867 | AN15: 1.236115023 | AO15: 1.240149318 | AP15: 1.245020996 | AQ15: 1.250739007 | AR15: 1.25729176 | AS15: 1.263592847 | AT15: 1.269658621 | AU15: 1.275126531 | AV15: 1.278413925 | AW15: 1.280767638 | AX15: 1.281926342 | AY15: 1.282364857 | AZ15: 1.282018971 | BA15: 1.276340388
A16: 1A3bv | B16: Road transport: Gasoline evaporation
A17: 1A3bvi | B17: Road transport: Automobile tyre and brake wear
A18: 1A3bvii | B18: Road transport: Automobile road abrasion
A19: 1A3c | B19: Railways | C19: 0.8178040054 | D19: 0.8314683317 | E19: 0.8795860668 | F19: 0.9129788099 | G19: 0.8275036284 | H19: 0.8347820029 | I19: 0.8284692026 | J19: 0.8066560232 | K19: 0.6806633382 | L19: 0.6270658 | M19: 0.615746 | N19: 0.5707674 | O19: 0.5689166952 | P19: 0.5900070792 | Q19: 0.5843399352 | R19: 0.6273528408 | S19: 0.612876516 | T19: 0.6151075056 | U19: 0.6397129536 | V19: 0.622166328 | W19: 0.654555132 | X19: 0.6740027616 | Y19: 0.673852116 | Z19: 0.669702247 | AA19: 0.6814245741 | AB19: 0.6711006943 | AC19: 0.6850972635 | AD19: 0.6593345366 | AE19: 0.6055160129 | AF19: 0.6044086 | AG19: 0.5308346491 | AH19: 0.5732268704 | AI19: 0.5752217217 | AJ19: 0.5587389067 | AK19: 0.5422570139 | AL19: 0.5409478273 | AM19: 0.5404583491 | AN19: 0.2139585742 | AO19: 0.195304132 | AP19: 0.06961264997 | AQ19: 0.05569011997 | AR19: 0 | AS19: 0 | AT19: 0 | AU19: 0 | AV19: 0 | AW19: 0 | AX19: 0 | AY19: 0 | AZ19: 0 | BA19: 0
A20: 1A3d | B20: Navigation | C20: NA | D20: NA | E20: NA | F20: NA | G20: NA | H20: NA | I20: NA | J20: NA | K20: NA | L20: NA | M20: NA | N20: NA | O20: NA | P20: NA | Q20: NA | R20: NA | S20: NA | T20: NA | U20: NA | V20: NA | W20: NA | X20: NA | Y20: NA | Z20: NA | AA20: NA | AB20: NA | AC20: NA | AD20: NA | AE20: NA | AF20: NA | AG20: NA | AH20: 0 | AI20: 0 | AJ20: 0 | AK20: 0 | AL20: 0 | AM20: 0 | AN20: 0 | AO20: 0 | AP20: 0 | AQ20: 0 | AR20: 0 | AS20: 0 | AT20: 0 | AU20: 0 | AV20: 0 | AW20: 0 | AX20: 0 | AY20: 0 | AZ20: 0 | BA20: 0
A22: 1A4a i | B22: Commercial and institutional plants | C22: 6.10785 | D22: 6.10785 | E22: 6.10785 | F22: 6.10785 | G22: 6.24792 | H22: 6.93042 | I22: 9.04722 | J22: 9.31098 | K22: 9.583468513 | L22: 11.48664283 | M22: 13.06487207 | N22: 11.78474242 | O22: 11.86662093 | P22: 11.98776108 | Q22: 11.83488516 | R22: 13.44940988 | S22: 15.07338 | T22: 15.76690183 | U22: 16.4304 | V22: 15.91414523 | W22: 15.4308979 | X22: 14.75330338 | Y22: 14.3691071 | Z22: 15.5697752 | AA22: 16.9795873 | AB22: 18.66726275 | AC22: 28.93101658 | AD22: 29.75407673 | AE22: 31.40203799 | AF22: 33.06063492 | AG22: 28.88492966 | AH22: 28.40816917 | AI22: 28.57155117 | AJ22: 28.73493317 | AK22: 28.89831516 | AL22: 29.06169716 | AM22: 28.64046317 | AN22: 28.21922918 | AO22: 27.79799518 | AP22: 27.37676119 | AQ22: 26.9555272 | AR22: 26.44822219 | AS22: 25.94091718 | AT22: 25.43361216 | AU22: 24.92630715 | AV22: 24.41900214 | AW22: 23.58350384 | AX22: 22.74800553 | AY22: 21.91250723 | AZ22: 21.07700892 | BA22: 20.24151062
A23: 1A4a ii | B23: Commercial and institutional (mobile) | C23: 0.3692956136 | D23: 0.3665256747 | E23: 0.3619128836 | F23: 0.3571693817 | G23: 0.3525292465 | H23: 0.3572941776 | I23: 0.3600083882 | J23: 0.368198754 | K23: 0.3758977983 | L23: 0.385437272 | M23: 0.3944358776 | N23: 0.4033417831 | O23: 0.4122387492 | P23: 0.426656443 | Q23: 0.4446721235 | R23: 0.465581673 | S23: 0.4755490507 | T23: 0.5329319919 | U23: 0.5579410092 | V23: 0.5002429312 | W23: 0.5611249789 | X23: 0.5578570255 | Y23: 0.5496766242 | Z23: 0.5493084004 | AA23: 0.5478316933 | AB23: 0.5474814624 | AC23: 0.5465419208 | AD23: 0.5534893359 | AE23: 0.5485812648 | AF23: 0.4764119162 | AG23: 0.4657646531 | AH23: 0.1781005852 | AI23: 0.1692041637 | AJ23: 0.1601986453 | AK23: 0.1510923619 | AL23: 0.1418528092 | AM23: 0.1217191841 | AN23: 0.101484429 | AO23: 0.08119645728 | AP23: 0.06087222006 | AQ23: 0.04051002166 | AR23: 0.03442584807 | AS23: 0.02833172725 | AT23: 0.02222803278 | AU23: 0.0161179414 | AV23: 0.01000438496 | AW23: 0.00914500607 | AX23: 0.008285265567 | AY23: 0.007425346264 | AZ23: 0.006565082903 | BA23: 0.005703910924
A24: 1A4b i | B24: Residential plants | C24: 949.5255539 | D24: 1042.680096 | E24: 1058.368746 | F24: 1104.831396 | G24: 1055.573844 | H24: 1036.474044 | I24: 1048.859017 | J24: 1048.818244 | K24: 938.218389 | L24: 907.5143158 | M24: 1027.901308 | N24: 1096.719415 | O24: 1100.997144 | P24: 1241.110967 | Q24: 1296.422029 | R24: 1447.405321 | S24: 1534.247412 | T24: 1861.295554 | U24: 1773.729015 | V24: 1696.756196 | W24: 1769.228418 | X24: 1583.400684 | Y24: 1514.398074 | Z24: 1519.786246 | AA24: 1411.642546 | AB24: 1607.57301 | AC24: 1643.615416 | AD24: 1508.604202 | AE24: 1340.704791 | AF24: 1184.804446 | AG24: 1105.916017 | AH24: 1176.695071 | AI24: 1149.451564 | AJ24: 1122.899033 | AK24: 1096.982997 | AL24: 1071.819162 | AM24: 1038.064002 | AN24: 1005.354554 | AO24: 973.161759 | AP24: 941.4683877 | AQ24: 910.2494203 | AR24: 881.7422772 | AS24: 853.6883602 | AT24: 826.0722153 | AU24: 798.8943844 | AV24: 772.1499873 | AW24: 736.5903318 | AX24: 701.7493579 | AY24: 667.6128951 | AZ24: 634.0331501 | BA24: 600.9612478
A25: 1A4b ii | B25: Residential (mobile) | C25: 0.02032720409 | D25: 0.02058000672 | E25: 0.02090480987 | F25: 0.02129461317 | G25: 0.02174127887 | H25: 0.0222359066 | I25: 0.02277006176 | J25: 0.02332300729 | K25: 0.0238795884 | L25: 0.02443740789 | M25: 0.02499476333 | N25: 0.02557263058 | O25: 0.02623093113 | P25: 0.02699507509 | Q25: 0.02784182217 | R25: 0.02879301484 | S25: 0.03031335194 | T25: 0.03220231302 | U25: 0.03394451651 | V25: 0.03370879895 | W25: 0.03234720256 | X25: 0.03179247225 | Y25: 0.03159018533 | Z25: 0.03113372502 | AA25: 0.03049143773 | AB25: 0.03016852996 | AC25: 0.03023536601 | AD25: 0.03020319112 | AE25: 0.02946995775 | AF25: 0.02777243021 | AG25: 0.02623254679 | AH25: 0.05374100986 | AI25: 0.05376192765 | AJ25: 0.05379480931 | AK25: 0.05384060294 | AL25: 0.05390680871 | AM25: 0.05398181628 | AN25: 0.05404965064 | AO25: 0.05411609677 | AP25: 0.05418774308 | AQ25: 0.05426482498 | AR25: 0.05433521894 | AS25: 0.05438620899 | AT25: 0.05441879605 | AU25: 0.05443699665 | AV25: 0.05444365727 | AW25: 0.05444470539 | AX25: 0.05444418136 | AY25: 0.05444293216 | AZ25: 0.05444145129 | BA25: 0.05443994034
A26: 1A4c i | B26: Plants in agriculture, forestry and aquaculture | C26: 240.61275 | D26: 240.61275 | E26: 240.61275 | F26: 224.2054458 | G26: 208.8888867 | H26: 193.1748658 | I26: 173.1944164 | J26: 186.0869259 | K26: 185.5093907 | L26: 170.4309198 | M26: 152.2371266 | N26: 141.7487761 | O26: 141.770755 | P26: 140.4652517 | Q26: 139.84936 | R26: 139.56649 | S26: 139.015523 | T26: 139.4063039 | U26: 140.5940815 | V26: 143.5216604 | W26: 143.1409553 | X26: 144.1505959 | Y26: 144.1382344 | Z26: 144.0259894 | AA26: 143.9145679 | AB26: 146.665466 | AC26: 148.1252887 | AD26: 148.1956117 | AE26: 146.808198 | AF26: 145.3848239 | AG26: 140.542491 | AH26: 148.5219194 | AI26: 148.159168 | AJ26: 147.7964166 | AK26: 147.4336652 | AL26: 147.0709138 | AM26: 146.3823789 | AN26: 145.693844 | AO26: 145.0053092 | AP26: 144.3167743 | AQ26: 143.6282394 | AR26: 143.3736215 | AS26: 143.1190037 | AT26: 142.8643859 | AU26: 142.6097681 | AV26: 142.3551502 | AW26: 142.3448041 | AX26: 142.334458 | AY26: 142.3241119 | AZ26: 142.3137658 | BA26: 142.3034197
A27: 1A4c ii | B27: Agriculture & forestry (mobile) | C27: 1.865116711 | D27: 1.895127163 | E27: 1.899704101 | F27: 1.958929311 | G27: 1.952086026 | H27: 2.026255897 | I27: 2.051637609 | J27: 2.111358995 | K27: 2.134717687 | L27: 2.176243628 | M27: 2.240149926 | N27: 2.324617283 | O27: 2.393645549 | P27: 2.49478117 | Q27: 2.537875871 | R27: 2.593145694 | S27: 2.707785338 | T27: 2.796875744 | U27: 2.896976652 | V27: 2.918665382 | W27: 2.864738632 | X27: 2.827734276 | Y27: 2.794556659 | Z27: 2.764141648 | AA27: 2.743355519 | AB27: 2.69649524 | AC27: 2.645912259 | AD27: 2.605105271 | AE27: 2.563085734 | AF27: 2.566421939 | AG27: 2.546418703 | AH27: 2.373544758 | AI27: 2.370510601 | AJ27: 2.340019395 | AK27: 2.295502245 | AL27: 2.251316939 | AM27: 2.180076853 | AN27: 2.108367783 | AO27: 2.035293724 | AP27: 1.962043888 | AQ27: 1.888922243 | AR27: 1.848038364 | AS27: 1.806905259 | AT27: 1.765363325 | AU27: 1.723298046 | AV27: 1.681337766 | AW27: 1.671905664 | AX27: 1.662602523 | AY27: 1.653336885 | AZ27: 1.64393148 | BA27: 1.634530579
A28: 1A4c iii | B28: Fishing (mobile) | C28: NA | D28: NA | E28: NA | F28: NA | G28: NA | H28: NA | I28: NA | J28: NA | K28: NA | L28: NA | M28: NA | N28: NA | O28: NA | P28: NA | Q28: NA | R28: NA | S28: NA | T28: NA | U28: NA | V28: NA | W28: NA | X28: NA | Y28: NA | Z28: NA | AA28: NA | AB28: NA | AC28: NA | AD28: NA | AE28: NA | AF28: NA | AG28: NA | AH28: 0 | AI28: 0 | AJ28: 0 | AK28: 0 | AL28: 0 | AM28: 0 | AN28: 0 | AO28: 0 | AP28: 0 | AQ28: 0 | AR28: 0 | AS28: 0 | AT28: 0 | AU28: 0 | AV28: 0 | AW28: 0 | AX28: 0 | AY28: 0 | AZ28: 0 | BA28: 0
A30: 1A5b | B30: Other mobile (military and recreational crafts) | C30: 0.1323172351 | D30: 0.5783567007 | E30: 0.3963378661 | F30: 0.3811788053 | G30: 0.3519093889 | H30: 0.6556302666 | I30: 0.3538206137 | J30: 0.538454151 | K30: 0.6018895055 | L30: 1.33887414 | M30: 0.3152374581 | N30: 0.4524753942 | O30: 0.3317244251 | P30: 0.5095443868 | Q30: 0.8854093517 | R30: 0.8471695511 | S30: 0.6167010617 | T30: 0.6394570003 | U30: 0.788948009 | V30: 0.9285077721 | W30: 0.6446407326 | X30: 0.7742251124 | Y30: 0.772231665 | Z30: 0.8592080029 | AA30: 0.8679054561 | AB30: 0.722008412 | AC30: 0.9578286731 | AD30: 1.733716713 | AE30: 1.359688684 | AF30: 0.8058305544 | AG30: 0.8753946807 | AH30: 0.8664183143 | AI30: 0.8889578973 | AJ30: 0.9181871631 | AK30: 0.947471019 | AL30: 0.975029386 | AM30: 1.001240348 | AN30: 1.025863476 | AO30: 1.049016285 | AP30: 1.069597898 | AQ30: 1.087796711 | AR30: 1.102961233 | AS30: 1.113350061 | AT30: 1.120276553 | AU30: 1.124103255 | AV30: 1.125323398 | AW30: 1.124043746 | AX30: 1.120512405 | AY30: 1.115389715 | AZ30: 1.109253867 | BA30: 1.102222595
A32: 1B1 | B32: Fugitive emissions from solid fuels
A33: 1B2a | B33: Fugitive emissions from oil
A34: 1B2b | B34: Fugitive emissions from gas
A35: 1B2c | B35: Fugitive emissions from venting and flaring
A37: 2A | B37: Mineral industry | C37: 544.8221 | D37: 544.8221 | E37: 544.8221 | F37: 544.8221 | G37: 544.8221 | H37: 489.4067 | I37: 509.886 | J37: 522.1511 | K37: 590.4593 | L37: 583.0224 | M37: 503.01 | N37: 444.286 | O37: 389.308 | P37: 412.4699 | Q37: 501 | R37: 446.2064 | S37: 462.8048 | T37: 472 | U37: 355.686 | V37: 340.688 | W37: 311.165 | X37: 303.165 | Y37: 339.417 | Z37: 282.744 | AA37: 305.908 | AB37: 387.3252 | AC37: 253.814 | AD37: 259.286 | AE37: 354.542 | AF37: 298.637 | AG37: 291.534 | AH37: 297.9790103 | AI37: 304.4240205 | AJ37: 310.8690308 | AK37: 317.314041 | AL37: 323.7590513 | AM37: 326.2403305 | AN37: 328.7216096 | AO37: 331.2028888 | AP37: 333.684168 | AQ37: 336.1654472 | AR37: 337.6990711 | AS37: 339.232695 | AT37: 340.766319 | AU37: 342.2999429 | AV37: 343.8335669 | AW37: 346.4788624 | AX37: 349.1241578 | AY37: 351.7694533 | AZ37: 354.4147488 | BA37: 357.0600443
A38: 2B | B38: Chemical Industry | C38: 27 | D38: 38 | E38: 52 | F38: 67 | G38: 110 | H38: 82 | I38: 75 | J38: 50 | K38: 25 | L38: 33 | M38: 27 | N38: 101 | O38: 93 | P38: 113 | Q38: 101 | R38: 79 | S38: 88 | T38: 107 | U38: 111 | V38: 165 | W38: 123 | X38: 20.3 | Y38: 17.799 | Z38: 21 | AA38: 18 | AB38: 19.3 | AC38: 16 | AD38: 9 | AE38: 14 | AF38: 6.9 | AG38: 11.2 | AH38: 10.7 | AI38: 10.7 | AJ38: 10.7 | AK38: 10.7 | AL38: 10.7 | AM38: 10.7 | AN38: 10.7 | AO38: 10.7 | AP38: 10.7 | AQ38: 10.7 | AR38: 10.7 | AS38: 10.7 | AT38: 10.7 | AU38: 10.7 | AV38: 10.7 | AW38: 10.7 | AX38: 10.7 | AY38: 10.7 | AZ38: 10.7 | BA38: 10.7
A39: 2C | B39: Metal industry
A40: 2D | B40: Non-energy products from fuels and solvent use
A41: 2G | B41: Other product manufacture and use | C41: 55.15706827 | D41: 51.6756862 | E41: 52.47446637 | F41: 49.88273008 | G41: 49.22991953 | H41: 49.3936266 | I41: 47.92825902 | J41: 48.84236201 | K41: 48.23861666 | L41: 48.78479391 | M41: 48.61840435 | N41: 46.51804279 | O41: 46.82901009 | P41: 48.98748438 | Q41: 47.78195508 | R41: 44.88060057 | S41: 45.61019575 | T41: 42.99109713 | U41: 41.99771411 | V41: 41.03901495 | W41: 40.2622678 | X41: 36.8169783 | Y41: 37.3142557 | Z41: 38.24001325 | AA41: 32.20247015 | AB41: 31.95397175 | AC41: 30.2730298 | AD41: 31.00391745 | AE41: 25.77728185 | AF41: 27.5746208 | AG41: 23.0615396 | AH41: 25.09337378 | AI41: 24.48122864 | AJ41: 23.8690835 | AK41: 23.25693836 | AL41: 22.64479322 | AM41: 22.03264808 | AN41: 21.42050294 | AO41: 20.8083578 | AP41: 20.19621266 | AQ41: 19.58406752 | AR41: 18.97192238 | AS41: 18.35977724 | AT41: 17.7476321 | AU41: 17.13548696 | AV41: 16.52334182 | AW41: 15.91119668 | AX41: 15.29905154 | AY41: 14.6869064 | AZ41: 14.07476126 | BA41: 13.46261612
A42: 2H | B42: Other
A43: 2I | B43: Wood processing
A44: 2L | B44: Other production | C44: 40.048722 | D44: 52.730244 | E44: 52.527825 | F44: 55.934739 | G44: 51.542379 | H44: 49.558068 | I44: 49.141701 | J44: 47.291391 | K44: 49.478499 | L44: 49.447503 | M44: 45.116757 | N44: 44.799615 | O44: 59.275125 | P44: 56.624778 | Q44: 53.595675 | R44: 49.869918 | S44: 46.970658 | T44: 49.067424 | U44: 45.989559 | V44: 37.603251 | W44: 35.416521 | X44: 34.298397 | Y44: 29.753514 | Z44: 25.374951 | AA44: 25.209576 | AB44: 30.243213 | AC44: 31.012065 | AD44: 25.798311 | AE44: 29.223936 | AF44: 29.935332 | AG44: 30.869937 | AH44: 30.009735 | AI44: 30.009735 | AJ44: 30.009735 | AK44: 30.009735 | AL44: 30.009735 | AM44: 30.009735 | AN44: 30.009735 | AO44: 30.009735 | AP44: 30.009735 | AQ44: 30.009735 | AR44: 30.009735 | AS44: 30.009735 | AT44: 30.009735 | AU44: 30.009735 | AV44: 30.009735 | AW44: 30.009735 | AX44: 30.009735 | AY44: 30.009735 | AZ44: 30.009735 | BA44: 30.009735
A46: 3B1a | B46: Manure Management - Dairy cattle | C46: 7506.078803 | D46: 7387.502373 | E46: 7087.608122 | F46: 7105.298015 | G46: 6957.046427 | H46: 6977.374229 | I46: 7002.150064 | J46: 6948.505302 | K46: 7184.377331 | L46: 6885.146927 | M46: 7153.250085 | N46: 7226.281513 | O46: 7346.394852 | P46: 7816.010299 | Q46: 7769.50744 | R46: 7568.722303 | S46: 7590.555321 | T46: 6882.180901 | U46: 7148.044328 | V46: 7124.267921 | W46: 7175.586234 | X46: 7388.910485 | Y46: 7536.86244 | Z46: 7472.662109 | AA46: 7288.04049 | AB46: 7218.841578 | AC46: 7610.128648 | AD46: 7374.587761 | AE46: 7694.876733 | AF46: 7595.454139 | AG46: 7523.289305 | AH46: 7390.118721 | AI46: 7408.903371 | AJ46: 7380.201581 | AK46: 7354.080661 | AL46: 7279.082417 | AM46: 7246.350246 | AN46: 7248.48319 | AO46: 7231.593054 | AP46: 7192.813598 | AQ46: 7191.881656 | AR46: 7125.739772 | AS46: 7024.197463 | AT46: 6888.050019 | AU46: 6791.77897 | AV46: 6698.047736 | AW46: 6593.833075 | AX46: 6456.481812 | AY46: 6357.679689 | AZ46: 6261.278514 | BA46: 6167.208826
A47: 3B1b | B47: Manure Management - Non-dairy cattle | C47: 4638.471003 | D47: 4643.076808 | E47: 4683.19381 | F47: 4512.49918 | G47: 4218.281228 | H47: 4143.692496 | I47: 4107.25261 | J47: 3971.855957 | K47: 3817.864468 | L47: 3788.224752 | M47: 4357.392314 | N47: 4515.872531 | O47: 4404.85363 | P47: 4291.770462 | Q47: 4431.180276 | R47: 2809.833338 | S47: 2955.796125 | T47: 3530.021099 | U47: 3571.349004 | V47: 3431.584136 | W47: 3340.225987 | X47: 3436.036837 | Y47: 3422.54839 | Z47: 3504.596247 | AA47: 3427.622675 | AB47: 3378.96111 | AC47: 3353.881461 | AD47: 3231.503899 | AE47: 3201.158213 | AF47: 3102.825773 | AG47: 3081.401515 | AH47: 3068.538619 | AI47: 3079.125866 | AJ47: 3085.569694 | AK47: 3091.594131 | AL47: 3088.790881 | AM47: 3094.406427 | AN47: 3099.676246 | AO47: 3104.986981 | AP47: 3100.782877 | AQ47: 3105.775803 | AR47: 3086.223843 | AS47: 3067.403036 | AT47: 3039.181655 | AU47: 3020.351488 | AV47: 3001.443742 | AW47: 2982.511615 | AX47: 2954.468518 | AY47: 2935.535686 | AZ47: 2916.631531 | BA47: 2897.655292
A48: 3B2 | B48: Manure Management - Sheep | C48: 101.152445 | D48: 117.1953302 | E48: 112.7148372 | F48: 97.13281021 | G48: 88.00808084 | H48: 88.81095138 | I48: 103.4963516 | J48: 105.568233 | K48: 111.057156 | L48: 116.325994 | M48: 122.859221 | N48: 130.517083 | O48: 129.2460914 | P48: 133.1636066 | Q48: 136.6717636 | R48: 138.9441425 | S48: 140.5661699 | T48: 122.7231828 | U48: 116.4793074 | V48: 114.5282202 | W48: 110.0480562 | X48: 92.72422659 | Y48: 89.55767561 | Z48: 87.64723612 | AA48: 87.19713777 | AB48: 83.37625879 | AC48: 82.21581799 | AD48: 81.05537719 | AE48: 81.26753809 | AF48: 87.05834092 | AG48: 79.35214157 | AH48: 79.35214157 | AI48: 79.35214157 | AJ48: 79.35214157 | AK48: 79.35214157 | AL48: 79.35214157 | AM48: 79.35214157 | AN48: 79.35214157 | AO48: 79.35214157 | AP48: 79.35214157 | AQ48: 79.35214157 | AR48: 79.35214157 | AS48: 79.35214157 | AT48: 79.35214157 | AU48: 79.35214157 | AV48: 79.35214157 | AW48: 79.35214157 | AX48: 79.35214157 | AY48: 79.35214157 | AZ48: 79.35214157 | BA48: 79.35214157
A49: 3B3 | B49: Manure Management - Swine | C49: 28915.32786 | D49: 28803.65801 | E49: 29421.33006 | F49: 30150.20457 | G49: 28124.94056 | H49: 26197.07171 | I49: 25878.80544 | J49: 26308.95871 | K49: 27548.69411 | L49: 26866.01165 | M49: 25034.13999 | N49: 26136.71935 | O49: 26683.80872 | P49: 25559.40181 | Q49: 26382.48566 | R49: 24561.54665 | S49: 22295.43475 | T49: 20366.52768 | U49: 18883.62038 | V49: 17660.8037 | W49: 17344.67578 | X49: 17163.41197 | Y49: 16293.71443 | Z49: 15839.82672 | AA49: 16027.57503 | AB49: 15658.8527 | AC49: 14668.87882 | AD49: 14622.50355 | AE49: 14868.70347 | AF49: 14028.74171 | AG49: 14469.5404 | AH49: 15274.89237 | AI49: 14562.72983 | AJ49: 14171.92132 | AK49: 13698.62919 | AL49: 13323.91063 | AM49: 12873.59966 | AN49: 12510.59044 | AO49: 12113.82379 | AP49: 11734.55513 | AQ49: 11358.19291 | AR49: 10874.08255 | AS49: 10490.63024 | AT49: 10189.28405 | AU49: 9807.653925 | AV49: 9465.232808 | AW49: 9104.182812 | AX49: 8807.174389 | AY49: 8457.89471 | AZ49: 8130.620513 | BA49: 7794.814544
A50: 3B4d | B50: Manure Management - Goats | C50: 8.147552324 | D50: 8.038338718 | E50: 7.929125113 | F50: 7.819911507 | G50: 7.710697901 | H50: 7.601484295 | I50: 7.49227069 | J50: 7.383057084 | K50: 8.427378229 | L50: 8.790336879 | M50: 9.19676363 | N50: 10.26607893 | O50: 10.03026448 | P50: 10.91918716 | Q50: 11.70813321 | R50: 12.04111383 | S50: 12.92859174 | T50: 12.2773658 | U50: 13.89348283 | V50: 15.44603344 | W50: 15.73709991 | X50: 12.34712717 | Y50: 12.95255115 | Z50: 13.04626272 | AA50: 12.00102518 | AB50: 11.32124479 | AC50: 11.30227204 | AD50: 11.25756512 | AE50: 10.37953835 | AF50: 11.7318946 | AG50: 10.38947415 | AH50: 10.38947415 | AI50: 10.38947415 | AJ50: 10.38947415 | AK50: 10.38947415 | AL50: 10.38947415 | AM50: 10.38947415 | AN50: 10.38947415 | AO50: 10.38947415 | AP50: 10.38947415 | AQ50: 10.38947415 | AR50: 10.38947415 | AS50: 10.38947415 | AT50: 10.38947415 | AU50: 10.38947415 | AV50: 10.38947415 | AW50: 10.38947415 | AX50: 10.38947415 | AY50: 10.38947415 | AZ50: 10.38947415 | BA50: 10.38947415
A51: 3B4e | B51: Manure Management - Horses | C51: 720.3304205 | D51: 713.7447769 | E51: 706.7459057 | F51: 699.5230489 | G51: 691.8747884 | H51: 683.9076549 | I51: 691.1066829 | J51: 698.3057108 | K51: 705.5047388 | L51: 723.6470234 | M51: 725.3534196 | N51: 749.531867 | O51: 773.7103143 | P51: 797.8647187 | Q51: 822.0424375 | R51: 846.2201563 | S51: 870.397875 | T51: 803.3514991 | U51: 825.0637018 | V51: 770.7831951 | W51: 716.5026884 | X51: 673.078283 | Y51: 673.078283 | Z51: 651.3660804 | AA51: 651.3660804 | AB51: 673.078283 | AC51: 705.6465871 | AD51: 738.2148911 | AE51: 759.9270938 | AF51: 759.9270938 | AG51: 876.1844108 | AH51: 877.4543414 | AI51: 877.4543414 | AJ51: 877.4543414 | AK51: 877.4543414 | AL51: 877.4543414 | AM51: 877.4543414 | AN51: 877.4543414 | AO51: 877.4543414 | AP51: 877.4543414 | AQ51: 877.4543414 | AR51: 877.4543414 | AS51: 877.4543414 | AT51: 877.4543414 | AU51: 877.4543414 | AV51: 877.4543414 | AW51: 877.4543414 | AX51: 877.4543414 | AY51: 877.4543414 | AZ51: 877.4543414 | BA51: 877.4543414
A52: 3B4g | B52: Manure Management - Poultry | C52: 3440.399999 | D52: 3523.371615 | E52: 3789.629584 | F52: 4032.964224 | G52: 4435.40875 | H52: 4333.136177 | I52: 4234.810709 | J52: 4280.456082 | K52: 4237.218402 | L52: 4421.533567 | M52: 4461.115663 | N52: 4524.983838 | O52: 4502.98988 | P52: 4577.405048 | Q52: 4801.9671 | R52: 4729.837045 | S52: 4127.512467 | T52: 3641.662723 | U52: 3735.117941 | V52: 3492.830929 | W52: 3606.015382 | X52: 3480.516024 | Y52: 3269.87635 | Z52: 2531.436458 | AA52: 2391.633617 | AB52: 2301.301018 | AC52: 2466.994429 | AD52: 2367.118615 | AE52: 2476.374345 | AF52: 2547.910385 | AG52: 2518.585858 | AH52: 2715.468071 | AI52: 2703.437744 | AJ52: 2690.768829 | AK52: 2677.11167 | AL52: 2662.21833 | AM52: 2646.974904 | AN52: 2636.229873 | AO52: 2621.722895 | AP52: 2608.878732 | AQ52: 2593.081435 | AR52: 2572.375688 | AS52: 2551.626841 | AT52: 2530.940557 | AU52: 2510.360388 | AV52: 2489.921406 | AW52: 2469.652166 | AX52: 2449.575189 | AY52: 2429.708202 | AZ52: 2410.065041 | BA52: 2390.656101
A53: 3B4h | B53: Manure Management - Other (mainly mink) | C53: 5193.421689 | D53: 4770.176018 | E53: 5124.688055 | F53: 3412.215215 | G53: 4015.984797 | H53: 4023.874491 | I53: 4175.737517 | J53: 4808.871064 | K53: 5087.187326 | L53: 4517.237868 | M53: 4711.157876 | N53: 4912.427743 | O53: 5152.103758 | P53: 5005.842644 | Q53: 5742.811515 | R53: 6255.354009 | S53: 6369.930006 | T53: 6285.407894 | U53: 6427.736187 | V53: 6553.261706 | W53: 6895.729673 | X53: 6802.269348 | Y53: 6999.295491 | Z53: 5698.268942 | AA53: 5882.502879 | AB53: 6189.945736 | AC53: 5994.802153 | AD53: 6373.826263 | AE53: 5826.088494 | AF53: 4549.76631 | AG53: 4098.209433 | AH53: 0 | AI53: 0 | AJ53: 386.7856176 | AK53: 379.0742088 | AL53: 371.3315076 | AM53: 363.5772901 | AN53: 355.8016782 | AO53: 348.0046703 | AP53: 340.1763064 | AQ53: 325.204475 | AR53: 325.204475 | AS53: 325.204475 | AT53: 325.204475 | AU53: 325.204475 | AV53: 325.204475 | AW53: 325.204475 | AX53: 325.204475 | AY53: 325.204475 | AZ53: 325.204475 | BA53: 325.204475
A54: 3Da1 | B54: Inorganic N-fertilizers (includes also urea application) | C54: 19841.66851 | D54: 18796.93728 | E54: 17012.16811 | F54: 16306.94546 | G54: 16435.75458 | H54: 15453.71169 | I54: 14028.51402 | J54: 13750.8478 | K54: 13344.05322 | L54: 12485.50429 | M54: 11638.45281 | N54: 10794.72679 | O54: 9971.601114 | P54: 9687.559286 | Q54: 10150.42885 | R54: 9911.787221 | S54: 9730.682093 | T54: 10149.43253 | U54: 10795.93464 | V54: 8954.031021 | W54: 9834.129764 | X54: 10495.99562 | Y54: 10076.92061 | Z54: 9906.016814 | AA54: 10346.15884 | AB54: 11011.58461 | AC54: 12021.38206 | AD54: 14171.49264 | AE54: 12775.07464 | AF54: 11221.15503 | AG54: 12157.62635 | AH54: 11311.86211 | AI54: 11293.06612 | AJ54: 10480.10791 | AK54: 10435.90322 | AL54: 10347.04255 | AM54: 10266.29807 | AN54: 10223.53195 | AO54: 10191.65588 | AP54: 10124.85654 | AQ54: 10067.73328 | AR54: 10132.36361 | AS54: 10210.04223 | AT54: 10275.09065 | AU54: 10349.01954 | AV54: 10413.34269 | AW54: 10476.95732 | AX54: 10551.90615 | AY54: 10620.0915 | AZ54: 10693.21064 | BA54: 10760.39948
A55: 3Da2a | B55: Animal manure applied to soils | C55: 47952.60523 | D55: 45537.81647 | E55: 43333.9844 | F55: 41295.05499 | G55: 37880.16645 | H55: 34978.58904 | I55: 33168.11956 | J55: 31743.06859 | K55: 31095.80531 | L55: 29392.51675 | M55: 27735.91856 | N55: 24328.44878 | O55: 22688.90819 | P55: 22746.43667 | Q55: 20354.84049 | R55: 20832.04055 | S55: 20245.61008 | T55: 21423.5783 | U55: 20948.76251 | V55: 20516.45577 | W55: 20901.87415 | X55: 17453.78873 | Y55: 17200.70111 | Z55: 17556.68101 | AA55: 17409.34421 | AB55: 18274.55223 | AC55: 18393.70622 | AD55: 18611.81725 | AE55: 18926.48486 | AF55: 18351.91689 | AG55: 18697.85451 | AH55: 18869.97121 | AI55: 18794.92779 | AJ55: 18877.94564 | AK55: 18822.35672 | AL55: 18719.30589 | AM55: 18683.71677 | AN55: 18640.74258 | AO55: 18536.83358 | AP55: 18489.84826 | AQ55: 18439.67267 | AR55: 18284.96867 | AS55: 18038.6303 | AT55: 17804.1777 | AU55: 17609.80213 | AV55: 17429.38605 | AW55: 17238.89744 | AX55: 17025.13933 | AY55: 16897.72405 | AZ55: 16676.09962 | BA55: 16498.05159
A56: 3Da2b-c | B56: Sludge applied to soils | C56: 527.69336 | D56: 635.97928 | E56: 742.42952 | F56: 1003.64304 | G56: 937.13784 | H56: 958.936 | I56: 962.14784 | J56: 878.6476 | K56: 906.66296 | L56: 827.27016 | M56: 884.35424 | N56: 1040.71608 | O56: 953.2017599 | P56: 840.5536 | Q56: 691.7376801 | R56: 542.9428799 | S56: 630.16328 | T56: 672.2026401 | U56: 771.2592 | V56: 781.63952 | W56: 745.29312 | X56: 758.7271201 | Y56: 837.2635201 | Z56: 864.2362399 | AA56: 887.80064 | AB56: 884.9069601 | AC56: 916.9963202 | AD56: 889.87 | AE56: 829.27552 | AF56: 1006.53368 | AG56: 920.8726404 | AH56: 915.0582023 | AI56: 912.6967943 | AJ56: 910.4163041 | AK56: 907.8538967 | AL56: 904.2151464 | AM56: 900.3327955 | AN56: 895.9904798 | AO56: 894.5750323 | AP56: 893.3305554 | AQ56: 893.1781469 | AR56: 892.2423289 | AS56: 890.180181 | AT56: 886.7402574 | AU56: 885.2894174 | AV56: 883.6095995 | AW56: 882.2540539 | AX56: 881.0027932 | AY56: 879.8287348 | AZ56: 878.4244412 | BA56: 877.1828525
A57: 3Da3 | B57: Urine and dung deposited by grazing animals | C57: 3878.209787 | D57: 3952.18841 | E57: 3975.90431 | F57: 4059.576896 | G57: 3994.338008 | H57: 4075.634517 | I57: 4127.549751 | J57: 4075.814744 | K57: 4099.608935 | L57: 4092.65245 | M57: 4101.995854 | N57: 4152.072387 | O57: 4000.238228 | P57: 3656.182139 | Q57: 3424.600579 | R57: 3260.121548 | S57: 3122.956995 | T57: 3027.164102 | U57: 3028.729646 | V57: 2862.791564 | W57: 2765.764786 | X57: 2648.343609 | Y57: 2673.888148 | Z57: 2685.188195 | AA57: 2654.140289 | AB57: 2614.52029 | AC57: 2655.504401 | AD57: 2664.991627 | AE57: 2684.033084 | AF57: 2658.325406 | AG57: 2862.589138 | AH57: 2854.959471 | AI57: 2869.90334 | AJ57: 2875.062164 | AK57: 2879.490685 | AL57: 2883.722235 | AM57: 2887.210297 | AN57: 2891.973854 | AO57: 2895.609909 | AP57: 2899.792029 | AQ57: 2903.859686 | AR57: 2893.787883 | AS57: 2883.565096 | AT57: 2873.379057 | AU57: 2863.194324 | AV57: 2853.062593 | AW57: 2842.340623 | AX57: 2831.643801 | AY57: 2821.016377 | AZ57: 2810.417139 | BA57: 2799.887985
A58: 3Dc | B58: Farm-level agricultural operations including storage, handling and transport of agricultural products
A59: 3De | B59: Cultivated crops | C59: 5922.650643 | D59: 5884.517821 | E59: 5850.608893 | F59: 5768.599071 | G59: 5357.174786 | H59: 5283.176214 | I59: 5312.85275 | J59: 5436.236321 | K59: 5406.915571 | L59: 5252.79175 | M59: 5211.712464 | N59: 5253.567071 | O59: 5255.7285 | P59: 5243.123607 | Q59: 5274.004107 | R59: 5336.918679 | S59: 5337.605964 | T59: 5257.61125 | U59: 5414.677893 | V59: 5410.154071 | W59: 5407.035179 | X59: 5418.455536 | Y59: 5400.201786 | Z59: 5374.561536 | AA59: 5451.587321 | AB59: 5400.050607 | AC59: 5406.978107 | AD59: 5401.328036 | AE59: 5444.623393 | AF59: 5417.3475 | AG59: 5369.02925 | AH59: 5366.64239 | AI59: 5340.59957 | AJ59: 5314.620109 | AK59: 5289.161474 | AL59: 5265.036884 | AM59: 5232.250423 | AN59: 5199.591596 | AO59: 5184.27973 | AP59: 5168.967865 | AQ59: 5160.11999 | AR59: 5154.524698 | AS59: 5148.929405 | AT59: 5143.334113 | AU59: 5137.73882 | AV59: 5132.143528 | AW59: 5126.548235 | AX59: 5120.952943 | AY59: 5115.35765 | AZ59: 5109.762358 | BA59: 5104.167065
A60: 3F | B60: Field burning of agricultural residues | C60: 77.191866 | D60: 80.257527 | E60: 76.73562 | F60: 83.787237 | G60: 80.799147 | H60: 91.442898 | I60: 90.929736 | J60: 96.392754 | K60: 121.349961 | L60: 115.275555 | M60: 113.55201 | N60: 119.332197 | O60: 99.266553 | P60: 119.334492 | Q60: 125.113302 | R60: 126.959859 | S60: 128.7954 | T60: 111.442446 | U60: 103.207986 | V60: 121.417434 | W60: 88.539264 | X60: 87.635952 | Y60: 100.711944 | Z60: 108.839916 | AA60: 107.165484 | AB60: 95.547276 | AC60: 93.33306 | AD60: 105.858252 | AE60: 121.838796 | AF60: 136.682856 | AG60: 136.679184 | AH60: 117.9832222 | AI60: 117.4106825 | AJ60: 116.8395357 | AK60: 116.2798391 | AL60: 115.7494708 | AM60: 115.0286752 | AN60: 114.3106855 | AO60: 113.9740611 | AP60: 113.6374366 | AQ60: 113.44292 | AR60: 113.31991 | AS60: 113.1969 | AT60: 113.0738901 | AU60: 112.9508801 | AV60: 112.8278701 | AW60: 112.7048601 | AX60: 112.5818501 | AY60: 112.4588401 | AZ60: 112.3358301 | BA60: 112.2128201
A61: 3I | B61: Agriculture other | C61: 10210.2 | D61: 8659.302143 | E61: 7687.545714 | F61: 7591.35 | G61: 8116.552857 | H61: 6646.902857 | I61: 5069.995 | J61: 4485.000714 | K61: 3705.004286 | L61: 2079.998571 | M61: 2471.302143 | N61: 1621.095714 | O61: 941.8485714 | P61: 804.0514286 | Q61: 526.5021429 | R61: 260.0028571 | S61: 157.8571429 | T61: 157.8571429 | U61: 157.8571429 | V61: 157.8571429 | W61: 157.8571429 | X61: 157.8571429 | Y61: 157.8571429 | Z61: 157.8571429 | AA61: 157.8571429 | AB61: 157.8571429 | AC61: 157.8571429 | AD61: 157.8571429 | AE61: 157.8571429 | AF61: 157.8571429 | AG61: 157.8571429 | AH61: 156.6549151 | AI61: 155.8947125 | AJ61: 155.1363593 | AK61: 154.3932093 | AL61: 153.6890007 | AM61: 152.7319479 | AN61: 151.7786208 | AO61: 151.3316599 | AP61: 150.8846991 | AQ61: 150.6264253 | AR61: 150.463096 | AS61: 150.2997666 | AT61: 150.1364373 | AU61: 149.973108 | AV61: 149.8097787 | AW61: 149.6464494 | AX61: 149.48312 | AY61: 149.3197907 | AZ61: 149.1564614 | BA61: 148.9931321
A63: 5A | B63: Solid waste disposal on land | C63: NE | D63: NE | E63: NE | F63: NE | G63: NE | H63: NE | I63: NE | J63: NE | K63: NE | L63: NE | M63: NE | N63: NE | O63: NE | P63: NE | Q63: NE | R63: NE | S63: NE | T63: NE | U63: NE | V63: NE | W63: NE | X63: NE | Y63: NE | Z63: NE | AA63: NE | AB63: NE | AC63: NE | AD63: NE | AE63: NE | AF63: NE | AG63: NE | AH63: =AG63 -> NE | AI63: =AH63 -> NE | AJ63: NE | AK63: NE | AL63: NE | AM63: NE | AN63: NE | AO63: NE | AP63: NE | AQ63: NE | AR63: NE | AS63: NE | AT63: NE | AU63: NE | AV63: NE | AW63: NE | AX63: NE | AY63: NE | AZ63: NE | BA63: NE
A64: 5B | B64: Biological treatment of waste | C64: 208.2418492 | D64: 230.1696803 | E64: 251.9959212 | F64: 273.9026969 | G64: 295.7359636 | H64: 273.31464 | I64: 322.795736 | J64: 375.548856 | K64: 405.385204 | L64: 485.577478 | M64: 539.663552 | N64: 507.803548 | O64: 589.339006 | P64: 606.980438 | Q64: 493.782266 | R64: 527.430848 | S64: 563.296844 | T64: 631.898744 | U64: 579.942 | V64: 624.210962 | W64: 589.46485 | X64: 554.661718 | Y64: 537.051036 | Z64: 574.715124 | AA64: 574.3665 | AB64: 615.56479 | AC64: 626.150436 | AD64: 689.166326 | AE64: 666.651804 | AF64: 688.324072 | AG64: 685.831912 | AH64: 683.139102 | AI64: 683.995478 | AJ64: 684.881914 | AK64: 685.6097 | AL64: 685.779706 | AM64: 686.467078 | AN64: 686.948038 | AO64: 687.439686 | AP64: 688.004814 | AQ64: 688.574618 | AR64: 688.574618 | AS64: 688.095328 | AT64: 687.252646 | AU64: 687.130068 | AV64: 686.810764 | AW64: 686.634746 | AX64: 686.509162 | AY64: 686.424326 | AZ64: 686.226264 | BA64: 686.098676
A65: 5C | B65: Waste incineration | C65: 0.285 | D65: 0.304 | E65: 0.323 | F65: 0.342 | G65: 0.361 | H65: 0.38 | I65: 0.399 | J65: 0.418 | K65: 0.4465 | L65: 0.6992 | M65: 0.8417 | N65: 0.8588 | O65: 0.8569 | P65: 0.8778 | Q65: 1.0849 | R65: 1.4478 | S65: 2.1204 | T65: 2.4396 | U65: 2.5422 | V65: 2.5441 | W65: 2.7531 | X65: 2.3161 | Y65: 2.3712 | Z65: 2.1774 | AA65: 2.2059 | AB65: 2.1261 | AC65: 2.2553 | AD65: 2.2078 | AE65: 2.2211 | AF65: 2.1489 | AG65: 1.8905 | AH65: 2.086833333 | AI65: 2.086833333 | AJ65: 2.086833333 | AK65: 2.086833333 | AL65: 2.086833333 | AM65: 2.086833333 | AN65: 2.086833333 | AO65: 2.086833333 | AP65: 2.086833333 | AQ65: 2.086833333 | AR65: 2.086833333 | AS65: 2.086833333 | AT65: 2.086833333 | AU65: 2.086833333 | AV65: 2.086833333 | AW65: 2.086833333 | AX65: 2.086833333 | AY65: 2.086833333 | AZ65: 2.086833333 | BA65: 2.086833333
A66: 5D | B66: Wastewater handling | C66: NE | D66: NE | E66: NE | F66: NE | G66: NE | H66: NE | I66: NE | J66: NE | K66: NE | L66: NE | M66: NE | N66: NE | O66: NE | P66: NE | Q66: NE | R66: NE | S66: NE | T66: NE | U66: NE | V66: NE | W66: NE | X66: NE | Y66: NE | Z66: NE | AA66: NE | AB66: NE | AC66: NE | AD66: NE | AE66: NE | AF66: NE | AG66: NE | AH66: =AG66 -> NE | AI66: =AH66 -> NE | AJ66: NE | AK66: NE | AL66: NE | AM66: NE | AN66: NE | AO66: NE | AP66: NE | AQ66: NE | AR66: NE | AS66: NE | AT66: NE | AU66: NE | AV66: NE | AW66: NE | AX66: NE | AY66: NE | AZ66: NE | BA66: NE
A67: 5E | B67: Other | C67: NE | D67: NE | E67: NE | F67: NE | G67: NE | H67: NE | I67: NE | J67: NE | K67: NE | L67: NE | M67: NE | N67: NE | O67: NE | P67: NE | Q67: NE | R67: NE | S67: NE | T67: NE | U67: NE | V67: NE | W67: NE | X67: NE | Y67: NE | Z67: NE | AA67: NE | AB67: NE | AC67: NE | AD67: NE | AE67: NE | AF67: NE | AG67: NE | AH67: =AG67 -> NE | AI67: =AH67 -> NE | AJ67: NE | AK67: NE | AL67: NE | AM67: NE | AN67: NE | AO67: NE | AP67: NE | AQ67: NE | AR67: NE | AS67: NE | AT67: NE | AU67: NE | AV67: NE | AW67: NE | AX67: NE | AY67: NE | AZ67: NE | BA67: NE
B68: Total | C68: =SUM(C3:C67) -> 141295.3151 | D68: 136097.0771 | E68: 132437.4329 | F68: 129204.9776 | G68: 124650.6582 | H68: 117368.0821 | I68: 112703.3522 | J68: 111739.6944 | K68: 111855.764 | L68: 106380.5433 | M68: 103810.6304 | N68: 100665.9468 | O68: 98091.03631 | P68: 96671.86345 | Q68: 96030.39544 | R68: 92554.03152 | S68: 89149.01122 | T68: 88225.56883 | U68: 87372.75426 | V68: 83254.16816 | W68: 84207.21479 | X68: 80724.54849 | Y68: 79096.36408 | Z68: 76622.02308 | AA68: 76724.87689 | AB68: 78128.18669 | AC68: 78513.69773 | AD68: =SUM(AD3:AD67) -> 80670.50898 | AE68: =SUM(AE3:AE67) -> 79589.70496 | AF68: 75132.84617 | AG68: =SUM(AG3:AG67) -> 76254.49717 | AH68: 72424.51614 | AI68: 71568.2526 | AJ68: 70738.02857 | AK68: 70062.97994 | AL68: 69337.2167 | AM68: 68634.41335 | AN68: 68093.50103 | AO68: 67468.79695 | AP68: 66856.73319 | AQ68: 66299.59656 | AR68: 65581.63355 | AS68: 64842.88203 | AT68: 64138.29186 | AU68: 63453.10513 | AV68: 62812.96808 | AW68: 62114.04282 | AX68: 61426.07211 | AY68: 60814.6303 | AZ68: 60139.85338 | BA68: 59498.46774
B71: Reduction since 2005 | S71: =($R$68-S68)/$R$68 -> 0.03678954058 | T71: 0.04676687357 | U71: 0.05598110823 | V71: 0.1004803703 | W71: 0.09018317835 | X71: 0.1278116451 | Y71: 0.145403363 | Z71: 0.1721373794 | AA71: 0.1710260955 | AB71: 0.1558640352 | AC71: 0.1516987813 | AD71: 0.1283955149 | AE71: 0.1400730617 | AF71: 0.1882271908 | AG71: 0.1761083129 | AH71: =($R$68-AH68)/$R$68 -> 0.2174893416 | AI71: 0.2267408407 | AJ71: 0.235710996 | AK71: 0.2430045586 | AL71: 0.2508460673 | AM71: 0.2584395059 | AN71: 0.2642837928 | AO71: 0.2710334078 | AP71: 0.2776464505 | AQ71: 0.2836660329 | AR71: 0.291423264 | AS71: 0.2994051046 | AT71: 0.3070178488 | AU71: 0.3144209487 | AV71: 0.3213373091 | AW71: 0.3288888468 | AX71: 0.3363220262 | AY71: 0.342928349 | AZ71: 0.3502189759 | BA71: 0.3571488269
A73: 1A3a | B73: Civil Aviation (Domestic Cruise)
B74: Civil Aviation (International Cruise)
A75: 1A3d | B75: Navigation, international

Sheet TSP
A1: TSP (tons)
C2: 1990 | D2: 1991 | E2: 1992 | F2: 1993 | G2: 1994 | H2: 1995 | I2: 1996 | J2: 1997 | K2: 1998 | L2: 1999 | M2: 2000 | N2: 2001 | O2: 2002 | P2: 2003 | Q2: 2004 | R2: 2005 | S2: 2006 | T2: 2007 | U2: 2008 | V2: 2009 | W2: 2010 | X2: 2011 | Y2: 2012 | Z2: 2013 | AA2: 2014 | AB2: 2015 | AC2: 2016 | AD2: 2017 | AE2: 2018 | AF2: 2019 | AG2: 2020 | AH2: 2021 | AI2: 2022 | AJ2: 2023 | AK2: 2024 | AL2: 2025 | AM2: 2026 | AN2: 2027 | AO2: 2028 | AP2: 2029 | AQ2: 2030 | AR2: 2031 | AS2: 2032 | AT2: 2033 | AU2: 2034 | AV2: 2035 | AW2: 2036 | AX2: 2037 | AY2: 2038 | AZ2: 2039 | BA2: 2040
A3: 1A1a | B3: Public power and district heating plants | C3: 979.2202803 | D3: 1253.719309 | E3: 1098.033734 | F3: 1137.912462 | G3: 1233.66756 | H3: 1160.055697 | I3: 1531.34955 | J3: 1217.606978 | K3: 1096.258405 | L3: 982.0109504 | M3: 1022.823174 | N3: 1146.926886 | O3: 1220.223109 | P3: 1322.54904 | Q3: 1355.925958 | R3: 1172.13523 | S3: 983.9071633 | T3: 1022.371669 | U3: 905.9281245 | V3: 856.2934729 | W3: 777.6676471 | X3: 736.4514322 | Y3: 737.3454113 | Z3: 914.5932454 | AA3: 730.8735645 | AB3: 600.2659524 | AC3: 689.7559166 | AD3: 656.0948539 | AE3: 697.3430809 | AF3: 674.7793004 | AG3: 681.8456605 | AH3: 727.9717048 | AI3: 748.4089691 | AJ3: 721.0310151 | AK3: 634.1446241 | AL3: 629.7913945 | AM3: 631.4191561 | AN3: 629.0508755 | AO3: 612.8950832 | AP3: 594.3027705 | AQ3: 548.6114274 | AR3: 540.0059067 | AS3: 530.3034693 | AT3: 531.8309395 | AU3: 526.9624815 | AV3: 521.1633691 | AW3: 495.4583832 | AX3: 469.7344566 | AY3: 447.7413468 | AZ3: 429.2596701 | BA3: 414.5301457
A4: !A1b | B4: Petroleum refining plants | C4: 135.35066 | D4: 174.1668235 | E4: 252.4700616 | F4: 251.1403641 | G4: 248.8840288 | H4: 209.5997732 | I4: 219.1718883 | J4: 165.6270198 | K4: 131.297385 | L4: 133.094125 | M4: 143.93109 | N4: 150.92359 | O4: 144.117 | P4: 128.1420832 | Q4: 133.0819758 | R4: 111.2774428 | S4: 111.5954256 | T4: 120.7206149 | U4: 115.0442261 | V4: 111.2113763 | W4: 94.13720139 | X4: 94.04780995 | Y4: 114.7792506 | Z4: 106.7568883 | AA4: 96.15560604 | AB4: 112.0518107 | AC4: 97.39134615 | AD4: 105.7847762 | AE4: 93.77120413 | AF4: 91.9818183 | AG4: 81.97287278 | AH4: 94.86779725 | AI4: 94.86837925 | AJ4: 94.8666964 | AK4: 94.8677075 | AL4: 94.8679506 | AM4: 94.86374418 | AN4: 94.8665226 | AO4: 94.86761761 | AP4: 94.86644788 | AQ4: 94.86010871 | AR4: 94.85900271 | AS4: 94.85584007 | AT4: 94.85555161 | AU4: 94.85194674 | AV4: 94.85306438 | AW4: 94.85925901 | AX4: 94.85796079 | AY4: 94.85857349 | AZ4: 94.85941804 | BA4: 94.85724818
A5: 1A1c | B5: Oil and gas extraction | C5: 1.305292383 | D5: 1.322723931 | E5: 1.507859474 | F5: 1.541942121 | G5: 1.711657803 | H5: 1.801847046 | I5: 2.141951575 | J5: 2.858766984 | K5: 3.255718117 | L5: 3.716879964 | M5: 4.345133282 | N5: 4.210914555 | O5: 4.484065459 | P5: 4.452860102 | Q5: 4.523575268 | R5: 4.658471091 | S5: 4.800449804 | T5: 4.189994225 | U5: 4.225789717 | V5: 4.33328863 | W5: 4.064986096 | X5: 4.270071737 | Y5: 4.124128321 | Z5: 5.014693423 | AA5: 5.403096853 | AB5: 4.115882268 | AC5: 4.186149332 | AD5: 3.661709297 | AE5: 4.411130374 | AF5: 4.568941987 | AG5: 3.169111577 | AH5: 2.273555849 | AI5: 2.116972066 | AJ5: 2.25413972 | AK5: 2.777057217 | AL5: 2.385692158 | AM5: 2.245971746 | AN5: 2.305891894 | AO5: 2.198273589 | AP5: 2.132317877 | AQ5: 2.026454208 | AR5: 1.92111983 | AS5: 1.826759899 | AT5: 1.745299348 | AU5: 1.665656594 | AV5: 1.686289542 | AW5: 1.607980047 | AX5: 1.508829689 | AY5: 1.40699742 | AZ5: 1.304763826 | BA5: 1.208370211
A7: 1A2a-f i | B7: Combustion in manufacturing industry | C7: 653.211613 | D7: 712.5579409 | E7: 689.5484747 | F7: 677.9984452 | G7: 636.0202924 | H7: 594.6354601 | I7: 614.5301981 | J7: 610.8459204 | K7: 640.2094296 | L7: 585.3315882 | M7: 760.1339215 | N7: 776.6992732 | O7: 581.5031529 | P7: 503.4143575 | Q7: 515.9496727 | R7: 427.9949151 | S7: 497.5415589 | T7: 457.0853742 | U7: 613.9713247 | V7: 370.1334339 | W7: 318.0134499 | X7: 325.5089756 | Y7: 299.2677445 | Z7: 296.1778798 | AA7: 298.6133565 | AB7: 257.1533323 | AC7: 249.8987575 | AD7: 246.6895768 | AE7: 243.342572 | AF7: 228.1448535 | AG7: 261.6865407 | AH7: 315.289179 | AI7: 316.7558043 | AJ7: 318.1011095 | AK7: 319.4621906 | AL7: 320.8103705 | AM7: 310.7058638 | AN7: 300.6125047 | AO7: 290.5416337 | AP7: 280.4792099 | AQ7: 270.3924948 | AR7: 277.9626381 | AS7: 285.5806809 | AT7: 293.214766 | AU7: 300.6833308 | AV7: 308.2899826 | AW7: 312.9167578 | AX7: 317.5716143 | AY7: 322.2734576 | AZ7: 327.3521428 | BA7: 332.4997197
A8: 1A2f ii | B8: Industry - Other (mobile) | C8: 1033.357614 | D8: 996.6796757 | E8: 948.6487626 | F8: 902.7690774 | G8: 861.2076462 | H8: 826.3118197 | I8: 793.3145428 | J8: 765.2698598 | K8: 738.7450373 | L8: 708.4584227 | M8: 675.2428737 | N8: 645.8857938 | O8: 611.9731872 | P8: 576.8480514 | Q8: 544.8223006 | R8: 518.4423109 | S8: 503.3856394 | T8: 492.0998155 | U8: 475.425562 | V8: 340.6635257 | W8: 412.053831 | X8: 378.1013569 | Y8: 346.5468986 | Z8: 315.8556262 | AA8: 287.7319992 | AB8: 260.0200151 | AC8: 232.8155466 | AD8: 206.8902637 | AE8: 184.2137135 | AF8: 158.4196987 | AG8: 136.7335432 | AH8: 108.6293252 | AI8: 93.16068373 | AJ8: 79.26168262 | AK8: 66.05699824 | AL8: 57.9112286 | AM8: 49.68928503 | AN8: 42.29852452 | AO8: 35.69060839 | AP8: 31.08469374 | AQ8: 27.48925756 | AR8: 24.46613609 | AS8: 22.52800857 | AT8: 21.49945777 | AU8: 20.88326794 | AV8: 20.30200502 | AW8: 19.93429571 | AX8: 19.61455112 | AY8: 19.31579162 | AZ8: 19.02993174 | BA8: 18.76493648
A10: 1A3a | B10: Civil Aviation (Domestic LTO) | C10: 2.797299146 | D10: 2.669936048 | E10: 2.655985776 | F10: 2.615962067 | G10: 2.877223634 | H10: 3.030825085 | I10: 3.052644422 | J10: 3.138803284 | K10: 2.728166369 | L10: 2.500837332 | M10: 2.322985867 | N10: 2.325379232 | O10: 1.993480555 | P10: 1.846091661 | Q10: 1.45017057 | R10: 1.545183778 | S10: 1.676256249 | T10: 2.066367446 | U10: 2.144691396 | V10: 1.924136591 | W10: 1.905714945 | X10: 1.781128752 | Y10: 1.79784714 | Z10: 1.717614686 | AA10: 1.268445457 | AB10: 1.230505649 | AC10: 1.300500387 | AD10: 1.137611464 | AE10: 1.350340872 | AF10: 1.2723462 | AG10: 0.8770668189 | AH10: 1.250941056 | AI10: 1.264176989 | AJ10: 1.276781649 | AK10: 1.289111568 | AL10: 1.301436362 | AM10: 1.31691229 | AN10: 1.33271992 | AO10: 1.348737226 | AP10: 1.364706454 | AQ10: 1.381013562 | AR10: 1.385902141 | AS10: 1.390537759 | AT10: 1.395282915 | AU10: 1.399810376 | AV10: 1.404618556 | AW10: 1.409328279 | AX10: 1.413865535 | AY10: 1.418523542 | AZ10: 1.422989094 | BA10: 1.42768325
A11: 1A3a | B11: Civil Aviation (International LTO) | C11: 15.95768564 | D11: 15.37783941 | E11: 12.65459922 | F11: 11.77206469 | G11: 13.76036489 | H11: 13.58793479 | I11: 13.96466078 | J11: 15.52297088 | K11: 13.44570861 | L11: 12.42391628 | M11: 11.23936822 | N11: 10.43028883 | O11: 11.50864629 | P11: 11.17789744 | Q11: 11.44386984 | R11: 10.54784762 | S11: 9.236030127 | T11: 9.282658478 | U11: 9.805451875 | V11: 8.039866432 | W11: 8.440962322 | X11: 9.343327402 | Y11: 9.400178711 | Z11: 9.518271363 | AA11: 9.790251954 | AB11: 9.668754923 | AC11: 10.36280781 | AD11: 10.44837687 | AE11: 11.06241369 | AF11: 10.81252764 | AG11: 3.621599242 | AH11: 4.586849839 | AI11: 11.45993779 | AJ11: 11.5156306 | AK11: 11.55630104 | AL11: 11.59178478 | AM11: 11.66675442 | AN11: 11.74705963 | AO11: 11.82870648 | AP11: 11.90217873 | AQ11: 11.98336163 | AR11: 11.99505325 | AS11: 11.99798891 | AT11: 12.00659803 | AU11: 12.00779702 | AV11: 12.02126697 | AW11: 12.03181921 | AX11: 12.03661461 | AY11: 12.04708752 | AZ11: 12.05088006 | BA11: 12.06469902
A12: 1A3bi | B12: Road transport: Passenger cars | C12: 673.9056303 | D12: 735.7213218 | E12: 688.2823626 | F12: 684.9446196 | G12: 680.0470021 | H12: 655.5882805 | I12: 649.0339688 | J12: 599.2891498 | K12: 555.4147606 | L12: 532.2908872 | M12: 513.3266424 | N12: 495.503334 | O12: 478.0317623 | P12: 507.8650917 | Q12: 512.3534578 | R12: 521.4960487 | S12: 529.4802644 | T12: 548.9415225 | U12: 539.9010751 | V12: 496.0332219 | W12: 517.7972955 | X12: 453.2551328 | Y12: 432.3857872 | Z12: 404.7758005 | AA12: 360.4981142 | AB12: 344.6198157 | AC12: 310.9206393 | AD12: 274.3305027 | AE12: 243.3437522 | AF12: 206.3834874 | AG12: 161.9906575 | AH12: 162.9911885 | AI12: 144.9780938 | AJ12: 128.4615188 | AK12: 113.2899796 | AL12: 99.73163266 | AM12: 88.20219839 | AN12: 78.59470506 | AO12: 70.65869594 | AP12: 64.11458088 | AQ12: 58.70850535 | AR12: 54.03901148 | AS12: 49.42332504 | AT12: 45.29281854 | AU12: 41.57004 | AV12: 38.20569149 | AW12: 35.14675997 | AX12: 32.34040066 | AY12: 29.76704821 | AZ12: 27.41567745 | BA12: 25.22615718
A13: 1A3bii | B13: Road transport: Light duty vehicles | C13: 1736.0346 | D13: 1912.300745 | E13: 1864.505791 | F13: 1934.85173 | G13: 1975.783607 | H13: 1888.112587 | I13: 1793.504902 | J13: 1582.730329 | K13: 1451.080142 | L13: 1346.317087 | M13: 1239.779227 | N13: 1163.661159 | O13: 1040.162084 | P13: 1013.686297 | Q13: 941.3737685 | R13: 910.2781911 | S13: 900.7465697 | T13: 842.244934 | U13: 781.6283154 | V13: 665.0350389 | W13: 642.8782209 | X13: 519.4646322 | Y13: 450.0383157 | Z13: 382.0471161 | AA13: 310.3035798 | AB13: 272.4227864 | AC13: 229.5125111 | AD13: 191.0393032 | AE13: 158.2321148 | AF13: 121.3973904 | AG13: 90.43944826 | AH13: 84.80322748 | AI13: 69.69558424 | AJ13: 57.24655657 | AK13: 47.42066896 | AL13: 39.50139151 | AM13: 33.37384091 | AN13: 28.55746187 | AO13: 24.88266097 | AP13: 22.02763331 | AQ13: 19.81360321 | AR13: 18.0506651 | AS13: 16.60764724 | AT13: 15.39247588 | AU13: 14.33371766 | AV13: 13.39635691 | AW13: 12.56649225 | AX13: 11.83270798 | AY13: 11.17861598 | AZ13: 10.59219004 | BA13: 10.06928122
A14: 1A3biii | B14: Road transport: Heavy duty vehicles and buses | C14: 1456.25782 | D14: 1447.889546 | E14: 1402.167457 | F14: 1369.118923 | G14: 1447.011648 | H14: 1417.777313 | I14: 1391.954566 | J14: 1308.625036 | K14: 1200.958862 | L14: 1122.198801 | M14: 1003.183553 | N14: 937.9618648 | O14: 879.2601826 | P14: 878.6305758 | Q14: 857.1867004 | R14: 816.7992709 | S14: 794.3184164 | T14: 728.7419717 | U14: 573.0936529 | V14: 441.9129975 | W14: 406.0741067 | X14: 368.5886949 | Y14: 310.3561296 | Z14: 275.6644571 | AA14: 257.9362804 | AB14: 216.8109393 | AC14: 179.619821 | AD14: 144.7407471 | AE14: 117.5980608 | AF14: 93.07486204 | AG14: 70.67583907 | AH14: 62.63906551 | AI14: 52.45559347 | AJ14: 44.74349436 | AK14: 38.83849911 | AL14: 34.32654665 | AM14: 30.86708211 | AN14: 28.20942015 | AO14: 26.15952776 | AP14: 24.57370297 | AQ14: 23.30258379 | AR14: 22.23535901 | AS14: 21.3280235 | AT14: 20.5317618 | AU14: 19.81770886 | AV14: 19.16166459 | AW14: 18.5973396 | AX14: 18.15648658 | AY14: 17.82084848 | AZ14: 17.57540683 | BA14: 17.40499046
A15: 1A3biv | B15: Road transport: Mopeds & motorcycles | C15: 41.00508231 | D15: 42.06844689 | E15: 43.07044974 | F15: 43.60195994 | G15: 44.15873666 | H15: 48.19591178 | I15: 53.40610421 | J15: 62.68147262 | K15: 72.36253272 | L15: 71.05939843 | M15: 69.42508034 | N15: 57.06581769 | O15: 56.68656074 | P15: 54.73016863 | Q15: 51.38583407 | R15: 48.22621213 | S15: 45.90122246 | T15: 43.51851574 | U15: 39.85059461 | V15: 36.10342367 | W15: 32.56106828 | X15: 30.17299905 | Y15: 28.10432982 | Z15: 26.39001241 | AA15: 24.76036605 | AB15: 22.87906986 | AC15: 20.64127214 | AD15: 18.80423976 | AE15: 16.85781409 | AF15: 14.54861076 | AG15: 13.43311773 | AH15: 12.5825441 | AI15: 11.7612834 | AJ15: 11.00815131 | AK15: 10.37688548 | AL15: 9.790570806 | AM15: 9.247649513 | AN15: 8.743541801 | AO15: 8.273282584 | AP15: 7.833658551 | AQ15: 7.420996071 | AR15: 7.244252262 | AS15: 7.077582051 | AT15: 6.920079408 | AU15: 6.768818653 | AV15: 6.68268785 | AW15: 6.597080662 | AX15: 6.515982575 | AY15: 6.435405063 | AZ15: 6.354648471 | BA15: 6.265759104
A16: 1A3bv | B16: Road transport: Gasoline evaporation | AH16: 0 | AI16: 0 | AJ16: 0 | AK16: 0 | AL16: 0 | AM16: 0 | AN16: 0 | AO16: 0 | AP16: 0 | AQ16: 0 | AR16: 0 | AS16: 0 | AT16: 0 | AU16: 0 | AV16: 0 | AW16: 0 | AX16: 0 | AY16: 0 | AZ16: 0 | BA16: 0
A17: 1A3bvi | B17: Road transport: Automobile tyre and brake wear | C17: 997.9312933 | D17: 1040.277792 | E17: 1059.3316 | F17: 1069.836271 | G17: 1128.770942 | H17: 1145.491361 | I17: 1166.754817 | J17: 1199.930366 | K17: 1228.350902 | L17: 1255.501681 | M17: 1247.510379 | N17: 1252.590774 | O17: 1272.172653 | P17: 1332.830462 | Q17: 1381.190058 | R17: 1395.33312 | S17: 1447.770129 | T17: 1518.840873 | U17: 1490.960946 | V17: 1412.244527 | W17: 1414.518343 | X17: 1440.516374 | Y17: 1400.406453 | Z17: 1387.161019 | AA17: 1424.498372 | AB17: 1458.272864 | AC17: 1485.186079 | AD17: 1506.63667 | AE17: 1543.270323 | AF17: 1530.58166 | AG17: 1439.117314 | AH17: 1577.325526 | AI17: 1597.282488 | AJ17: 1628.665921 | AK17: 1651.952224 | AL17: 1667.072107 | AM17: 1679.687096 | AN17: 1692.935667 | AO17: 1708.693603 | AP17: 1727.341162 | AQ17: 1749.164319 | AR17: 1771.508017 | AS17: 1785.19828 | AT17: 1799.456555 | AU17: 1814.35505 | AV17: 1829.043113 | AW17: 1842.347599 | AX17: 1852.265253 | AY17: 1858.966909 | AZ17: 1863.386519 | BA17: 1860.753891
A18: 1A3bvii | B18: Road transport: Automobile road abrasion | C18: 769.8889669 | D18: 803.6985253 | E18: 819.4813559 | F18: 826.3375892 | G18: 871.7035458 | H18: 885.9471597 | I18: 900.8768439 | J18: 926.7635883 | K18: 948.3890477 | L18: 968.4729943 | M18: 960.1720268 | N18: 962.5408712 | O18: 976.5470624 | P18: 1023.276681 | Q18: 1058.278115 | R18: 1063.944389 | S18: 1100.796317 | T18: 1154.414649 | U18: 1133.842656 | V18: 1076.875638 | W18: 1083.147849 | X18: 1108.575498 | Y18: 1084.880786 | Z18: 1081.340858 | AA18: 1117.986909 | AB18: 1150.136541 | AC18: 1177.00394 | AD18: 1196.791109 | AE18: 1228.44037 | AF18: 1222.270991 | AG18: 1147.744425 | AH18: 1260.793069 | AI18: 1278.127696 | AJ18: 1305.632415 | AK18: 1325.879774 | AL18: 1338.955403 | AM18: 1349.956559 | AN18: 1361.618331 | AO18: 1375.604193 | AP18: 1392.266553 | AQ18: 1411.981918 | AR18: 1432.3885 | AS18: 1445.096601 | AT18: 1458.445658 | AU18: 1472.486923 | AV18: 1486.410459 | AW18: 1499.056647 | AX18: 1508.602485 | AY18: 1515.172528 | AZ18: 1519.626605 | BA18: 1517.887844
A19: 1A3c | B19: Railways | C19: 201.5576574 | D19: 205.1841316 | E19: 216.9239989 | F19: 225.1324769 | G19: 204.0075604 | H19: 205.7843524 | I19: 204.2243082 | J19: 198.8187063 | K19: 167.750622 | L19: 146.2719477 | M19: 140.5712174 | N19: 125.3582558 | O19: 123.811099 | P19: 118.5964897 | Q19: 114.7678625 | R19: 123.7601514 | S19: 119.557145 | T19: 119.9923562 | U19: 101.1974495 | V19: 84.39545816 | W19: 94.91049414 | X19: 77.51031758 | Y19: 81.67987091 | Z19: 70.31873593 | AA19: 61.32821167 | AB19: 49.00474757 | AC19: 47.95680845 | AD19: 33.49585763 | AE19: 24.22064052 | AF19: 22.6653225 | AG19: 18.61859212 | AH19: 20.10546468 | AI19: 20.17543247 | AJ19: 19.59731118 | AK19: 19.01922224 | AL19: 18.97330359 | AM19: 18.95613554 | AN19: 7.504422386 | AO19: 6.850133046 | AP19: 2.441606889 | AQ19: 1.953285511 | AR19: 0 | AS19: 0 | AT19: 0 | AU19: 0 | AV19: 0 | AW19: 0 | AX19: 0 | AY19: 0 | AZ19: 0 | BA19: 0
A20: 1A3d | B20: Navigation | C20: 808.7373575 | D20: 859.7458657 | E20: 677.9074621 | F20: 646.7028765 | G20: 594.5874007 | H20: 646.3847766 | I20: 559.6693384 | J20: 500.4715724 | K20: 434.9185722 | L20: 419.9834808 | M20: 421.2059489 | N20: 428.0523209 | O20: 491.2568001 | P20: 545.2720134 | Q20: 537.5067399 | R20: 555.1055566 | S20: 549.6755871 | T20: 429.4184531 | U20: 462.4661611 | V20: 446.5469655 | W20: 402.924089 | X20: 387.1329243 | Y20: 379.8167107 | Z20: 397.0086625 | AA20: 335.043814 | AB20: 256.8049174 | AC20: 276.2711789 | AD20: 292.5402762 | AE20: 270.7761342 | AF20: 235.3025274 | AG20: 251.0532029 | AH20: 247.1267648 | AI20: 248.1815947 | AJ20: 248.7656839 | AK20: 249.1875454 | AL20: 249.5205821 | AM20: 249.8523433 | AN20: 249.9140678 | AO20: 249.9471378 | AP20: 249.7735084 | AQ20: 249.4162872 | AR20: 249.4046091 | AS20: 249.4159548 | AT20: 249.4008274 | AU20: 249.3880979 | AV20: 249.3635786 | AW20: 249.3609855 | AX20: 249.3582627 | AY20: 249.3554098 | AZ20: 249.5961676 | BA20: 249.649892
A22: 1A4a i | B22: Commercial and institutional plants | C22: 115.2707936 | D22: 108.3503495 | E22: 97.65673086 | F22: 96.9745604 | G22: 93.73626508 | H22: 90.61574393 | I22: 100.9358896 | J22: 100.7473357 | K22: 88.14251568 | L22: 100.9907027 | M22: 106.2707776 | N22: 89.69738937 | O22: 115.5442357 | P22: 106.9226102 | Q22: 85.03449415 | R22: 94.5118675 | S22: 89.23549762 | T22: 89.24497055 | U22: 93.61186974 | V22: 86.78536007 | W22: 81.86748361 | X22: 76.92216727 | Y22: 78.24396222 | Z22: 80.00272775 | AA22: 85.53281217 | AB22: 93.23874354 | AC22: 138.1988988 | AD22: 146.8888803 | AE22: 112.0285283 | AF22: 105.4774762 | AG22: 95.37895337 | AH22: 121.1745685 | AI22: 121.9971863 | AJ22: 122.819653 | AK22: 123.6420618 | AL22: 124.4645478 | AM22: 122.8589887 | AN22: 121.2535615 | AO22: 119.6481501 | AP22: 118.0426178 | AQ22: 116.4367335 | AR22: 114.3585402 | AS22: 112.2808904 | AT22: 110.2032544 | AU22: 108.1256021 | AV22: 106.0479836 | AW22: 102.531658 | AX22: 99.06203996 | AY22: 95.59242204 | AZ22: 92.12280419 | BA22: 88.65318611
A23: 1A4a ii | B23: Commercial and institutional (mobile) | C23: 234.3397118 | D23: 224.5174543 | E23: 211.6431654 | F23: 202.0587062 | G23: 191.3127159 | H23: 187.6349535 | I23: 178.5545729 | J23: 175.4028388 | K23: 167.5962853 | L23: 160.7958772 | M23: 150.6114237 | N23: 146.3042409 | O23: 140.6901451 | P23: 135.3691042 | Q23: 130.8666927 | R23: 125.7945195 | S23: 118.0440228 | T23: 124.6019338 | U23: 122.1755521 | V23: 106.9700145 | W23: 115.5991115 | X23: 111.4588869 | Y23: 105.9320533 | Z23: 100.4810435 | AA23: 94.92768735 | AB23: 89.00150216 | AC23: 84.16812245 | AD23: 79.9889563 | AE23: 73.69282616 | AF23: 63.21870098 | AG23: 56.64276778 | AH23: 19.37503854 | AI23: 16.34634648 | AJ23: 13.67653156 | AK23: 11.24342127 | AL23: 9.147850634 | AM23: 6.808188203 | AN23: 5.056485069 | AO23: 3.557765123 | AP23: 2.418370689 | AQ23: 1.495702357 | AR23: 1.184465072 | AS23: 0.9120015447 | AT23: 0.675005423 | AU23: 0.461211875 | AV23: 0.2689503952 | AW23: 0.231969527 | AX23: 0.1985660386 | AY23: 0.1687544842 | AZ23: 0.143288028 | BA23: 0.1205429768
A24: 1A4b i | B24: Residential plants | C24: 9556.655073 | D24: 10549.58014 | E24: 10550.83474 | F24: 11119.35684 | G24: 10513.62561 | H24: 10265.42098 | I24: 10430.66389 | J24: 10148.17211 | K24: 8850.790362 | L24: 8439.85812 | M24: 9509.613648 | N24: 9928.141447 | O24: 9705.438255 | P24: 10752.89036 | Q24: 11020.2993 | R24: 12058.34283 | S24: 12548.43478 | T24: 15164.34088 | U24: 14185.65721 | V24: 13186.82254 | W24: 13420.42575 | X24: 11750.65574 | Y24: 11013.74104 | Z24: 10803.48213 | AA24: 9753.175136 | AB24: 10893.47647 | AC24: 10868.92426 | AD24: 9711.42783 | AE24: 8373.909421 | AF24: 7213.408695 | AG24: 6613.420507 | AH24: 6892.232178 | AI24: 6563.358646 | AJ24: 6256.03549 | AK24: 5968.851199 | AL24: 5701.10522 | AM24: 5414.89858 | AN24: 5154.016719 | AO24: 4901.206203 | AP24: 4656.315612 | AQ24: 4419.39251 | AR24: 4213.147035 | AS24: 4014.094142 | AT24: 3822.326882 | AU24: 3637.865887 | AV24: 3460.791891 | AW24: 3238.461207 | AX24: 3027.598894 | AY24: 2828.299038 | AZ24: 2639.465256 | BA24: 2460.596863
A25: 1A4b ii | B25: Residential (mobile) | C25: 8.718227409 | D25: 8.877834323 | E25: 8.668261318 | F25: 8.524564693 | G25: 8.464240944 | H25: 8.477380855 | I25: 8.657731636 | J25: 8.954529919 | K25: 9.272896756 | L25: 9.601939928 | M25: 9.933313819 | N25: 10.14504104 | O25: 10.25455294 | P25: 10.38973143 | Q25: 10.56902069 | R25: 10.78489697 | S25: 11.20447704 | T25: 11.73360253 | U25: 12.12885218 | V25: 11.96210549 | W25: 11.61368332 | X25: 11.58996407 | Y25: 11.53267585 | Z25: 11.34662412 | AA25: 11.39848419 | AB25: 11.57138984 | AC25: 12.10361246 | AD25: 12.86312908 | AE25: 12.89336701 | AF25: 12.20372285 | AG25: 11.73434429 | AH25: 24.4437827 | AI25: 24.66275588 | AJ25: 25.10657357 | AK25: 25.62836658 | AL25: 25.92501557 | AM25: 26.10030589 | AN25: 26.33646235 | AO25: 26.62045576 | AP25: 26.91593286 | AQ25: 27.23135986 | AR25: 27.49822397 | AS25: 27.65097317 | AT25: 27.70026747 | AU25: 27.67274625 | AV25: 27.58626364 | AW25: 27.47286793 | AX25: 27.35236985 | AY25: 27.22819327 | AZ25: 27.10264096 | BA25: 26.97657492
A26: 1A4c i | B26: Plants in agriculture, forestry and aquaculture | C26: 1644.714068 | D26: 1622.61826 | E26: 1606.646213 | F26: 1505.082433 | G26: 1410.59604 | H26: 1285.665958 | I26: 1183.716257 | J26: 1252.821753 | K26: 1219.05933 | L26: 1111.202911 | M26: 992.561401 | N26: 929.7613895 | O26: 917.6864474 | P26: 912.0731012 | Q26: 910.0260392 | R26: 911.2727968 | S26: 911.5899249 | T26: 905.5377433 | U26: 907.0869466 | V26: 892.817668 | W26: 911.9581515 | X26: 904.6505912 | Y26: 895.8554469 | Z26: 901.0635684 | AA26: 885.5101911 | AB26: 900.2088251 | AC26: 907.329573 | AD26: 901.0179735 | AE26: 897.393429 | AF26: 883.6241967 | AG26: 858.8112071 | AH26: 906.883435 | AI26: 871.8057297 | AJ26: 837.3948824 | AK26: 803.3127603 | AL26: 769.2305708 | AM26: 733.8246694 | AN26: 698.4188601 | AO26: 663.013111 | AP26: 627.6073395 | AQ26: 592.2007603 | AR26: 558.4486679 | AS26: 524.6970947 | AT26: 490.9456487 | AU26: 457.1936541 | AV26: 423.4419639 | AW26: 390.2200825 | AX26: 357.4306592 | AY26: 324.5963944 | AZ26: 291.80698 | BA26: 259.0175556
A27: 1A4c ii | B27: Agriculture & forestry (mobile) | C27: 1747.422115 | D27: 1733.337625 | E27: 1667.476847 | F27: 1658.153164 | G27: 1567.016194 | H27: 1575.181202 | I27: 1488.378536 | J27: 1449.157643 | K27: 1343.368407 | L27: 1281.630373 | M27: 1234.997513 | N27: 1209.444663 | O27: 1170.461915 | P27: 1123.57739 | Q27: 1048.624545 | R27: 984.1214961 | S27: 941.3253073 | T27: 886.2133587 | U27: 841.8320545 | V27: 796.7752954 | W27: 743.4384751 | X27: 687.4922498 | Y27: 635.567677 | Z27: 582.9035707 | AA27: 536.6986696 | AB27: 487.04083 | AC27: 453.3928474 | AD27: 422.9379941 | AE27: 393.9470853 | AF27: 364.1513826 | AG27: 333.9755532 | AH27: 305.4336008 | AI27: 284.1262137 | AJ27: 259.9429162 | AK27: 237.0821399 | AL27: 214.9832281 | AM27: 192.3507754 | AN27: 175.8186238 | AO27: 162.4050507 | AP27: 151.1482581 | AQ27: 140.698483 | AR27: 131.8640244 | AS27: 122.0753322 | AT27: 112.4623377 | AU27: 104.1294991 | AV27: 94.71278207 | AW27: 88.64124529 | AX27: 83.3315577 | AY27: 78.50421395 | AZ27: 74.88475534 | BA27: 71.90060013
A28: 1A4c iii | B28: Fishing (mobile) | C28: 159.7268459 | D28: 165.7200986 | E28: 152.198586 | F28: 144.1453935 | G28: 145.8245667 | H28: 147.2577311 | I28: 137.1220508 | J28: 109.703847 | K28: 114.2601781 | L28: 129.4220994 | M28: 170.174828 | N28: 161.3341155 | O28: 160.6245533 | P28: 151.8376997 | Q28: 130.0451829 | R28: 130.7518383 | S28: 133.0819643 | T28: 125.1723509 | U28: 94.78026559 | V28: 92.64566461 | W28: 94.46746314 | X28: 89.35035254 | Y28: 68.92118424 | Z28: 80.11345637 | AA28: 73.7414501 | AB28: 81.9830921 | AC28: 81.35395337 | AD28: 76.67922861 | AE28: 72.93512077 | AF28: 74.98640659 | AG28: 72.80684507 | AH28: 73.1874018 | AI28: 71.96632698 | AJ28: 70.6927091 | AK28: 69.3204458 | AL28: 67.92757618 | AM28: 66.9397268 | AN28: 65.96765957 | AO28: 64.98562695 | AP28: 63.95852813 | AQ28: 62.93641498 | AR28: 61.92887025 | AS28: 60.93067463 | AT28: 59.96710624 | AU28: 58.96758101 | AV28: 57.92736113 | AW28: 58.01141645 | AX28: 58.05637416 | AY28: 58.07876784 | AZ28: 58.0832506 | BA28: 58.02982091
A30: 1A5b | B30: Other mobile (military and recreational crafts) | C30: 104.112716 | D30: 208.7652624 | E30: 168.9370832 | F30: 170.8673404 | G30: 167.2468902 | H30: 231.1156018 | I30: 169.4638879 | J30: 200.0707364 | K30: 208.2412693 | L30: 184.6540826 | M30: 160.5384968 | N30: 180.239908 | O30: 165.7001293 | P30: 170.9388487 | Q30: 193.7595284 | R30: 181.5943163 | S30: 153.0616739 | T30: 143.774137 | U30: 132.0682196 | V30: 131.0173259 | W30: 115.2949832 | X30: 113.9202913 | Y30: 104.2724297 | Z30: 98.84463903 | AA30: 93.15869389 | AB30: 87.08670468 | AC30: 84.92919802 | AD30: 82.35438523 | AE30: 72.43291582 | AF30: 64.50047231 | AG30: 59.25928863 | AH30: 55.01626243 | AI30: 51.56277749 | AJ30: 48.12674203 | AK30: 44.71328314 | AL30: 41.31953839 | AM30: 37.94367448 | AN30: 34.58199382 | AO30: 31.23265211 | AP30: 27.89328242 | AQ30: 24.56194827 | AR30: 21.23665954 | AS30: 21.22285834 | AT30: 21.21250617 | AU30: 21.20474319 | AV30: 21.19890391 | AW30: 21.19435472 | AX30: 21.19049696 | AY30: 21.18714831 | AZ30: 21.18406171 | BA30: 21.1812028
A32: 1B1 | B32: Fugitive emissions from solid fuels | C32: 153.826365 | D32: 192.154005 | E32: 179.128065 | F32: 157.001595 | G32: 176.58684 | H32: 195.131145 | I32: 197.00265 | J32: 202.11042 | K32: 121.067295 | L32: 106.75632 | M32: 96.22602 | N32: 103.86441 | O32: 93.937005 | P32: 142.70469 | Q32: 113.91384 | R32: 90.47763 | S32: 130.32252 | T32: 121.84815 | U32: 113.54922 | V32: 100.66257 | W32: 68.55552 | X32: 92.04291 | Y32: 59.66787 | Z32: 74.27673 | AA32: 67.993665 | AB32: 41.361525 | AC32: 43.5177 | AD32: 46.523055 | AE32: 41.33544 | AF32: 35.253525 | AG32: 16.4439 | AH32: 25.66227321 | AI32: 28.74677516 | AJ32: 15.28725051 | AK32: 6.073024817 | AL32: 5.542567559 | AM32: 5.107009536 | AN32: 4.613461437 | AO32: 2.535450315 | AP32: 1.673170755 | AQ32: 1.356107919 | AR32: 1.282152322 | AS32: 1.208196726 | AT32: 1.134241129 | AU32: 1.060285533 | AV32: 0.986329936 | AW32: 0.9752673289 | AX32: 0.9642047218 | AY32: 0.9531421147 | AZ32: 0.9420795075 | BA32: 0.9310169004
A33: 1B2a | B33: Fugitive emissions from oil | C33: 8.1078984e-05 | D33: 1.2750486e-05 | E33: 0.00013047615 | F33: 2.137926e-06 | G33: 4.4814e-07 | H33: 5.8857792e-05 | I33: 5.872965e-05 | J33: 1.17243e-06 | K33: 0.000127216362 | L33: 0.000129379866 | M33: 4.4814e-05 | N33: 0 | O33: 2.2713768e-05 | P33: 0 | Q33: 0 | R33: 7.8890448e-05 | S33: 0 | T33: 0 | U33: 0 | V33: 1.4723016e-05 | W33: 0 | X33: 0 | Y33: 0 | Z33: 5.2155432e-05 | AA33: 0 | AB33: 1.2936e-05 | AC33: 0 | AD33: 0 | AE33: 0 | AF33: 0 | AG33: 0 | AH33: 0 | AI33: 0 | AJ33: 0 | AK33: 0 | AL33: 0 | AM33: 0 | AN33: 0 | AO33: 0 | AP33: 0 | AQ33: 0 | AR33: 0 | AS33: 0 | AT33: 0 | AU33: 0 | AV33: 0 | AW33: 0 | AX33: 0 | AY33: 0 | AZ33: 0 | BA33: 0
A34: 1B2b | B34: Fugitive emissions from gas | C34: 0.121466184 | D34: 5.5146e-05 | E34: 0.00035364 | F34: 2.058e-06 | G34: 9.618e-06 | H34: 6.174e-06 | I34: 4.536e-06 | J34: 1.26e-07 | K34: 8.6604e-05 | L34: 2.8938e-05 | M34: 0.00235158 | N34: NA | O34: 0.376538988 | P34: NA | Q34: NA | R34: 0.02994894 | S34: NA | T34: NA | U34: NA | V34: 0.000257334 | W34: NA | X34: NA | Y34: NA | Z34: 4.284e-06 | AA34: NA | AB34: 0.00122724 | AC34: NA | AD34: NA | AE34: NA | AF34: NA | AG34: NA | AH34: 0 | AI34: 0 | AJ34: 0 | AK34: 0 | AL34: 0 | AM34: 0 | AN34: 0 | AO34: 0 | AP34: 0 | AQ34: 0 | AR34: 0 | AS34: 0 | AT34: 0 | AU34: 0 | AV34: 0 | AW34: 0 | AX34: 0 | AY34: 0 | AZ34: 0 | BA34: 0
A35: 1B2c | B35: Fugitive emissions from venting and flaring | C35: 4.942621088 | D35: 9.760995936 | E35: 10.06745628 | F35: 8.756503792 | G35: 8.65235654 | H35: 6.78033066 | I35: 7.441363085 | J35: 10.48094122 | K35: 7.752942395 | L35: 16.51167974 | M35: 10.83037912 | N35: 11.57731523 | O35: 9.730894552 | P35: 10.06371512 | Q35: 11.30474112 | R35: 8.14611553 | S35: 7.990112465 | T35: 8.18092042 | U35: 6.034728926 | V35: 3.887596806 | W35: 5.348139945 | X35: 3.587076719 | Y35: 3.39471553 | Z35: 3.939237072 | AA35: 3.938814935 | AB35: 3.983156647 | AC35: 4.339451755 | AD35: 4.062606943 | AE35: 3.925476283 | AF35: 3.277040979 | AG35: 2.124942544 | AH35: 2.094309551 | AI35: 2.316605172 | AJ35: 2.502127858 | AK35: 2.502021576 | AL35: 1.558216139 | AM35: 1.495697481 | AN35: 1.665694669 | AO35: 1.716375611 | AP35: 1.778849552 | AQ35: 1.872343053 | AR35: 1.902001361 | AS35: 1.877158316 | AT35: 1.925357667 | AU35: 1.915106523 | AV35: 1.912009229 | AW35: 1.922565802 | AX35: 1.89525025 | AY35: 1.847989693 | AZ35: 1.82256262 | BA35: 1.754984122
A37: 2A | B37: Mineral industry | C37: 9228.708227 | D37: 8542.906516 | E37: 5971.876868 | F37: 5343.345451 | G37: 5723.546541 | H37: 8131.077972 | I37: 6366.683942 | J37: 6873.902167 | K37: 7078.44952 | L37: 7563.685928 | M37: 9534.16903 | N37: 7453.535837 | O37: 10837.46323 | P37: 6929.058186 | Q37: 9262.469455 | R37: 10180.88138 | S37: 9123.385941 | T37: 7202.283777 | U37: 26204.19383 | V37: 8612.366122 | W37: 9978.620403 | X37: 8010.390035 | Y37: 8403.966317 | Z37: 8047.516378 | AA37: 11397.65275 | AB37: 5347.908658 | AC37: 4485.059859 | AD37: 5795.614106 | AE37: 8441.420757 | AF37: 5051.974449 | AG37: 5924.751325 | AH37: 6052.475935 | AI37: 6182.923735 | AJ37: 6313.371535 | AK37: 6443.819335 | AL37: 6574.267135 | AM37: 6624.488531 | AN37: 6674.709927 | AO37: 6724.931323 | AP37: 6775.152718 | AQ37: 6825.374114 | AR37: 6856.414851 | AS37: 6887.455588 | AT37: 6918.496325 | AU37: 6949.537062 | AV37: 6980.5778 | AW37: 7034.118906 | AX37: 7087.660012 | AY37: 7141.201118 | AZ37: 7194.742224 | BA37: 7248.283331
A38: 2B | B38: Chemical Industry | C38: 399.2 | D38: 367.044 | E38: 326.268 | F38: 308.966 | G38: 313.876 | H38: 350.68 | I38: 365.3 | J38: 333.8 | K38: 208.8 | L38: 407 | M38: 385.8 | N38: 369.8 | O38: 333.8 | P38: 336.8 | Q38: 207 | R38: 28.8 | S38: 15 | T38: 31.3 | U38: 32.5 | V38: 20 | W38: 32.5 | X38: 8.5 | Y38: 7.5 | Z38: 13 | AA38: 14 | AB38: 7 | AC38: 13 | AD38: 13 | AE38: 5 | AF38: 5.3 | AG38: 5.5 | AH38: 5.266666667 | AI38: 5.266666667 | AJ38: 5.266666667 | AK38: 5.266666667 | AL38: 5.266666667 | AM38: 5.266666667 | AN38: 5.266666667 | AO38: 5.266666667 | AP38: 5.266666667 | AQ38: 5.266666667 | AR38: 5.266666667 | AS38: 5.266666667 | AT38: 5.266666667 | AU38: 5.266666667 | AV38: 5.266666667 | AW38: 5.266666667 | AX38: 5.266666667 | AY38: 5.266666667 | AZ38: 5.266666667 | BA38: 5.266666667
A39: 2C | B39: Metal industry | C39: 306.10268 | D39: 268.61468 | E39: 265.32468 | F39: 251.5072 | G39: 290.8972 | H39: 311.2832 | I39: 274.4538 | J39: 302.14868 | K39: 276.55584 | L39: 261.38584 | M39: 264.56112 | N39: 257.13644 | O39: 226.202508 | P39: 230.8313218 | Q39: 248.0658757 | R39: 239.5102851 | S39: 192.3979965 | T39: 179.2392251 | U39: 178.6961922 | V39: 112.6194781 | W39: 179.9763106 | X39: 202.6052356 | Y39: 187.7912652 | Z39: 189.3920444 | AA39: 230.3144783 | AB39: 202.1029234 | AC39: 206.0494349 | AD39: 215.3316766 | AE39: 234.1529939 | AF39: 207.5311403 | AG39: 174.3754178 | AH39: 205.350892 | AI39: 205.349728 | AJ39: 205.349728 | AK39: 205.349728 | AL39: 205.349728 | AM39: 205.349728 | AN39: 205.349728 | AO39: 205.349728 | AP39: 205.349728 | AQ39: 205.349728 | AR39: 205.349728 | AS39: 205.349728 | AT39: 205.349728 | AU39: 205.349728 | AV39: 205.349728 | AW39: 205.349728 | AX39: 205.349728 | AY39: 205.349728 | AZ39: 205.349728 | BA39: 205.349728
A40: 2D | B40: Non-energy products from fuels and solvent use | C40: 133.1423568 | D40: 135.9349536 | E40: 116.4652512 | F40: 129.8091648 | G40: 116.2819776 | H40: 163.9199952 | I40: 185.4214512 | J40: 185.3627976 | K40: 160.9058304 | L40: 146.968692 | M40: 156.3125856 | N40: 205.3584984 | O40: 174.9891696 | P40: 139.462164 | Q40: 192.898644 | R40: 202.1667936 | S40: 190.605588 | T40: 240.426684 | U40: 215.2408704 | V40: 130.018224 | W40: 155.6698944 | X40: 202.3425336 | Y40: 167.9041488 | Z40: 172.9422384 | AA40: 178.0114392 | AB40: 177.9034584 | AC40: 186.189696 | AD40: 189.651684 | AE40: 211.8030336 | AF40: 182.5404528 | AG40: 198.9702288 | AH40: 197.7712384 | AI40: 197.7712384 | AJ40: 197.7712384 | AK40: 197.7712384 | AL40: 197.7712384 | AM40: 197.7712384 | AN40: 197.7712384 | AO40: 197.7712384 | AP40: 197.7712384 | AQ40: 197.7712384 | AR40: 197.7712384 | AS40: 197.7712384 | AT40: 197.7712384 | AU40: 197.7712384 | AV40: 197.7712384 | AW40: 197.7712384 | AX40: 197.7712384 | AY40: 197.7712384 | AZ40: 197.7712384 | BA40: 197.7712384
A41: 2G | B41: Other product manufacture and use | C41: 266.3693229 | D41: 270.1896449 | E41: 288.8891484 | F41: 264.5852769 | G41: 275.6638667 | H41: 319.8254834 | I41: 310.7534634 | J41: 300.0413812 | K41: 349.6812354 | L41: 481.8054037 | M41: 416.7203224 | N41: 361.5642056 | O41: 424.6136808 | P41: 494.1735728 | Q41: 583.6458472 | R41: 385.8429387 | S41: 415.6530231 | T41: 400.1125122 | U41: 380.7237272 | V41: 419.6226648 | W41: 420.8857289 | X41: 374.1143942 | Y41: 342.8113858 | Z41: 384.7543286 | AA41: 328.1325471 | AB41: 416.9372998 | AC41: 332.313514 | AD41: 325.7931757 | AE41: 386.1807295 | AF41: 319.0482467 | AG41: 293.6383763 | AH41: 331.737963 | AI41: 329.7333614 | AJ41: 327.7330993 | AK41: 325.7324659 | AL41: 323.7318318 | AM41: 321.7314977 | AN41: 319.7314846 | AO41: 317.7313694 | AP41: 315.7308073 | AQ41: 313.7295132 | AR41: 311.7273813 | AS41: 309.7244252 | AT41: 307.7206186 | AU41: 305.7160125 | AV41: 303.7106391 | AW41: 301.7045697 | AX41: 299.6977661 | AY41: 297.69031 | AZ41: 295.6821804 | BA41: 293.6733713
A42: 2H | B42: Other | C42: 19.027954 | D42: 18.757124 | E42: 22.764772 | F42: 22.429388 | G42: 17.97389 | H42: 19.323694 | I42: 21.596228 | J42: 21.485776 | K42: 20.919206 | L42: 20.383906 | M42: 22.233606 | N42: 20.27356 | O42: 19.059118 | P42: 18.398844 | Q42: 18.211436 | R42: 18.521698 | S42: 15.551472 | T42: 20.945309 | U42: 18.859806 | V42: 16.889321 | W42: 14.460479 | X42: 19.25805 | Y42: 20.9933 | Z42: 22.171898 | AA42: 24.813384 | AB42: 25.334848 | AC42: 28.417752 | AD42: 29.941396 | AE42: 29.525664 | AF42: 37.1 | AG42: 46.419308 | AH42: 37.68165733 | AI42: 37.68165733 | AJ42: 37.68165733 | AK42: 37.68165733 | AL42: 37.68165733 | AM42: 37.68165733 | AN42: 37.68165733 | AO42: 37.68165733 | AP42: 37.68165733 | AQ42: 37.68165733 | AR42: 37.68165733 | AS42: 37.68165733 | AT42: 37.68165733 | AU42: 37.68165733 | AV42: 37.68165733 | AW42: 37.68165733 | AX42: 37.68165733 | AY42: 37.68165733 | AZ42: 37.68165733 | BA42: 37.68165733
A43: 2I | B43: Wood processing | C43: 359.26 | D43: 295.44 | E43: 323.68 | F43: 435.45 | G43: 457.71 | H43: 464.81 | I43: 495.45 | J43: 509.29 | K43: 472.27 | L43: 440.02 | M43: 481.31 | N43: 396.26 | O43: 349.25 | P43: 399.89 | Q43: 357.85 | R43: 368.31 | S43: 372.77 | T43: 377.23 | U43: 434.82 | V43: 438.86 | W43: 436.6 | X43: 405.03 | Y43: 386.88 | Z43: 392.46 | AA43: 435.02 | AB43: 453.43 | AC43: 464.23 | AD43: 454.16 | AE43: 395.88 | AF43: 413.38 | AG43: 452.12 | AH43: 420.46 | AI43: 420.46 | AJ43: 420.46 | AK43: 420.46 | AL43: 420.46 | AM43: 420.46 | AN43: 420.46 | AO43: 420.46 | AP43: 420.46 | AQ43: 420.46 | AR43: 420.46 | AS43: 420.46 | AT43: 420.46 | AU43: 420.46 | AV43: 420.46 | AW43: 420.46 | AX43: 420.46 | AY43: 420.46 | AZ43: 420.46 | BA43: 420.46
A44: 2L | B44: Other production
A46: 3B1a | B46: Manure Management - Dairy cattle | C46: 946.7506908 | D46: 936.1713344 | E46: 901.8146743 | F46: 907.7443126 | G46: 892.6577884 | H46: 899.8068284 | I46: 900.5725284 | J46: 855.6923081 | K46: 848.1050063 | L46: 811.5192841 | M46: 859.1374423 | N46: 856.5209945 | O46: 851.1369142 | P46: 873.7822941 | Q46: 852.8982056 | R46: 870.3955666 | S46: 865.0490772 | T46: 875.564166 | U46: 902.6897365 | V46: 916.7885818 | W46: 924.9498102 | X46: 926.9570486 | Y46: 964.945688 | Z46: 956.3782067 | AA46: 924.5544496 | AB46: 921.3402774 | AC46: 937.3474933 | AD46: 934.0197179 | AE46: 943.9482838 | AF46: 928.7447428 | AG46: 927.1038617 | AH46: 921.6406797 | AI46: 931.0226127 | AJ46: 934.5000158 | AK46: 938.3603278 | AL46: 940.6649658 | AM46: 944.5850198 | AN46: 953.1235034 | AO46: 959.2536443 | AP46: 967.5567858 | AQ46: 976.0567779 | AR46: 971.7755572 | AS46: 962.5933248 | AT46: 953.6588476 | AU46: 944.9655614 | AV46: 936.5072016 | AW46: 928.2777838 | AX46: 920.2715923 | AY46: 912.4831658 | AZ46: 904.9072814 | BA46: 897.5389485
A47: 3B1b | B47: Manure Management - Non-dairy cattle | C47: 1072.11816 | D47: 1044.943938 | E47: 1026.136409 | F47: 997.9732262 | G47: 939.5342359 | H47: 914.5591984 | I47: 910.4024923 | J47: 873.0021822 | K47: 857.7854572 | L47: 811.7675793 | M47: 794.0274025 | N47: 810.9637056 | O47: 762.1446907 | P47: 479.4559631 | Q47: 473.3884249 | R47: 452.1816526 | S47: 459.3957865 | T47: 491.6230363 | U47: 487.9054883 | V47: 477.65707 | W47: 480.493876 | X47: 486.2455516 | Y47: 491.9055315 | Z47: 504.7231051 | AA47: 488.8100162 | AB47: 485.4233895 | AC47: 483.5862034 | AD47: 474.8032549 | AE47: 471.1159789 | AF47: 457.3617367 | AG47: 459.1505472 | AH47: 460.1927953 | AI47: 462.6840491 | AJ47: 464.7848658 | AK47: 466.8463306 | AL47: 468.9276843 | AM47: 470.9696849 | AN47: 472.9833039 | AO47: 475.0058426 | AP47: 477.0175484 | AQ47: 479.0293977 | AR47: 476.1705648 | AS47: 473.3743134 | AT47: 470.5724985 | AU47: 467.7652091 | AV47: 464.9525253 | AW47: 462.134532 | AX47: 459.3113019 | AY47: 456.482908 | AZ47: 453.6494232 | BA47: 450.8109066
A48: 3B2 | B48: Manure Management - Sheep | C48: 3.525744658 | D48: 4.084931507 | E48: 3.928760548 | F48: 3.38563726 | G48: 3.067587945 | H48: 3.095572603 | I48: 3.607443288 | J48: 3.679660274 | K48: 3.870980822 | L48: 4.054630137 | M48: 4.282350685 | N48: 4.549271233 | O48: 4.504969863 | P48: 4.641517808 | Q48: 4.76379726 | R48: 4.84300274 | S48: 4.899539726 | T48: 4.747994521 | U48: 4.506427397 | V48: 4.430942466 | W48: 4.257610959 | X48: 3.587375342 | Y48: 3.464865753 | Z48: 3.390953425 | AA48: 3.373539726 | AB48: 3.225715068 | AC48: 3.180819178 | AD48: 3.135923288 | AE48: 3.144131507 | AF48: 3.368169863 | AG48: 3.070027397 | AH48: 3.070027397 | AI48: 3.070027397 | AJ48: 3.070027397 | AK48: 3.070027397 | AL48: 3.070027397 | AM48: 3.070027397 | AN48: 3.070027397 | AO48: 3.070027397 | AP48: 3.070027397 | AQ48: 3.070027397 | AR48: 3.070027397 | AS48: 3.070027397 | AT48: 3.070027397 | AU48: 3.070027397 | AV48: 3.070027397 | AW48: 3.070027397 | AX48: 3.070027397 | AY48: 3.070027397 | AZ48: 3.070027397 | BA48: 3.070027397
A49: 3B3 | B49: Manure Management - Swine | C49: 3008.773751 | D49: 3097.65467 | E49: 3313.008215 | F49: 3650.895301 | G49: 3441.444665 | H49: 3491.378249 | I49: 3417.712403 | J49: 3587.830393 | K49: 3835.298555 | L49: 3685.905784 | M49: 3777.763762 | N49: 3989.281567 | O49: 4029.591796 | P49: 4095.970992 | Q49: 4182.174107 | R49: 4267.036991 | S49: 4206.955553 | T49: 4322.817462 | U49: 4008.729679 | V49: 3904.487031 | W49: 4149.857886 | X49: 4067.111056 | Y49: 3870.526667 | Z49: 3786.004046 | AA49: 3873.722248 | AB49: 3929.540427 | AC49: 3875.681741 | AD49: 3854.224926 | AE49: 3997.498289 | AF49: 3844.328703 | AG49: 4103.16274 | AH49: 4354.864025 | AI49: 4295.444729 | AJ49: 4258.122833 | AK49: 4224.028381 | AL49: 4196.646558 | AM49: 4166.318812 | AN49: 4140.572461 | AO49: 4107.444904 | AP49: 4073.396256 | AQ49: 4037.225901 | AR49: 3934.476236 | AS49: 3884.086319 | AT49: 3830.23442 | AU49: 3774.369407 | AV49: 3717.172824 | AW49: 3658.999172 | AX49: 3600.048408 | AY49: 3540.447402 | AZ49: 3480.288368 | BA49: 3419.646936
A50: 3B4d | B50: Manure Management - Goats | C50: 0.2875753425 | D50: 0.2837205479 | E50: 0.2798657534 | F50: 0.2760109589 | G50: 0.2721561644 | H50: 0.2683013699 | I50: 0.2644465753 | J50: 0.2605917808 | K50: 0.2974520548 | L50: 0.3102630137 | M50: 0.3246082192 | N50: 0.3623506849 | O50: 0.3540273973 | P50: 0.3854027397 | Q50: 0.4132493151 | R50: 0.4387178082 | S50: 0.4660657534 | T50: 0.4863945205 | U50: 0.5425863014 | V50: 0.6013479452 | W50: 0.6132767507 | X50: 0.4816383562 | Y50: 0.4921479452 | Z50: 0.4972493151 | AA50: 0.4567835616 | AB50: 0.4312 | AC50: 0.4300301753 | AD50: 0.428860274 | AE50: 0.3956438356 | AF50: 0.4479616438 | AG50: 0.3966027397 | AH50: 0.3966027397 | AI50: 0.3966027397 | AJ50: 0.3966027397 | AK50: 0.3966027397 | AL50: 0.3966027397 | AM50: 0.3966027397 | AN50: 0.3966027397 | AO50: 0.3966027397 | AP50: 0.3966027397 | AQ50: 0.3966027397 | AR50: 0.3966027397 | AS50: 0.3966027397 | AT50: 0.3966027397 | AU50: 0.3966027397 | AV50: 0.3966027397 | AW50: 0.3966027397 | AX50: 0.3966027397 | AY50: 0.3966027397 | AZ50: 0.3966027397 | BA50: 0.3966027397
A51: 3B4e | B51: Manure Management - Horses | C51: 32.2826087 | D51: 32.64130435 | E51: 33 | F51: 33.35869565 | G51: 33.7173913 | H51: 34.07608696 | I51: 34.43478261 | J51: 34.79347826 | K51: 35.15217391 | L51: 35.51086957 | M51: 35.86956522 | N51: 37.06521739 | O51: 38.26086957 | P51: 39.45652174 | Q51: 40.65217391 | R51: 41.84782609 | S51: 43.04347826 | T51: 44.23913043 | U51: 45.43478261 | V51: 42.44565217 | W51: 39.45652174 | X51: 37.06521739 | Y51: 37.06521739 | Z51: 35.86956522 | AA51: 35.86956522 | AB51: 37.06521739 | AC51: 38.85869565 | AD51: 40.65217391 | AE51: 41.84782609 | AF51: 41.84782609 | AG51: 43.64178261 | AH51: 43.64178261 | AI51: 43.64178261 | AJ51: 43.64178261 | AK51: 43.64178261 | AL51: 43.64178261 | AM51: 43.64178261 | AN51: 43.64178261 | AO51: 43.64178261 | AP51: 43.64178261 | AQ51: 43.64178261 | AR51: 43.64178261 | AS51: 43.64178261 | AT51: 43.64178261 | AU51: 43.64178261 | AV51: 43.64178261 | AW51: 43.64178261 | AX51: 43.64178261 | AY51: 43.64178261 | AZ51: 43.64178261 | BA51: 43.64178261
A52: 3B4g | B52: Manure Management - Poultry | C52: 1548.503833 | D52: 1449.166712 | E52: 1656.734382 | F52: 1686.552097 | G52: 1900.849489 | H52: 1767.681672 | I52: 1794.074477 | J52: 1669.243582 | K52: 1543.697459 | L52: 1641.437604 | M52: 1655.467415 | N52: 1608.660475 | O52: 1566.845046 | P52: 1493.635509 | Q52: 1453.090287 | R52: 1543.518882 | S52: 1326.489087 | T52: 1329.97469 | U52: 1401.408733 | V52: 1506.507552 | W52: 1580.360075 | X52: 1642.181248 | Y52: 1616.273259 | Z52: 1653.881598 | AA52: 1575.957929 | AB52: 1561.422671 | AC52: 1664.981071 | AD52: 1964.02699 | AE52: 1841.294152 | AF52: 2081.374064 | AG52: 1977.144584 | AH52: 2061.325654 | AI52: 2052.239729 | AJ52: 2042.678538 | AK52: 2032.419005 | AL52: 2021.397881 | AM52: 2010.101391 | AN52: 2001.412109 | AO52: 1990.501082 | AP52: 1980.582898 | AQ52: 1970.244049 | AR52: 1958.051201 | AS52: 1945.848418 | AT52: 1933.696321 | AU52: 1921.618591 | AV52: 1909.634225 | AW52: 1897.758609 | AX52: 1886.003831 | AY52: 1874.379281 | AZ52: 1862.892269 | BA52: 1851.548175
A53: 3B4h | B53: Manure Management - Other (mainly mink) | C53: 40.25297778 | D53: 37.53896889 | E53: 40.59368889 | F53: 27.33029333 | G53: 32.50375111 | H53: 32.88785778 | I53: 34.10592 | J53: 39.32997333 | K53: 41.68977778 | L53: 37.13607111 | M53: 39.09152 | N53: 40.96490667 | O53: 43.04938667 | P53: 41.97052444 | Q53: 43.92832 | R53: 45.37143111 | S53: 48.14092444 | T53: 50.42864 | U53: 49.95525333 | V53: 48.37368889 | W53: 47.98682667 | X53: 49.00759111 | Y53: 52.40787556 | Z53: 55.51902222 | AA53: 58.80378667 | AB53: 60.23763556 | AC53: 57.78938667 | AD53: 60.73335111 | AE53: 59.78849778 | AF53: 43.83310222 | AG53: 39.40419556 | AH53: 0 | AI53: 0 | AJ53: 3.940419556 | AK53: 3.940419556 | AL53: 3.940419573 | AM53: 3.940419556 | AN53: 3.940419556 | AO53: 3.940419556 | AP53: 3.940419556 | AQ53: 3.940419556 | AR53: 3.940419556 | AS53: 3.940419556 | AT53: 3.940419556 | AU53: 3.940419556 | AV53: 3.940419556 | AW53: 3.940419556 | AX53: 3.940419556 | AY53: 3.940419556 | AZ53: 3.940419556 | BA53: 3.940419556
A54: 3Da1 | B54: Inorganic N-fertilizers (includes also urea application)
A55: 3Da2a | B55: Animal manure applied to soils
A56: 3Da2b-c | B56: Sludge applied to soils
A57: 3Da3 | B57: Urine and dung deposited by grazing animals
A58: 3Dc | B58: Farm-level agricultural operations including storage, handling and transport of agricultural products | C58: 68372.508 | D58: 68248.8 | E58: 67748.511 | F58: 63275.508 | G58: 63700.741 | H58: 62473.599 | I58: 63397.716 | J58: 63744.273 | K58: 63074.114 | L58: 61974.43 | M58: 62377.007 | N58: 62852.171 | O58: 52459.195 | P58: 53163.305 | Q58: 53512.969 | R58: 54145.75 | S58: 54721.19 | T58: 54619.547 | U58: 55989.747 | V58: 55817.385 | W58: 56654.738 | X58: 56533.89 | Y58: 55582.69 | Z58: 55214.144 | AA58: 55539.828 | AB58: 54903.367 | AC58: 54667.364 | AD58: 60825.378 | AE58: 58486.032 | AF58: 60205.841 | AG58: 56544.4 | AH58: 57700.77102 | AI58: 57420.76525 | AJ58: 57141.44072 | AK58: 56867.71596 | AL58: 56608.33452 | AM58: 56255.82285 | AN58: 55904.68346 | AO58: 55740.05419 | AP58: 55575.42491 | AQ58: 55480.29482 | AR58: 55420.13566 | AS58: 55359.9765 | AT58: 55299.81734 | AU58: 55239.65819 | AV58: 55179.49903 | AW58: 55119.33987 | AX58: 55059.18071 | AY58: 54999.02155 | AZ58: 54938.86239 | BA58: 54878.70323
A59: 3De | B59: Cultivated crops
A60: 3F | B60: Field burning of agricultural residues | C60: 186.5470095 | D60: 193.9556903 | E60: 185.444415 | F60: 202.4858227 | G60: 195.2646052 | H60: 220.9870035 | I60: 219.746862 | J60: 232.9491555 | K60: 293.2624058 | L60: 278.5825913 | M60: 274.4173575 | N60: 288.3861428 | O60: 239.8941698 | P60: 288.391689 | Q60: 302.3571465 | R60: 306.8196592 | S60: 311.25555 | T60: 269.3192445 | U60: 249.4192995 | V60: 293.4254655 | W60: 213.969888 | X60: 211.786884 | Y60: 243.387198 | Z60: 263.029797 | AA60: 258.983253 | AB60: 230.905917 | AC60: 225.554895 | AD60: 255.824109 | AE60: 294.443757 | AF60: 330.316902 | AG60: 330.308028 | AH60: 285.1261204 | AI60: 283.7424827 | AJ60: 282.3622114 | AK60: 281.0096111 | AL60: 279.7278878 | AM60: 277.9859651 | AN60: 276.2508234 | AO60: 275.4373142 | AP60: 274.6238051 | AQ60: 274.1537234 | AR60: 273.8564493 | AS60: 273.5591751 | AT60: 273.261901 | AU60: 272.9646268 | AV60: 272.6673527 | AW60: 272.3700785 | AX60: 272.0728044 | AY60: 271.7755302 | AZ60: 271.4782561 | BA60: 271.1809819
A61: 3I | B61: Agriculture other
A63: 5A | B63: Solid waste disposal on land | C63: 0.2870824 | D63: 0.27449688 | E63: 0.26191136 | F63: 0.24932584 | G63: 0.23674032 | H63: 0.17716635 | I63: 0.22712679 | J63: 0.18924813 | K63: 0.16813116 | L63: 0.1397151 | M63: 0.13399425 | N63: 0.11850597 | O63: 0.10744569 | P63: 0.08826525 | Q63: 0.09214776 | R63: 0.08846883 | S63: 0.0901359 | T63: 0.08859744 | U63: 0.09648621 | V63: 0.07010118 | W63: 0.2238228264 | X63: 0.2361723211 | Y63: 0.2263312956 | Z63: 0.2356850466 | AA63: 0.2317678268 | AB63: 0.2193163751 | AC63: 0.265130718 | AD63: 0.1990099083 | AE63: 0.2167721653 | AF63: 0.2449162223 | AG63: 0.2446108136 | AH63: 0.04271963311 | AI63: 0.04381206597 | AJ63: 0.0446263218 | AK63: 0.04541072785 | AL63: 0.04616820851 | AM63: 0.04658756039 | AN63: 0.04710211884 | AO63: 0.04758519889 | AP63: 0.04798885542 | AQ63: 0.04866737202 | AR63: 0.04911186366 | AS63: 0.04955062223 | AT63: 0.04990138174 | AU63: 0.05021966967 | AV63: 0.05091214887 | AW63: 0.05135479476 | AX63: 0.05183995113 | AY63: 0.05233527289 | AZ63: 0.05280069233 | BA63: 0.05358985677
A64: 5B | B64: Biological treatment of waste | C64: NE | D64: NE | E64: NE | F64: NE | G64: NE | H64: NE | I64: NE | J64: NE | K64: NE | L64: NE | M64: NE | N64: NE | O64: NE | P64: NE | Q64: NE | R64: NE | S64: NE | T64: NE | U64: NE | V64: NE | W64: NE | X64: NE | Y64: NE | Z64: NE | AA64: NE | AB64: NE | AC64: NE | AD64: NE | AE64: NE | AF64: NE | AG64: NE | AH64: =AG64 -> NE | AI64: =AH64 -> NE | AJ64: NE | AK64: NE | AL64: NE | AM64: NE | AN64: NE | AO64: NE | AP64: NE | AQ64: NE | AR64: NE | AS64: NE | AT64: NE | AU64: NE | AV64: NE | AW64: NE | AX64: NE | AY64: NE | AZ64: NE | BA64: NE
A65: 5C | B65: Waste incineration | C65: 1.90761296 | D65: 1.91688096 | E65: 1.9691048 | F65: 2.05796064 | G65: 2.06310272 | H65: 2.12674032 | I65: 2.12598272 | J65: 2.13347696 | K65: 2.1187096 | L65: 2.43328944 | M65: 2.57180256 | N65: 2.59358192 | O65: 2.62348384 | P65: 2.62656432 | Q65: 2.8471408 | R65: 3.23278848 | S65: 4.02282448 | T65: 4.40961696 | U65: 4.52818528 | V65: 4.55427248 | W65: 4.780268 | X65: 2.673341728 | Y65: 2.736430874 | Z65: 2.514626714 | AA65: 2.547011352 | AB65: 2.456109868 | AC65: 2.604563712 | AD65: 2.550224674 | AE65: 2.56630724 | AF65: 2.483384636 | AG65: 2.18720726 | AH65: 2.412299712 | AI65: 2.412299712 | AJ65: 2.412299712 | AK65: 2.412299712 | AL65: 2.412299712 | AM65: 2.412299712 | AN65: 2.412299712 | AO65: 2.412299712 | AP65: 2.412299712 | AQ65: 2.412299712 | AR65: 2.412299712 | AS65: 2.412299712 | AT65: 2.412299712 | AU65: 2.412299712 | AV65: 2.412299712 | AW65: 2.412299712 | AX65: 2.412299712 | AY65: 2.412299712 | AZ65: 2.412299712 | BA65: 2.412299712
A66: 5D | B66: Wastewater handling
A67: 5E | B67: Other | C67: 334.8030591 | D67: 343.3194638 | E67: 365.0897504 | F67: 335.4972457 | G67: 335.403132 | H67: 372.6118912 | I67: 376.5709078 | J67: 354.677352 | K67: 328.6313681 | L67: 345.2953802 | M67: 340.661323 | N67: 336.502862 | O67: 328.8455241 | P67: 357.4055654 | Q67: 321.4397833 | R67: 331.4378515 | S67: 338.1853955 | T67: 332.8690076 | U67: 394.4826066 | V67: 390.5992275 | W67: 362.4221352 | X67: 348.3804191 | Y67: 320.5109892 | Z67: 335.2629209 | AA67: 311.4492629 | AB67: 291.3371011 | AC67: 329.5871929 | AD67: 327.4336791 | AE67: 338.498607 | AF67: 310.3168828 | AG67: 316.6627217 | AH67: =AVERAGE($AE$67:$AG$67) -> 321.8260705 | AI67: =AVERAGE($AE$67:$AG$67) -> 321.8260705 | AJ67: 321.8260705 | AK67: 321.8260705 | AL67: 321.8260705 | AM67: 321.8260705 | AN67: 321.8260705 | AO67: 321.8260705 | AP67: 321.8260705 | AQ67: 321.8260705 | AR67: 321.8260705 | AS67: 321.8260705 | AT67: 321.8260705 | AU67: 321.8260705 | AV67: 321.8260705 | AW67: 321.8260705 | AX67: 321.8260705 | AY67: 321.8260705 | AZ67: 321.8260705 | BA67: 321.8260705
B68: Total | C68: =SUM(C3:C67) -> 109496.7276 | D68: 110316.7017 | E68: 107022.4885 | F68: 102736.6043 | G68: 102900.9661 | H68: 103669.7621 | I68: 102910.1074 | J68: 102741.8879 | K68: 100246.4901 | L68: 98780.83009 | M68: 102078.835 | N68: 100822.7156 | O68: 93076.10658 | P68: 90929.81531 | Q68: 93736.83849 | R68: 95714.36861 | S68: 95299.22589 | T68: 95872.2303 | U68: 114762.8916 | V68: 94919.79452 | W68: 97462.48683 | X68: 93308.2347 | Y68: 91362.53751 | Z68: 90444.48233 | AA68: 92610.79978 | AB68: 86762.00058 | AC68: 85693.57237 | AD68: =SUM(AD3:AD67) -> 92140.73217 | AE68: =SUM(AE3:AE67) -> 91077.4807 | AF68: 87903.68964 | AG68: =SUM(AG3:AG67) -> 84326.22886 | AH68: 86514.7932 | AI68: 85924.05789 | AJ68: 85330.86792 | AK68: 84700.28083 | AL68: 84193.29685 | AM68: 83484.24504 | AN68: 82811.3519 | AO68: 82329.58448 | AP68: 81865.6069 | AQ68: 81464.66144 | AR68: 81084.79032 | AS68: 80748.06413 | AT68: 80429.86535 | AU68: 80114.23233 | AV68: 79803.44759 | AW68: 79448.12473 | AX68: 79099.00464 | AY68: 78759.5647 | AZ68: 78431.75638 | BA68: 78105.02893
B71: Reduction since 2005 | S71: =($R$68-S68)/$R$68 -> 0.004337308184 | T71: -0.00164929988 | U71: -0.1990142474 | V71: 0.008301513093 | W71: -0.01826390591 | X71: 0.02513869066 | Y71: 0.04546685267 | Z71: 0.05505846564 | AA71: 0.03242531783 | AB71: 0.09353212225 | AC71: 0.1046947954 | AD71: =($R$68-AD68)/$R$68 -> 0.03733646775 | AE71: 0.04844505561 | AF71: =($R$68-AF68)/$R$68 -> 0.08160403795 | AG71: 0.1189804614 | AH71: =($R$68-AH68)/$R$68 -> 0.09611488367 | AI71: 0.1022867398 | AJ71: 0.1084842416 | AK71: 0.1150724592 | AL71: 0.1203693022 | AM71: 0.1277772997 | AN71: 0.1348075204 | AO71: 0.1398409071 | AP71: 0.1446884298 | AQ71: 0.1488774087 | AR71: 0.1528462079 | AS71: 0.1563642397 | AT71: 0.1596887017 | AU71: 0.1629863572 | AV71: 0.1662333592 | AW71: 0.1699456844 | AX71: 0.1735932045 | AY71: 0.1771395889 | AZ71: 0.180564449 | BA71: 0.1839780164
A73: 1A3a | B73: Civil Aviation (Domestic Cruise) | C73: 4.351326258 | D73: 4.098783459 | E73: 3.983368881 | F73: 3.824502901 | G73: 3.981178288 | H73: 4.046562589 | I73: 4.356688078 | J73: 4.399124343 | K73: 4.27638167 | L73: 4.13126038 | M73: 3.816437159 | N73: 4.237996309 | O73: 3.403250722 | P73: 3.578385752 | Q73: 2.796253769 | R73: 3.260200738 | S73: 3.809420532 | T73: 4.662713705 | U73: 5.13578686 | V73: 4.44241374 | W73: 4.271667293 | X73: 4.08303967 | Y73: 3.794369548 | Z73: 3.52944981 | AA73: 3.385022547 | AB73: 3.140207113 | AC73: 3.278483088 | AD73: 3.447206142 | AE73: 3.742984111 | AF73: 3.914140541 | AG73: 1.877385629 | AH73: 3.6191356 | AI73: 3.65623885 | AJ73: 3.689951233 | AK73: 3.722282185 | AL73: 3.754357614 | AM73: 3.796058088 | AN73: 3.838826951 | AO73: 3.882176059 | AP73: 3.925023728 | AQ73: 3.969066251 | AR73: 3.981677256 | AS73: 3.993254013 | AT73: 4.005366747 | AU73: 4.016595282 | AV73: 4.029091159 | AW73: 4.041207447 | AX73: 4.052628565 | AY73: 4.064613518 | AZ73: 4.075810729 | BA73: 4.088041573
B74: Civil Aviation (International Cruise) | C74: 83.45084633 | D74: 76.74293697 | E74: 78.86135595 | F74: 77.46309518 | G74: 85.61408128 | H74: 87.79728534 | I74: 93.19551515 | J74: 95.11350381 | K74: 102.9905933 | L74: 108.1838328 | M74: 110.5479473 | N74: 111.9109885 | O74: 131.3025907 | P74: 146.0636651 | Q74: 157.7109352 | R74: 153.9234895 | S74: 147.5842852 | T74: 145.6118422 | U74: 142.6590062 | V74: 121.0073784 | W74: 123.8319284 | X74: 136.178411 | Y74: 138.3981156 | Z74: 138.6414096 | AA74: 154.5928759 | AB74: 145.7488131 | AC74: 149.7549267 | AD74: 158.779431 | AE74: 162.2262843 | AF74: 162.5225374 | AG74: 44.66137279 | AH74: 56.56479276 | AI74: 141.3233545 | AJ74: 142.0101553 | AK74: 142.5117011 | AL74: 142.9492847 | AM74: 143.8738064 | AN74: 144.8641261 | AO74: 145.8709908 | AP74: 146.7770467 | AQ74: 147.7781901 | AR74: 147.9223705 | AS74: 147.9585729 | AT74: 148.0647401 | AU74: 148.079526 | AV74: 148.2456368 | AW74: 148.3757664 | AX74: 148.434903 | AY74: 148.5640544 | AZ74: 148.6108238 | BA74: 148.7812384
A75: 1A3d | B75: Navigation, international | C75: 4962.535521 | D75: 4080.762901 | E75: 3773.005972 | F75: 6994.583569 | G75: 7266.478037 | H75: 7857.282459 | I75: 7368.772238 | J75: 6763.487476 | K75: 5838.049823 | L75: 6090.56299 | M75: 6818.983673 | N75: 5450.029911 | O75: 3833.386313 | P75: 4098.388974 | Q75: 3482.42572 | R75: 4309.33786 | S75: 6394.177916 | T75: 4735.915577 | U75: 3701.276044 | V75: 1527.4038 | W75: 2122.324637 | X75: 2290.009119 | Y75: 1395.446204 | Z75: 1904.574451 | AA75: 2343.766916 | AB75: 1498.556127 | AC75: 1208.174626 | AD75: 733.9276251 | AE75: 1054.637732 | AF75: 1679.695971 | AG75: 1454.052322 | AH75: 1723.875005 | AI75: 1739.647052 | AJ75: 1754.258063 | AK75: 1767.617853 | AL75: 1779.635088 | AM75: 1790.21785 | AN75: 1799.274257 | AO75: 1806.713151 | AP75: 1812.444838 | AQ75: 1816.381891 | AR75: 1820.328757 | AS75: 1824.285475 | AT75: 1828.25208 | AU75: 1832.228611 | AV75: 1836.215104 | AW75: 1840.211597 | AX75: 1844.218128 | AY75: 1848.234735 | AZ75: 1852.261456 | BA75: 1856.298329

Sheet PM10
A1: PM10 (tons)
C2: 1990 | D2: 1991 | E2: 1992 | F2: 1993 | G2: 1994 | H2: 1995 | I2: 1996 | J2: 1997 | K2: 1998 | L2: 1999 | M2: 2000 | N2: 2001 | O2: 2002 | P2: 2003 | Q2: 2004 | R2: 2005 | S2: 2006 | T2: 2007 | U2: 2008 | V2: 2009 | W2: 2010 | X2: 2011 | Y2: 2012 | Z2: 2013 | AA2: 2014 | AB2: 2015 | AC2: 2016 | AD2: 2017 | AE2: 2018 | AF2: 2019 | AG2: 2020 | AH2: 2021 | AI2: 2022 | AJ2: 2023 | AK2: 2024 | AL2: 2025 | AM2: 2026 | AN2: 2027 | AO2: 2028 | AP2: 2029 | AQ2: 2030 | AR2: 2031 | AS2: 2032 | AT2: 2033 | AU2: 2034 | AV2: 2035 | AW2: 2036 | AX2: 2037 | AY2: 2038 | AZ2: 2039 | BA2: 2040
A3: 1A1a | B3: Public power and district heating plants | C3: 831.2179201 | D3: 1064.205895 | E3: 924.3370026 | F3: 953.481776 | G3: 1028.962496 | H3: 973.1091579 | I3: 1296.803622 | J3: 1019.052932 | K3: 911.6770229 | L3: 806.3673692 | M3: 830.5961425 | N3: 919.19886 | O3: 973.9658082 | P3: 1057.016749 | Q3: 832.7894976 | R3: 676.4708329 | S3: 770.7616566 | T3: 800.7090741 | U3: 677.3410289 | V3: 622.0703462 | W3: 605.3882625 | X3: 573.6966752 | Y3: 510.4690604 | Z3: 726.4322004 | AA3: 560.158739 | AB3: 443.5651985 | AC3: 510.4385571 | AD3: 478.5861819 | AE3: 509.4296216 | AF3: 486.5499892 | AG3: 490.2911481 | AH3: 562.7346405 | AI3: 579.9583375 | AJ3: 548.1982765 | AK3: 467.7797642 | AL3: 464.02095 | AM3: 464.5294312 | AN3: 462.0075319 | AO3: 448.5402808 | AP3: 433.6062518 | AQ3: 397.971351 | AR3: 389.2518388 | AS3: 381.8678242 | AT3: 387.200672 | AU3: 382.9227028 | AV3: 378.5171316 | AW3: 360.2100451 | AX3: 341.4877179 | AY3: 325.3020496 | AZ3: 312.1247287 | BA3: 301.3586197
A4: !A1b | B4: Petroleum refining plants | C4: 122.258636 | D4: 153.7854275 | E4: 216.7835296 | F4: 216.2379961 | G4: 215.5168608 | H4: 186.2619053 | I4: 196.7316943 | J4: 149.4031983 | K4: 120.23652 | L4: 122.199112 | M4: 130.70114 | N4: 136.4943 | O4: 130.4906 | P4: 119.0712632 | Q4: 122.3656258 | R4: 104.3714294 | S4: 105.4015851 | T4: 112.5011849 | U4: 106.1042561 | V4: 103.9485113 | W4: 89.58358839 | X4: 88.94501545 | Y4: 106.6659171 | Z4: 100.1573607 | AA4: 92.28694554 | AB4: 105.814187 | AC4: 92.34017715 | AD4: 100.2084666 | AE4: 90.01250188 | AF4: 89.72969448 | AG4: 80.9098143 | AH4: 92.61822625 | AI4: 92.61880825 | AJ4: 92.6171254 | AK4: 92.6181365 | AL4: 92.6183796 | AM4: 92.61417318 | AN4: 92.6169516 | AO4: 92.61804661 | AP4: 92.61687688 | AQ4: 92.61053771 | AR4: 92.60943171 | AS4: 92.60626907 | AT4: 92.60598061 | AU4: 92.60237574 | AV4: 92.60349338 | AW4: 92.60968801 | AX4: 92.60838979 | AY4: 92.60900249 | AZ4: 92.60984704 | BA4: 92.60767718
A5: 1A1c | B5: Oil and gas extraction | C5: 0.9354832923 | D5: 0.9443042865 | E5: 1.074230301 | F5: 1.1037584 | G5: 1.230426722 | H5: 1.295117607 | I5: 1.544359555 | J5: 2.080092865 | K5: 2.392111122 | L5: 2.778194162 | M5: 3.353281906 | N5: 3.2417492 | O5: 3.444797965 | P5: 3.413513516 | Q5: 3.450744948 | R5: 3.559512719 | S5: 3.675814602 | T5: 3.074958787 | U5: 3.082924295 | V5: 3.259537985 | W5: 3.007729526 | X5: 3.249314699 | Y5: 3.11092522 | Z5: 4.040292495 | AA5: 4.475144617 | AB5: 3.143972953 | AC5: 3.288114897 | AD5: 2.738733273 | AE5: 3.558734873 | AF5: 3.748506855 | AG5: 2.573386069 | AH5: 1.473290315 | AI5: 1.376238882 | AJ5: 1.458375825 | AK5: 1.775820172 | AL5: 1.535552161 | AM5: 1.447062657 | AN5: 1.480353895 | AO5: 1.411446677 | AP5: 1.36795364 | AQ5: 1.30011675 | AR5: 1.233659413 | AS5: 1.173896488 | AT5: 1.122002186 | AU5: 1.071216739 | AV5: 1.08159947 | AW5: 1.032917766 | AX5: 0.9715231363 | AY5: 0.9084925407 | AZ5: 0.8452171366 | BA5: 0.7855041196
A7: 1A2a-f i | B7: Combustion in manufacturing industry | C7: 509.5429282 | D7: 561.2469783 | E7: 548.8202357 | F7: 539.1474794 | G7: 508.8450323 | H7: 480.9305396 | I7: 498.4532666 | J7: 497.4896601 | K7: 521.5208018 | L7: 479.2388692 | M7: 552.4789031 | N7: 560.5259461 | O7: 376.4813524 | P7: 343.7335578 | Q7: 346.5920762 | R7: 292.2160629 | S7: 353.2057101 | T7: 326.0874289 | U7: 351.8229077 | V7: 248.7134759 | W7: 236.8116671 | X7: 242.3040907 | Y7: 228.2822947 | Z7: 226.9772455 | AA7: 193.172227 | AB7: 178.8711173 | AC7: 178.6805613 | AD7: 176.081528 | AE7: 177.2222887 | AF7: 168.2223494 | AG7: 200.85742 | AH7: 236.529922 | AI7: 236.9150814 | AJ7: 237.2171044 | AK7: 237.5306752 | AL7: 237.8349418 | AM7: 230.4641279 | AN7: 223.1009838 | AO7: 215.7530778 | AP7: 208.4111225 | AQ7: 201.0519491 | AR7: 205.8096655 | AS7: 210.6021861 | AT7: 215.4058466 | AU7: 220.0460696 | AV7: 224.829283 | AW7: 227.4758398 | AX7: 230.1539122 | AY7: 232.869375 | AZ7: 235.9589314 | BA7: 239.1251036
A8: 1A2f ii | B8: Industry - Other (mobile) | C8: 1033.357614 | D8: 996.6796757 | E8: 948.6487626 | F8: 902.7690774 | G8: 861.2076462 | H8: 826.3118197 | I8: 793.3145428 | J8: 765.2698598 | K8: 738.7450373 | L8: 708.4584227 | M8: 675.2428737 | N8: 645.8857938 | O8: 611.9731872 | P8: 576.8480514 | Q8: 544.8223006 | R8: 518.4423109 | S8: 503.3856394 | T8: 492.0998155 | U8: 475.425562 | V8: 340.6635257 | W8: 412.053831 | X8: 378.1013569 | Y8: 346.5468986 | Z8: 315.8556262 | AA8: 287.7319992 | AB8: 260.0200151 | AC8: 232.8155466 | AD8: 206.8902637 | AE8: 184.2137135 | AF8: 158.4196987 | AG8: 136.7335432 | AH8: 108.6293252 | AI8: 93.16068373 | AJ8: 79.26168262 | AK8: 66.05699824 | AL8: 57.9112286 | AM8: 49.68928503 | AN8: 42.29852452 | AO8: 35.69060839 | AP8: 31.08469374 | AQ8: 27.48925756 | AR8: 24.46613609 | AS8: 22.52800857 | AT8: 21.49945777 | AU8: 20.88326794 | AV8: 20.30200502 | AW8: 19.93429571 | AX8: 19.61455112 | AY8: 19.31579162 | AZ8: 19.02993174 | BA8: 18.76493648 | BC8: 1A2f ii | BD8: Industry - Other (mobile)
A10: 1A3a | B10: Civil Aviation (Domestic LTO) | C10: 2.797299146 | D10: 2.669936048 | E10: 2.655985776 | F10: 2.615962067 | G10: 2.877223634 | H10: 3.030825085 | I10: 3.052644422 | J10: 3.138803284 | K10: 2.728166369 | L10: 2.500837332 | M10: 2.322985867 | N10: 2.325379232 | O10: 1.993480555 | P10: 1.846091661 | Q10: 1.45017057 | R10: 1.545183778 | S10: 1.676256249 | T10: 2.066367446 | U10: 2.144691396 | V10: 1.924136591 | W10: 1.905714945 | X10: 1.781128752 | Y10: 1.79784714 | Z10: 1.717614686 | AA10: 1.268445457 | AB10: 1.230505649 | AC10: 1.300500387 | AD10: 1.137611464 | AE10: 1.350340872 | AF10: 1.2723462 | AG10: 0.8770668189 | AH10: 1.250941056 | AI10: 1.264176989 | AJ10: 1.276781649 | AK10: 1.289111568 | AL10: 1.301436362 | AM10: 1.31691229 | AN10: 1.33271992 | AO10: 1.348737226 | AP10: 1.364706454 | AQ10: 1.381013562 | AR10: 1.385902141 | AS10: 1.390537759 | AT10: 1.395282915 | AU10: 1.399810376 | AV10: 1.404618556 | AW10: 1.409328279 | AX10: 1.413865535 | AY10: 1.418523542 | AZ10: 1.422989094 | BA10: 1.42768325 | BC10: 1A3a | BD10: Civil Aviation (Domestic LTO)
A11: 1A3a | B11: Civil Aviation (International LTO) | C11: 15.95768564 | D11: 15.37783941 | E11: 12.65459922 | F11: 11.77206469 | G11: 13.76036489 | H11: 13.58793479 | I11: 13.96466078 | J11: 15.52297088 | K11: 13.44570861 | L11: 12.42391628 | M11: 11.23936822 | N11: 10.43028883 | O11: 11.50864629 | P11: 11.17789744 | Q11: 11.44386984 | R11: 10.54784762 | S11: 9.236030127 | T11: 9.282658478 | U11: 9.805451875 | V11: 8.039866432 | W11: 8.440962322 | X11: 9.343327402 | Y11: 9.400178711 | Z11: 9.518271363 | AA11: 9.790251954 | AB11: 9.668754923 | AC11: 10.36280781 | AD11: 10.44837687 | AE11: 11.06241369 | AF11: 10.81252764 | AG11: 3.621599242 | AH11: 4.586849839 | AI11: 11.45993779 | AJ11: 11.5156306 | AK11: 11.55630104 | AL11: 11.59178478 | AM11: 11.66675442 | AN11: 11.74705963 | AO11: 11.82870648 | AP11: 11.90217873 | AQ11: 11.98336163 | AR11: 11.99505325 | AS11: 11.99798891 | AT11: 12.00659803 | AU11: 12.00779702 | AV11: 12.02126697 | AW11: 12.03181921 | AX11: 12.03661461 | AY11: 12.04708752 | AZ11: 12.05088006 | BA11: 12.06469902 | BC11: 1A3a | BD11: Civil Aviation (International LTO)
A12: 1A3bi | B12: Road transport: Passenger cars | C12: 673.9056303 | D12: 735.7213218 | E12: 688.2823626 | F12: 684.9446196 | G12: 680.0470021 | H12: 655.5882805 | I12: 649.0339688 | J12: 599.2891498 | K12: 555.4147606 | L12: 532.2908872 | M12: 513.3266424 | N12: 495.503334 | O12: 478.0317623 | P12: 507.8650917 | Q12: 512.3534578 | R12: 521.4960487 | S12: 529.4802644 | T12: 548.9415225 | U12: 539.9010751 | V12: 496.0332219 | W12: 517.7972955 | X12: 453.2551328 | Y12: 432.3857872 | Z12: 404.7758005 | AA12: 360.4981142 | AB12: 344.6198157 | AC12: 310.9206393 | AD12: 274.3305027 | AE12: 243.3437522 | AF12: 206.3834874 | AG12: 161.9906575 | AH12: 162.9911885 | AI12: 144.9780938 | AJ12: 128.4615188 | AK12: 113.2899796 | AL12: 99.73163266 | AM12: 88.20219839 | AN12: 78.59470506 | AO12: 70.65869594 | AP12: 64.11458088 | AQ12: 58.70850535 | AR12: 54.03901148 | AS12: 49.42332504 | AT12: 45.29281854 | AU12: 41.57004 | AV12: 38.20569149 | AW12: 35.14675997 | AX12: 32.34040066 | AY12: 29.76704821 | AZ12: 27.41567745 | BA12: 25.22615718 | BC12: 1A3bi | BD12: Road transport: Passenger cars
A13: 1A3bii | B13: Road transport: Light duty vehicles | C13: 1736.0346 | D13: 1912.300745 | E13: 1864.505791 | F13: 1934.85173 | G13: 1975.783607 | H13: 1888.112587 | I13: 1793.504902 | J13: 1582.730329 | K13: 1451.080142 | L13: 1346.317087 | M13: 1239.779227 | N13: 1163.661159 | O13: 1040.162084 | P13: 1013.686297 | Q13: 941.3737685 | R13: 910.2781911 | S13: 900.7465697 | T13: 842.244934 | U13: 781.6283154 | V13: 665.0350389 | W13: 642.8782209 | X13: 519.4646322 | Y13: 450.0383157 | Z13: 382.0471161 | AA13: 310.3035798 | AB13: 272.4227864 | AC13: 229.5125111 | AD13: 191.0393032 | AE13: 158.2321148 | AF13: 121.3973904 | AG13: 90.43944826 | AH13: 84.80322748 | AI13: 69.69558424 | AJ13: 57.24655657 | AK13: 47.42066896 | AL13: 39.50139151 | AM13: 33.37384091 | AN13: 28.55746187 | AO13: 24.88266097 | AP13: 22.02763331 | AQ13: 19.81360321 | AR13: 18.0506651 | AS13: 16.60764724 | AT13: 15.39247588 | AU13: 14.33371766 | AV13: 13.39635691 | AW13: 12.56649225 | AX13: 11.83270798 | AY13: 11.17861598 | AZ13: 10.59219004 | BA13: 10.06928122 | BC13: 1A3bii | BD13: Road transport: Light duty vehicles
A14: 1A3biii | B14: Road transport: Heavy duty vehicles and buses | C14: 1456.25782 | D14: 1447.889546 | E14: 1402.167457 | F14: 1369.118923 | G14: 1447.011648 | H14: 1417.777313 | I14: 1391.954566 | J14: 1308.625036 | K14: 1200.958862 | L14: 1122.198801 | M14: 1003.183553 | N14: 937.9618648 | O14: 879.2601826 | P14: 878.6305758 | Q14: 857.1867004 | R14: 816.7992709 | S14: 794.3184164 | T14: 728.7419717 | U14: 573.0936529 | V14: 441.9129975 | W14: 406.0741067 | X14: 368.5886949 | Y14: 310.3561296 | Z14: 275.6644571 | AA14: 257.9362804 | AB14: 216.8109393 | AC14: 179.619821 | AD14: 144.7407471 | AE14: 117.5980608 | AF14: 93.07486204 | AG14: 70.67583907 | AH14: 62.63906551 | AI14: 52.45559347 | AJ14: 44.74349436 | AK14: 38.83849911 | AL14: 34.32654665 | AM14: 30.86708211 | AN14: 28.20942015 | AO14: 26.15952776 | AP14: 24.57370297 | AQ14: 23.30258379 | AR14: 22.23535901 | AS14: 21.3280235 | AT14: 20.5317618 | AU14: 19.81770886 | AV14: 19.16166459 | AW14: 18.5973396 | AX14: 18.15648658 | AY14: 17.82084848 | AZ14: 17.57540683 | BA14: 17.40499046 | BC14: 1A3biii | BD14: Road transport: Heavy duty vehicles and buses
A15: 1A3biv | B15: Road transport: Mopeds & motorcycles | C15: 41.00508231 | D15: 42.06844689 | E15: 43.07044974 | F15: 43.60195994 | G15: 44.15873666 | H15: 48.19591178 | I15: 53.40610421 | J15: 62.68147262 | K15: 72.36253272 | L15: 71.05939843 | M15: 69.42508034 | N15: 57.06581769 | O15: 56.68656074 | P15: 54.73016863 | Q15: 51.38583407 | R15: 48.22621213 | S15: 45.90122246 | T15: 43.51851574 | U15: 39.85059461 | V15: 36.10342367 | W15: 32.56106828 | X15: 30.17299905 | Y15: 28.10432982 | Z15: 26.39001241 | AA15: 24.76036605 | AB15: 22.87906986 | AC15: 20.64127214 | AD15: 18.80423976 | AE15: 16.85781409 | AF15: 14.54861076 | AG15: 13.43311773 | AH15: 12.5825441 | AI15: 11.7612834 | AJ15: 11.00815131 | AK15: 10.37688548 | AL15: 9.790570806 | AM15: 9.247649513 | AN15: 8.743541801 | AO15: 8.273282584 | AP15: 7.833658551 | AQ15: 7.420996071 | AR15: 7.244252262 | AS15: 7.077582051 | AT15: 6.920079408 | AU15: 6.768818653 | AV15: 6.68268785 | AW15: 6.597080662 | AX15: 6.515982575 | AY15: 6.435405063 | AZ15: 6.354648471 | BA15: 6.265759104 | BC15: 1A3biv | BD15: Road transport: Mopeds & motorcycles
A16: 1A3bv | B16: Road transport: Gasoline evaporation | BC16: 1A3bv | BD16: Road transport: Gasoline evaporation
A17: 1A3bvi | B17: Road transport: Automobile tyre and brake wear | C17: 742.4166406 | D17: 774.4253203 | E17: 788.3986104 | F17: 795.8243956 | G17: 838.9194282 | H17: 851.25722 | I17: 866.4463592 | J17: 890.5945645 | K17: 911.502018 | L17: 931.2712168 | M17: 925.3432887 | N17: 929.0362402 | O17: 943.0691265 | P17: 986.6389462 | Q17: 1022.146957 | R17: 1032.075127 | S17: 1070.097972 | T17: 1121.126418 | U17: 1100.10503 | V17: 1042.400766 | W17: 1043.07853 | X17: 1061.429914 | Y17: 1030.837196 | Z17: 1020.116696 | AA17: 1045.238701 | AB17: 1069.012623 | AC17: 1086.800432 | AD17: 1101.636877 | AE17: 1127.750536 | AF17: 1117.91792 | AG17: 1050.067743 | AH17: 1151.645596 | AI17: 1166.006468 | AJ17: 1188.727051 | AK17: 1205.5159 | AL17: 1216.322152 | AM17: 1225.309042 | AN17: 1234.790326 | AO17: 1246.138728 | AP17: 1259.626038 | AQ17: 1275.463594 | AR17: 1291.711527 | AS17: 1301.659612 | AT17: 1312.045093 | AU17: 1322.916317 | AV17: 1333.648877 | AW17: 1343.35678 | AX17: 1350.557259 | AY17: 1355.378778 | AZ17: 1358.506895 | BA17: 1356.450887 | BC17: 1A3bvi | BD17: Road transport: Automobile tyre and brake wear
A18: 1A3bvii | B18: Road transport: Automobile road abrasion | C18: 384.9444835 | D18: 401.8492627 | E18: 409.740678 | F18: 413.1687946 | G18: 435.8517729 | H18: 442.9735799 | I18: 450.4384219 | J18: 463.3817942 | K18: 474.1945238 | L18: 484.2364972 | M18: 480.0860134 | N18: 481.2704356 | O18: 488.2735312 | P18: 511.6383405 | Q18: 529.1390576 | R18: 531.9721946 | S18: 550.3981584 | T18: 577.2073243 | U18: 566.921328 | V18: 538.4378188 | W18: 541.5739245 | X18: 554.2877492 | Y18: 542.4403928 | Z18: 540.6704292 | AA18: 558.9934543 | AB18: 575.0682703 | AC18: 588.5019701 | AD18: 598.3955543 | AE18: 614.2201848 | AF18: 611.1354954 | AG18: 573.8722124 | AH18: 630.3965343 | AI18: 639.0638479 | AJ18: 652.8162077 | AK18: 662.9398872 | AL18: 669.4777015 | AM18: 674.9782795 | AN18: 680.8091654 | AO18: 687.8020965 | AP18: 696.1332767 | AQ18: 705.9909588 | AR18: 716.1942502 | AS18: 722.5483007 | AT18: 729.2228292 | AU18: 736.2434614 | AV18: 743.2052297 | AW18: 749.5283235 | AX18: 754.3012423 | AY18: 757.5862638 | AZ18: 759.8133026 | BA18: 758.9439222 | BC18: 1A3bvii | BD18: Road transport: Automobile road abrasion
A19: 1A3c | B19: Railways | C19: 201.557233 | D19: 205.1707633 | E19: 216.916572 | F19: 225.1261111 | G19: 204.0041653 | H19: 205.781806 | I19: 204.2219741 | J19: 198.8178575 | K19: 167.750622 | L19: 146.2719477 | M19: 140.5712174 | N19: 125.3582558 | O19: 123.811099 | P19: 118.5964897 | Q19: 114.7678625 | R19: 123.7601514 | S19: 119.557145 | T19: 119.9923562 | U19: 101.1974495 | V19: 84.39545816 | W19: 94.91049414 | X19: 77.51031758 | Y19: 81.67987091 | Z19: 70.31873593 | AA19: 61.32821167 | AB19: 49.00474757 | AC19: 47.95680845 | AD19: 33.49585763 | AE19: 24.22064052 | AF19: 22.6653225 | AG19: 18.61859212 | AH19: 20.10546468 | AI19: 20.17543247 | AJ19: 19.59731118 | AK19: 19.01922224 | AL19: 18.97330359 | AM19: 18.95613554 | AN19: 7.504422386 | AO19: 6.850133046 | AP19: 2.441606889 | AQ19: 1.953285511 | AR19: 0 | AS19: 0 | AT19: 0 | AU19: 0 | AV19: 0 | AW19: 0 | AX19: 0 | AY19: 0 | AZ19: 0 | BA19: 0 | BC19: 1A3c | BD19: Railways
A20: 1A3d | B20: Navigation | C20: 800.6499839 | D20: 851.148407 | E20: 671.1283875 | F20: 640.2358477 | G20: 588.6415267 | H20: 639.9209288 | I20: 554.072645 | J20: 495.4668567 | K20: 430.5693865 | L20: 415.7836459 | M20: 416.9938894 | N20: 423.7717977 | O20: 486.3442321 | P20: 539.8192932 | Q20: 532.1316725 | R20: 549.5545011 | S20: 544.1788312 | T20: 425.1242686 | U20: 457.8414995 | V20: 442.0814958 | W20: 398.8948481 | X20: 383.2615951 | Y20: 376.0185436 | Z20: 393.0385758 | AA20: 331.6933758 | AB20: 254.2368682 | AC20: 273.5084671 | AD20: 289.6148734 | AE20: 268.0683729 | AF20: 232.9495021 | AG20: 248.5426708 | AH20: 244.6554971 | AI20: 245.6997787 | AJ20: 246.2780271 | AK20: 246.6956699 | AL20: 247.0253763 | AM20: 247.3538198 | AN20: 247.4149271 | AO20: 247.4476665 | AP20: 247.2757734 | AQ20: 246.9221243 | AR20: 246.910563 | AS20: 246.9217952 | AT20: 246.9068191 | AU20: 246.8942169 | AV20: 246.8699428 | AW20: 246.8673757 | AX20: 246.8646801 | AY20: 246.8618557 | AZ20: 247.1002059 | BA20: 247.153393 | BC20: 1A3d | BD20: Navigation
A22: 1A4a i | B22: Commercial and institutional plants | C22: 106.8946956 | D22: 99.22996718 | E22: 89.2200072 | F22: 88.52822614 | G22: 84.13508207 | H22: 81.4954401 | I22: 90.83109846 | J22: 89.67628751 | K22: 79.63493662 | L22: 91.41547319 | M22: 97.55969997 | N22: 83.10804262 | O22: 104.3544023 | P22: 97.18873946 | Q22: 79.4455053 | R22: 86.05106463 | S22: 83.17039138 | T22: 82.96986161 | U22: 87.32013061 | V22: 81.80337158 | W22: 77.47977498 | X22: 72.49006413 | Y22: 73.63846489 | Z22: 75.91159416 | AA22: 80.63768138 | AB22: 88.16666475 | AC22: 132.740843 | AD22: 141.0837265 | AE22: 104.8868619 | AF22: 98.24800599 | AG22: 89.92771706 | AH22: 116.0631222 | AI22: 116.7825166 | AJ22: 117.5017598 | AK22: 118.2209451 | AL22: 118.9402077 | AM22: 117.3081638 | AN22: 115.6762517 | AO22: 114.0443556 | AP22: 112.4123385 | AQ22: 110.7799694 | AR22: 108.7458041 | AS22: 106.7121825 | AT22: 104.6785746 | AU22: 102.6449505 | AV22: 100.6113601 | AW22: 97.24814391 | AX22: 93.93163532 | AY22: 90.61512683 | AZ22: 87.29861841 | BA22: 83.98210976
A23: 1A4a ii | B23: Commercial and institutional (mobile) | C23: 234.3397118 | D23: 224.5174543 | E23: 211.6431654 | F23: 202.0587062 | G23: 191.3127159 | H23: 187.6349535 | I23: 178.5545729 | J23: 175.4028388 | K23: 167.5962853 | L23: 160.7958772 | M23: 150.6114237 | N23: 146.3042409 | O23: 140.6901451 | P23: 135.3691042 | Q23: 130.8666927 | R23: 125.7945195 | S23: 118.0440228 | T23: 124.6019338 | U23: 122.1755521 | V23: 106.9700145 | W23: 115.5991115 | X23: 111.4588869 | Y23: 105.9320533 | Z23: 100.4810435 | AA23: 94.92768735 | AB23: 89.00150216 | AC23: 84.16812245 | AD23: 79.9889563 | AE23: 73.69282616 | AF23: 63.21870098 | AG23: 56.64276778 | AH23: 19.37503854 | AI23: 16.34634648 | AJ23: 13.67653156 | AK23: 11.24342127 | AL23: 9.147850634 | AM23: 6.808188203 | AN23: 5.056485069 | AO23: 3.557765123 | AP23: 2.418370689 | AQ23: 1.495702357 | AR23: 1.184465072 | AS23: 0.9120015447 | AT23: 0.675005423 | AU23: 0.461211875 | AV23: 0.2689503952 | AW23: 0.231969527 | AX23: 0.1985660386 | AY23: 0.1687544842 | AZ23: 0.143288028 | BA23: 0.1205429768 | BC23: 1A4a ii | BD23: Commercial and institutional (mobile)
A24: 1A4b i | B24: Residential plants | C24: 9171.65999 | D24: 10115.04756 | E24: 10123.68093 | F24: 10657.49007 | G24: 10076.89562 | H24: 9840.845771 | I24: 9982.965256 | J24: 9721.873314 | K24: 8490.066013 | L24: 8092.583326 | M24: 9107.207411 | N24: 9499.812619 | O24: 9287.244412 | P24: 10281.91066 | Q24: 10535.56786 | R24: 11518.54834 | S24: 11984.15665 | T24: 14468.09853 | U24: 13537.15758 | V24: 12589.53948 | W24: 12810.60357 | X24: 11223.71492 | Y24: 10523.03047 | Z24: 10322.88584 | AA24: 9323.915595 | AB24: 10407.65288 | AC24: 10384.37027 | AD24: 9284.512033 | AE24: 8012.546225 | AF24: 6910.055895 | AG24: 6338.702138 | AH24: 6603.23704 | AI24: 6286.2894 | AJ24: 5989.956751 | AK24: 5712.897598 | AL24: 5454.447663 | AM24: 5178.909168 | AN24: 4927.577317 | AO24: 4684.063397 | AP24: 4448.223192 | AQ24: 4220.099581 | AR24: 4021.580897 | AS24: 3830.057629 | AT24: 3645.616059 | AU24: 3468.275769 | AV24: 3298.113638 | AW24: 3084.879586 | AX24: 2882.660715 | AY24: 2691.546533 | AZ24: 2510.493353 | BA24: 2339.026033
A25: 1A4b ii | B25: Residential (mobile) | C25: 8.718227409 | D25: 8.877834323 | E25: 8.668261318 | F25: 8.524564693 | G25: 8.464240944 | H25: 8.477380855 | I25: 8.657731636 | J25: 8.954529919 | K25: 9.272896756 | L25: 9.601939928 | M25: 9.933313819 | N25: 10.14504104 | O25: 10.25455294 | P25: 10.38973143 | Q25: 10.56902069 | R25: 10.78489697 | S25: 11.20447704 | T25: 11.73360253 | U25: 12.12885218 | V25: 11.96210549 | W25: 11.61368332 | X25: 11.58996407 | Y25: 11.53267585 | Z25: 11.34662412 | AA25: 11.39848419 | AB25: 11.57138984 | AC25: 12.10361246 | AD25: 12.86312908 | AE25: 12.89336701 | AF25: 12.20372285 | AG25: 11.73434429 | AH25: 24.4437827 | AI25: 24.66275588 | AJ25: 25.10657357 | AK25: 25.62836658 | AL25: 25.92501557 | AM25: 26.10030589 | AN25: 26.33646235 | AO25: 26.62045576 | AP25: 26.91593286 | AQ25: 27.23135986 | AR25: 27.49822397 | AS25: 27.65097317 | AT25: 27.70026747 | AU25: 27.67274625 | AV25: 27.58626364 | AW25: 27.47286793 | AX25: 27.35236985 | AY25: 27.22819327 | AZ25: 27.10264096 | BA25: 26.97657492 | BC25: 1A4b ii | BD25: Residential (mobile)
A26: 1A4c i | B26: Plants in agriculture, forestry and aquaculture | C26: 1594.297482 | D26: 1582.921024 | E26: 1572.964329 | F26: 1471.049015 | G26: 1375.718501 | H26: 1263.03486 | I26: 1152.923866 | J26: 1223.128211 | K26: 1195.210009 | L26: 1093.380934 | M26: 978.5288571 | N26: 915.5977945 | O26: 906.0637193 | P26: 899.9194141 | Q26: 897.2139938 | R26: 896.6575265 | S26: 896.7421605 | T26: 890.8435845 | U26: 893.8581212 | V26: 886.5694286 | W26: 902.1517278 | X26: 895.1597871 | Y26: 888.1785226 | Z26: 891.478544 | AA26: 878.6591999 | AB26: 895.0388539 | AC26: 902.7648964 | AD26: 897.2519022 | AE26: 893.742731 | AF26: 880.6843052 | AG26: 856.5760898 | AH26: 905.6007631 | AI26: 870.5339904 | AJ26: 836.1340757 | AK26: 802.0628862 | AL26: 767.9916293 | AM26: 732.6093659 | AN26: 697.2271945 | AO26: 661.8450833 | AP26: 626.4629498 | AQ26: 591.0800085 | AR26: 557.3453002 | AS26: 523.6111112 | AT26: 489.8770493 | AU26: 456.1424389 | AV26: 422.4081327 | AW26: 389.1991647 | AX26: 356.4226549 | AY26: 323.6013035 | AZ26: 290.8248025 | BA26: 258.0482915
A27: 1A4c ii | B27: Agriculture & forestry (mobile) | C27: 1747.422115 | D27: 1733.337625 | E27: 1667.476847 | F27: 1658.153164 | G27: 1567.016194 | H27: 1575.181202 | I27: 1488.378536 | J27: 1449.157643 | K27: 1343.368407 | L27: 1281.630373 | M27: 1234.997513 | N27: 1209.444663 | O27: 1170.461915 | P27: 1123.57739 | Q27: 1048.624545 | R27: 984.1214961 | S27: 941.3253073 | T27: 886.2133587 | U27: 841.8320545 | V27: 796.7752954 | W27: 743.4384751 | X27: 687.4922498 | Y27: 635.567677 | Z27: 582.9035707 | AA27: 536.6986696 | AB27: 487.04083 | AC27: 453.3928474 | AD27: 422.9379941 | AE27: 393.9470853 | AF27: 364.1513826 | AG27: 333.9755532 | AH27: 305.4336008 | AI27: 284.1262137 | AJ27: 259.9429162 | AK27: 237.0821399 | AL27: 214.9832281 | AM27: 192.3507754 | AN27: 175.8186238 | AO27: 162.4050507 | AP27: 151.1482581 | AQ27: 140.698483 | AR27: 131.8640244 | AS27: 122.0753322 | AT27: 112.4623377 | AU27: 104.1294991 | AV27: 94.71278207 | AW27: 88.64124529 | AX27: 83.3315577 | AY27: 78.50421395 | AZ27: 74.88475534 | BA27: 71.90060013 | BC27: 1A4c ii | BD27: Agriculture & forestry (mobile)
A28: 1A4c iii | B28: Fishing (mobile) | C28: 158.1295774 | D28: 164.0628976 | E28: 150.6766001 | F28: 142.7039396 | G28: 144.366321 | H28: 145.7851538 | I28: 135.7508303 | J28: 108.6068085 | K28: 113.1175763 | L28: 128.1278784 | M28: 168.4730797 | N28: 159.7207744 | O28: 159.0183077 | P28: 150.3193227 | Q28: 128.7447311 | R28: 129.4443199 | S28: 131.7511446 | T28: 123.9206274 | U28: 93.83246293 | V28: 91.71920796 | W28: 93.52278851 | X28: 88.45684901 | Y28: 68.2319724 | Z28: 79.31232181 | AA28: 73.0040356 | AB28: 81.16326118 | AC28: 80.54041384 | AD28: 75.91243633 | AE28: 72.20576957 | AF28: 74.23654252 | AG28: 72.07877662 | AH28: 72.45552778 | AI28: 71.24666371 | AJ28: 69.985782 | AK28: 68.62724134 | AL28: 67.24830042 | AM28: 66.27032953 | AN28: 65.30798297 | AO28: 64.33577068 | AP28: 63.31894285 | AQ28: 62.30705083 | AR28: 61.30958155 | AS28: 60.32136789 | AT28: 59.36743518 | AU28: 58.3779052 | AV28: 57.34808752 | AW28: 57.43130228 | AX28: 57.47581042 | AY28: 57.49798016 | AZ28: 57.5024181 | BA28: 57.4495227 | BC28: 1A4c iii | BD28: Fishing (mobile)
A30: 1A5b | B30: Other mobile (military and recreational crafts) | C30: 104.112716 | D30: 208.7652624 | E30: 168.9370832 | F30: 170.8673404 | G30: 167.2468902 | H30: 231.1156018 | I30: 169.4638879 | J30: 200.0707364 | K30: 208.2412693 | L30: 184.6540826 | M30: 160.5384968 | N30: 180.239908 | O30: 165.7001293 | P30: 170.9388487 | Q30: 193.7595284 | R30: 181.5943163 | S30: 153.0616739 | T30: 143.774137 | U30: 132.0682196 | V30: 131.0173259 | W30: 115.2949832 | X30: 113.9202913 | Y30: 104.2724297 | Z30: 98.84463903 | AA30: 93.15869389 | AB30: 87.08670468 | AC30: 84.92919802 | AD30: 82.35438523 | AE30: 72.43291582 | AF30: 64.50047231 | AG30: 59.25928863 | AH30: 55.01626243 | AI30: 51.56277749 | AJ30: 48.12674203 | AK30: 44.71328314 | AL30: 41.31953839 | AM30: 37.94367448 | AN30: 34.58199382 | AO30: 31.23265211 | AP30: 27.89328242 | AQ30: 24.56194827 | AR30: 21.23665954 | AS30: 21.22285834 | AT30: 21.21250617 | AU30: 21.20474319 | AV30: 21.19890391 | AW30: 21.19435472 | AX30: 21.19049696 | AY30: 21.18714831 | AZ30: 21.18406171 | BA30: 21.1812028 | BC30: 1A5b | BD30: Other mobile (military and recreational crafts)
A32: 1B1 | B32: Fugitive emissions from solid fuels | C32: 135.3672012 | D32: 169.0955244 | E32: 157.6326972 | F32: 138.1614036 | G32: 155.3964192 | H32: 171.7154076 | I32: 173.362332 | J32: 177.8571696 | K32: 106.5392196 | L32: 93.9455616 | M32: 84.6788976 | N32: 91.4006808 | O32: 82.6645644 | P32: 125.5801272 | Q32: 100.2441792 | R32: 79.6203144 | S32: 114.6838176 | T32: 107.226372 | U32: 99.9233136 | V32: 88.5830616 | W32: 60.3288576 | X32: 80.9977608 | Y32: 52.5077256 | Z32: 65.3635224 | AA32: 59.8344252 | AB32: 36.398142 | AC32: 38.295576 | AD32: 40.9402884 | AE32: 36.3751872 | AF32: 31.023102 | AG32: 14.470632 | AH32: 22.58280043 | AI32: 25.29716214 | AJ32: 13.45278045 | AK32: 5.344261839 | AL32: 4.877459452 | AM32: 4.494168391 | AN32: 4.059846064 | AO32: 2.231196278 | AP32: 1.472390264 | AQ32: 1.193374969 | AR32: 1.128294044 | AS32: 1.063213119 | AT32: 0.9981321936 | AU32: 0.9330512686 | AV32: 0.8679703437 | AW32: 0.8582352494 | AX32: 0.8485001552 | AY32: 0.8387650609 | AZ32: 0.8290299666 | BA32: 0.8192948724 | BC32: 1A3a | BD32: Civil Aviation (Domestic Cruise)
A33: 1B2a | B33: Fugitive emissions from oil | C33: 8.1078984e-05 | D33: 1.2750486e-05 | E33: 0.00013047615 | F33: 2.137926e-06 | G33: 4.4814e-07 | H33: 5.8857792e-05 | I33: 5.872965e-05 | J33: 1.17243e-06 | K33: 0.000127216362 | L33: 0.000129379866 | M33: 4.4814e-05 | N33: 0 | O33: 2.2713768e-05 | P33: 0 | Q33: 0 | R33: 7.8890448e-05 | S33: 0 | T33: 0 | U33: 0 | V33: 1.4723016e-05 | W33: 0 | X33: 0 | Y33: 0 | Z33: 5.2155432e-05 | AA33: 0 | AB33: 1.2936e-05 | AC33: 0 | AD33: 0 | AE33: 0 | AF33: 0 | AG33: 0 | AH33: 0 | AI33: 0 | AJ33: 0 | AK33: 0 | AL33: 0 | AM33: 0 | AN33: 0 | AO33: 0 | AP33: 0 | AQ33: 0 | AR33: 0 | AS33: 0 | AT33: 0 | AU33: 0 | AV33: 0 | AW33: 0 | AX33: 0 | AY33: 0 | AZ33: 0 | BA33: 0 | BC33: 0 | BD33: Civil Aviation (International Cruise)
A34: 1B2b | B34: Fugitive emissions from gas | C34: 0.121466184 | D34: 5.5146e-05 | E34: 0.00035364 | F34: 2.058e-06 | G34: 9.618e-06 | H34: 6.174e-06 | I34: 4.536e-06 | J34: 1.26e-07 | K34: 8.6604e-05 | L34: 2.8938e-05 | M34: 0.00235158 | N34: NA | O34: 0.376538988 | P34: NA | Q34: NA | R34: 0.02994894 | S34: NA | T34: NA | U34: NA | V34: 0.000257334 | W34: NA | X34: NA | Y34: NA | Z34: 4.284e-06 | AA34: NA | AB34: 0.00122724 | AC34: NA | AD34: NA | AE34: NA | AF34: NA | AG34: NA | AH34: 0 | AI34: 0 | AJ34: 0 | AK34: 0 | AL34: 0 | AM34: 0 | AN34: 0 | AO34: 0 | AP34: 0 | AQ34: 0 | AR34: 0 | AS34: 0 | AT34: 0 | AU34: 0 | AV34: 0 | AW34: 0 | AX34: 0 | AY34: 0 | AZ34: 0 | BA34: 0 | BC34: 1A3d | BD34: Navigation, international
A35: 1B2c | B35: Fugitive emissions from venting and flaring | C35: 4.942621088 | D35: 9.760995936 | E35: 10.06745628 | F35: 8.756503792 | G35: 8.65235654 | H35: 6.78033066 | I35: 7.441363085 | J35: 10.48094122 | K35: 7.752942395 | L35: 16.51167974 | M35: 10.83037912 | N35: 11.57731523 | O35: 9.730894552 | P35: 10.06371512 | Q35: 11.30474112 | R35: 8.14611553 | S35: 7.990112465 | T35: 8.18092042 | U35: 6.034728926 | V35: 3.887596806 | W35: 5.348139945 | X35: 3.587076719 | Y35: 3.39471553 | Z35: 3.939237072 | AA35: 3.938814935 | AB35: 3.983156647 | AC35: 4.339451755 | AD35: 4.062606943 | AE35: 3.925476283 | AF35: 3.277040979 | AG35: 2.124942544 | AH35: 2.094309551 | AI35: 2.316605172 | AJ35: 2.502127858 | AK35: 2.502021576 | AL35: 1.558216139 | AM35: 1.495697481 | AN35: 1.665694669 | AO35: 1.716375611 | AP35: 1.778849552 | AQ35: 1.872343053 | AR35: 1.902001361 | AS35: 1.877158316 | AT35: 1.925357667 | AU35: 1.915106523 | AV35: 1.912009229 | AW35: 1.922565802 | AX35: 1.89525025 | AY35: 1.847989693 | AZ35: 1.82256262 | BA35: 1.754984122
A37: 2A | B37: Mineral industry | C37: 3046.582699 | D37: 2833.714894 | E37: 2064.386433 | F37: 1872.261753 | G37: 2005.865699 | H37: 2730.44573 | I37: 2196.340051 | J37: 2374.71211 | K37: 2392.814165 | L37: 2663.267788 | M37: 3162.220425 | N37: 2536.594612 | O37: 3535.253558 | P37: 2364.313674 | Q37: 3083.345047 | R37: 3366.738235 | S37: 3067.079993 | T37: 2471.132884 | U37: 8113.92313 | V37: 2777.420812 | W37: 3173.914026 | X37: 2614.065237 | Y37: 2730.015609 | Z37: 2595.641635 | AA37: 3594.491631 | AB37: 1815.710315 | AC37: 1564.983807 | AD37: 1962.272124 | AE37: 2774.112909 | AF37: 1739.597428 | AG37: 2009.733719 | AH37: 2052.578893 | AI37: 2096.72581 | AJ37: 2140.872728 | AK37: 2185.019646 | AL37: 2229.166564 | AM37: 2246.162787 | AN37: 2263.159009 | AO37: 2280.155231 | AP37: 2297.151454 | AQ37: 2314.147676 | AR37: 2324.652667 | AS37: 2335.157657 | AT37: 2345.662647 | AU37: 2356.167637 | AV37: 2366.672628 | AW37: 2384.792326 | AX37: 2402.912025 | AY37: 2421.031723 | AZ37: 2439.151422 | BA37: 2457.271121
A38: 2B | B38: Chemical Industry | C38: 396.9 | D38: 364.644 | E38: 323.768 | F38: 306.266 | G38: 311.076 | H38: 347.78 | I38: 363 | J38: 332 | K38: 206 | L38: 404 | M38: 381 | N38: 365 | O38: 329 | P38: 334 | Q38: 204 | R38: 23 | S38: 12 | T38: 25 | U38: 26 | V38: 16 | W38: 26 | X38: 6.8 | Y38: 5.998 | Z38: 10 | AA38: 11 | AB38: 5.6 | AC38: 10 | AD38: 10 | AE38: 3.6 | AF38: 4.2 | AG38: 4.4 | AH38: 4.066666667 | AI38: 4.066666667 | AJ38: 4.066666667 | AK38: 4.066666667 | AL38: 4.066666667 | AM38: 4.066666667 | AN38: 4.066666667 | AO38: 4.066666667 | AP38: 4.066666667 | AQ38: 4.066666667 | AR38: 4.066666667 | AS38: 4.066666667 | AT38: 4.066666667 | AU38: 4.066666667 | AV38: 4.066666667 | AW38: 4.066666667 | AX38: 4.066666667 | AY38: 4.066666667 | AZ38: 4.066666667 | BA38: 4.066666667
A39: 2C | B39: Metal industry | C39: 139.425324 | D39: 128.178924 | E39: 127.191924 | F39: 126.94794 | G39: 142.36494 | H39: 147.78074 | I39: 131.782308 | J39: 142.913524 | K39: 119.992936 | L39: 114.825936 | M39: 103.489432 | N39: 104.189604 | O39: 71.2454584 | P39: 74.11786189 | Q39: 79.10093026 | R39: 84.64929374 | S39: 63.47834583 | T39: 60.08805155 | U39: 59.83435012 | V39: 36.96487683 | W39: 58.02852459 | X39: 64.98733848 | Y39: 60.02823696 | Z39: 60.78517412 | AA39: 72.93619025 | AB39: 66.325447 | AC39: 66.54627379 | AD39: 69.44599655 | AE39: 75.27470919 | AF39: 67.5838825 | AG39: 56.60754065 | AH39: 66.48687718 | AI39: 66.48594598 | AJ39: 66.48594598 | AK39: 66.48594598 | AL39: 66.48594598 | AM39: 66.48594598 | AN39: 66.48594598 | AO39: 66.48594598 | AP39: 66.48594598 | AQ39: 66.48594598 | AR39: 66.48594598 | AS39: 66.48594598 | AT39: 66.48594598 | AU39: 66.48594598 | AV39: 66.48594598 | AW39: 66.48594598 | AX39: 66.48594598 | AY39: 66.48594598 | AZ39: 66.48594598 | BA39: 66.48594598
A40: 2D | B40: Non-energy products from fuels and solvent use | C40: 126.0600744 | D40: 128.9316048 | E40: 110.3356656 | F40: 123.0531024 | G40: 109.5708768 | H40: 156.0459336 | I40: 176.2377096 | J40: 177.1388148 | K40: 151.3212192 | L40: 138.502434 | M40: 146.4187728 | N40: 195.2940492 | O40: 167.2003368 | P40: 132.425586 | Q40: 184.279122 | R40: 192.5044608 | S40: 181.713354 | T40: 229.894254 | U40: 205.1561952 | V40: 124.027248 | W40: 148.9039872 | X40: 193.1678508 | Y40: 160.2914664 | Z40: 165.4600152 | AA40: 170.0076636 | AB40: 170.3894172 | AC40: 178.303032 | AD40: 181.428762 | AE40: 202.6119648 | AF40: 174.0279864 | AG40: 190.0458024 | AH40: 188.8952512 | AI40: 188.8952512 | AJ40: 188.8952512 | AK40: 188.8952512 | AL40: 188.8952512 | AM40: 188.8952512 | AN40: 188.8952512 | AO40: 188.8952512 | AP40: 188.8952512 | AQ40: 188.8952512 | AR40: 188.8952512 | AS40: 188.8952512 | AT40: 188.8952512 | AU40: 188.8952512 | AV40: 188.8952512 | AW40: 188.8952512 | AX40: 188.8952512 | AY40: 188.8952512 | AZ40: 188.8952512 | BA40: 188.8952512
A41: 2G | B41: Other product manufacture and use | C41: 257.4450142 | D41: 259.6162673 | E41: 277.7608051 | F41: 254.2879842 | G41: 263.982198 | H41: 304.0240235 | I41: 295.9080586 | J41: 287.5005937 | K41: 331.734065 | L41: 451.3535165 | M41: 393.468512 | N41: 342.3579954 | O41: 401.7961107 | P41: 466.1303394 | Q41: 545.3235245 | R41: 367.1742756 | S41: 394.8866396 | T41: 378.2859724 | U41: 359.2912146 | V41: 394.1684158 | W41: 395.2290801 | X41: 351.1779217 | Y41: 324.8081375 | Z41: 362.9369323 | AA41: 309.0835244 | AB41: 389.7225917 | AC41: 310.2049936 | AD41: 305.1123306 | AE41: 357.0997732 | AF41: 297.8457214 | AG41: 272.4788634 | AH41: 307.896107 | AI41: 305.8781532 | AJ41: 303.8601993 | AK41: 301.8422454 | AL41: 299.8242916 | AM41: 297.8063377 | AN41: 295.7883838 | AO41: 293.7704299 | AP41: 291.7524761 | AQ41: 289.7345222 | AR41: 287.7165683 | AS41: 285.6986145 | AT41: 283.6806606 | AU41: 281.6627067 | AV41: 279.6447529 | AW41: 277.626799 | AX41: 275.6088451 | AY41: 273.5908912 | AZ41: 271.5729374 | BA41: 269.5549835
A42: 2H | B42: Other | C42: 19.027954 | D42: 18.757124 | E42: 22.764772 | F42: 22.429388 | G42: 17.97389 | H42: 19.323694 | I42: 21.596228 | J42: 21.485776 | K42: 20.919206 | L42: 20.383906 | M42: 22.233606 | N42: 20.27356 | O42: 19.059118 | P42: 18.398844 | Q42: 18.211436 | R42: 18.521698 | S42: 15.551472 | T42: 20.945309 | U42: 18.859806 | V42: 16.889321 | W42: 14.460479 | X42: 19.25805 | Y42: 20.9933 | Z42: 22.171898 | AA42: 24.813384 | AB42: 25.334848 | AC42: 28.417752 | AD42: 29.941396 | AE42: 29.525664 | AF42: 37.1 | AG42: 46.419308 | AH42: 37.68165733 | AI42: 37.68165733 | AJ42: 37.68165733 | AK42: 37.68165733 | AL42: 37.68165733 | AM42: 37.68165733 | AN42: 37.68165733 | AO42: 37.68165733 | AP42: 37.68165733 | AQ42: 37.68165733 | AR42: 37.68165733 | AS42: 37.68165733 | AT42: 37.68165733 | AU42: 37.68165733 | AV42: 37.68165733 | AW42: 37.68165733 | AX42: 37.68165733 | AY42: 37.68165733 | AZ42: 37.68165733 | BA42: 37.68165733
A43: 2I | B43: Wood processing | C43: 143.704 | D43: 118.176 | E43: 129.472 | F43: 174.18 | G43: 183.084 | H43: 185.924 | I43: 198.18 | J43: 203.716 | K43: 188.908 | L43: 176.008 | M43: 192.524 | N43: 158.504 | O43: 139.7 | P43: 159.956 | Q43: 143.14 | R43: 147.324 | S43: 149.108 | T43: 150.892 | U43: 173.928 | V43: 175.544 | W43: 174.64 | X43: 162.012 | Y43: 154.752 | Z43: 156.984 | AA43: 174.008 | AB43: 181.372 | AC43: 185.692 | AD43: 181.664 | AE43: 158.352 | AF43: 165.352 | AG43: 180.848 | AH43: 168.184 | AI43: 168.184 | AJ43: 168.184 | AK43: 168.184 | AL43: 168.184 | AM43: 168.184 | AN43: 168.184 | AO43: 168.184 | AP43: 168.184 | AQ43: 168.184 | AR43: 168.184 | AS43: 168.184 | AT43: 168.184 | AU43: 168.184 | AV43: 168.184 | AW43: 168.184 | AX43: 168.184 | AY43: 168.184 | AZ43: 168.184 | BA43: 168.184
A44: 2L | B44: Other production
A46: 3B1a | B46: Manure Management - Dairy cattle | C46: 435.5053178 | D46: 430.6388138 | E46: 414.8347502 | F46: 417.5623838 | G46: 410.6225827 | H46: 413.9111411 | I46: 414.2633631 | J46: 393.6184617 | K46: 390.1283029 | L46: 373.2988707 | M46: 395.2032235 | N46: 393.9996575 | O46: 391.5229805 | P46: 401.9398553 | Q46: 392.3331746 | R46: 400.3819606 | S46: 397.9225755 | T46: 402.7595164 | U46: 415.2372788 | V46: 421.7227476 | W46: 425.4769127 | X46: 426.4002424 | Y46: 443.8750165 | Z46: 439.9339751 | AA46: 425.2950468 | AB46: 423.8165276 | AC46: 431.1798469 | AD46: 429.6490702 | AE46: 434.2162105 | AF46: 427.2225817 | AG46: 426.4677764 | AH46: 423.9547127 | AI46: 428.2704019 | AJ46: 429.8700073 | AK46: 431.6457508 | AL46: 432.7058843 | AM46: 434.5091091 | AN46: 438.4368116 | AO46: 441.2566764 | AP46: 445.0761214 | AQ46: 448.9861178 | AR46: 447.0167563 | AS46: 442.7929294 | AT46: 438.6830699 | AU46: 434.6841583 | AV46: 430.7933127 | AW46: 427.0077806 | AX46: 423.3249325 | AY46: 419.7422563 | AZ46: 416.2573494 | BA46: 412.8679163
A47: 3B1b | B47: Manure Management - Non-dairy cattle | C47: 493.1743535 | D47: 480.6742113 | E47: 472.0227479 | F47: 459.0676841 | G47: 432.1857485 | H47: 420.6972313 | I47: 418.7851465 | J47: 401.5810038 | K47: 394.5813103 | L47: 373.4130865 | M47: 365.2526052 | N47: 373.0433046 | O47: 350.5865577 | P47: 220.549743 | Q47: 217.7586755 | R47: 208.0035602 | S47: 211.3220618 | T47: 226.1465967 | U47: 224.4365246 | V47: 219.7222522 | W47: 221.027183 | X47: 223.6729537 | Y47: 226.2765445 | Z47: 232.1726284 | AA47: 224.8526075 | AB47: 223.2947592 | AC47: 222.4496535 | AD47: 218.4094972 | AE47: 216.7133503 | AF47: 210.3863989 | AG47: 211.2092517 | AH47: 211.6886858 | AI47: 212.8346626 | AJ47: 213.8010383 | AK47: 214.7493121 | AL47: 215.7067348 | AM47: 216.6460551 | AN47: 217.5723198 | AO47: 218.5026876 | AP47: 219.4280722 | AQ47: 220.3535229 | AR47: 219.0384598 | AS47: 217.7521842 | AT47: 216.4633493 | AU47: 215.1719962 | AV47: 213.8781617 | AW47: 212.5818847 | AX47: 211.2831989 | AY47: 209.9821377 | AZ47: 208.6787346 | BA47: 207.373017
A48: 3B2 | B48: Manure Management - Sheep | C48: 1.410297863 | D48: 1.633972603 | E48: 1.571504219 | F48: 1.354254904 | G48: 1.227035178 | H48: 1.238229041 | I48: 1.442977315 | J48: 1.47186411 | K48: 1.548392329 | L48: 1.621852055 | M48: 1.712940274 | N48: 1.819708493 | O48: 1.801987945 | P48: 1.856607123 | Q48: 1.905518904 | R48: 1.937201096 | S48: 1.95981589 | T48: 1.899197808 | U48: 1.802570959 | V48: 1.772376986 | W48: 1.703044384 | X48: 1.434950137 | Y48: 1.385946301 | Z48: 1.35638137 | AA48: 1.34941589 | AB48: 1.290286027 | AC48: 1.272327671 | AD48: 1.254369315 | AE48: 1.257652603 | AF48: 1.347267945 | AG48: 1.228010959 | AH48: 1.228010959 | AI48: 1.228010959 | AJ48: 1.228010959 | AK48: 1.228010959 | AL48: 1.228010959 | AM48: 1.228010959 | AN48: 1.228010959 | AO48: 1.228010959 | AP48: 1.228010959 | AQ48: 1.228010959 | AR48: 1.228010959 | AS48: 1.228010959 | AT48: 1.228010959 | AU48: 1.228010959 | AV48: 1.228010959 | AW48: 1.228010959 | AX48: 1.228010959 | AY48: 1.228010959 | AZ48: 1.228010959 | BA48: 1.228010959
A49: 3B3 | B49: Manure Management - Swine | C49: 917.5066683 | D49: 947.3022796 | E49: 1015.242342 | F49: 1136.860844 | G49: 1060.473518 | H49: 1074.041434 | I49: 1048.692942 | J49: 1099.152909 | K49: 1239.258246 | L49: 1186.974292 | M49: 1216.22349 | N49: 1283.58702 | O49: 1293.149267 | P49: 1310.795134 | Q49: 1341.95758 | R49: 1370.487673 | S49: 1347.645772 | T49: 1388.427968 | U49: 1282.302732 | V49: 1232.727125 | W49: 1320.478501 | X49: 1295.787294 | Y49: 1228.405325 | Z49: 1201.817442 | AA49: 1216.755165 | AB49: 1227.77038 | AC49: 1216.069085 | AD49: 1201.875994 | AE49: 1244.143453 | AF49: 1196.727866 | AG49: 1279.256241 | AH49: 1380.751315 | AI49: 1352.733595 | AJ49: 1340.800184 | AK49: 1329.589134 | AL49: 1321.240913 | AM49: 1311.494079 | AN49: 1304.046955 | AO49: 1293.564472 | AP49: 1282.963047 | AQ49: 1271.58005 | AR49: 1239.022518 | AS49: 1223.398015 | AT49: 1206.655799 | AU49: 1189.262509 | AV49: 1171.437423 | AW49: 1153.294392 | AX49: 1134.897457 | AY49: 1116.287104 | AZ49: 1097.492663 | BA49: 1078.538128
A50: 3B4d | B50: Manure Management - Goats | C50: 0.115030137 | D50: 0.1134882192 | E50: 0.1119463014 | F50: 0.1104043836 | G50: 0.1088624658 | H50: 0.1073205479 | I50: 0.1057786301 | J50: 0.1042367123 | K50: 0.1189808219 | L50: 0.1241052055 | M50: 0.1298432877 | N50: 0.144940274 | O50: 0.1416109589 | P50: 0.1541610959 | Q50: 0.165299726 | R50: 0.1754871233 | S50: 0.1864263014 | T50: 0.1945578082 | U50: 0.2170345205 | V50: 0.2405391781 | W50: 0.2453107003 | X50: 0.1926553425 | Y50: 0.1968591781 | Z50: 0.198899726 | AA50: 0.1827134247 | AB50: 0.17248 | AC50: 0.1720120701 | AD50: 0.1715441096 | AE50: 0.1582575342 | AF50: 0.1791846575 | AG50: 0.1586410959 | AH50: 0.1586410959 | AI50: 0.1586410959 | AJ50: 0.1586410959 | AK50: 0.1586410959 | AL50: 0.1586410959 | AM50: 0.1586410959 | AN50: 0.1586410959 | AO50: 0.1586410959 | AP50: 0.1586410959 | AQ50: 0.1586410959 | AR50: 0.1586410959 | AS50: 0.1586410959 | AT50: 0.1586410959 | AU50: 0.1586410959 | AV50: 0.1586410959 | AW50: 0.1586410959 | AX50: 0.1586410959 | AY50: 0.1586410959 | AZ50: 0.1586410959 | BA50: 0.1586410959
A51: 3B4e | B51: Manure Management - Horses | C51: 14.85 | D51: 15.015 | E51: 15.18 | F51: 15.345 | G51: 15.51 | H51: 15.675 | I51: 15.84 | J51: 16.005 | K51: 16.17 | L51: 16.335 | M51: 16.5 | N51: 17.05 | O51: 17.6 | P51: 18.15 | Q51: 18.7 | R51: 19.25 | S51: 19.8 | T51: 20.35 | U51: 20.9 | V51: 19.525 | W51: 18.15 | X51: 17.05 | Y51: 17.05 | Z51: 16.5 | AA51: 16.5 | AB51: 17.05 | AC51: 17.875 | AD51: 18.7 | AE51: 19.25 | AF51: 19.25 | AG51: 20.07522 | AH51: 20.07522 | AI51: 20.07522 | AJ51: 20.07522 | AK51: 20.07522 | AL51: 20.07522 | AM51: 20.07522 | AN51: 20.07522 | AO51: 20.07522 | AP51: 20.07522 | AQ51: 20.07522 | AR51: 20.07522 | AS51: 20.07522 | AT51: 20.07522 | AU51: 20.07522 | AV51: 20.07522 | AW51: 20.07522 | AX51: 20.07522 | AY51: 20.07522 | AZ51: 20.07522 | BA51: 20.07522
A52: 3B4g | B52: Manure Management - Poultry | C52: 495.4949867 | D52: 486.5244258 | E52: 556.6116429 | F52: 589.056377 | G52: 618.2275492 | H52: 603.2452818 | I52: 591.8180237 | J52: 574.9030048 | K52: 549.3398237 | L52: 590.6253658 | M52: 599.4299981 | N52: 590.0660533 | O52: 579.0250248 | P52: 514.0476206 | Q52: 505.1390241 | R52: 534.1442355 | S52: 486.5565994 | T52: 467.7367571 | U52: 464.7204697 | V52: 549.2993305 | W52: 540.6680615 | X52: 539.5991419 | Y52: 534.7451807 | Z52: 531.4514119 | AA52: 500.3460425 | AB52: 483.9081931 | AC52: 516.7036239 | AD52: 597.8515621 | AE52: 559.7320558 | AF52: 637.7627383 | AG52: 605.8292535 | AH52: 643.2296866 | AI52: 641.1837963 | AJ52: 638.8994943 | AK52: 636.2164958 | AL52: 633.2962135 | AM52: 630.2113418 | AN52: 627.6216824 | AO52: 624.4939511 | AP52: 621.5355979 | AQ52: 618.4407289 | AR52: 614.9550241 | AS52: 611.4139924 | AT52: 607.8404505 | AU52: 604.2478347 | AV52: 600.6472197 | AW52: 597.0477914 | AX52: 593.4570687 | AY52: 589.881195 | AZ52: 586.3251986 | BA52: 582.7931354
A53: 3B4h | B53: Manure Management - Other (mainly mink) | C53: 18.11384 | D53: 16.892536 | E53: 18.26716 | F53: 12.298632 | G53: 14.626688 | H53: 14.799536 | I53: 15.347664 | J53: 17.698488 | K53: 18.7604 | L53: 16.711232 | M53: 17.591184 | N53: 18.434208 | O53: 19.372224 | P53: 18.886736 | Q53: 19.767744 | R53: 20.417144 | S53: 21.663416 | T53: 22.692888 | U53: 22.479864 | V53: 21.76816 | W53: 21.594072 | X53: 22.053416 | Y53: 23.583544 | Z53: 24.98356 | AA53: 26.461704 | AB53: 27.106936 | AC53: 26.005224 | AD53: 27.330008 | AE53: 26.904824 | AF53: 19.724896 | AG53: 17.731888 | AH53: 0 | AI53: 0 | AJ53: 1.7731888 | AK53: 1.7731888 | AL53: 1.773188808 | AM53: 1.7731888 | AN53: 1.7731888 | AO53: 1.7731888 | AP53: 1.7731888 | AQ53: 1.7731888 | AR53: 1.7731888 | AS53: 1.7731888 | AT53: 1.7731888 | AU53: 1.7731888 | AV53: 1.7731888 | AW53: 1.7731888 | AX53: 1.7731888 | AY53: 1.7731888 | AZ53: 1.7731888 | BA53: 1.7731888
A54: 3Da1 | B54: Inorganic N-fertilizers (includes also urea application)
A55: 3Da2a | B55: Animal manure applied to soils
A56: 3Da2b-c | B56: Sludge applied to soils
A57: 3Da3 | B57: Urine and dung deposited by grazing animals
A58: 3Dc | B58: Farm-level agricultural operations including storage, handling and transport of agricultural products | C58: 6837.251 | D58: 6824.88 | E58: 6774.851 | F58: 6327.551 | G58: 6370.074 | H58: 6247.36 | I58: 6339.772 | J58: 6374.427 | K58: 6307.411 | L58: 6197.443 | M58: 6237.701 | N58: 6285.217 | O58: 5245.919 | P58: 5316.33 | Q58: 5351.297 | R58: 5414.575 | S58: 5472.119 | T58: 5461.955 | U58: 5598.975 | V58: 5581.738 | W58: 5665.474 | X58: 5653.389 | Y58: 5558.269 | Z58: 5521.414 | AA58: 5553.983 | AB58: 5490.337 | AC58: 5466.736 | AD58: 6082.538 | AE58: 5848.603 | AF58: 6020.584 | AG58: 5654.44 | AH58: 5770.077102 | AI58: 5742.076525 | AJ58: 5714.144072 | AK58: 5686.771596 | AL58: 5660.833452 | AM58: 5625.582285 | AN58: 5590.468346 | AO58: 5574.005419 | AP58: 5557.542491 | AQ58: 5548.029482 | AR58: 5542.013566 | AS58: 5535.99765 | AT58: 5529.981734 | AU58: 5523.965819 | AV58: 5517.949903 | AW58: 5511.933987 | AX58: 5505.918071 | AY58: 5499.902155 | AZ58: 5493.886239 | BA58: 5487.870323
A59: 3De | B59: Cultivated crops
A60: 3F | B60: Field burning of agricultural residues | C60: 183.3306817 | D60: 190.6116266 | E60: 182.2470975 | F60: 198.9946879 | G60: 191.8979741 | H60: 217.1768828 | I60: 215.958123 | J60: 228.9327908 | K60: 288.2061574 | L60: 273.7794431 | M60: 269.6860238 | N60: 283.4139679 | O60: 235.7580634 | P60: 283.4194185 | Q60: 297.1440922 | R60: 301.5296651 | S60: 305.889075 | T60: 264.6758092 | U60: 245.1189667 | V60: 288.3664058 | W60: 210.280752 | X60: 208.135386 | Y60: 239.190867 | Z60: 258.4948005 | AA60: 254.5180245 | AB60: 226.9247805 | AC60: 221.6660175 | AD60: 251.4133485 | AE60: 289.3671405 | AF60: 324.621783 | AG60: 324.613062 | AH60: 280.2101528 | AI60: 278.850371 | AJ60: 277.4938974 | AK60: 276.1646178 | AL60: 274.9049932 | AM60: 273.1931036 | AN60: 271.4878782 | AO60: 270.688395 | AP60: 269.8889119 | AQ60: 269.4269351 | AR60: 269.1347864 | AS60: 268.8426376 | AT60: 268.5504889 | AU60: 268.2583402 | AV60: 267.9661914 | AW60: 267.6740427 | AX60: 267.381894 | AY60: 267.0897452 | AZ60: 266.7975965 | BA60: 266.5054478
A61: 3I | B61: Agriculture other
A63: 5A | B63: Solid waste disposal on land | C63: 0.1275921778 | D63: 0.1219986133 | E63: 0.1164050489 | F63: 0.1108114844 | G63: 0.10521792 | H63: 0.0787406 | I63: 0.10094524 | J63: 0.08411028 | K63: 0.07472496 | L63: 0.0620956 | M63: 0.059553 | N63: 0.05266932 | O63: 0.04775364 | P63: 0.039229 | Q63: 0.04095456 | R63: 0.03931948 | S63: 0.0400604 | T63: 0.03937664 | U63: 0.04288276 | V63: 0.03115608 | W63: 0.09947681173 | X63: 0.1049654761 | Y63: 0.1005916869 | Z63: 0.1047489096 | AA63: 0.103007923 | AB63: 0.09747394447 | AC63: 0.1178358747 | AD63: 0.08844884813 | AE63: 0.09634318459 | AF63: 0.1088516544 | AG63: 0.1087159172 | AH63: 0.0189865036 | AI63: 0.01947202932 | AJ63: 0.0198339208 | AK63: 0.02018254571 | AL63: 0.02051920378 | AM63: 0.0207055824 | AN63: 0.02093427504 | AO63: 0.02114897729 | AP63: 0.02132838019 | AQ63: 0.02162994312 | AR63: 0.02182749496 | AS63: 0.02202249877 | AT63: 0.02217839189 | AU63: 0.02231985319 | AV63: 0.02262762172 | AW63: 0.02282435323 | AX63: 0.02303997828 | AY63: 0.02326012129 | AZ63: 0.02346697437 | BA63: 0.02381771412
A64: 5B | B64: Biological treatment of waste | C64: NE | D64: NE | E64: NE | F64: NE | G64: NE | H64: NE | I64: NE | J64: NE | K64: NE | L64: NE | M64: NE | N64: NE | O64: NE | P64: NE | Q64: NE | R64: NE | S64: NE | T64: NE | U64: NE | V64: NE | W64: NE | X64: NE | Y64: NE | Z64: NE | AA64: NE | AB64: NE | AC64: NE | AD64: NE | AE64: NE | AF64: NE | AG64: NE | AH64: =AG64 -> NE | AI64: =AH64 -> NE | AJ64: NE | AK64: NE | AL64: NE | AM64: NE | AN64: NE | AO64: NE | AP64: NE | AQ64: NE | AR64: NE | AS64: NE | AT64: NE | AU64: NE | AV64: NE | AW64: NE | AX64: NE | AY64: NE | AZ64: NE | BA64: NE
A65: 5C | B65: Waste incineration | C65: 1.6518877 | D65: 1.6559102 | E65: 1.6985885 | F65: 1.7742318 | G65: 1.7745414 | H65: 1.8274909 | I65: 1.8224914 | J65: 1.8249177 | K65: 1.805152 | L65: 2.0308153 | M65: 2.1230797 | N65: 2.1387929 | O65: 2.1661333 | P65: 2.1641559 | Q65: 2.3155885 | R65: 2.5801626 | S65: 3.1382651 | T65: 3.4138002 | U65: 3.4971836 | V65: 3.5202276 | W65: 3.676105 | X65: 1.879383056 | Y65: 1.923635423 | Z65: 1.768075103 | AA65: 1.790741604 | AB65: 1.727073586 | AC65: 1.831305824 | AD65: 1.793200523 | AE65: 1.80464998 | AF65: 1.746435722 | AG65: 1.53862777 | AH65: 1.696571157 | AI65: 1.696571157 | AJ65: 1.696571157 | AK65: 1.696571157 | AL65: 1.696571157 | AM65: 1.696571157 | AN65: 1.696571157 | AO65: 1.696571157 | AP65: 1.696571157 | AQ65: 1.696571157 | AR65: 1.696571157 | AS65: 1.696571157 | AT65: 1.696571157 | AU65: 1.696571157 | AV65: 1.696571157 | AW65: 1.696571157 | AX65: 1.696571157 | AY65: 1.696571157 | AZ65: 1.696571157 | BA65: 1.696571157
A66: 5D | B66: Wastewater handling
A67: 5E | B67: Other | C67: 334.8030591 | D67: 343.3194638 | E67: 365.0897504 | F67: 335.4972457 | G67: 335.403132 | H67: 372.6118912 | I67: 376.5709078 | J67: 354.677352 | K67: 328.6313681 | L67: 345.2953802 | M67: 340.661323 | N67: 336.502862 | O67: 328.8455241 | P67: 357.4055654 | Q67: 321.4397833 | R67: 331.4378515 | S67: 338.1853955 | T67: 332.8690076 | U67: 394.4826066 | V67: 390.5992275 | W67: 362.4221352 | X67: 348.3804191 | Y67: 320.5109892 | Z67: 335.2629209 | AA67: 311.4492629 | AB67: 291.3371011 | AC67: 329.5871929 | AD67: 327.4336791 | AE67: 338.498607 | AF67: 310.3168828 | AG67: 316.6627217 | AH67: =AVERAGE($AE$67:$AG$67) -> 321.8260705 | AI67: =AVERAGE($AE$67:$AG$67) -> 321.8260705 | AJ67: 321.8260705 | AK67: 321.8260705 | AL67: 321.8260705 | AM67: 321.8260705 | AN67: 321.8260705 | AO67: 321.8260705 | AP67: 321.8260705 | AQ67: 321.8260705 | AR67: 321.8260705 | AS67: 321.8260705 | AT67: 321.8260705 | AU67: 321.8260705 | AV67: 321.8260705 | AW67: 321.8260705 | AX67: 321.8260705 | AY67: 321.8260705 | AZ67: 321.8260705 | BA67: 321.8260705
B68: Total | C68: =SUM(C3:C67) -> 35681.32471 | D68: 37072.50262 | E68: 35773.67705 | F68: 35655.30315 | G68: 35112.17674 | H68: 35420.29539 | I68: 34978.83799 | J68: 34222.70102 | K68: 32243.10143 | L68: 31682.0996 | M68: 32861.63409 | N68: 32506.76631 | O68: 31771.24676 | P68: 31725.04992 | Q68: 32287.10489 | R68: 32966.97904 | S68: 33234.3973 | T68: 34929.68068 | U68: 39243.80259 | V68: 32135.89401 | W68: 32752.81301 | X68: 30183.808 | Y68: 28976.82064 | Z68: 28669.62592 | AA68: 28145.73625 | AB68: 27062.76111 | AC68: 26740.14641 | AD68: =SUM(AD3:AD67) -> 26568.42991 | AE68: =SUM(AE3:AE67) -> 25805.1121 | AF68: 23496.11278 | AG68: =SUM(AG3:AG67) -> 22598.84915 | AH68: 23384.64917 | AI68: 22984.6246 | AJ68: 22568.64201 | AK68: 22125.11589 | AL68: 21788.17285 | AM68: 21392.00266 | AN68: 21023.18949 | AO68: 20685.98543 | AP68: 20363.85529 | AQ68: 20047.47495 | AR68: 19772.57596 | AS68: 19516.38375 | AT68: 19281.67204 | AU68: 19046.74949 | AV68: 18818.04139 | AW68: 18540.49657 | AX68: 18271.04064 | AY68: 18012.13684 | AZ68: 17765.74321 | BA68: 17523.77688
B71: Reduction since 2005 | S71: =($R$68-S68)/$R$68 -> -0.008111700629 | T71: -0.05953538049 | U71: -0.1903972926 | V71: 0.02520962052 | W71: 0.006496380158 | X71: 0.08442299297 | Y71: 0.1210350027 | Z71: 0.1303532577 | AA71: 0.1462446038 | AB71: 0.1790949034 | AC71: 0.1888808988 | AD71: =($R$68-AD68)/$R$68 -> 0.1940896411 | AE71: 0.2172436524 | AF71: =($R$68-AF68)/$R$68 -> 0.2872834131 | AG71: 0.3145004543 | AH71: =($R$68-AH68)/$R$68 -> 0.2906644815 | AI71: 0.3027985799 | AJ71: 0.315416739 | AK71: 0.3288703868 | AL71: 0.3390910092 | AM71: 0.3511081912 | AN71: 0.3622955422 | AO71: 0.372524082 | AP71: 0.3822953792 | AQ71: 0.3918922651 | AR71: 0.4002308813 | AS71: 0.4080020578 | AT71: 0.4151216579 | AU71: 0.4222476538 | AV71: 0.4291851441 | AW71: 0.4376040173 | AX71: 0.4457775271 | AY71: 0.4536309554 | AZ71: 0.4611049076 | BA71: 0.468444565
A73: 1A3a | B73: Civil Aviation (Domestic Cruise) | C73: 4.351326258 | D73: 4.098783459 | E73: 3.983368881 | F73: 3.824502901 | G73: 3.981178288 | H73: 4.046562589 | I73: 4.356688078 | J73: 4.399124343 | K73: 4.27638167 | L73: 4.13126038 | M73: 3.816437159 | N73: 4.237996309 | O73: 3.403250722 | P73: 3.578385752 | Q73: 2.796253769 | R73: 3.260200738 | S73: 3.809420532 | T73: 4.662713705 | U73: 5.13578686 | V73: 4.44241374 | W73: 4.271667293 | X73: 4.08303967 | Y73: 3.794369548 | Z73: 3.52944981 | AA73: 3.385022547 | AB73: 3.140207113 | AC73: 3.278483088 | AD73: 3.447206142 | AE73: 3.742984111 | AF73: 3.914140541 | AG73: 1.877385629 | AH73: 3.6191356 | AI73: 3.65623885 | AJ73: 3.689951233 | AK73: 3.722282185 | AL73: 3.754357614 | AM73: 3.796058088 | AN73: 3.838826951 | AO73: 3.882176059 | AP73: 3.925023728 | AQ73: 3.969066251 | AR73: 3.981677256 | AS73: 3.993254013 | AT73: 4.005366747 | AU73: 4.016595282 | AV73: 4.029091159 | AW73: 4.041207447 | AX73: 4.052628565 | AY73: 4.064613518 | AZ73: 4.075810729 | BA73: 4.088041573
B74: Civil Aviation (International Cruise) | C74: 83.45084633 | D74: 76.74293697 | E74: 78.86135595 | F74: 77.46309518 | G74: 85.61408128 | H74: 87.79728534 | I74: 93.19551515 | J74: 95.11350381 | K74: 102.9905933 | L74: 108.1838328 | M74: 110.5479473 | N74: 111.9109885 | O74: 131.3025907 | P74: 146.0636651 | Q74: 157.7109352 | R74: 153.9234895 | S74: 147.5842852 | T74: 145.6118422 | U74: 142.6590062 | V74: 121.0073784 | W74: 123.8319284 | X74: 136.178411 | Y74: 138.3981156 | Z74: 138.6414096 | AA74: 154.5928759 | AB74: 145.7488131 | AC74: 149.7549267 | AD74: 158.779431 | AE74: 162.2262843 | AF74: 162.5225374 | AG74: 44.66137279 | AH74: 56.56479276 | AI74: 141.3233545 | AJ74: 142.0101553 | AK74: 142.5117011 | AL74: 142.9492847 | AM74: 143.8738064 | AN74: 144.8641261 | AO74: 145.8709908 | AP74: 146.7770467 | AQ74: 147.7781901 | AR74: 147.9223705 | AS74: 147.9585729 | AT74: 148.0647401 | AU74: 148.079526 | AV74: 148.2456368 | AW74: 148.3757664 | AX74: 148.434903 | AY74: 148.5640544 | AZ74: 148.6108238 | BA74: 148.7812384
A75: 1A3d | B75: Navigation, international | C75: 4912.910166 | D75: 4039.955272 | E75: 3735.275912 | F75: 6924.637733 | G75: 7193.813256 | H75: 7778.709635 | I75: 7295.084515 | J75: 6695.852601 | K75: 5779.669325 | L75: 6029.65736 | M75: 6750.793837 | N75: 5395.529611 | O75: 3795.05245 | P75: 4057.405085 | Q75: 3447.601463 | R75: 4266.244481 | S75: 6330.236137 | T75: 4688.556421 | U75: 3664.263284 | V75: 1512.129762 | W75: 2101.10139 | X75: 2267.109027 | Y75: 1381.491742 | Z75: 1885.528707 | AA75: 2320.329247 | AB75: 1483.570566 | AC75: 1196.092879 | AD75: 726.5883488 | AE75: 1044.091355 | AF75: 1662.899012 | AG75: 1439.511799 | AH75: 1706.636255 | AI75: 1722.250582 | AJ75: 1736.715483 | AK75: 1749.941674 | AL75: 1761.838737 | AM75: 1772.315671 | AN75: 1781.281515 | AO75: 1788.646019 | AP75: 1794.32039 | AQ75: 1798.218072 | AR75: 1802.12547 | AS75: 1806.04262 | AT75: 1809.969559 | AU75: 1813.906324 | AV75: 1817.852953 | AW75: 1821.809481 | AX75: 1825.775947 | AY75: 1829.752387 | AZ75: 1833.738841 | BA75: 1837.735346

Sheet PM2_5
A1: PM2.5 (tons)
C2: 1990 | D2: 1991 | E2: 1992 | F2: 1993 | G2: 1994 | H2: 1995 | I2: 1996 | J2: 1997 | K2: 1998 | L2: 1999 | M2: 2000 | N2: 2001 | O2: 2002 | P2: 2003 | Q2: 2004 | R2: 2005 | S2: 2006 | T2: 2007 | U2: 2008 | V2: 2009 | W2: 2010 | X2: 2011 | Y2: 2012 | Z2: 2013 | AA2: 2014 | AB2: 2015 | AC2: 2016 | AD2: 2017 | AE2: 2018 | AF2: 2019 | AG2: 2020 | AH2: 2021 | AI2: 2022 | AJ2: 2023 | AK2: 2024 | AL2: 2025 | AM2: 2026 | AN2: 2027 | AO2: 2028 | AP2: 2029 | AQ2: 2030 | AR2: 2031 | AS2: 2032 | AT2: 2033 | AU2: 2034 | AV2: 2035 | AW2: 2036 | AX2: 2037 | AY2: 2038 | AZ2: 2039 | BA2: 2040
A3: 1A1a | B3: Public power and district heating plants | C3: 673.2987297 | D3: 860.7848829 | E3: 747.4969941 | F3: 767.5821595 | G3: 822.3370642 | H3: 791.0145303 | I3: 1062.078807 | J3: 837.8000092 | K3: 748.0216277 | L3: 661.5767203 | M3: 694.037344 | N3: 760.5295495 | O3: 798.6720828 | P3: 863.1434616 | Q3: 671.1249939 | R3: 541.9667193 | S3: 627.6123327 | T3: 653.7925612 | U3: 554.8194443 | V3: 505.1263707 | W3: 483.2180778 | X3: 457.0060743 | Y3: 403.3730504 | Z3: 575.6513662 | AA3: 436.443602 | AB3: 343.0813184 | AC3: 391.9523271 | AD3: 364.8768811 | AE3: 389.2793455 | AF3: 366.9107861 | AG3: 370.9252333 | AH3: 471.5841785 | AI3: 484.3744745 | AJ3: 458.2095394 | AK3: 386.5079257 | AL3: 383.1563404 | AM3: 383.028342 | AN3: 380.2059973 | AO3: 368.7603703 | AP3: 355.6563792 | AQ3: 324.7676758 | AR3: 315.8710177 | AS3: 308.9569725 | AT3: 313.3262601 | AU3: 309.3843103 | AV3: 305.7469008 | AW3: 291.0905695 | AX3: 275.9693926 | AY3: 262.8371432 | AZ3: 252.2456213 | BA3: 243.2755512
